Workbook

Sheet ACCUEILPRO
A1: Accueil
F7: =ACCUEIL!F7 -> 2021-08-22

Sheet ACCUEILPREM
A1: Accueil
F7: =ACCUEIL!F7 -> 2021-08-22

Sheet ACCUEILGP
A1: Accueil
F7: =ACCUEIL!F7 -> 2021-08-22

Sheet ACCUEIL
F7: 2021-08-22
C21: Item mensuels: ETP, satisfaction clientèle, remises commerciales, marges et accessoires crédits
E22: arrêtés au | F22: 2021-06-30

Sheet Accueilagence
A1: Accueil
E7: =ACCUEIL!F7 -> 2021-08-22

Sheet Accueilsecteur
A1: Accueil
E7: =ACCUEIL!F7 -> 2021-08-22

Sheet AccueilDircom
A1: Accueil
E7: =ACCUEIL!F7 -> 2021-08-22

Sheet DC_FICHE
A1: Accueil
A2: BAROMETRE BDD
A4: UNITE: | B4: DIRECTION REGIONALE | E4: ETP perf : | F4: =VLOOKUP(A5,'RECAP DIRCOM'!$G$6:$I$12,3,FALSE) -> 252.56
A5: =VLOOKUP(B5,LISTES!$M$6:$N$12,2,FALSE) -> 262 | B5: BAS-RHIN
C6: Coefficient du critére | E6: Résultats | I6: Ecart au 1ier | M6: Evolution | O6: Rang
E7: du 1ier | G7: DIRECTION | I7: Du mois | K7: Au 31/12/2019
A9: RANG au CLASSEMENT GENERAL | K9: =VLOOKUP($A$5,#REF!,168,FALSE) ->  | M9: =+K9-O9 ->  | O9: =VLOOKUP($A$5,'RECAP DIRCOM'!$G$6:$DG$312,168,FALSE) -> 
A11: CRITERE CLIENTS | C11: 15% | O11: =VLOOKUP($A$5,'RECAP DIRCOM'!$G$6:$DG$312,23,FALSE) -> 28.28597903
B12: PNB Evolution nette Clients BP | C12: 4% | E12: ='RECAP DIRCOM'!#REF! ->  | G12: =VLOOKUP($A$5,'RECAP DIRCOM'!$G$6:$DG$312,6,FALSE) -> 0.4 | I12: =VLOOKUP($A$5,'RECAP DIRCOM'!$G$6:$DG$312,7,FALSE) -> 500% | K12: =VLOOKUP($A$5,#REF!,7,FALSE) ->  | M12: =+K12-I12 ->  | O12: =VLOOKUP($A$5,'RECAP DIRCOM'!$G$6:$DG$312,8,FALSE) -> 0.5242498595
B13: PNB Evolution nette Clients PREMIUM | C13: 5% | E13: ='RECAP DIRCOM'!#REF! ->  | G13: =VLOOKUP($A$5,'RECAP DIRCOM'!$G$6:$DG$312,10,FALSE) -> 6.0 | I13: =VLOOKUP($A$5,'RECAP DIRCOM'!$G$6:$DG$312,11,FALSE) -> 33% | K13: =VLOOKUP($A$5,#REF!,11,FALSE) ->  | M13: =+K13-I13 ->  | O13: =VLOOKUP($A$5,'RECAP DIRCOM'!$G$6:$DG$312,12,FALSE) -> 0.3331958739
B14: PNB Evolution nette Clients Jeunes Equipés | C14: 3% | E14: ='RECAP DIRCOM'!#REF! ->  | G14: =VLOOKUP($A$5,'RECAP DIRCOM'!$G$6:$DG$312,14,FALSE) -> 0.0 | I14: =VLOOKUP($A$5,'RECAP DIRCOM'!$G$6:$DG$312,15,FALSE) -> 0% | K14: =VLOOKUP($A$5,#REF!,15,FALSE) ->  | M14: =+K14-I14 ->  | O14: =VLOOKUP($A$5,'RECAP DIRCOM'!$G$6:$DG$312,16,FALSE) -> 0
B15: PNB Evolution nette Clients Pro Actifs Equipés | C15: 3% | E15: ='RECAP DIRCOM'!W4 -> 0.0 | G15: =VLOOKUP($A$5,'RECAP DIRCOM'!$G$6:$DG$312,18,FALSE) -> 12273.9 | I15: =VLOOKUP($A$5,'RECAP DIRCOM'!$G$6:$DG$312,19,FALSE) -> 4860% | K15: =VLOOKUP($A$5,#REF!,19,FALSE) ->  | M15: =+K15-I15 ->  | O15: =VLOOKUP($A$5,'RECAP DIRCOM'!$G$6:$DG$312,20,FALSE) -> 0.1106821287
A17: CRITERE BANCARISATION | C17: 15% | O17: =VLOOKUP($A$5,'RECAP DIRCOM'!$G$6:$DG$312,48,FALSE) -> 1
B18: PNB Ventes nettes forfaits | C18: 4% | E18: ='RECAP DIRCOM'!X4 -> 54.6 | G18: =VLOOKUP($A$5,'RECAP DIRCOM'!$G$6:$DG$312,31,FALSE) -> -1.9 | I18: =VLOOKUP($A$5,'RECAP DIRCOM'!$G$6:$DG$312,32,FALSE) -> 23% | K18: =VLOOKUP($A$5,#REF!,32,FALSE) ->  | M18: =+K18-I18 ->  | O18: =VLOOKUP($A$5,'RECAP DIRCOM'!$G$6:$DG$312,33,FALSE) -> 7
B19: PNB Ventes nettes IZICARTES Débit Différé | C19: 4% | E19: ='RECAP DIRCOM'!AB4 -> 32.5 | G19: =VLOOKUP($A$5,'RECAP DIRCOM'!$G$6:$DG$312,35,FALSE) -> 0.2 | I19: =VLOOKUP($A$5,'RECAP DIRCOM'!$G$6:$DG$312,36,FALSE) -> 300% | K19: =VLOOKUP($A$5,#REF!,36,FALSE) ->  | M19: =+K19-I19 ->  | O19: =VLOOKUP($A$5,'RECAP DIRCOM'!$G$6:$DG$312,37,FALSE) -> 0
B20: PNB Ventes nettes cartes HDG Débit Différé | C20: 4% | E20: ='RECAP DIRCOM'!AF4 -> 9.4 | G20: =VLOOKUP($A$5,'RECAP DIRCOM'!$G$6:$DG$312,39,FALSE) -> 0.0 | I20: =VLOOKUP($A$5,'RECAP DIRCOM'!$G$6:$DG$312,40,FALSE) -> 0% | K20: =VLOOKUP($A$5,#REF!,40,FALSE) ->  | M20: =+K20-I20 ->  | O20: =VLOOKUP($A$5,'RECAP DIRCOM'!$G$6:$DG$312,41,FALSE) -> 101382.3044
B21: PNB Ventes nettes Forfaits Pro, Carte pro | C21: 3% | E21: ='RECAP DIRCOM'!AJ4 -> -1.5 | G21: =VLOOKUP($A$5,'RECAP DIRCOM'!$G$6:$DG$312,43,FALSE) -> 0.0 | I21: =VLOOKUP($A$5,'RECAP DIRCOM'!$G$6:$DG$312,44,FALSE) -> 200% | K21: =VLOOKUP($A$5,#REF!,44,FALSE) ->  | M21: =+K21-I21 ->  | O21: =VLOOKUP($A$5,'RECAP DIRCOM'!$G$6:$DG$312,45,FALSE) -> 4336
A23: CRITERE EPARGNE | C23: 10% | O23: =VLOOKUP($A$5,'RECAP DIRCOM'!$G$6:$DG$312,69,FALSE) -> 0.3250024215
B24: PNB Epargne Liquide | C24: 3% | E24: ='RECAP DIRCOM'!AU4 -> 415.1 | G24: =VLOOKUP($A$5,'RECAP DIRCOM'!$G$6:$DG$312,56,FALSE) -> 17790.2 | I24: =VLOOKUP($A$5,'RECAP DIRCOM'!$G$6:$DG$312,57,FALSE) -> 7044% | K24: =VLOOKUP($A$5,#REF!,57,FALSE) ->  | M24: =+K24-I24 ->  | O24: =VLOOKUP($A$5,'RECAP DIRCOM'!$G$6:$DG$312,58,FALSE) -> 0.4731250174
B25: PNB CA UC + arbitrage | C25: 4% | E25: ='RECAP DIRCOM'!AY4 -> 17.2 | G25: =VLOOKUP($A$5,'RECAP DIRCOM'!$G$6:$DG$312,60,FALSE) -> 9421.7 | I25: =VLOOKUP($A$5,'RECAP DIRCOM'!$G$6:$DG$312,61,FALSE) -> 3730% | K25: =VLOOKUP($A$5,#REF!,61,FALSE) ->  | M25: =+K25-I25 ->  | O25: =VLOOKUP($A$5,'RECAP DIRCOM'!$G$6:$DG$312,62,FALSE) -> 0.1194350207
B26: PNB Excédent assurance vie | C26: 3% | E26: ='RECAP DIRCOM'!#REF! ->  | G26: =VLOOKUP($A$5,'RECAP DIRCOM'!$G$6:$DG$312,64,FALSE) -> 2397.0 | I26: =VLOOKUP($A$5,'RECAP DIRCOM'!$G$6:$DG$312,65,FALSE) -> 949% | K26: =VLOOKUP($A$5,#REF!,65,FALSE) ->  | M26: =+K26-I26 ->  | O26: =VLOOKUP($A$5,'RECAP DIRCOM'!$G$6:$DG$312,66,FALSE) -> 0.3330730279
A28: CRITERE CREDITS | C28: 15% | O28: =VLOOKUP($A$5,'RECAP DIRCOM'!$G$6:$DG$312,102,FALSE) -> 0.185895087
B29: PNB crédit conso | C29: 4% | E29: ='RECAP DIRCOM'!BJ4 -> 133.7 | G29: =VLOOKUP($A$5,'RECAP DIRCOM'!$G$6:$DG$312,77,FALSE) -> 0.1 | I29: =VLOOKUP($A$5,'RECAP DIRCOM'!$G$6:$DG$312,78,FALSE) -> 300% | K29: =VLOOKUP($A$5,#REF!,78,FALSE) ->  | M29: =+K29-I29 ->  | O29: =VLOOKUP($A$5,'RECAP DIRCOM'!$G$6:$DG$312,79,FALSE) -> 5824
B30: PNB ADE crédit conso | C30: 1% | E30: ='RECAP DIRCOM'!#REF! ->  | G30: =VLOOKUP($A$5,'RECAP DIRCOM'!$G$6:$DG$312,81,FALSE) -> 0.2 | I30: =VLOOKUP($A$5,'RECAP DIRCOM'!$G$6:$DG$312,82,FALSE) -> 400% | K30: =VLOOKUP($A$5,#REF!,82,FALSE) ->  | O30: =VLOOKUP($A$5,'RECAP DIRCOM'!$G$6:$DG$312,83,FALSE) -> 0.1263110704
B31: PNB crédit immo | C31: 4% | E31: ='RECAP DIRCOM'!BN4 -> 42.4 | G31: =VLOOKUP($A$5,'RECAP DIRCOM'!$G$6:$DG$312,85,FALSE) -> 3.0 | I31: =VLOOKUP($A$5,'RECAP DIRCOM'!$G$6:$DG$312,86,FALSE) -> 0% | K31: =VLOOKUP($A$5,#REF!,86,FALSE) ->  | O31: =VLOOKUP($A$5,'RECAP DIRCOM'!$G$6:$DG$312,87,FALSE) -> 0
B32: PNB ADE crédit immo | C32: 2% | E32: ='RECAP DIRCOM'!#REF! ->  | G32: =VLOOKUP($A$5,'RECAP DIRCOM'!$G$6:$DG$312,89,FALSE) -> 0.0 | I32: =VLOOKUP($A$5,'RECAP DIRCOM'!$G$6:$DG$312,90,FALSE) -> 0% | K32: =VLOOKUP($A$5,#REF!,90,FALSE) ->  | O32: =VLOOKUP($A$5,'RECAP DIRCOM'!$G$6:$DG$312,91,FALSE) -> 0
B33: PNB SACCEF | C33: 2% | E33: ='RECAP DIRCOM'!#REF! ->  | G33: =VLOOKUP($A$5,'RECAP DIRCOM'!$G$6:$DG$312,93,FALSE) -> 0.0 | I33: =VLOOKUP($A$5,'RECAP DIRCOM'!$G$6:$DG$312,94,FALSE) -> 0% | K33: =VLOOKUP($A$5,#REF!,94,FALSE) ->  | O33: =VLOOKUP($A$5,'RECAP DIRCOM'!$G$6:$DG$312,95,FALSE) -> 0
B34: PNB Crédit MLT + Crédit Bail | C34: 2% | E34: ='RECAP DIRCOM'!BR4 -> 14.2 | G34: =VLOOKUP($A$5,'RECAP DIRCOM'!$G$6:$DG$312,97,FALSE) -> 0.0 | I34: =VLOOKUP($A$5,'RECAP DIRCOM'!$G$6:$DG$312,98,FALSE) -> 0% | K34: =VLOOKUP($A$5,#REF!,98,FALSE) ->  | O34: =VLOOKUP($A$5,'RECAP DIRCOM'!$G$6:$DG$312,99,FALSE) -> 0
A36: CRITERE IARD PREVOYANCE | C36: 15% | O36: =VLOOKUP($A$5,'RECAP DIRCOM'!$G$6:$DG$312,119,FALSE) -> 
B37: PNB Ventes nettes IARD | C37: 9% | E37: ='RECAP DIRCOM'!CC4 -> 152.2 | G37: =VLOOKUP($A$5,'RECAP DIRCOM'!$G$6:$DG$312,110,FALSE) ->  | I37: =VLOOKUP($A$5,'RECAP DIRCOM'!$G$6:$DG$312,111,FALSE) ->  | K37: =VLOOKUP($A$5,#REF!,111,FALSE) ->  | M37: =+K37-I37 ->  | O37: =VLOOKUP($A$5,'RECAP DIRCOM'!$G$6:$DG$312,112,FALSE) -> 
B38: PNB Ventes nettes Prévoyance | C38: 6% | E38: ='RECAP DIRCOM'!CG4 -> 28.5 | G38: =VLOOKUP($A$5,'RECAP DIRCOM'!$G$6:$DG$312,114,FALSE) ->  | I38: =VLOOKUP($A$5,'RECAP DIRCOM'!$G$6:$DG$312,115,FALSE) ->  | K38: =VLOOKUP($A$5,#REF!,115,FALSE) ->  | M38: =+K38-I38 ->  | O38: =VLOOKUP($A$5,'RECAP DIRCOM'!$G$6:$DG$312,116,FALSE) -> 
A40: CRITERE ACCELERATEURS PNB | C40: 15% | O40: =VLOOKUP($A$5,'RECAP DIRCOM'!$G$6:$DG$312,144,FALSE) -> 
B41: PNB Ventes brutes SED Finalisées | C41: 6% | E41: ='RECAP DIRCOM'!#REF! ->  | G41: =VLOOKUP($A$5,'RECAP DIRCOM'!$G$6:$DG$312,127,FALSE) ->  | I41: =VLOOKUP($A$5,'RECAP DIRCOM'!$G$6:$DG$312,128,FALSE) ->  | K41: =VLOOKUP($A$5,#REF!,128,FALSE) ->  | M41: =+K41-I41 ->  | O41: =VLOOKUP($A$5,'RECAP DIRCOM'!$G$6:$DG$312,129,FALSE) -> 
B42: PNB clients équipés E documents | C42: 3% | E42: ='RECAP DIRCOM'!#REF! ->  | G42: =VLOOKUP($A$5,'RECAP DIRCOM'!$G$6:$DG$312,131,FALSE) ->  | I42: =VLOOKUP($A$5,'RECAP DIRCOM'!$G$6:$DG$312,132,FALSE) ->  | K42: =VLOOKUP($A$5,#REF!,132,FALSE) ->  | M42: =+K42-I42 ->  | O42: =VLOOKUP($A$5,'RECAP DIRCOM'!$G$6:$DG$312,133,FALSE) -> 
B43: Economie opt'in | C43: 3% | E43: ='RECAP DIRCOM'!#REF! ->  | G43: =VLOOKUP($A$5,'RECAP DIRCOM'!$G$6:$DG$312,135,FALSE) ->  | I43: =VLOOKUP($A$5,'RECAP DIRCOM'!$G$6:$DG$312,136,FALSE) ->  | K43: =VLOOKUP($A$5,#REF!,136,FALSE) ->  | M43: =+K43-I43 ->  | O43: =VLOOKUP($A$5,'RECAP DIRCOM'!$G$6:$DG$312,137,FALSE) -> 
B44: Remises commerciales | C44: 3% | E44: ='RECAP DIRCOM'!#REF! ->  | G44: =VLOOKUP($A$5,'RECAP DIRCOM'!$G$6:$DG$312,139,FALSE) ->  | I44: =VLOOKUP($A$5,'RECAP DIRCOM'!$G$6:$DG$312,140,FALSE) ->  | K44: =VLOOKUP($A$5,#REF!,140,FALSE) ->  | M44: =+K44-I44 ->  | O44: =VLOOKUP($A$5,'RECAP DIRCOM'!$G$6:$DG$312,141,FALSE) -> 
A46: CRITERE Qualité-Satisfaction Clients | C46: 15% | O46: =VLOOKUP($A$5,'RECAP DIRCOM'!$G$6:$DG$312,159,FALSE) -> 
B47: Objectifs NPS* | C47: 8% | E47: ='RECAP DIRCOM'!K4 -> 23 | G47: =VLOOKUP($A$5,'RECAP DIRCOM'!$G$6:$DG$312,151,FALSE) ->  | I47: =VLOOKUP($A$5,'RECAP DIRCOM'!$G$6:$DG$312,152,FALSE) ->  | K47: =VLOOKUP($A$5,#REF!,152,FALSE) ->  | M47: =+K47-I47 ->  | O47: =VLOOKUP($A$5,'RECAP DIRCOM'!$G$6:$DG$312,153,FALSE) -> 
B48: Enquête Qualité Haute Définition | C48: 7% | E48: ='RECAP DIRCOM'!N4 -> 68% | G48: =VLOOKUP($A$5,'RECAP DIRCOM'!$G$6:$DG$312,154,FALSE) ->  | I48: =VLOOKUP($A$5,'RECAP DIRCOM'!$G$6:$DG$312,155,FALSE) ->  | K48: =VLOOKUP($A$5,#REF!,155,FALSE) ->  | M48: =+K48-I48 ->  | O48: =VLOOKUP($A$5,'RECAP DIRCOM'!$G$6:$DG$312,156,FALSE) -> 

Sheet DC_TOTAL
B1: Accueil | D1: BAROMETRE BDD - DIRECTIONS REGIONALES
D2: TOTAL GENERAL
D3: =ACCUEIL!F7 -> 2021-08-22
D7: TOTAL GENERAL | G7: Total Satisfaction Clients | J7: Total Bancarisation | M7: Total Epargne | P7: Total IARD Prévoyance | S7: Total Crédits
E8: coef | F8: 100% | H8: coef | I8: =DC_SATISFACTION!L8 -> 20% | K8: coef | L8: =DC_BANCA!V8 -> 20% | N8: coef | O8: =DC_EPARGNE!N8 -> 20% | Q8: coef | R8: =DC_IARD!N8 -> 20% | T8: coef | U8: =DC_CREDIT!R8 -> 20%
A9: eds | B9: Direction | C9: ="ETP perf "&DATEMAJ!$C$28 -> ETP perf 30-juin | D9: Moyenne ecart au 1er | E9: % Ecart au 1er | F9: Rang CEGEE | G9: Moyenne ecart au 1er | H9: % Ecart au 1er | I9: Rang CEGEE | J9: Moyenne ecart au 1er | K9: % Ecart au 1er | L9: Rang CEGEE | M9: Moyenne ecart au 1er | N9: % Ecart au 1er | O9: Rang CEGEE | P9: Moyenne ecart au 1er | Q9: % Ecart au 1er | R9: Rang CEGEE | S9: Moyenne ecart au 1er | T9: % Ecart au 1er | U9: Rang CEGEE
A10: 50 | B10: Meurthe et Moselle Meuse | C10: 243 | D10: 6% | E10: 0% | F10: 1 | G10: 29% | H10: 29% | I10: 4 | J10: 2% | K10: 0% | L10: 1 | M10: 2% | N10: 0% | O10: 1 | P10: 5% | Q10: 2% | R10: 2 | S10: 0% | T10: 0% | U10: 1
A11: 262 | B11: Marne-Ardennes | C11: 227 | D11: 11% | E11: 4% | F11: 2 | G11: 17% | H11: 17% | I11: 2 | J11: 17% | K11: 15% | L11: 2 | M11: 14% | N11: 12% | O11: 4 | P11: 3% | Q11: 0% | R11: 1 | S11: 9% | T11: 9% | U11: 2
A12: 264 | B12: Vosges | C12: 133 | D12: 18% | E12: 12% | F12: 3 | G12: 0% | H12: 0% | I12: 1 | J12: 31% | K12: 29% | L12: 6 | M12: 21% | N12: 19% | O12: 5 | P12: 19% | Q12: 16% | R12: 5 | S12: 28% | T12: 28% | U12: 4
A13: 30 | B13: Bas-Rhin | C13: 253 | D13: 19% | E13: 12% | F13: 4 | G13: 33% | H13: 33% | I13: 6 | J13: 19% | K13: 17% | L13: 3 | M13: 2% | N13: 0% | O13: 2 | P13: 13% | Q13: 10% | R13: 3 | S13: 33% | T13: 33% | U13: 6
A14: 110 | B14: Moselle | C14: 265 | D14: 20% | E14: 13% | F14: 5 | G14: 32% | H14: 32% | I14: 5 | J14: 23% | K14: 21% | L14: 4 | M14: 14% | N14: 11% | O14: 3 | P14: 15% | Q14: 12% | R14: 4 | S14: 21% | T14: 21% | U14: 3
A15: 160 | B15: Aube Haute Marne | C15: 128 | D15: 32% | E15: 26% | F15: 6 | G15: 24% | H15: 24% | I15: 3 | J15: 27% | K15: 25% | L15: 5 | M15: 55% | N15: 53% | O15: 7 | P15: 30% | Q15: 27% | R15: 6 | S15: 29% | T15: 29% | U15: 5
A16: 80 | B16: Haut-Rhin | C16: 158 | D16: 44% | E16: 38% | F16: 7 | G16: 58% | H16: 58% | I16: 7 | J16: 46% | K16: 44% | L16: 7 | M16: 44% | N16: 42% | O16: 6 | P16: 35% | Q16: 32% | R16: 7 | S16: 46% | T16: 46% | U16: 7
B17: Total CEGEE Directions Régionales | C17: =SUM(C10:C16) -> 1406

Sheet DC_BANCA
B1: Accueil | D1: BAROMETRE BDD - DIRECTIONS REGIONALES
D2: BANCARISATION
D3: =ACCUEIL!F7 -> 2021-08-22
D7: Ventes Nettes produits pondérés | H7: Ventes sur client non détenteur de l’univers | L7: Mobilité Macron | P7: Remises commerciales | T7: Total Bancarisation
D8: =DATEMAJ!C8 -> au 22/08 | F8: coef | G8: ='RECAP DIRCOM'!AA4 -> 10% | H8: =DATEMAJ!C9 -> au 22/08 | J8: coef | K8: ='RECAP DIRCOM'!AE4 -> 4% | L8: =DATEMAJ!C10 -> au 22/08 | N8: coef | O8: ='RECAP DIRCOM'!AI4 -> 3% | P8: =DATEMAJ!C11 -> au 30/06 | R8: coef | S8: ='RECAP DIRCOM'!AM4 -> 3% | U8: coef | V8: ='RECAP DIRCOM'!AP4 -> 20%
B9: Direction | C9: ="ETP perf "&DATEMAJ!$C$28 -> ETP perf 30-juin | D9: VN | E9: VN / ETP | F9: % Ecart au 1er | G9: Rang | H9: VB | I9: VB / ETP | J9: % Ecart au 1er | K9: Rang | L9: Nb | M9: Nb / ETP | N9: % Ecart au 1er | O9: Rang | P9: Montant | Q9: Montant / ETP | R9: % Ecart au 1er | S9: Rang | T9: Moyenne ecart au 1er | U9: % Ecart au 1er | V9: Rang CEGEE
A10: 50 | B10: Aube Haute Marne | C10: =VLOOKUP($A10,'RECAP DIRCOM'!$G$6:$DC$12,3,FALSE) -> 128 | D10: =VLOOKUP($A10,'RECAP DIRCOM'!$G$6:$DC$12,18,FALSE) -> 4,588 | E10: =VLOOKUP($A10,'RECAP DIRCOM'!$G$6:$DC$12,19,FALSE) -> 35.92 | F10: =VLOOKUP($A10,'RECAP DIRCOM'!$G$6:$DC$12,20,FALSE) -> 34% | G10: =VLOOKUP($A10,'RECAP DIRCOM'!$G$6:$DC$12,21,FALSE) -> 5 | H10: =VLOOKUP($A10,'RECAP DIRCOM'!$G$6:$DC$12,22,FALSE) -> 3,492 | I10: =VLOOKUP($A10,'RECAP DIRCOM'!$G$6:$DC$12,23,FALSE) -> 27.34 | J10: =VLOOKUP($A10,'RECAP DIRCOM'!$G$6:$DC$12,24,FALSE) -> 16% | K10: =VLOOKUP($A10,'RECAP DIRCOM'!$G$6:$DC$12,25,FALSE) -> 5 | L10: =VLOOKUP($A10,'RECAP DIRCOM'!$G$6:$DC$12,26,FALSE) -> 639 | M10: =VLOOKUP($A10,'RECAP DIRCOM'!$G$6:$DC$12,27,FALSE) -> 5.00 | N10: =VLOOKUP($A10,'RECAP DIRCOM'!$G$6:$DC$12,28,FALSE) -> 47% | O10: =VLOOKUP($A10,'RECAP DIRCOM'!$G$6:$DC$12,29,FALSE) -> 3 | P10: =VLOOKUP($A10,'RECAP DIRCOM'!$G$6:$DC$12,30,FALSE) -> -193 | Q10: =VLOOKUP($A10,'RECAP DIRCOM'!$G$6:$DC$12,31,FALSE) -> -1.51 | R10: =VLOOKUP($A10,'RECAP DIRCOM'!$G$6:$DC$12,32,FALSE) -> 0% | S10: =VLOOKUP($A10,'RECAP DIRCOM'!$G$6:$DC$12,33,FALSE) -> 1 | T10: =VLOOKUP($A10,'RECAP DIRCOM'!$G$6:$DC$12,34,FALSE) -> 27% | U10: =VLOOKUP($A10,'RECAP DIRCOM'!$G$6:$DC$12,35,FALSE) -> 25% | V10: =VLOOKUP($A10,'RECAP DIRCOM'!$G$6:$DC$12,36,FALSE) -> 5
A11: 262 | B11: Bas-Rhin | C11: =VLOOKUP($A11,'RECAP DIRCOM'!$G$6:$DC$12,3,FALSE) -> 253 | D11: =VLOOKUP($A11,'RECAP DIRCOM'!$G$6:$DC$12,18,FALSE) -> 12,274 | E11: =VLOOKUP($A11,'RECAP DIRCOM'!$G$6:$DC$12,19,FALSE) -> 48.60 | F11: =VLOOKUP($A11,'RECAP DIRCOM'!$G$6:$DC$12,20,FALSE) -> 11% | G11: =VLOOKUP($A11,'RECAP DIRCOM'!$G$6:$DC$12,21,FALSE) -> 2 | H11: =VLOOKUP($A11,'RECAP DIRCOM'!$G$6:$DC$12,22,FALSE) -> 7,144 | I11: =VLOOKUP($A11,'RECAP DIRCOM'!$G$6:$DC$12,23,FALSE) -> 28.29 | J11: =VLOOKUP($A11,'RECAP DIRCOM'!$G$6:$DC$12,24,FALSE) -> 13% | K11: =VLOOKUP($A11,'RECAP DIRCOM'!$G$6:$DC$12,25,FALSE) -> 3 | L11: =VLOOKUP($A11,'RECAP DIRCOM'!$G$6:$DC$12,26,FALSE) -> 1,222 | M11: =VLOOKUP($A11,'RECAP DIRCOM'!$G$6:$DC$12,27,FALSE) -> 4.84 | N11: =VLOOKUP($A11,'RECAP DIRCOM'!$G$6:$DC$12,28,FALSE) -> 48% | O11: =VLOOKUP($A11,'RECAP DIRCOM'!$G$6:$DC$12,29,FALSE) -> 4 | P11: =VLOOKUP($A11,'RECAP DIRCOM'!$G$6:$DC$12,30,FALSE) -> -468 | Q11: =VLOOKUP($A11,'RECAP DIRCOM'!$G$6:$DC$12,31,FALSE) -> -1.85 | R11: =VLOOKUP($A11,'RECAP DIRCOM'!$G$6:$DC$12,32,FALSE) -> 23% | S11: =VLOOKUP($A11,'RECAP DIRCOM'!$G$6:$DC$12,33,FALSE) -> 7 | T11: =VLOOKUP($A11,'RECAP DIRCOM'!$G$6:$DC$12,34,FALSE) -> 19% | U11: =VLOOKUP($A11,'RECAP DIRCOM'!$G$6:$DC$12,35,FALSE) -> 17% | V11: =VLOOKUP($A11,'RECAP DIRCOM'!$G$6:$DC$12,36,FALSE) -> 3
A12: 264 | B12: Haut-Rhin | C12: =VLOOKUP($A12,'RECAP DIRCOM'!$G$6:$DC$12,3,FALSE) -> 158 | D12: =VLOOKUP($A12,'RECAP DIRCOM'!$G$6:$DC$12,18,FALSE) -> 3,557 | E12: =VLOOKUP($A12,'RECAP DIRCOM'!$G$6:$DC$12,19,FALSE) -> 22.58 | F12: =VLOOKUP($A12,'RECAP DIRCOM'!$G$6:$DC$12,20,FALSE) -> 59% | G12: =VLOOKUP($A12,'RECAP DIRCOM'!$G$6:$DC$12,21,FALSE) -> 7 | H12: =VLOOKUP($A12,'RECAP DIRCOM'!$G$6:$DC$12,22,FALSE) -> 3,774 | I12: =VLOOKUP($A12,'RECAP DIRCOM'!$G$6:$DC$12,23,FALSE) -> 23.96 | J12: =VLOOKUP($A12,'RECAP DIRCOM'!$G$6:$DC$12,24,FALSE) -> 26% | K12: =VLOOKUP($A12,'RECAP DIRCOM'!$G$6:$DC$12,25,FALSE) -> 7 | L12: =VLOOKUP($A12,'RECAP DIRCOM'!$G$6:$DC$12,26,FALSE) -> 411 | M12: =VLOOKUP($A12,'RECAP DIRCOM'!$G$6:$DC$12,27,FALSE) -> 2.61 | N12: =VLOOKUP($A12,'RECAP DIRCOM'!$G$6:$DC$12,28,FALSE) -> 72% | O12: =VLOOKUP($A12,'RECAP DIRCOM'!$G$6:$DC$12,29,FALSE) -> 7 | P12: =VLOOKUP($A12,'RECAP DIRCOM'!$G$6:$DC$12,30,FALSE) -> -247 | Q12: =VLOOKUP($A12,'RECAP DIRCOM'!$G$6:$DC$12,31,FALSE) -> -1.57 | R12: =VLOOKUP($A12,'RECAP DIRCOM'!$G$6:$DC$12,32,FALSE) -> 4% | S12: =VLOOKUP($A12,'RECAP DIRCOM'!$G$6:$DC$12,33,FALSE) -> 3 | T12: =VLOOKUP($A12,'RECAP DIRCOM'!$G$6:$DC$12,34,FALSE) -> 46% | U12: =VLOOKUP($A12,'RECAP DIRCOM'!$G$6:$DC$12,35,FALSE) -> 44% | V12: =VLOOKUP($A12,'RECAP DIRCOM'!$G$6:$DC$12,36,FALSE) -> 7
A13: 30 | B13: Marne-Ardennes | C13: =VLOOKUP($A13,'RECAP DIRCOM'!$G$6:$DC$12,3,FALSE) -> 227 | D13: =VLOOKUP($A13,'RECAP DIRCOM'!$G$6:$DC$12,18,FALSE) -> 8,615 | E13: =VLOOKUP($A13,'RECAP DIRCOM'!$G$6:$DC$12,19,FALSE) -> 37.94 | F13: =VLOOKUP($A13,'RECAP DIRCOM'!$G$6:$DC$12,20,FALSE) -> 31% | G13: =VLOOKUP($A13,'RECAP DIRCOM'!$G$6:$DC$12,21,FALSE) -> 4 | H13: =VLOOKUP($A13,'RECAP DIRCOM'!$G$6:$DC$12,22,FALSE) -> 6,987 | I13: =VLOOKUP($A13,'RECAP DIRCOM'!$G$6:$DC$12,23,FALSE) -> 30.77 | J13: =VLOOKUP($A13,'RECAP DIRCOM'!$G$6:$DC$12,24,FALSE) -> 5% | K13: =VLOOKUP($A13,'RECAP DIRCOM'!$G$6:$DC$12,25,FALSE) -> 2 | L13: =VLOOKUP($A13,'RECAP DIRCOM'!$G$6:$DC$12,26,FALSE) -> 2,125 | M13: =VLOOKUP($A13,'RECAP DIRCOM'!$G$6:$DC$12,27,FALSE) -> 9.36 | N13: =VLOOKUP($A13,'RECAP DIRCOM'!$G$6:$DC$12,28,FALSE) -> 0% | O13: =VLOOKUP($A13,'RECAP DIRCOM'!$G$6:$DC$12,29,FALSE) -> 1 | P13: =VLOOKUP($A13,'RECAP DIRCOM'!$G$6:$DC$12,30,FALSE) -> -364 | Q13: =VLOOKUP($A13,'RECAP DIRCOM'!$G$6:$DC$12,31,FALSE) -> -1.60 | R13: =VLOOKUP($A13,'RECAP DIRCOM'!$G$6:$DC$12,32,FALSE) -> 6% | S13: =VLOOKUP($A13,'RECAP DIRCOM'!$G$6:$DC$12,33,FALSE) -> 4 | T13: =VLOOKUP($A13,'RECAP DIRCOM'!$G$6:$DC$12,34,FALSE) -> 17% | U13: =VLOOKUP($A13,'RECAP DIRCOM'!$G$6:$DC$12,35,FALSE) -> 15% | V13: =VLOOKUP($A13,'RECAP DIRCOM'!$G$6:$DC$12,36,FALSE) -> 2
A14: 110 | B14: Meurthe et Moselle Meuse | C14: =VLOOKUP($A14,'RECAP DIRCOM'!$G$6:$DC$12,3,FALSE) -> 243 | D14: =VLOOKUP($A14,'RECAP DIRCOM'!$G$6:$DC$12,18,FALSE) -> 13,264 | E14: =VLOOKUP($A14,'RECAP DIRCOM'!$G$6:$DC$12,19,FALSE) -> 54.65 | F14: =VLOOKUP($A14,'RECAP DIRCOM'!$G$6:$DC$12,20,FALSE) -> 0% | G14: =VLOOKUP($A14,'RECAP DIRCOM'!$G$6:$DC$12,21,FALSE) -> 1 | H14: =VLOOKUP($A14,'RECAP DIRCOM'!$G$6:$DC$12,22,FALSE) -> 7,893 | I14: =VLOOKUP($A14,'RECAP DIRCOM'!$G$6:$DC$12,23,FALSE) -> 32.52 | J14: =VLOOKUP($A14,'RECAP DIRCOM'!$G$6:$DC$12,24,FALSE) -> 0% | K14: =VLOOKUP($A14,'RECAP DIRCOM'!$G$6:$DC$12,25,FALSE) -> 1 | L14: =VLOOKUP($A14,'RECAP DIRCOM'!$G$6:$DC$12,26,FALSE) -> 2,183 | M14: =VLOOKUP($A14,'RECAP DIRCOM'!$G$6:$DC$12,27,FALSE) -> 8.99 | N14: =VLOOKUP($A14,'RECAP DIRCOM'!$G$6:$DC$12,28,FALSE) -> 4% | O14: =VLOOKUP($A14,'RECAP DIRCOM'!$G$6:$DC$12,29,FALSE) -> 2 | P14: =VLOOKUP($A14,'RECAP DIRCOM'!$G$6:$DC$12,30,FALSE) -> -397 | Q14: =VLOOKUP($A14,'RECAP DIRCOM'!$G$6:$DC$12,31,FALSE) -> -1.64 | R14: =VLOOKUP($A14,'RECAP DIRCOM'!$G$6:$DC$12,32,FALSE) -> 9% | S14: =VLOOKUP($A14,'RECAP DIRCOM'!$G$6:$DC$12,33,FALSE) -> 6 | T14: =VLOOKUP($A14,'RECAP DIRCOM'!$G$6:$DC$12,34,FALSE) -> 2% | U14: =VLOOKUP($A14,'RECAP DIRCOM'!$G$6:$DC$12,35,FALSE) -> 0% | V14: =VLOOKUP($A14,'RECAP DIRCOM'!$G$6:$DC$12,36,FALSE) -> 1
A15: 160 | B15: Moselle | C15: =VLOOKUP($A15,'RECAP DIRCOM'!$G$6:$DC$12,3,FALSE) -> 265 | D15: =VLOOKUP($A15,'RECAP DIRCOM'!$G$6:$DC$12,18,FALSE) -> 11,130 | E15: =VLOOKUP($A15,'RECAP DIRCOM'!$G$6:$DC$12,19,FALSE) -> 41.93 | F15: =VLOOKUP($A15,'RECAP DIRCOM'!$G$6:$DC$12,20,FALSE) -> 23% | G15: =VLOOKUP($A15,'RECAP DIRCOM'!$G$6:$DC$12,21,FALSE) -> 3 | H15: =VLOOKUP($A15,'RECAP DIRCOM'!$G$6:$DC$12,22,FALSE) -> 7,416 | I15: =VLOOKUP($A15,'RECAP DIRCOM'!$G$6:$DC$12,23,FALSE) -> 27.94 | J15: =VLOOKUP($A15,'RECAP DIRCOM'!$G$6:$DC$12,24,FALSE) -> 14% | K15: =VLOOKUP($A15,'RECAP DIRCOM'!$G$6:$DC$12,25,FALSE) -> 4 | L15: =VLOOKUP($A15,'RECAP DIRCOM'!$G$6:$DC$12,26,FALSE) -> 1,121 | M15: =VLOOKUP($A15,'RECAP DIRCOM'!$G$6:$DC$12,27,FALSE) -> 4.22 | N15: =VLOOKUP($A15,'RECAP DIRCOM'!$G$6:$DC$12,28,FALSE) -> 55% | O15: =VLOOKUP($A15,'RECAP DIRCOM'!$G$6:$DC$12,29,FALSE) -> 6 | P15: =VLOOKUP($A15,'RECAP DIRCOM'!$G$6:$DC$12,30,FALSE) -> -408 | Q15: =VLOOKUP($A15,'RECAP DIRCOM'!$G$6:$DC$12,31,FALSE) -> -1.54 | R15: =VLOOKUP($A15,'RECAP DIRCOM'!$G$6:$DC$12,32,FALSE) -> 2% | S15: =VLOOKUP($A15,'RECAP DIRCOM'!$G$6:$DC$12,33,FALSE) -> 2 | T15: =VLOOKUP($A15,'RECAP DIRCOM'!$G$6:$DC$12,34,FALSE) -> 23% | U15: =VLOOKUP($A15,'RECAP DIRCOM'!$G$6:$DC$12,35,FALSE) -> 21% | V15: =VLOOKUP($A15,'RECAP DIRCOM'!$G$6:$DC$12,36,FALSE) -> 4
A16: 80 | B16: Vosges | C16: =VLOOKUP($A16,'RECAP DIRCOM'!$G$6:$DC$12,3,FALSE) -> 133 | D16: =VLOOKUP($A16,'RECAP DIRCOM'!$G$6:$DC$12,18,FALSE) -> 4,593 | E16: =VLOOKUP($A16,'RECAP DIRCOM'!$G$6:$DC$12,19,FALSE) -> 34.52 | F16: =VLOOKUP($A16,'RECAP DIRCOM'!$G$6:$DC$12,20,FALSE) -> 37% | G16: =VLOOKUP($A16,'RECAP DIRCOM'!$G$6:$DC$12,21,FALSE) -> 6 | H16: =VLOOKUP($A16,'RECAP DIRCOM'!$G$6:$DC$12,22,FALSE) -> 3,529 | I16: =VLOOKUP($A16,'RECAP DIRCOM'!$G$6:$DC$12,23,FALSE) -> 26.53 | J16: =VLOOKUP($A16,'RECAP DIRCOM'!$G$6:$DC$12,24,FALSE) -> 18% | K16: =VLOOKUP($A16,'RECAP DIRCOM'!$G$6:$DC$12,25,FALSE) -> 6 | L16: =VLOOKUP($A16,'RECAP DIRCOM'!$G$6:$DC$12,26,FALSE) -> 611 | M16: =VLOOKUP($A16,'RECAP DIRCOM'!$G$6:$DC$12,27,FALSE) -> 4.59 | N16: =VLOOKUP($A16,'RECAP DIRCOM'!$G$6:$DC$12,28,FALSE) -> 51% | O16: =VLOOKUP($A16,'RECAP DIRCOM'!$G$6:$DC$12,29,FALSE) -> 5 | P16: =VLOOKUP($A16,'RECAP DIRCOM'!$G$6:$DC$12,30,FALSE) -> -218 | Q16: =VLOOKUP($A16,'RECAP DIRCOM'!$G$6:$DC$12,31,FALSE) -> -1.64 | R16: =VLOOKUP($A16,'RECAP DIRCOM'!$G$6:$DC$12,32,FALSE) -> 8% | S16: =VLOOKUP($A16,'RECAP DIRCOM'!$G$6:$DC$12,33,FALSE) -> 5 | T16: =VLOOKUP($A16,'RECAP DIRCOM'!$G$6:$DC$12,34,FALSE) -> 31% | U16: =VLOOKUP($A16,'RECAP DIRCOM'!$G$6:$DC$12,35,FALSE) -> 29% | V16: =VLOOKUP($A16,'RECAP DIRCOM'!$G$6:$DC$12,36,FALSE) -> 6
B17: Total CEGEE Directions Régionales | C17: =SUM(C10:C16) -> 1406

Sheet DC_EPARGNE
B1: Accueil | D1: BAROMETRE BDD - DIRECTIONS REGIONALES
D2: EPARGNE
D3: =ACCUEIL!F7 -> 2021-08-22
D7: Excédent Epargne y/c DAV pondéré | H7: Ventes sur client non détenteur de l’univers | L7: Total Epargne
D8: =DATEMAJ!C14 -> au 22/08 | F8: coef | G8: ='RECAP DIRCOM'!AX4 -> 14% | H8: =DATEMAJ!C15 -> au 22/08 | J8: coef | K8: ='RECAP DIRCOM'!BB4 -> 6% | M8: coef | N8: ='RECAP DIRCOM'!BE4 -> 20%
B9: Direction | C9: ="ETP perf "&DATEMAJ!$C$28 -> ETP perf 30-juin | D9: Excédent | E9: Excédent / ETP | F9: % Ecart au 1er | G9: Rang | H9: VB | I9: VB / ETP | J9: % Ecart au 1er | K9: Rang | L9: Moyenne ecart au 1er | M9: % Ecart au 1er | N9: Rang CEGEE
A10: 50 | B10: Aube Haute Marne | C10: =VLOOKUP($A10,'RECAP DIRCOM'!$G$6:$DC$12,3,FALSE) -> 128 | D10: =VLOOKUP($A10,'RECAP DIRCOM'!$G$6:$DC$12,41,FALSE) -> 16,607 | E10: =VLOOKUP($A10,'RECAP DIRCOM'!$G$6:$DC$12,42,FALSE) -> 130.03 | F10: =VLOOKUP($A10,'RECAP DIRCOM'!$G$6:$DC$12,43,FALSE) -> 69% | G10: =VLOOKUP($A10,'RECAP DIRCOM'!$G$6:$DC$12,44,FALSE) -> 7 | H10: =VLOOKUP($A10,'RECAP DIRCOM'!$G$6:$DC$12,45,FALSE) -> 1,698 | I10: =VLOOKUP($A10,'RECAP DIRCOM'!$G$6:$DC$12,46,FALSE) -> 13.30 | J10: =VLOOKUP($A10,'RECAP DIRCOM'!$G$6:$DC$12,47,FALSE) -> 23% | K10: =VLOOKUP($A10,'RECAP DIRCOM'!$G$6:$DC$12,48,FALSE) -> 5 | L10: =VLOOKUP($A10,'RECAP DIRCOM'!$G$6:$DC$12,49,FALSE) -> 55% | M10: =VLOOKUP($A10,'RECAP DIRCOM'!$G$6:$DC$12,50,FALSE) -> 53% | N10: =VLOOKUP($A10,'RECAP DIRCOM'!$G$6:$DC$12,51,FALSE) -> 7
A11: 262 | B11: Bas-Rhin | C11: =VLOOKUP($A11,'RECAP DIRCOM'!$G$6:$DC$12,3,FALSE) -> 253 | D11: =VLOOKUP($A11,'RECAP DIRCOM'!$G$6:$DC$12,41,FALSE) -> 101,382 | E11: =VLOOKUP($A11,'RECAP DIRCOM'!$G$6:$DC$12,42,FALSE) -> 401.41 | F11: =VLOOKUP($A11,'RECAP DIRCOM'!$G$6:$DC$12,43,FALSE) -> 3% | G11: =VLOOKUP($A11,'RECAP DIRCOM'!$G$6:$DC$12,44,FALSE) -> 2 | H11: =VLOOKUP($A11,'RECAP DIRCOM'!$G$6:$DC$12,45,FALSE) -> 4,336 | I11: =VLOOKUP($A11,'RECAP DIRCOM'!$G$6:$DC$12,46,FALSE) -> 17.17 | J11: =VLOOKUP($A11,'RECAP DIRCOM'!$G$6:$DC$12,47,FALSE) -> 0% | K11: =VLOOKUP($A11,'RECAP DIRCOM'!$G$6:$DC$12,48,FALSE) -> 1 | L11: =VLOOKUP($A11,'RECAP DIRCOM'!$G$6:$DC$12,49,FALSE) -> 2% | M11: =VLOOKUP($A11,'RECAP DIRCOM'!$G$6:$DC$12,50,FALSE) -> 0% | N11: =VLOOKUP($A11,'RECAP DIRCOM'!$G$6:$DC$12,51,FALSE) -> 2
A12: 264 | B12: Haut-Rhin | C12: =VLOOKUP($A12,'RECAP DIRCOM'!$G$6:$DC$12,3,FALSE) -> 158 | D12: =VLOOKUP($A12,'RECAP DIRCOM'!$G$6:$DC$12,41,FALSE) -> 31,588 | E12: =VLOOKUP($A12,'RECAP DIRCOM'!$G$6:$DC$12,42,FALSE) -> 200.53 | F12: =VLOOKUP($A12,'RECAP DIRCOM'!$G$6:$DC$12,43,FALSE) -> 52% | G12: =VLOOKUP($A12,'RECAP DIRCOM'!$G$6:$DC$12,44,FALSE) -> 6 | H12: =VLOOKUP($A12,'RECAP DIRCOM'!$G$6:$DC$12,45,FALSE) -> 2,001 | I12: =VLOOKUP($A12,'RECAP DIRCOM'!$G$6:$DC$12,46,FALSE) -> 12.70 | J12: =VLOOKUP($A12,'RECAP DIRCOM'!$G$6:$DC$12,47,FALSE) -> 26% | K12: =VLOOKUP($A12,'RECAP DIRCOM'!$G$6:$DC$12,48,FALSE) -> 6 | L12: =VLOOKUP($A12,'RECAP DIRCOM'!$G$6:$DC$12,49,FALSE) -> 44% | M12: =VLOOKUP($A12,'RECAP DIRCOM'!$G$6:$DC$12,50,FALSE) -> 42% | N12: =VLOOKUP($A12,'RECAP DIRCOM'!$G$6:$DC$12,51,FALSE) -> 6
A13: 30 | B13: Marne-Ardennes | C13: =VLOOKUP($A13,'RECAP DIRCOM'!$G$6:$DC$12,3,FALSE) -> 227 | D13: =VLOOKUP($A13,'RECAP DIRCOM'!$G$6:$DC$12,41,FALSE) -> 75,584 | E13: =VLOOKUP($A13,'RECAP DIRCOM'!$G$6:$DC$12,42,FALSE) -> 332.85 | F13: =VLOOKUP($A13,'RECAP DIRCOM'!$G$6:$DC$12,43,FALSE) -> 20% | G13: =VLOOKUP($A13,'RECAP DIRCOM'!$G$6:$DC$12,44,FALSE) -> 5 | H13: =VLOOKUP($A13,'RECAP DIRCOM'!$G$6:$DC$12,45,FALSE) -> 3,835 | I13: =VLOOKUP($A13,'RECAP DIRCOM'!$G$6:$DC$12,46,FALSE) -> 16.89 | J13: =VLOOKUP($A13,'RECAP DIRCOM'!$G$6:$DC$12,47,FALSE) -> 2% | K13: =VLOOKUP($A13,'RECAP DIRCOM'!$G$6:$DC$12,48,FALSE) -> 2 | L13: =VLOOKUP($A13,'RECAP DIRCOM'!$G$6:$DC$12,49,FALSE) -> 14% | M13: =VLOOKUP($A13,'RECAP DIRCOM'!$G$6:$DC$12,50,FALSE) -> 12% | N13: =VLOOKUP($A13,'RECAP DIRCOM'!$G$6:$DC$12,51,FALSE) -> 4
A14: 110 | B14: Meurthe et Moselle Meuse | C14: =VLOOKUP($A14,'RECAP DIRCOM'!$G$6:$DC$12,3,FALSE) -> 243 | D14: =VLOOKUP($A14,'RECAP DIRCOM'!$G$6:$DC$12,41,FALSE) -> 100,746 | E14: =VLOOKUP($A14,'RECAP DIRCOM'!$G$6:$DC$12,42,FALSE) -> 415.07 | F14: =VLOOKUP($A14,'RECAP DIRCOM'!$G$6:$DC$12,43,FALSE) -> 0% | G14: =VLOOKUP($A14,'RECAP DIRCOM'!$G$6:$DC$12,44,FALSE) -> 1 | H14: =VLOOKUP($A14,'RECAP DIRCOM'!$G$6:$DC$12,45,FALSE) -> 3,864 | I14: =VLOOKUP($A14,'RECAP DIRCOM'!$G$6:$DC$12,46,FALSE) -> 15.92 | J14: =VLOOKUP($A14,'RECAP DIRCOM'!$G$6:$DC$12,47,FALSE) -> 7% | K14: =VLOOKUP($A14,'RECAP DIRCOM'!$G$6:$DC$12,48,FALSE) -> 4 | L14: =VLOOKUP($A14,'RECAP DIRCOM'!$G$6:$DC$12,49,FALSE) -> 2% | M14: =VLOOKUP($A14,'RECAP DIRCOM'!$G$6:$DC$12,50,FALSE) -> 0% | N14: =VLOOKUP($A14,'RECAP DIRCOM'!$G$6:$DC$12,51,FALSE) -> 1
A15: 160 | B15: Moselle | C15: =VLOOKUP($A15,'RECAP DIRCOM'!$G$6:$DC$12,3,FALSE) -> 265 | D15: =VLOOKUP($A15,'RECAP DIRCOM'!$G$6:$DC$12,41,FALSE) -> 89,849 | E15: =VLOOKUP($A15,'RECAP DIRCOM'!$G$6:$DC$12,42,FALSE) -> 338.48 | F15: =VLOOKUP($A15,'RECAP DIRCOM'!$G$6:$DC$12,43,FALSE) -> 18% | G15: =VLOOKUP($A15,'RECAP DIRCOM'!$G$6:$DC$12,44,FALSE) -> 4 | H15: =VLOOKUP($A15,'RECAP DIRCOM'!$G$6:$DC$12,45,FALSE) -> 4,449 | I15: =VLOOKUP($A15,'RECAP DIRCOM'!$G$6:$DC$12,46,FALSE) -> 16.76 | J15: =VLOOKUP($A15,'RECAP DIRCOM'!$G$6:$DC$12,47,FALSE) -> 2% | K15: =VLOOKUP($A15,'RECAP DIRCOM'!$G$6:$DC$12,48,FALSE) -> 3 | L15: =VLOOKUP($A15,'RECAP DIRCOM'!$G$6:$DC$12,49,FALSE) -> 14% | M15: =VLOOKUP($A15,'RECAP DIRCOM'!$G$6:$DC$12,50,FALSE) -> 11% | N15: =VLOOKUP($A15,'RECAP DIRCOM'!$G$6:$DC$12,51,FALSE) -> 3
A16: 80 | B16: Vosges | C16: =VLOOKUP($A16,'RECAP DIRCOM'!$G$6:$DC$12,3,FALSE) -> 133 | D16: =VLOOKUP($A16,'RECAP DIRCOM'!$G$6:$DC$12,41,FALSE) -> 47,647 | E16: =VLOOKUP($A16,'RECAP DIRCOM'!$G$6:$DC$12,42,FALSE) -> 358.14 | F16: =VLOOKUP($A16,'RECAP DIRCOM'!$G$6:$DC$12,43,FALSE) -> 14% | G16: =VLOOKUP($A16,'RECAP DIRCOM'!$G$6:$DC$12,44,FALSE) -> 3 | H16: =VLOOKUP($A16,'RECAP DIRCOM'!$G$6:$DC$12,45,FALSE) -> 1,434 | I16: =VLOOKUP($A16,'RECAP DIRCOM'!$G$6:$DC$12,46,FALSE) -> 10.78 | J16: =VLOOKUP($A16,'RECAP DIRCOM'!$G$6:$DC$12,47,FALSE) -> 37% | K16: =VLOOKUP($A16,'RECAP DIRCOM'!$G$6:$DC$12,48,FALSE) -> 7 | L16: =VLOOKUP($A16,'RECAP DIRCOM'!$G$6:$DC$12,49,FALSE) -> 21% | M16: =VLOOKUP($A16,'RECAP DIRCOM'!$G$6:$DC$12,50,FALSE) -> 19% | N16: =VLOOKUP($A16,'RECAP DIRCOM'!$G$6:$DC$12,51,FALSE) -> 5
B17: Total CEGEE Directions Régionales | C17: =SUM(C10:C16) -> 1406

Sheet DC_CREDIT
B1: Accueil | D1: BAROMETRE BDD - DIRECTIONS REGIONALES
D2: CREDITS
D3: =ACCUEIL!F7 -> 2021-08-22
D7: Engagements et ventes accessoires pondérés Immo | H7: Engagements et ventes accessoires pondérés Conso | L7: Ventes sur client non détenteur de l’univers | P7: Total Crédits
D8: =DATEMAJ!C18 -> au 22/08 | F8: coef | G8: ='RECAP DIRCOM'!BM4 -> 8% | H8: =DATEMAJ!C19 -> au 22/08 | J8: coef | K8: ='RECAP DIRCOM'!BQ4 -> 6% | L8: =DATEMAJ!C20 -> au 22/08 | N8: coef | O8: ='RECAP DIRCOM'!BU4 -> 6% | Q8: coef | R8: ='RECAP DIRCOM'!BX4 -> 20%
B9: Direction | C9: ="ETP perf "&DATEMAJ!$C$28 -> ETP perf 30-juin | D9: PNB | E9: PNB / ETP | F9: % Ecart au 1er | G9: Rang | H9: PNB | I9: PNB / ETP | J9: % Ecart au 1er | K9: Rang | L9: VB | M9: VB / ETP | N9: % Ecart au 1er | O9: Rang | P9: Moyenne ecart au 1er | Q9: % Ecart au 1er | R9: Rang CEGEE
A10: 50 | B10: Aube Haute Marne | C10: =VLOOKUP($A10,'RECAP DIRCOM'!$G$6:$DC$12,3,FALSE) -> 128 | D10: =VLOOKUP($A10,'RECAP DIRCOM'!$G$6:$DC$12,56,FALSE) -> 8,409 | E10: =VLOOKUP($A10,'RECAP DIRCOM'!$G$6:$DC$12,57,FALSE) -> 65.84 | F10: =VLOOKUP($A10,'RECAP DIRCOM'!$G$6:$DC$12,58,FALSE) -> 51% | G10: =VLOOKUP($A10,'RECAP DIRCOM'!$G$6:$DC$12,59,FALSE) -> 6 | H10: =VLOOKUP($A10,'RECAP DIRCOM'!$G$6:$DC$12,60,FALSE) -> 5,173 | I10: =VLOOKUP($A10,'RECAP DIRCOM'!$G$6:$DC$12,61,FALSE) -> 40.50 | J10: =VLOOKUP($A10,'RECAP DIRCOM'!$G$6:$DC$12,62,FALSE) -> 4% | K10: =VLOOKUP($A10,'RECAP DIRCOM'!$G$6:$DC$12,63,FALSE) -> 3 | L10: =VLOOKUP($A10,'RECAP DIRCOM'!$G$6:$DC$12,64,FALSE) -> 1,361 | M10: =VLOOKUP($A10,'RECAP DIRCOM'!$G$6:$DC$12,65,FALSE) -> 10.66 | N10: =VLOOKUP($A10,'RECAP DIRCOM'!$G$6:$DC$12,66,FALSE) -> 25% | O10: =VLOOKUP($A10,'RECAP DIRCOM'!$G$6:$DC$12,67,FALSE) -> 5 | P10: =VLOOKUP($A10,'RECAP DIRCOM'!$G$6:$DC$12,68,FALSE) -> 29% | Q10: =VLOOKUP($A10,'RECAP DIRCOM'!$G$6:$DC$12,69,FALSE) -> 29% | R10: =VLOOKUP($A10,'RECAP DIRCOM'!$G$6:$DC$12,70,FALSE) -> 5
A11: 262 | B11: Bas-Rhin | C11: =VLOOKUP($A11,'RECAP DIRCOM'!$G$6:$DC$12,3,FALSE) -> 253 | D11: =VLOOKUP($A11,'RECAP DIRCOM'!$G$6:$DC$12,56,FALSE) -> 17,790 | E11: =VLOOKUP($A11,'RECAP DIRCOM'!$G$6:$DC$12,57,FALSE) -> 70.44 | F11: =VLOOKUP($A11,'RECAP DIRCOM'!$G$6:$DC$12,58,FALSE) -> 47% | G11: =VLOOKUP($A11,'RECAP DIRCOM'!$G$6:$DC$12,59,FALSE) -> 5 | H11: =VLOOKUP($A11,'RECAP DIRCOM'!$G$6:$DC$12,60,FALSE) -> 9,422 | I11: =VLOOKUP($A11,'RECAP DIRCOM'!$G$6:$DC$12,61,FALSE) -> 37.30 | J11: =VLOOKUP($A11,'RECAP DIRCOM'!$G$6:$DC$12,62,FALSE) -> 12% | K11: =VLOOKUP($A11,'RECAP DIRCOM'!$G$6:$DC$12,63,FALSE) -> 5 | L11: =VLOOKUP($A11,'RECAP DIRCOM'!$G$6:$DC$12,64,FALSE) -> 2,397 | M11: =VLOOKUP($A11,'RECAP DIRCOM'!$G$6:$DC$12,65,FALSE) -> 9.49 | N11: =VLOOKUP($A11,'RECAP DIRCOM'!$G$6:$DC$12,66,FALSE) -> 33% | O11: =VLOOKUP($A11,'RECAP DIRCOM'!$G$6:$DC$12,67,FALSE) -> 6 | P11: =VLOOKUP($A11,'RECAP DIRCOM'!$G$6:$DC$12,68,FALSE) -> 33% | Q11: =VLOOKUP($A11,'RECAP DIRCOM'!$G$6:$DC$12,69,FALSE) -> 33% | R11: =VLOOKUP($A11,'RECAP DIRCOM'!$G$6:$DC$12,70,FALSE) -> 6
A12: 264 | B12: Haut-Rhin | C12: =VLOOKUP($A12,'RECAP DIRCOM'!$G$6:$DC$12,3,FALSE) -> 158 | D12: =VLOOKUP($A12,'RECAP DIRCOM'!$G$6:$DC$12,56,FALSE) -> 7,692 | E12: =VLOOKUP($A12,'RECAP DIRCOM'!$G$6:$DC$12,57,FALSE) -> 48.83 | F12: =VLOOKUP($A12,'RECAP DIRCOM'!$G$6:$DC$12,58,FALSE) -> 63% | G12: =VLOOKUP($A12,'RECAP DIRCOM'!$G$6:$DC$12,59,FALSE) -> 7 | H12: =VLOOKUP($A12,'RECAP DIRCOM'!$G$6:$DC$12,60,FALSE) -> 5,223 | I12: =VLOOKUP($A12,'RECAP DIRCOM'!$G$6:$DC$12,61,FALSE) -> 33.16 | J12: =VLOOKUP($A12,'RECAP DIRCOM'!$G$6:$DC$12,62,FALSE) -> 22% | K12: =VLOOKUP($A12,'RECAP DIRCOM'!$G$6:$DC$12,63,FALSE) -> 7 | L12: =VLOOKUP($A12,'RECAP DIRCOM'!$G$6:$DC$12,64,FALSE) -> 1,195 | M12: =VLOOKUP($A12,'RECAP DIRCOM'!$G$6:$DC$12,65,FALSE) -> 7.59 | N12: =VLOOKUP($A12,'RECAP DIRCOM'!$G$6:$DC$12,66,FALSE) -> 47% | O12: =VLOOKUP($A12,'RECAP DIRCOM'!$G$6:$DC$12,67,FALSE) -> 7 | P12: =VLOOKUP($A12,'RECAP DIRCOM'!$G$6:$DC$12,68,FALSE) -> 46% | Q12: =VLOOKUP($A12,'RECAP DIRCOM'!$G$6:$DC$12,69,FALSE) -> 46% | R12: =VLOOKUP($A12,'RECAP DIRCOM'!$G$6:$DC$12,70,FALSE) -> 7
A13: 30 | B13: Marne-Ardennes | C13: =VLOOKUP($A13,'RECAP DIRCOM'!$G$6:$DC$12,3,FALSE) -> 227 | D13: =VLOOKUP($A13,'RECAP DIRCOM'!$G$6:$DC$12,56,FALSE) -> 28,141 | E13: =VLOOKUP($A13,'RECAP DIRCOM'!$G$6:$DC$12,57,FALSE) -> 123.93 | F13: =VLOOKUP($A13,'RECAP DIRCOM'!$G$6:$DC$12,58,FALSE) -> 7% | G13: =VLOOKUP($A13,'RECAP DIRCOM'!$G$6:$DC$12,59,FALSE) -> 2 | H13: =VLOOKUP($A13,'RECAP DIRCOM'!$G$6:$DC$12,60,FALSE) -> 8,422 | I13: =VLOOKUP($A13,'RECAP DIRCOM'!$G$6:$DC$12,61,FALSE) -> 37.09 | J13: =VLOOKUP($A13,'RECAP DIRCOM'!$G$6:$DC$12,62,FALSE) -> 12% | K13: =VLOOKUP($A13,'RECAP DIRCOM'!$G$6:$DC$12,63,FALSE) -> 6 | L13: =VLOOKUP($A13,'RECAP DIRCOM'!$G$6:$DC$12,64,FALSE) -> 3,008 | M13: =VLOOKUP($A13,'RECAP DIRCOM'!$G$6:$DC$12,65,FALSE) -> 13.25 | N13: =VLOOKUP($A13,'RECAP DIRCOM'!$G$6:$DC$12,66,FALSE) -> 7% | O13: =VLOOKUP($A13,'RECAP DIRCOM'!$G$6:$DC$12,67,FALSE) -> 2 | P13: =VLOOKUP($A13,'RECAP DIRCOM'!$G$6:$DC$12,68,FALSE) -> 9% | Q13: =VLOOKUP($A13,'RECAP DIRCOM'!$G$6:$DC$12,69,FALSE) -> 9% | R13: =VLOOKUP($A13,'RECAP DIRCOM'!$G$6:$DC$12,70,FALSE) -> 2
A14: 110 | B14: Meurthe et Moselle Meuse | C14: =VLOOKUP($A14,'RECAP DIRCOM'!$G$6:$DC$12,3,FALSE) -> 243 | D14: =VLOOKUP($A14,'RECAP DIRCOM'!$G$6:$DC$12,56,FALSE) -> 32,449 | E14: =VLOOKUP($A14,'RECAP DIRCOM'!$G$6:$DC$12,57,FALSE) -> 133.69 | F14: =VLOOKUP($A14,'RECAP DIRCOM'!$G$6:$DC$12,58,FALSE) -> 0% | G14: =VLOOKUP($A14,'RECAP DIRCOM'!$G$6:$DC$12,59,FALSE) -> 1 | H14: =VLOOKUP($A14,'RECAP DIRCOM'!$G$6:$DC$12,60,FALSE) -> 10,283 | I14: =VLOOKUP($A14,'RECAP DIRCOM'!$G$6:$DC$12,61,FALSE) -> 42.36 | J14: =VLOOKUP($A14,'RECAP DIRCOM'!$G$6:$DC$12,62,FALSE) -> 0% | K14: =VLOOKUP($A14,'RECAP DIRCOM'!$G$6:$DC$12,63,FALSE) -> 1 | L14: =VLOOKUP($A14,'RECAP DIRCOM'!$G$6:$DC$12,64,FALSE) -> 3,454 | M14: =VLOOKUP($A14,'RECAP DIRCOM'!$G$6:$DC$12,65,FALSE) -> 14.23 | N14: =VLOOKUP($A14,'RECAP DIRCOM'!$G$6:$DC$12,66,FALSE) -> 0% | O14: =VLOOKUP($A14,'RECAP DIRCOM'!$G$6:$DC$12,67,FALSE) -> 1 | P14: =VLOOKUP($A14,'RECAP DIRCOM'!$G$6:$DC$12,68,FALSE) -> 0% | Q14: =VLOOKUP($A14,'RECAP DIRCOM'!$G$6:$DC$12,69,FALSE) -> 0% | R14: =VLOOKUP($A14,'RECAP DIRCOM'!$G$6:$DC$12,70,FALSE) -> 1
A15: 160 | B15: Moselle | C15: =VLOOKUP($A15,'RECAP DIRCOM'!$G$6:$DC$12,3,FALSE) -> 265 | D15: =VLOOKUP($A15,'RECAP DIRCOM'!$G$6:$DC$12,56,FALSE) -> 23,430 | E15: =VLOOKUP($A15,'RECAP DIRCOM'!$G$6:$DC$12,57,FALSE) -> 88.27 | F15: =VLOOKUP($A15,'RECAP DIRCOM'!$G$6:$DC$12,58,FALSE) -> 34% | G15: =VLOOKUP($A15,'RECAP DIRCOM'!$G$6:$DC$12,59,FALSE) -> 3 | H15: =VLOOKUP($A15,'RECAP DIRCOM'!$G$6:$DC$12,60,FALSE) -> 11,117 | I15: =VLOOKUP($A15,'RECAP DIRCOM'!$G$6:$DC$12,61,FALSE) -> 41.88 | J15: =VLOOKUP($A15,'RECAP DIRCOM'!$G$6:$DC$12,62,FALSE) -> 1% | K15: =VLOOKUP($A15,'RECAP DIRCOM'!$G$6:$DC$12,63,FALSE) -> 2 | L15: =VLOOKUP($A15,'RECAP DIRCOM'!$G$6:$DC$12,64,FALSE) -> 2,849 | M15: =VLOOKUP($A15,'RECAP DIRCOM'!$G$6:$DC$12,65,FALSE) -> 10.73 | N15: =VLOOKUP($A15,'RECAP DIRCOM'!$G$6:$DC$12,66,FALSE) -> 25% | O15: =VLOOKUP($A15,'RECAP DIRCOM'!$G$6:$DC$12,67,FALSE) -> 4 | P15: =VLOOKUP($A15,'RECAP DIRCOM'!$G$6:$DC$12,68,FALSE) -> 21% | Q15: =VLOOKUP($A15,'RECAP DIRCOM'!$G$6:$DC$12,69,FALSE) -> 21% | R15: =VLOOKUP($A15,'RECAP DIRCOM'!$G$6:$DC$12,70,FALSE) -> 3
A16: 80 | B16: Vosges | C16: =VLOOKUP($A16,'RECAP DIRCOM'!$G$6:$DC$12,3,FALSE) -> 133 | D16: =VLOOKUP($A16,'RECAP DIRCOM'!$G$6:$DC$12,56,FALSE) -> 9,686 | E16: =VLOOKUP($A16,'RECAP DIRCOM'!$G$6:$DC$12,57,FALSE) -> 72.81 | F16: =VLOOKUP($A16,'RECAP DIRCOM'!$G$6:$DC$12,58,FALSE) -> 46% | G16: =VLOOKUP($A16,'RECAP DIRCOM'!$G$6:$DC$12,59,FALSE) -> 4 | H16: =VLOOKUP($A16,'RECAP DIRCOM'!$G$6:$DC$12,60,FALSE) -> 4,978 | I16: =VLOOKUP($A16,'RECAP DIRCOM'!$G$6:$DC$12,61,FALSE) -> 37.42 | J16: =VLOOKUP($A16,'RECAP DIRCOM'!$G$6:$DC$12,62,FALSE) -> 12% | K16: =VLOOKUP($A16,'RECAP DIRCOM'!$G$6:$DC$12,63,FALSE) -> 4 | L16: =VLOOKUP($A16,'RECAP DIRCOM'!$G$6:$DC$12,64,FALSE) -> 1,522 | M16: =VLOOKUP($A16,'RECAP DIRCOM'!$G$6:$DC$12,65,FALSE) -> 11.44 | N16: =VLOOKUP($A16,'RECAP DIRCOM'!$G$6:$DC$12,66,FALSE) -> 20% | O16: =VLOOKUP($A16,'RECAP DIRCOM'!$G$6:$DC$12,67,FALSE) -> 3 | P16: =VLOOKUP($A16,'RECAP DIRCOM'!$G$6:$DC$12,68,FALSE) -> 28% | Q16: =VLOOKUP($A16,'RECAP DIRCOM'!$G$6:$DC$12,69,FALSE) -> 28% | R16: =VLOOKUP($A16,'RECAP DIRCOM'!$G$6:$DC$12,70,FALSE) -> 4
B17: Total CEGEE Directions Régionales | C17: =SUM(C10:C16) -> 1406

Sheet DC_IARD
B1: Accueil | D1: BAROMETRE BDD - DIRECTIONS REGIONALES
D2: IARD ET PREVOYANCE
D3: =ACCUEIL!F7 -> 2021-08-22
D7: Ventes Nettes produits pondérés | H7: Ventes sur client non détenteur de l’univers | L7: Total IARD Prévoyance
D8: =DATEMAJ!C23 -> au 22/08 | F8: coef | G8: ='RECAP DIRCOM'!CF4 -> 14% | H8: =DATEMAJ!C24 -> au 22/08 | J8: coef | K8: ='RECAP DIRCOM'!CJ4 -> 6% | M8: coef | N8: ='RECAP DIRCOM'!CM4 -> 20%
B9: Direction | C9: ="ETP perf "&DATEMAJ!$C$28 -> ETP perf 30-juin | D9: VN | E9: VN / ETP | F9: % Ecart au 1er | G9: Rang | H9: VB | I9: VB / ETP | J9: % Ecart au 1er | K9: Rang | L9: Moyenne ecart au 1er | M9: % Ecart au 1er | N9: Rang CEGEE
A10: 50 | B10: Aube Haute Marne | C10: =VLOOKUP($A10,'RECAP DIRCOM'!$G$6:$DC$12,3,FALSE) -> 128 | D10: =VLOOKUP($A10,'RECAP DIRCOM'!$G$6:$DC$12,75,FALSE) -> 12,826 | E10: =VLOOKUP($A10,'RECAP DIRCOM'!$G$6:$DC$12,76,FALSE) -> 100.43 | F10: =VLOOKUP($A10,'RECAP DIRCOM'!$G$6:$DC$12,77,FALSE) -> 34% | G10: =VLOOKUP($A10,'RECAP DIRCOM'!$G$6:$DC$12,78,FALSE) -> 6 | H10: =VLOOKUP($A10,'RECAP DIRCOM'!$G$6:$DC$12,79,FALSE) -> 2,923 | I10: =VLOOKUP($A10,'RECAP DIRCOM'!$G$6:$DC$12,80,FALSE) -> 22.89 | J10: =VLOOKUP($A10,'RECAP DIRCOM'!$G$6:$DC$12,81,FALSE) -> 20% | K10: =VLOOKUP($A10,'RECAP DIRCOM'!$G$6:$DC$12,82,FALSE) -> 5 | L10: =VLOOKUP($A10,'RECAP DIRCOM'!$G$6:$DC$12,83,FALSE) -> 30% | M10: =VLOOKUP($A10,'RECAP DIRCOM'!$G$6:$DC$12,84,FALSE) -> 27% | N10: =VLOOKUP($A10,'RECAP DIRCOM'!$G$6:$DC$12,85,FALSE) -> 6
A11: 262 | B11: Bas-Rhin | C11: =VLOOKUP($A11,'RECAP DIRCOM'!$G$6:$DC$12,3,FALSE) -> 253 | D11: =VLOOKUP($A11,'RECAP DIRCOM'!$G$6:$DC$12,75,FALSE) -> 34,665 | E11: =VLOOKUP($A11,'RECAP DIRCOM'!$G$6:$DC$12,76,FALSE) -> 137.25 | F11: =VLOOKUP($A11,'RECAP DIRCOM'!$G$6:$DC$12,77,FALSE) -> 10% | G11: =VLOOKUP($A11,'RECAP DIRCOM'!$G$6:$DC$12,78,FALSE) -> 3 | H11: =VLOOKUP($A11,'RECAP DIRCOM'!$G$6:$DC$12,79,FALSE) -> 5,824 | I11: =VLOOKUP($A11,'RECAP DIRCOM'!$G$6:$DC$12,80,FALSE) -> 23.06 | J11: =VLOOKUP($A11,'RECAP DIRCOM'!$G$6:$DC$12,81,FALSE) -> 19% | K11: =VLOOKUP($A11,'RECAP DIRCOM'!$G$6:$DC$12,82,FALSE) -> 4 | L11: =VLOOKUP($A11,'RECAP DIRCOM'!$G$6:$DC$12,83,FALSE) -> 13% | M11: =VLOOKUP($A11,'RECAP DIRCOM'!$G$6:$DC$12,84,FALSE) -> 10% | N11: =VLOOKUP($A11,'RECAP DIRCOM'!$G$6:$DC$12,85,FALSE) -> 3
A12: 264 | B12: Haut-Rhin | C12: =VLOOKUP($A12,'RECAP DIRCOM'!$G$6:$DC$12,3,FALSE) -> 158 | D12: =VLOOKUP($A12,'RECAP DIRCOM'!$G$6:$DC$12,75,FALSE) -> 14,847 | E12: =VLOOKUP($A12,'RECAP DIRCOM'!$G$6:$DC$12,76,FALSE) -> 94.25 | F12: =VLOOKUP($A12,'RECAP DIRCOM'!$G$6:$DC$12,77,FALSE) -> 38% | G12: =VLOOKUP($A12,'RECAP DIRCOM'!$G$6:$DC$12,78,FALSE) -> 7 | H12: =VLOOKUP($A12,'RECAP DIRCOM'!$G$6:$DC$12,79,FALSE) -> 3,287 | I12: =VLOOKUP($A12,'RECAP DIRCOM'!$G$6:$DC$12,80,FALSE) -> 20.87 | J12: =VLOOKUP($A12,'RECAP DIRCOM'!$G$6:$DC$12,81,FALSE) -> 27% | K12: =VLOOKUP($A12,'RECAP DIRCOM'!$G$6:$DC$12,82,FALSE) -> 7 | L12: =VLOOKUP($A12,'RECAP DIRCOM'!$G$6:$DC$12,83,FALSE) -> 35% | M12: =VLOOKUP($A12,'RECAP DIRCOM'!$G$6:$DC$12,84,FALSE) -> 32% | N12: =VLOOKUP($A12,'RECAP DIRCOM'!$G$6:$DC$12,85,FALSE) -> 7
A13: 30 | B13: Marne-Ardennes | C13: =VLOOKUP($A13,'RECAP DIRCOM'!$G$6:$DC$12,3,FALSE) -> 227 | D13: =VLOOKUP($A13,'RECAP DIRCOM'!$G$6:$DC$12,75,FALSE) -> 34,560 | E13: =VLOOKUP($A13,'RECAP DIRCOM'!$G$6:$DC$12,76,FALSE) -> 152.19 | F13: =VLOOKUP($A13,'RECAP DIRCOM'!$G$6:$DC$12,77,FALSE) -> 0% | G13: =VLOOKUP($A13,'RECAP DIRCOM'!$G$6:$DC$12,78,FALSE) -> 1 | H13: =VLOOKUP($A13,'RECAP DIRCOM'!$G$6:$DC$12,79,FALSE) -> 5,926 | I13: =VLOOKUP($A13,'RECAP DIRCOM'!$G$6:$DC$12,80,FALSE) -> 26.10 | J13: =VLOOKUP($A13,'RECAP DIRCOM'!$G$6:$DC$12,81,FALSE) -> 9% | K13: =VLOOKUP($A13,'RECAP DIRCOM'!$G$6:$DC$12,82,FALSE) -> 2 | L13: =VLOOKUP($A13,'RECAP DIRCOM'!$G$6:$DC$12,83,FALSE) -> 3% | M13: =VLOOKUP($A13,'RECAP DIRCOM'!$G$6:$DC$12,84,FALSE) -> 0% | N13: =VLOOKUP($A13,'RECAP DIRCOM'!$G$6:$DC$12,85,FALSE) -> 1
A14: 110 | B14: Meurthe et Moselle Meuse | C14: =VLOOKUP($A14,'RECAP DIRCOM'!$G$6:$DC$12,3,FALSE) -> 243 | D14: =VLOOKUP($A14,'RECAP DIRCOM'!$G$6:$DC$12,75,FALSE) -> 34,540 | E14: =VLOOKUP($A14,'RECAP DIRCOM'!$G$6:$DC$12,76,FALSE) -> 142.30 | F14: =VLOOKUP($A14,'RECAP DIRCOM'!$G$6:$DC$12,77,FALSE) -> 6% | G14: =VLOOKUP($A14,'RECAP DIRCOM'!$G$6:$DC$12,78,FALSE) -> 2 | H14: =VLOOKUP($A14,'RECAP DIRCOM'!$G$6:$DC$12,79,FALSE) -> 6,927 | I14: =VLOOKUP($A14,'RECAP DIRCOM'!$G$6:$DC$12,80,FALSE) -> 28.54 | J14: =VLOOKUP($A14,'RECAP DIRCOM'!$G$6:$DC$12,81,FALSE) -> 0% | K14: =VLOOKUP($A14,'RECAP DIRCOM'!$G$6:$DC$12,82,FALSE) -> 1 | L14: =VLOOKUP($A14,'RECAP DIRCOM'!$G$6:$DC$12,83,FALSE) -> 5% | M14: =VLOOKUP($A14,'RECAP DIRCOM'!$G$6:$DC$12,84,FALSE) -> 2% | N14: =VLOOKUP($A14,'RECAP DIRCOM'!$G$6:$DC$12,85,FALSE) -> 2
A15: 160 | B15: Moselle | C15: =VLOOKUP($A15,'RECAP DIRCOM'!$G$6:$DC$12,3,FALSE) -> 265 | D15: =VLOOKUP($A15,'RECAP DIRCOM'!$G$6:$DC$12,75,FALSE) -> 34,215 | E15: =VLOOKUP($A15,'RECAP DIRCOM'!$G$6:$DC$12,76,FALSE) -> 128.90 | F15: =VLOOKUP($A15,'RECAP DIRCOM'!$G$6:$DC$12,77,FALSE) -> 15% | G15: =VLOOKUP($A15,'RECAP DIRCOM'!$G$6:$DC$12,78,FALSE) -> 4 | H15: =VLOOKUP($A15,'RECAP DIRCOM'!$G$6:$DC$12,79,FALSE) -> 6,565 | I15: =VLOOKUP($A15,'RECAP DIRCOM'!$G$6:$DC$12,80,FALSE) -> 24.73 | J15: =VLOOKUP($A15,'RECAP DIRCOM'!$G$6:$DC$12,81,FALSE) -> 13% | K15: =VLOOKUP($A15,'RECAP DIRCOM'!$G$6:$DC$12,82,FALSE) -> 3 | L15: =VLOOKUP($A15,'RECAP DIRCOM'!$G$6:$DC$12,83,FALSE) -> 15% | M15: =VLOOKUP($A15,'RECAP DIRCOM'!$G$6:$DC$12,84,FALSE) -> 12% | N15: =VLOOKUP($A15,'RECAP DIRCOM'!$G$6:$DC$12,85,FALSE) -> 4
A16: 80 | B16: Vosges | C16: =VLOOKUP($A16,'RECAP DIRCOM'!$G$6:$DC$12,3,FALSE) -> 133 | D16: =VLOOKUP($A16,'RECAP DIRCOM'!$G$6:$DC$12,75,FALSE) -> 16,986 | E16: =VLOOKUP($A16,'RECAP DIRCOM'!$G$6:$DC$12,76,FALSE) -> 127.68 | F16: =VLOOKUP($A16,'RECAP DIRCOM'!$G$6:$DC$12,77,FALSE) -> 16% | G16: =VLOOKUP($A16,'RECAP DIRCOM'!$G$6:$DC$12,78,FALSE) -> 5 | H16: =VLOOKUP($A16,'RECAP DIRCOM'!$G$6:$DC$12,79,FALSE) -> 2,875 | I16: =VLOOKUP($A16,'RECAP DIRCOM'!$G$6:$DC$12,80,FALSE) -> 21.61 | J16: =VLOOKUP($A16,'RECAP DIRCOM'!$G$6:$DC$12,81,FALSE) -> 24% | K16: =VLOOKUP($A16,'RECAP DIRCOM'!$G$6:$DC$12,82,FALSE) -> 6 | L16: =VLOOKUP($A16,'RECAP DIRCOM'!$G$6:$DC$12,83,FALSE) -> 19% | M16: =VLOOKUP($A16,'RECAP DIRCOM'!$G$6:$DC$12,84,FALSE) -> 16% | N16: =VLOOKUP($A16,'RECAP DIRCOM'!$G$6:$DC$12,85,FALSE) -> 5
B17: Total CEGEE Directions Régionales | C17: =SUM(C10:C16) -> 1406

Sheet DC_SATISFACTION
B1: Accueil | D1: BAROMETRE BDD - DIRECTIONS REGIONALES
D2: SATISFACTION
D3: =ACCUEIL!F7 -> 2021-08-22
D7: NPS à froid (SAE) | G7: NPS à chaud (QHD) | J7: Total Satisfaction Clients
D8: =DATEMAJ!E4 -> au 30/06 | E8: coef | F8: ='RECAP DIRCOM'!M4 -> 10% | G8: =DATEMAJ!C5 -> au 30/06 | H8: coef | I8: ='RECAP DIRCOM'!P4 -> 10% | K8: coef | L8: ='RECAP DIRCOM'!S4 -> 20%
B9: Direction | C9: ="ETP perf "&DATEMAJ!$C$28 -> ETP perf 30-juin | E9: % Ecart au 1er | F9: Rang | H9: % Ecart au 1er | I9: Rang | J9: Moyenne ecart au 1er | K9: % Ecart au 1er | L9: Rang CEGEE
A10: 50 | B10: Aube Haute Marne | C10: =VLOOKUP($A10,'RECAP DIRCOM'!$G$6:$DC$12,3,FALSE) -> 128 | D10: =VLOOKUP($A10,'RECAP DIRCOM'!$G$6:$DC$12,5,FALSE) -> 16 | E10: =VLOOKUP($A10,'RECAP DIRCOM'!$G$6:$DC$12,6,FALSE) -> 30% | F10: =VLOOKUP($A10,'RECAP DIRCOM'!$G$6:$DC$12,7,FALSE) -> 2 | G10: =VLOOKUP($A10,'RECAP DIRCOM'!$G$6:$DC$12,8,FALSE) -> 56% | H10: =VLOOKUP($A10,'RECAP DIRCOM'!$G$6:$DC$12,9,FALSE) -> 18% | I10: =VLOOKUP($A10,'RECAP DIRCOM'!$G$6:$DC$12,10,FALSE) -> 4 | J10: =VLOOKUP($A10,'RECAP DIRCOM'!$G$6:$DC$12,11,FALSE) -> 24% | K10: =VLOOKUP($A10,'RECAP DIRCOM'!$G$6:$DC$12,12,FALSE) -> 24% | L10: =VLOOKUP($A10,'RECAP DIRCOM'!$G$6:$DC$12,13,FALSE) -> 3
A11: 262 | B11: Bas-Rhin | C11: =VLOOKUP($A11,'RECAP DIRCOM'!$G$6:$DC$12,3,FALSE) -> 253 | D11: =VLOOKUP($A11,'RECAP DIRCOM'!$G$6:$DC$12,5,FALSE) -> 13 | E11: =VLOOKUP($A11,'RECAP DIRCOM'!$G$6:$DC$12,6,FALSE) -> 43% | F11: =VLOOKUP($A11,'RECAP DIRCOM'!$G$6:$DC$12,7,FALSE) -> 5 | G11: =VLOOKUP($A11,'RECAP DIRCOM'!$G$6:$DC$12,8,FALSE) -> 52% | H11: =VLOOKUP($A11,'RECAP DIRCOM'!$G$6:$DC$12,9,FALSE) -> 23% | I11: =VLOOKUP($A11,'RECAP DIRCOM'!$G$6:$DC$12,10,FALSE) -> 6 | J11: =VLOOKUP($A11,'RECAP DIRCOM'!$G$6:$DC$12,11,FALSE) -> 33% | K11: =VLOOKUP($A11,'RECAP DIRCOM'!$G$6:$DC$12,12,FALSE) -> 33% | L11: =VLOOKUP($A11,'RECAP DIRCOM'!$G$6:$DC$12,13,FALSE) -> 6
A12: 264 | B12: Haut-Rhin | C12: =VLOOKUP($A12,'RECAP DIRCOM'!$G$6:$DC$12,3,FALSE) -> 158 | D12: =VLOOKUP($A12,'RECAP DIRCOM'!$G$6:$DC$12,5,FALSE) -> 6 | E12: =VLOOKUP($A12,'RECAP DIRCOM'!$G$6:$DC$12,6,FALSE) -> 74% | F12: =VLOOKUP($A12,'RECAP DIRCOM'!$G$6:$DC$12,7,FALSE) -> 7 | G12: =VLOOKUP($A12,'RECAP DIRCOM'!$G$6:$DC$12,8,FALSE) -> 40% | H12: =VLOOKUP($A12,'RECAP DIRCOM'!$G$6:$DC$12,9,FALSE) -> 42% | I12: =VLOOKUP($A12,'RECAP DIRCOM'!$G$6:$DC$12,10,FALSE) -> 7 | J12: =VLOOKUP($A12,'RECAP DIRCOM'!$G$6:$DC$12,11,FALSE) -> 58% | K12: =VLOOKUP($A12,'RECAP DIRCOM'!$G$6:$DC$12,12,FALSE) -> 58% | L12: =VLOOKUP($A12,'RECAP DIRCOM'!$G$6:$DC$12,13,FALSE) -> 7
A13: 30 | B13: Marne-Ardennes | C13: =VLOOKUP($A13,'RECAP DIRCOM'!$G$6:$DC$12,3,FALSE) -> 227 | D13: =VLOOKUP($A13,'RECAP DIRCOM'!$G$6:$DC$12,5,FALSE) -> 16 | E13: =VLOOKUP($A13,'RECAP DIRCOM'!$G$6:$DC$12,6,FALSE) -> 30% | F13: =VLOOKUP($A13,'RECAP DIRCOM'!$G$6:$DC$12,7,FALSE) -> 2 | G13: =VLOOKUP($A13,'RECAP DIRCOM'!$G$6:$DC$12,8,FALSE) -> 66% | H13: =VLOOKUP($A13,'RECAP DIRCOM'!$G$6:$DC$12,9,FALSE) -> 3% | I13: =VLOOKUP($A13,'RECAP DIRCOM'!$G$6:$DC$12,10,FALSE) -> 2 | J13: =VLOOKUP($A13,'RECAP DIRCOM'!$G$6:$DC$12,11,FALSE) -> 17% | K13: =VLOOKUP($A13,'RECAP DIRCOM'!$G$6:$DC$12,12,FALSE) -> 17% | L13: =VLOOKUP($A13,'RECAP DIRCOM'!$G$6:$DC$12,13,FALSE) -> 2
A14: 110 | B14: Meurthe et Moselle Meuse | C14: =VLOOKUP($A14,'RECAP DIRCOM'!$G$6:$DC$12,3,FALSE) -> 243 | D14: =VLOOKUP($A14,'RECAP DIRCOM'!$G$6:$DC$12,5,FALSE) -> 14 | E14: =VLOOKUP($A14,'RECAP DIRCOM'!$G$6:$DC$12,6,FALSE) -> 39% | F14: =VLOOKUP($A14,'RECAP DIRCOM'!$G$6:$DC$12,7,FALSE) -> 4 | G14: =VLOOKUP($A14,'RECAP DIRCOM'!$G$6:$DC$12,8,FALSE) -> 56% | H14: =VLOOKUP($A14,'RECAP DIRCOM'!$G$6:$DC$12,9,FALSE) -> 18% | I14: =VLOOKUP($A14,'RECAP DIRCOM'!$G$6:$DC$12,10,FALSE) -> 5 | J14: =VLOOKUP($A14,'RECAP DIRCOM'!$G$6:$DC$12,11,FALSE) -> 29% | K14: =VLOOKUP($A14,'RECAP DIRCOM'!$G$6:$DC$12,12,FALSE) -> 29% | L14: =VLOOKUP($A14,'RECAP DIRCOM'!$G$6:$DC$12,13,FALSE) -> 4
A15: 160 | B15: Moselle | C15: =VLOOKUP($A15,'RECAP DIRCOM'!$G$6:$DC$12,3,FALSE) -> 265 | D15: =VLOOKUP($A15,'RECAP DIRCOM'!$G$6:$DC$12,5,FALSE) -> 12 | E15: =VLOOKUP($A15,'RECAP DIRCOM'!$G$6:$DC$12,6,FALSE) -> 48% | F15: =VLOOKUP($A15,'RECAP DIRCOM'!$G$6:$DC$12,7,FALSE) -> 6 | G15: =VLOOKUP($A15,'RECAP DIRCOM'!$G$6:$DC$12,8,FALSE) -> 57% | H15: =VLOOKUP($A15,'RECAP DIRCOM'!$G$6:$DC$12,9,FALSE) -> 16% | I15: =VLOOKUP($A15,'RECAP DIRCOM'!$G$6:$DC$12,10,FALSE) -> 3 | J15: =VLOOKUP($A15,'RECAP DIRCOM'!$G$6:$DC$12,11,FALSE) -> 32% | K15: =VLOOKUP($A15,'RECAP DIRCOM'!$G$6:$DC$12,12,FALSE) -> 32% | L15: =VLOOKUP($A15,'RECAP DIRCOM'!$G$6:$DC$12,13,FALSE) -> 5
A16: 80 | B16: Vosges | C16: =VLOOKUP($A16,'RECAP DIRCOM'!$G$6:$DC$12,3,FALSE) -> 133 | D16: =VLOOKUP($A16,'RECAP DIRCOM'!$G$6:$DC$12,5,FALSE) -> 23 | E16: =VLOOKUP($A16,'RECAP DIRCOM'!$G$6:$DC$12,6,FALSE) -> 0% | F16: =VLOOKUP($A16,'RECAP DIRCOM'!$G$6:$DC$12,7,FALSE) -> 1 | G16: =VLOOKUP($A16,'RECAP DIRCOM'!$G$6:$DC$12,8,FALSE) -> 68% | H16: =VLOOKUP($A16,'RECAP DIRCOM'!$G$6:$DC$12,9,FALSE) -> 0% | I16: =VLOOKUP($A16,'RECAP DIRCOM'!$G$6:$DC$12,10,FALSE) -> 1 | J16: =VLOOKUP($A16,'RECAP DIRCOM'!$G$6:$DC$12,11,FALSE) -> 0% | K16: =VLOOKUP($A16,'RECAP DIRCOM'!$G$6:$DC$12,12,FALSE) -> 0% | L16: =VLOOKUP($A16,'RECAP DIRCOM'!$G$6:$DC$12,13,FALSE) -> 1
B17: Total CEGEE Directions Régionales | C17: =SUM(C10:C16) -> 1406

Sheet SE_FICHE
A1: Accueil
A2: BAROMETRE BDD
A4: UNITE: | B4: TERRITOIRE | E4: ETP perf : | F4: =VLOOKUP(A5,'RECAP SECT'!$G$6:$I$23,3,FALSE) -> 61.54
A5: =VLOOKUP(B5,LISTES!$H$6:$I$23,2,FALSE) -> 5130 | B5: COLMAR
C6: Coefficient du critére | E6: Résultats | I6: Ecart au 1ier | M6: Evolution | O6: Rang
E7: du 1ier | G7: du territoire | I7: Du mois | K7: Au 31/12/2019
A9: RANG au CLASSEMENT GENERAL | K9: =VLOOKUP($A$5,#REF!,168,FALSE) ->  | M9: =+K9-O9 ->  | O9: =VLOOKUP($A$5,'RECAP SECT'!$G$6:$DG$312,168,FALSE) ->  | S9: =VLOOKUP($A$5,#REF!,154,FALSE) ->  | U9: =+S9-O9 -> 
A11: CRITERE CONQUETE | C11: 15% | O11: =VLOOKUP($A$5,'RECAP SECT'!$G$6:$DG$312,23,FALSE) -> 31.41111137
B12: PNB Evolution nette Clients BP | C12: 4% | E12: ='RECAP SECT'!#REF! ->  | G12: =VLOOKUP($A$5,'RECAP SECT'!$G$6:$DG$312,6,FALSE) -> 0.8 | I12: =VLOOKUP($A$5,'RECAP SECT'!$G$6:$DG$312,7,FALSE) -> 1700% | K12: =VLOOKUP($A$5,#REF!,7,FALSE) ->  | M12: =+K12-I12 ->  | O12: =VLOOKUP($A$5,'RECAP SECT'!$G$6:$DG$312,8,FALSE) -> 0.4737259781 | S12: =VLOOKUP($A$5,#REF!,6,FALSE) ->  | U12: =+S12-I12 -> 
B13: PNB Evolution nette Clients PREMIUM | C13: 5% | E13: ='RECAP SECT'!#REF! ->  | G13: =VLOOKUP($A$5,'RECAP SECT'!$G$6:$DG$312,10,FALSE) -> 17.0 | I13: =VLOOKUP($A$5,'RECAP SECT'!$G$6:$DG$312,11,FALSE) -> 55% | K13: =VLOOKUP($A$5,#REF!,11,FALSE) ->  | M13: =+K13-I13 ->  | O13: =VLOOKUP($A$5,'RECAP SECT'!$G$6:$DG$312,12,FALSE) -> 0.5126908682 | S13: =VLOOKUP($A$5,#REF!,9,FALSE) ->  | U13: =+S13-I13 -> 
B14: PNB Evolution nette Clients Jeunes Equipés | C14: 3% | E14: ='RECAP SECT'!#REF! ->  | G14: =VLOOKUP($A$5,'RECAP SECT'!$G$6:$DG$312,14,FALSE) -> 0.0 | I14: =VLOOKUP($A$5,'RECAP SECT'!$G$6:$DG$312,15,FALSE) -> 0% | K14: =VLOOKUP($A$5,#REF!,15,FALSE) ->  | M14: =+K14-I14 ->  | O14: =VLOOKUP($A$5,'RECAP SECT'!$G$6:$DG$312,16,FALSE) -> 0 | S14: =VLOOKUP($A$5,#REF!,12,FALSE) ->  | U14: =+S14-I14 -> 
B15: PNB Evolution nette Clients Pro Actifs Equipés | C15: 3% | E15: ='RECAP SECT'!W4 -> 0.0 | G15: =VLOOKUP($A$5,'RECAP SECT'!$G$6:$DG$312,18,FALSE) -> 2581.1 | I15: =VLOOKUP($A$5,'RECAP SECT'!$G$6:$DG$312,19,FALSE) -> 4194% | K15: =VLOOKUP($A$5,#REF!,19,FALSE) ->  | M15: =+K15-I15 ->  | O15: =VLOOKUP($A$5,'RECAP SECT'!$G$6:$DG$312,20,FALSE) -> 0.4088505034 | S15: =VLOOKUP($A$5,#REF!,15,FALSE) ->  | U15: =+S15-I15 -> 
A17: CRITERE BANCARISATION | C17: 15% | O17: =VLOOKUP($A$5,'RECAP SECT'!$G$6:$DG$312,48,FALSE) -> 16
B18: PNB Ventes nettes forfaits | C18: 4% | E18: ='RECAP SECT'!X4 -> 71.0 | G18: =VLOOKUP($A$5,'RECAP SECT'!$G$6:$DG$312,31,FALSE) -> -2.0 | I18: =VLOOKUP($A$5,'RECAP SECT'!$G$6:$DG$312,32,FALSE) -> 19% | K18: =VLOOKUP($A$5,#REF!,32,FALSE) ->  | M18: =+K18-I18 ->  | O18: =VLOOKUP($A$5,'RECAP SECT'!$G$6:$DG$312,33,FALSE) -> 8 | S18: =VLOOKUP($A$5,#REF!,27,FALSE) ->  | U18: =+S18-I18 -> 
B19: PNB Ventes nettes IZICARTES Débit Différé | C19: 4% | E19: ='RECAP SECT'!AB4 -> 43.8 | G19: =VLOOKUP($A$5,'RECAP SECT'!$G$6:$DG$312,35,FALSE) -> 0.3 | I19: =VLOOKUP($A$5,'RECAP SECT'!$G$6:$DG$312,36,FALSE) -> 1700% | K19: =VLOOKUP($A$5,#REF!,36,FALSE) ->  | M19: =+K19-I19 ->  | O19: =VLOOKUP($A$5,'RECAP SECT'!$G$6:$DG$312,37,FALSE) -> 0 | S19: =VLOOKUP($A$5,#REF!,30,FALSE) ->  | U19: =+S19-I19 -> 
B20: PNB Ventes nettes cartes HDG Débit Différé | C20: 4% | E20: ='RECAP SECT'!AF4 -> 14.7 | G20: =VLOOKUP($A$5,'RECAP SECT'!$G$6:$DG$312,39,FALSE) -> 0.0 | I20: =VLOOKUP($A$5,'RECAP SECT'!$G$6:$DG$312,40,FALSE) -> 0% | K20: =VLOOKUP($A$5,#REF!,40,FALSE) ->  | M20: =+K20-I20 ->  | O20: =VLOOKUP($A$5,'RECAP SECT'!$G$6:$DG$312,41,FALSE) -> 17257.05361 | S20: =VLOOKUP($A$5,#REF!,33,FALSE) ->  | U20: =+S20-I20 -> 
B21: PNB Ventes nettes Forfaits Pro, Carte pro | C21: 3% | E21: ='RECAP SECT'!AJ4 -> -1.6 | G21: =VLOOKUP($A$5,'RECAP SECT'!$G$6:$DG$312,43,FALSE) -> 0.5 | I21: =VLOOKUP($A$5,'RECAP SECT'!$G$6:$DG$312,44,FALSE) -> 1600% | K21: =VLOOKUP($A$5,#REF!,44,FALSE) ->  | M21: =+K21-I21 ->  | O21: =VLOOKUP($A$5,'RECAP SECT'!$G$6:$DG$312,45,FALSE) -> 926 | S21: =VLOOKUP($A$5,#REF!,39,FALSE) ->  | U21: =+S21-I21 -> 
A23: CRITERE EPARGNE | C23: 10% | O23: =VLOOKUP($A$5,'RECAP SECT'!$G$6:$DG$312,69,FALSE) -> 0.4655480262
B24: PNB Epargne Liquide | C24: 3% | E24: ='RECAP SECT'!AU4 -> 583.3 | G24: =VLOOKUP($A$5,'RECAP SECT'!$G$6:$DG$312,56,FALSE) -> 3487.8 | I24: =VLOOKUP($A$5,'RECAP SECT'!$G$6:$DG$312,57,FALSE) -> 5668% | K24: =VLOOKUP($A$5,#REF!,57,FALSE) ->  | M24: =+K24-I24 ->  | O24: =VLOOKUP($A$5,'RECAP SECT'!$G$6:$DG$312,58,FALSE) -> 0.690668795 | S24: =VLOOKUP($A$5,#REF!,51,FALSE) ->  | U24: =+S24-I24 -> 
B25: PNB CA UC + arbitrage | C25: 4% | E25: ='RECAP SECT'!AY4 -> 24.2 | G25: =VLOOKUP($A$5,'RECAP SECT'!$G$6:$DG$312,60,FALSE) -> 2581.9 | I25: =VLOOKUP($A$5,'RECAP SECT'!$G$6:$DG$312,61,FALSE) -> 4196% | K25: =VLOOKUP($A$5,#REF!,61,FALSE) ->  | M25: =+K25-I25 ->  | O25: =VLOOKUP($A$5,'RECAP SECT'!$G$6:$DG$312,62,FALSE) -> 0.2919377524 | S25: =VLOOKUP($A$5,#REF!,57,FALSE) ->  | U25: =+S25-I25 -> 
B26: PNB Excédent assurance vie | C26: 3% | E26: ='RECAP SECT'!#REF! ->  | G26: =VLOOKUP($A$5,'RECAP SECT'!$G$6:$DG$312,64,FALSE) -> 592.0 | I26: =VLOOKUP($A$5,'RECAP SECT'!$G$6:$DG$312,65,FALSE) -> 962% | K26: =VLOOKUP($A$5,#REF!,65,FALSE) ->  | M26: =+K26-I26 ->  | O26: =VLOOKUP($A$5,'RECAP SECT'!$G$6:$DG$312,66,FALSE) -> 0.5040956063 | S26: =VLOOKUP($A$5,#REF!,60,FALSE) ->  | U26: =+S26-I26 -> 
A28: CRITERE CREDITS | C28: 15% | O28: =VLOOKUP($A$5,'RECAP SECT'!$G$6:$DG$312,102,FALSE) -> 0.394250829
B29: PNB crédit conso | C29: 4% | E29: ='RECAP SECT'!BJ4 -> 183.2 | G29: =VLOOKUP($A$5,'RECAP SECT'!$G$6:$DG$312,77,FALSE) -> 0.3 | I29: =VLOOKUP($A$5,'RECAP SECT'!$G$6:$DG$312,78,FALSE) -> 1200% | K29: =VLOOKUP($A$5,#REF!,78,FALSE) ->  | M29: =+K29-I29 ->  | O29: =VLOOKUP($A$5,'RECAP SECT'!$G$6:$DG$312,79,FALSE) -> 1584 | S29: =VLOOKUP($A$5,#REF!,75,FALSE) ->  | U29: =+S29-I29 -> 
B30: PNB ADE crédit conso | C30: 1% | E30: ='RECAP SECT'!#REF! ->  | G30: =VLOOKUP($A$5,'RECAP SECT'!$G$6:$DG$312,81,FALSE) -> 0.3 | I30: =VLOOKUP($A$5,'RECAP SECT'!$G$6:$DG$312,82,FALSE) -> 1600% | K30: =VLOOKUP($A$5,#REF!,82,FALSE) ->  | O30: =VLOOKUP($A$5,'RECAP SECT'!$G$6:$DG$312,83,FALSE) -> 0.2824140076 | S30: =VLOOKUP($A$5,#REF!,78,FALSE) -> 
B31: PNB crédit immo | C31: 4% | E31: ='RECAP SECT'!BN4 -> 59.3 | G31: =VLOOKUP($A$5,'RECAP SECT'!$G$6:$DG$312,85,FALSE) -> 13.0 | I31: =VLOOKUP($A$5,'RECAP SECT'!$G$6:$DG$312,86,FALSE) -> 0% | K31: =VLOOKUP($A$5,#REF!,86,FALSE) ->  | O31: =VLOOKUP($A$5,'RECAP SECT'!$G$6:$DG$312,87,FALSE) -> 0 | S31: =VLOOKUP($A$5,#REF!,81,FALSE) -> 
B32: PNB ADE crédit immo | C32: 2% | E32: ='RECAP SECT'!#REF! ->  | G32: =VLOOKUP($A$5,'RECAP SECT'!$G$6:$DG$312,89,FALSE) -> 0.0 | I32: =VLOOKUP($A$5,'RECAP SECT'!$G$6:$DG$312,90,FALSE) -> 0% | K32: =VLOOKUP($A$5,#REF!,90,FALSE) ->  | O32: =VLOOKUP($A$5,'RECAP SECT'!$G$6:$DG$312,91,FALSE) -> 0 | S32: =VLOOKUP($A$5,#REF!,84,FALSE) -> 
B33: PNB SACCEF | C33: 2% | E33: ='RECAP SECT'!#REF! ->  | G33: =VLOOKUP($A$5,'RECAP SECT'!$G$6:$DG$312,93,FALSE) -> 0.0 | I33: =VLOOKUP($A$5,'RECAP SECT'!$G$6:$DG$312,94,FALSE) -> 0% | K33: =VLOOKUP($A$5,#REF!,94,FALSE) ->  | O33: =VLOOKUP($A$5,'RECAP SECT'!$G$6:$DG$312,95,FALSE) -> 0 | S33: =VLOOKUP($A$5,#REF!,87,FALSE) -> 
B34: PNB Crédit MLT + Crédit Bail | C34: 2% | E34: ='RECAP SECT'!BR4 -> 19.4 | G34: =VLOOKUP($A$5,'RECAP SECT'!$G$6:$DG$312,97,FALSE) -> 0.0 | I34: =VLOOKUP($A$5,'RECAP SECT'!$G$6:$DG$312,98,FALSE) -> 0% | K34: =VLOOKUP($A$5,#REF!,98,FALSE) ->  | O34: =VLOOKUP($A$5,'RECAP SECT'!$G$6:$DG$312,99,FALSE) -> 0 | S34: =VLOOKUP($A$5,#REF!,90,FALSE) -> 
A36: CRITERE IARD PREVOYANCE | C36: 15% | O36: =VLOOKUP($A$5,'RECAP SECT'!$G$6:$DG$312,119,FALSE) -> 
B37: PNB Ventes nettes IARD | C37: 9% | E37: ='RECAP SECT'!CC4 -> 213.2 | G37: =VLOOKUP($A$5,'RECAP SECT'!$G$6:$DG$312,110,FALSE) ->  | I37: =VLOOKUP($A$5,'RECAP SECT'!$G$6:$DG$312,111,FALSE) ->  | K37: =VLOOKUP($A$5,#REF!,111,FALSE) ->  | M37: =+K37-I37 ->  | O37: =VLOOKUP($A$5,'RECAP SECT'!$G$6:$DG$312,112,FALSE) ->  | S37: =VLOOKUP($A$5,#REF!,102,FALSE) ->  | U37: =+S37-I37 -> 
B38: PNB Ventes nettes Prévoyance | C38: 6% | E38: ='RECAP SECT'!CG4 -> 38.2 | G38: =VLOOKUP($A$5,'RECAP SECT'!$G$6:$DG$312,114,FALSE) ->  | I38: =VLOOKUP($A$5,'RECAP SECT'!$G$6:$DG$312,115,FALSE) ->  | K38: =VLOOKUP($A$5,#REF!,115,FALSE) ->  | M38: =+K38-I38 ->  | O38: =VLOOKUP($A$5,'RECAP SECT'!$G$6:$DG$312,116,FALSE) ->  | S38: =VLOOKUP($A$5,#REF!,105,FALSE) ->  | U38: =+S38-I38 -> 
A40: CRITERE ACCELERATEURS PNB | C40: 15% | O40: =VLOOKUP($A$5,'RECAP SECT'!$G$6:$DG$312,144,FALSE) -> 
B41: PNB Ventes brutes SED Finalisées | C41: 6% | E41: ='RECAP SECT'!#REF! ->  | G41: =VLOOKUP($A$5,'RECAP SECT'!$G$6:$DG$312,127,FALSE) ->  | I41: =VLOOKUP($A$5,'RECAP SECT'!$G$6:$DG$312,128,FALSE) ->  | K41: =VLOOKUP($A$5,#REF!,128,FALSE) ->  | M41: =+K41-I41 ->  | O41: =VLOOKUP($A$5,'RECAP SECT'!$G$6:$DG$312,129,FALSE) ->  | S41: =VLOOKUP($A$5,#REF!,120,FALSE) ->  | U41: =+S41-I41 -> 
B42: PNB clients équipés E documents | C42: 3% | E42: ='RECAP SECT'!#REF! ->  | G42: =VLOOKUP($A$5,'RECAP SECT'!$G$6:$DG$312,131,FALSE) ->  | I42: =VLOOKUP($A$5,'RECAP SECT'!$G$6:$DG$312,132,FALSE) ->  | K42: =VLOOKUP($A$5,#REF!,132,FALSE) ->  | M42: =+K42-I42 ->  | O42: =VLOOKUP($A$5,'RECAP SECT'!$G$6:$DG$312,133,FALSE) ->  | S42: =VLOOKUP($A$5,#REF!,123,FALSE) ->  | U42: =+S42-I42 -> 
B43: Economie opt'in | C43: 3% | E43: ='RECAP SECT'!#REF! ->  | G43: =VLOOKUP($A$5,'RECAP SECT'!$G$6:$DG$312,135,FALSE) ->  | I43: =VLOOKUP($A$5,'RECAP SECT'!$G$6:$DG$312,136,FALSE) ->  | K43: =VLOOKUP($A$5,#REF!,136,FALSE) ->  | M43: =+K43-I43 ->  | O43: =VLOOKUP($A$5,'RECAP SECT'!$G$6:$DG$312,137,FALSE) -> 
B44: Remises commerciales | C44: 3% | E44: ='RECAP SECT'!#REF! ->  | G44: =VLOOKUP($A$5,'RECAP SECT'!$G$6:$DG$312,139,FALSE) ->  | I44: =VLOOKUP($A$5,'RECAP SECT'!$G$6:$DG$312,140,FALSE) ->  | K44: =VLOOKUP($A$5,#REF!,140,FALSE) ->  | M44: =+K44-I44 ->  | O44: =VLOOKUP($A$5,'RECAP SECT'!$G$6:$DG$312,141,FALSE) ->  | S44: =VLOOKUP($A$5,#REF!,126,FALSE) ->  | U44: =+S44-I44 -> 
A46: CRITERE Satisfaction Clients | C46: 15% | O46: =VLOOKUP($A$5,'RECAP SECT'!$G$6:$DG$312,159,FALSE) -> 
B47: Objectifs NPS* | C47: 8% | E47: ='RECAP SECT'!K4 -> 24 | G47: =VLOOKUP($A$5,'RECAP SECT'!$G$6:$DG$312,151,FALSE) ->  | I47: =VLOOKUP($A$5,'RECAP SECT'!$G$6:$DG$312,152,FALSE) ->  | K47: =VLOOKUP($A$5,#REF!,152,FALSE) ->  | M47: =+K47-I47 ->  | O47: =VLOOKUP($A$5,'RECAP SECT'!$G$6:$DG$312,153,FALSE) ->  | S47: =VLOOKUP($A$5,#REF!,138,FALSE) ->  | U47: =+S47-I47 -> 
B48: Enquête Qualité Haute Définition | C48: 7% | E48: ='RECAP SECT'!N4 -> 74% | G48: =VLOOKUP($A$5,'RECAP SECT'!$G$6:$DG$312,154,FALSE) ->  | I48: =VLOOKUP($A$5,'RECAP SECT'!$G$6:$DG$312,155,FALSE) ->  | K48: =VLOOKUP($A$5,#REF!,155,FALSE) ->  | M48: =+K48-I48 ->  | O48: =VLOOKUP($A$5,'RECAP SECT'!$G$6:$DG$312,156,FALSE) ->  | S48: =VLOOKUP($A$5,#REF!,141,FALSE) ->  | U48: =+S48-I48 -> 

Sheet SE_TOTAL
B1: Accueil | F1: BAROMETRE BDD - TERRITOIRES
F2: TOTAL GENERAL
F3: =ACCUEIL!F7 -> 2021-08-22
F7: TOTAL GENERAL | I7: Total Satisfaction Clients | L7: Total Bancarisation | O7: Total Epargne | R7: Total IARD Prévoyance | U7: Total Crédits
G8: coef | H8: 100% | J8: coef | K8: =SE_SATISFACTION!N8 -> 20% | M8: coef | N8: =SE_BANCA!X8 -> 20% | P8: coef | Q8: =SE_EPARGNE!P8 -> 20% | S8: coef | T8: =SE_IARD!P8 -> 20% | V8: coef | W8: =SE_CREDIT!T8 -> 20%
B9: Direction | C9: eds | D9: Territoire | E9: ="ETP perf "&DATEMAJ!$C$28 -> ETP perf 30-juin | F9: Moyenne ecart au 1er | G9: % Ecart au 1er | H9: Rang CEGEE | I9: Moyenne ecart au 1er | J9: % Ecart au 1er | K9: Rang CEGEE | L9: Moyenne ecart au 1er | M9: % Ecart au 1er | N9: Rang CEGEE | O9: Moyenne ecart au 1er | P9: % Ecart au 1er | Q9: Rang CEGEE | R9: Moyenne ecart au 1er | S9: % Ecart au 1er | T9: Rang CEGEE | U9: Moyenne ecart au 1er | V9: % Ecart au 1er | W9: Rang CEGEE
A10: 50 | B10: MEURTHE ET MOSELLE MEUSE | C10: 26 | D10: NANCY | E10: 66.2 | F10: 6% | G10: 0% | H10: 1 | I10: 32% | J10: 28% | K10: 10 | L10: 7% | M10: 0% | N10: 1 | O10: 10% | P10: 2% | Q10: 3 | R10: 3% | S10: 0% | T10: 1 | U10: 5% | V10: 0% | W10: 1
A11: 50 | B11: MARNE-ARDENNES | C11: 2 | D11: CHARLEVILLE MEZIERES | E11: 56.6 | F11: 11% | G11: 5% | H11: 2 | I11: 11% | J11: 7% | K11: 4 | L11: 28% | M11: 21% | N11: 8 | O11: 14% | P11: 6% | Q11: 5 | R11: 11% | S11: 8% | T11: 4 | U11: 19% | V11: 14% | W11: 4
A12: 262 | B12: MEURTHE ET MOSELLE MEUSE | C12: 27 | D12: PONT A MOUSSON | E12: 76.5 | F12: 12% | G12: 6% | H12: 3 | I12: 43% | J12: 39% | K12: 15 | L12: 10% | M12: 3% | N12: 2 | O12: 8% | P12: 0% | Q12: 2 | R12: 18% | S12: 15% | T12: 6 | U12: 9% | V12: 4% | W12: 2
A13: 262 | B13: BAS-RHIN | C13: 5006 | D13: STRASBOURG | E13: 75.2 | F13: 15% | G13: 9% | H13: 4 | I13: 29% | J13: 25% | K13: 8 | L13: 23% | M13: 17% | N13: 5 | O13: 8% | P13: 0% | Q13: 1 | R13: 5% | S13: 2% | T13: 2 | U13: 36% | V13: 31% | W13: 12
A14: 262 | B14: MARNE-ARDENNES | C14: 6 | D14: CHALONS EN CHAMPAGNE | E14: 44.7 | F14: 15% | G14: 9% | H14: 5 | I14: 6% | J14: 2% | K14: 3 | L14: 26% | M14: 19% | N14: 7 | O14: 29% | P14: 21% | Q14: 9 | R14: 17% | S14: 14% | T14: 5 | U14: 25% | V14: 20% | W14: 7
A15: 264 | B15: MARNE-ARDENNES | C15: 11 | D15: REIMS | E15: 79.7 | F15: 16% | G15: 10% | H15: 6 | I15: 37% | J15: 33% | K15: 12 | L15: 23% | M15: 17% | N15: 6 | O15: 27% | P15: 20% | Q15: 8 | R15: 9% | S15: 6% | T15: 3 | U15: 11% | V15: 6% | W15: 3
A16: 264 | B16: MEURTHE ET MOSELLE MEUSE | C16: 31 | D16: VERDUN | E16: 55.1 | F16: 18% | G16: 12% | H16: 7 | I16: 20% | J16: 16% | K16: 5 | L16: 21% | M16: 14% | N16: 3 | O16: 30% | P16: 22% | Q16: 10 | R16: 26% | S16: 23% | T16: 12 | U16: 21% | V16: 16% | W16: 5
A17: 30 | B17: VOSGES | C17: 57 | D17: EPINAL | E17: 61.1 | F17: 20% | G17: 14% | H17: 8 | I17: 4% | J17: 0% | K17: 1 | L17: 37% | M17: 30% | N17: 14 | O17: 31% | P17: 23% | Q17: 13 | R17: 21% | S17: 18% | T17: 9 | U17: 35% | V17: 30% | W17: 10
A18: 30 | B18: MOSELLE | C18: 44 | D18: MOSELLE NORD | E18: 65.8 | F18: 21% | G18: 15% | H18: 9 | I18: 46% | J18: 42% | K18: 16 | L18: 22% | M18: 16% | N18: 4 | O18: 20% | P18: 13% | Q18: 6 | R18: 20% | S18: 17% | T18: 7 | U18: 25% | V18: 20% | W18: 6
A19: 30 | B19: VOSGES | C19: 55 | D19: SAINT DIE | E19: 47.1 | F19: 24% | G19: 18% | H19: 10 | I19: 5% | J19: 1% | K19: 2 | L19: 40% | M19: 33% | N19: 15 | O19: 30% | P19: 23% | Q19: 12 | R19: 36% | S19: 33% | T19: 15 | U19: 36% | V19: 31% | W19: 11
A20: 110 | B20: MOSELLE | C20: 42 | D20: MOSELLE EST | E20: 70.2 | F20: 24% | G20: 18% | H20: 11 | I20: 27% | J20: 23% | K20: 7 | L20: 30% | M20: 23% | N20: 11 | O20: 31% | P20: 24% | Q20: 14 | R20: 25% | S20: 22% | T20: 10 | U20: 35% | V20: 30% | W20: 9
A21: 110 | B21: BAS-RHIN | C21: 5101 | D21: SELESTAT | E21: 59.9 | F21: 25% | G21: 18% | H21: 12 | I21: 43% | J21: 39% | K21: 14 | L21: 28% | M21: 21% | N21: 9 | O21: 10% | P21: 3% | Q21: 4 | R21: 25% | S21: 22% | T21: 11 | U21: 43% | V21: 38% | W21: 16
A22: 110 | B22: AUBE HAUTE MARNE | C22: 21 | D22: CHAUMONT | E22: 33.9 | F22: 27% | G22: 21% | H22: 13 | I22: 37% | J22: 33% | K22: 11 | L22: 32% | M22: 25% | N22: 12 | O22: 41% | P22: 33% | Q22: 15 | R22: 21% | S22: 18% | T22: 8 | U22: 31% | V22: 26% | W22: 8
A23: 160 | B23: MOSELLE | C23: 45 | D23: METZ | E23: 88.4 | F23: 29% | G23: 23% | H23: 14 | I23: 31% | J23: 27% | K23: 9 | L23: 40% | M23: 33% | N23: 16 | O23: 30% | P23: 22% | Q23: 11 | R23: 34% | S23: 31% | T23: 14 | U23: 36% | V23: 31% | W23: 13
A24: 160 | B24: BAS-RHIN | C24: 5060 | D24: HAGUENAU | E24: 70.0 | F24: 30% | G24: 24% | H24: 15 | I24: 42% | J24: 38% | K24: 13 | L24: 29% | M24: 23% | N24: 10 | O24: 25% | P24: 18% | Q24: 7 | R24: 39% | S24: 36% | T24: 16 | U24: 41% | V24: 36% | W24: 15
A25: 160 | B25: AUBE HAUTE MARNE | C25: 14 | D25: TROYES | E25: 67.1 | F25: 36% | G25: 30% | H25: 16 | I25: 25% | J25: 21% | K25: 6 | L25: 34% | M25: 27% | N25: 13 | O25: 69% | P25: 61% | Q25: 18 | R25: 43% | S25: 40% | T25: 17 | U25: 37% | V25: 32% | W25: 14
A26: 80 | B26: HAUT-RHIN | C26: 5130 | D26: COLMAR | E26: 61.5 | F26: 39% | G26: 33% | H26: 17 | I26: 55% | J26: 51% | K26: 17 | L26: 41% | M26: 34% | N26: 17 | O26: 48% | P26: 40% | Q26: 16 | R26: 28% | S26: 25% | T26: 13 | U26: 52% | V26: 47% | W26: 18
A27: 80 | B27: HAUT-RHIN | C27: 5169 | D27: MULHOUSE | E27: 61.1 | F27: 50% | G27: 43% | H27: 18 | I27: 66% | J27: 62% | K27: 18 | L27: 61% | M27: 54% | N27: 18 | O27: 50% | P27: 42% | Q27: 17 | R27: 50% | S27: 47% | T27: 18 | U27: 48% | V27: 43% | W27: 17
A28: Total CEGEE Directions Régionales | E28: =SUM(E10:E27) -> 1140

Sheet SE_BANCA
B1: Accueil | F1: BAROMETRE BDD - TERRITOIRES
F2: BANCARISATION
F3: =ACCUEIL!F7 -> 2021-08-22
F7: Ventes Nettes produits pondérés | J7: Ventes sur client non détenteur de l’univers | N7: Mobilité Macron | R7: Remises commerciales | V7: Total Bancarisation
F8: =DATEMAJ!C8 -> au 22/08 | H8: coef | I8: ='RECAP DIRCOM'!AA4 -> 10% | J8: =DATEMAJ!C9 -> au 22/08 | L8: coef | M8: ='RECAP DIRCOM'!AE4 -> 4% | N8: =DATEMAJ!C10 -> au 22/08 | P8: coef | Q8: ='RECAP DIRCOM'!AI4 -> 3% | R8: =DATEMAJ!C11 -> au 30/06 | T8: coef | U8: ='RECAP DIRCOM'!AM4 -> 3% | W8: coef | X8: ='RECAP DIRCOM'!AP4 -> 20%
B9: Direction | C9: eds | D9: Territoire | E9: ="ETP perf "&DATEMAJ!$C$28 -> ETP perf 30-juin | F9: VN | G9: VN / ETP | H9: % Ecart au 1er | I9: Rang | J9: VB | K9: VB / ETP | L9: % Ecart au 1er | M9: Rang | N9: Nb | O9: Nb / ETP | P9: % Ecart au 1er | Q9: Rang | R9: Montant | S9: Montant / ETP | T9: % Ecart au 1er | U9: Rang | V9: Moyenne ecart au 1er | W9: % Ecart au 1er | X9: Rang CEGEE
A10: 50 | B10: AUBE HAUTE MARNE | C10: 21 | D10: CHAUMONT | E10: =VLOOKUP($C10,'RECAP SECT'!$G$6:$DC$253,3,FALSE) -> 33.9 | F10: =VLOOKUP($C10,'RECAP SECT'!$G$6:$DC$253,18,FALSE) -> 1,590 | G10: =VLOOKUP($C10,'RECAP SECT'!$G$6:$DC$253,19,FALSE) -> 46.89 | H10: =VLOOKUP($C10,'RECAP SECT'!$G$6:$DC$253,20,FALSE) -> 34% | I10: =VLOOKUP($C10,'RECAP SECT'!$G$6:$DC$253,21,FALSE) -> 11 | J10: =VLOOKUP($C10,'RECAP SECT'!$G$6:$DC$253,22,FALSE) -> 1,256 | K10: =VLOOKUP($C10,'RECAP SECT'!$G$6:$DC$253,23,FALSE) -> 37.04 | L10: =VLOOKUP($C10,'RECAP SECT'!$G$6:$DC$253,24,FALSE) -> 16% | M10: =VLOOKUP($C10,'RECAP SECT'!$G$6:$DC$253,25,FALSE) -> 6 | N10: =VLOOKUP($C10,'RECAP SECT'!$G$6:$DC$253,26,FALSE) -> 220 | O10: =VLOOKUP($C10,'RECAP SECT'!$G$6:$DC$253,27,FALSE) -> 6.49 | P10: =VLOOKUP($C10,'RECAP SECT'!$G$6:$DC$253,28,FALSE) -> 56% | Q10: =VLOOKUP($C10,'RECAP SECT'!$G$6:$DC$253,29,FALSE) -> 9 | R10: =VLOOKUP($C10,'RECAP SECT'!$G$6:$DC$253,30,FALSE) -> -68.7 | S10: =VLOOKUP($C10,'RECAP SECT'!$G$6:$DC$253,31,FALSE) -> -2.03 | T10: =VLOOKUP($C10,'RECAP SECT'!$G$6:$DC$253,32,FALSE) -> 24% | U10: =VLOOKUP($C10,'RECAP SECT'!$G$6:$DC$253,33,FALSE) -> 11 | V10: =VLOOKUP($C10,'RECAP SECT'!$G$6:$DC$253,34,FALSE) -> 32% | W10: =VLOOKUP($C10,'RECAP SECT'!$G$6:$DC$253,35,FALSE) -> 25% | X10: =VLOOKUP($C10,'RECAP SECT'!$G$6:$DC$253,36,FALSE) -> 12
A11: 50 | B11: AUBE HAUTE MARNE | C11: 14 | D11: TROYES | E11: =VLOOKUP($C11,'RECAP SECT'!$G$6:$DC$253,3,FALSE) -> 67.1 | F11: =VLOOKUP($C11,'RECAP SECT'!$G$6:$DC$253,18,FALSE) -> 2,998 | G11: =VLOOKUP($C11,'RECAP SECT'!$G$6:$DC$253,19,FALSE) -> 44.70 | H11: =VLOOKUP($C11,'RECAP SECT'!$G$6:$DC$253,20,FALSE) -> 37% | I11: =VLOOKUP($C11,'RECAP SECT'!$G$6:$DC$253,21,FALSE) -> 12 | J11: =VLOOKUP($C11,'RECAP SECT'!$G$6:$DC$253,22,FALSE) -> 2,236 | K11: =VLOOKUP($C11,'RECAP SECT'!$G$6:$DC$253,23,FALSE) -> 33.34 | L11: =VLOOKUP($C11,'RECAP SECT'!$G$6:$DC$253,24,FALSE) -> 24% | M11: =VLOOKUP($C11,'RECAP SECT'!$G$6:$DC$253,25,FALSE) -> 11 | N11: =VLOOKUP($C11,'RECAP SECT'!$G$6:$DC$253,26,FALSE) -> 419 | O11: =VLOOKUP($C11,'RECAP SECT'!$G$6:$DC$253,27,FALSE) -> 6.25 | P11: =VLOOKUP($C11,'RECAP SECT'!$G$6:$DC$253,28,FALSE) -> 58% | Q11: =VLOOKUP($C11,'RECAP SECT'!$G$6:$DC$253,29,FALSE) -> 10 | R11: =VLOOKUP($C11,'RECAP SECT'!$G$6:$DC$253,30,FALSE) -> -123.8 | S11: =VLOOKUP($C11,'RECAP SECT'!$G$6:$DC$253,31,FALSE) -> -1.85 | T11: =VLOOKUP($C11,'RECAP SECT'!$G$6:$DC$253,32,FALSE) -> 13% | U11: =VLOOKUP($C11,'RECAP SECT'!$G$6:$DC$253,33,FALSE) -> 5 | V11: =VLOOKUP($C11,'RECAP SECT'!$G$6:$DC$253,34,FALSE) -> 34% | W11: =VLOOKUP($C11,'RECAP SECT'!$G$6:$DC$253,35,FALSE) -> 27% | X11: =VLOOKUP($C11,'RECAP SECT'!$G$6:$DC$253,36,FALSE) -> 13
A12: 262 | B12: BAS-RHIN | C12: 5060 | D12: HAGUENAU | E12: =VLOOKUP($C12,'RECAP SECT'!$G$6:$DC$253,3,FALSE) -> 70.0 | F12: =VLOOKUP($C12,'RECAP SECT'!$G$6:$DC$253,18,FALSE) -> 4,042 | G12: =VLOOKUP($C12,'RECAP SECT'!$G$6:$DC$253,19,FALSE) -> 57.76 | H12: =VLOOKUP($C12,'RECAP SECT'!$G$6:$DC$253,20,FALSE) -> 19% | I12: =VLOOKUP($C12,'RECAP SECT'!$G$6:$DC$253,21,FALSE) -> 7 | J12: =VLOOKUP($C12,'RECAP SECT'!$G$6:$DC$253,22,FALSE) -> 2,131 | K12: =VLOOKUP($C12,'RECAP SECT'!$G$6:$DC$253,23,FALSE) -> 30.45 | L12: =VLOOKUP($C12,'RECAP SECT'!$G$6:$DC$253,24,FALSE) -> 31% | M12: =VLOOKUP($C12,'RECAP SECT'!$G$6:$DC$253,25,FALSE) -> 16 | N12: =VLOOKUP($C12,'RECAP SECT'!$G$6:$DC$253,26,FALSE) -> 326 | O12: =VLOOKUP($C12,'RECAP SECT'!$G$6:$DC$253,27,FALSE) -> 4.66 | P12: =VLOOKUP($C12,'RECAP SECT'!$G$6:$DC$253,28,FALSE) -> 68% | Q12: =VLOOKUP($C12,'RECAP SECT'!$G$6:$DC$253,29,FALSE) -> 14 | R12: =VLOOKUP($C12,'RECAP SECT'!$G$6:$DC$253,30,FALSE) -> -143.3 | S12: =VLOOKUP($C12,'RECAP SECT'!$G$6:$DC$253,31,FALSE) -> -2.05 | T12: =VLOOKUP($C12,'RECAP SECT'!$G$6:$DC$253,32,FALSE) -> 25% | U12: =VLOOKUP($C12,'RECAP SECT'!$G$6:$DC$253,33,FALSE) -> 12 | V12: =VLOOKUP($C12,'RECAP SECT'!$G$6:$DC$253,34,FALSE) -> 29% | W12: =VLOOKUP($C12,'RECAP SECT'!$G$6:$DC$253,35,FALSE) -> 23% | X12: =VLOOKUP($C12,'RECAP SECT'!$G$6:$DC$253,36,FALSE) -> 10
A13: 262 | B13: BAS-RHIN | C13: 5101 | D13: SELESTAT | E13: =VLOOKUP($C13,'RECAP SECT'!$G$6:$DC$253,3,FALSE) -> 59.9 | F13: =VLOOKUP($C13,'RECAP SECT'!$G$6:$DC$253,18,FALSE) -> 3,625 | G13: =VLOOKUP($C13,'RECAP SECT'!$G$6:$DC$253,19,FALSE) -> 60.54 | H13: =VLOOKUP($C13,'RECAP SECT'!$G$6:$DC$253,20,FALSE) -> 15% | I13: =VLOOKUP($C13,'RECAP SECT'!$G$6:$DC$253,21,FALSE) -> 4 | J13: =VLOOKUP($C13,'RECAP SECT'!$G$6:$DC$253,22,FALSE) -> 1,822 | K13: =VLOOKUP($C13,'RECAP SECT'!$G$6:$DC$253,23,FALSE) -> 30.43 | L13: =VLOOKUP($C13,'RECAP SECT'!$G$6:$DC$253,24,FALSE) -> 31% | M13: =VLOOKUP($C13,'RECAP SECT'!$G$6:$DC$253,25,FALSE) -> 17 | N13: =VLOOKUP($C13,'RECAP SECT'!$G$6:$DC$253,26,FALSE) -> 284 | O13: =VLOOKUP($C13,'RECAP SECT'!$G$6:$DC$253,27,FALSE) -> 4.74 | P13: =VLOOKUP($C13,'RECAP SECT'!$G$6:$DC$253,28,FALSE) -> 68% | Q13: =VLOOKUP($C13,'RECAP SECT'!$G$6:$DC$253,29,FALSE) -> 13 | R13: =VLOOKUP($C13,'RECAP SECT'!$G$6:$DC$253,30,FALSE) -> -126.9 | S13: =VLOOKUP($C13,'RECAP SECT'!$G$6:$DC$253,31,FALSE) -> -2.12 | T13: =VLOOKUP($C13,'RECAP SECT'!$G$6:$DC$253,32,FALSE) -> 29% | U13: =VLOOKUP($C13,'RECAP SECT'!$G$6:$DC$253,33,FALSE) -> 15 | V13: =VLOOKUP($C13,'RECAP SECT'!$G$6:$DC$253,34,FALSE) -> 28% | W13: =VLOOKUP($C13,'RECAP SECT'!$G$6:$DC$253,35,FALSE) -> 21% | X13: =VLOOKUP($C13,'RECAP SECT'!$G$6:$DC$253,36,FALSE) -> 9
A14: 262 | B14: BAS-RHIN | C14: 5006 | D14: STRASBOURG | E14: =VLOOKUP($C14,'RECAP SECT'!$G$6:$DC$253,3,FALSE) -> 75.2 | F14: =VLOOKUP($C14,'RECAP SECT'!$G$6:$DC$253,18,FALSE) -> 4,606 | G14: =VLOOKUP($C14,'RECAP SECT'!$G$6:$DC$253,19,FALSE) -> 61.23 | H14: =VLOOKUP($C14,'RECAP SECT'!$G$6:$DC$253,20,FALSE) -> 14% | I14: =VLOOKUP($C14,'RECAP SECT'!$G$6:$DC$253,21,FALSE) -> 3 | J14: =VLOOKUP($C14,'RECAP SECT'!$G$6:$DC$253,22,FALSE) -> 3,191 | K14: =VLOOKUP($C14,'RECAP SECT'!$G$6:$DC$253,23,FALSE) -> 42.42 | L14: =VLOOKUP($C14,'RECAP SECT'!$G$6:$DC$253,24,FALSE) -> 3% | M14: =VLOOKUP($C14,'RECAP SECT'!$G$6:$DC$253,25,FALSE) -> 2 | N14: =VLOOKUP($C14,'RECAP SECT'!$G$6:$DC$253,26,FALSE) -> 612 | O14: =VLOOKUP($C14,'RECAP SECT'!$G$6:$DC$253,27,FALSE) -> 8.14 | P14: =VLOOKUP($C14,'RECAP SECT'!$G$6:$DC$253,28,FALSE) -> 45% | Q14: =VLOOKUP($C14,'RECAP SECT'!$G$6:$DC$253,29,FALSE) -> 6 | R14: =VLOOKUP($C14,'RECAP SECT'!$G$6:$DC$253,30,FALSE) -> -197.3 | S14: =VLOOKUP($C14,'RECAP SECT'!$G$6:$DC$253,31,FALSE) -> -2.62 | T14: =VLOOKUP($C14,'RECAP SECT'!$G$6:$DC$253,32,FALSE) -> 60% | U14: =VLOOKUP($C14,'RECAP SECT'!$G$6:$DC$253,33,FALSE) -> 18 | V14: =VLOOKUP($C14,'RECAP SECT'!$G$6:$DC$253,34,FALSE) -> 23% | W14: =VLOOKUP($C14,'RECAP SECT'!$G$6:$DC$253,35,FALSE) -> 17% | X14: =VLOOKUP($C14,'RECAP SECT'!$G$6:$DC$253,36,FALSE) -> 5
A15: 264 | B15: HAUT-RHIN | C15: 5130 | D15: COLMAR | E15: =VLOOKUP($C15,'RECAP SECT'!$G$6:$DC$253,3,FALSE) -> 61.5 | F15: =VLOOKUP($C15,'RECAP SECT'!$G$6:$DC$253,18,FALSE) -> 2,581 | G15: =VLOOKUP($C15,'RECAP SECT'!$G$6:$DC$253,19,FALSE) -> 41.94 | H15: =VLOOKUP($C15,'RECAP SECT'!$G$6:$DC$253,20,FALSE) -> 41% | I15: =VLOOKUP($C15,'RECAP SECT'!$G$6:$DC$253,21,FALSE) -> 14 | J15: =VLOOKUP($C15,'RECAP SECT'!$G$6:$DC$253,22,FALSE) -> 1,933 | K15: =VLOOKUP($C15,'RECAP SECT'!$G$6:$DC$253,23,FALSE) -> 31.41 | L15: =VLOOKUP($C15,'RECAP SECT'!$G$6:$DC$253,24,FALSE) -> 28% | M15: =VLOOKUP($C15,'RECAP SECT'!$G$6:$DC$253,25,FALSE) -> 14 | N15: =VLOOKUP($C15,'RECAP SECT'!$G$6:$DC$253,26,FALSE) -> 206 | O15: =VLOOKUP($C15,'RECAP SECT'!$G$6:$DC$253,27,FALSE) -> 3.35 | P15: =VLOOKUP($C15,'RECAP SECT'!$G$6:$DC$253,28,FALSE) -> 77% | Q15: =VLOOKUP($C15,'RECAP SECT'!$G$6:$DC$253,29,FALSE) -> 18 | R15: =VLOOKUP($C15,'RECAP SECT'!$G$6:$DC$253,30,FALSE) -> -120.0 | S15: =VLOOKUP($C15,'RECAP SECT'!$G$6:$DC$253,31,FALSE) -> -1.95 | T15: =VLOOKUP($C15,'RECAP SECT'!$G$6:$DC$253,32,FALSE) -> 19% | U15: =VLOOKUP($C15,'RECAP SECT'!$G$6:$DC$253,33,FALSE) -> 8 | V15: =VLOOKUP($C15,'RECAP SECT'!$G$6:$DC$253,34,FALSE) -> 41% | W15: =VLOOKUP($C15,'RECAP SECT'!$G$6:$DC$253,35,FALSE) -> 34% | X15: =VLOOKUP($C15,'RECAP SECT'!$G$6:$DC$253,36,FALSE) -> 17
A16: 264 | B16: HAUT-RHIN | C16: 5169 | D16: MULHOUSE | E16: =VLOOKUP($C16,'RECAP SECT'!$G$6:$DC$253,3,FALSE) -> 61.1 | F16: =VLOOKUP($C16,'RECAP SECT'!$G$6:$DC$253,18,FALSE) -> 976 | G16: =VLOOKUP($C16,'RECAP SECT'!$G$6:$DC$253,19,FALSE) -> 15.96 | H16: =VLOOKUP($C16,'RECAP SECT'!$G$6:$DC$253,20,FALSE) -> 78% | I16: =VLOOKUP($C16,'RECAP SECT'!$G$6:$DC$253,21,FALSE) -> 18 | J16: =VLOOKUP($C16,'RECAP SECT'!$G$6:$DC$253,22,FALSE) -> 1,841 | K16: =VLOOKUP($C16,'RECAP SECT'!$G$6:$DC$253,23,FALSE) -> 30.11 | L16: =VLOOKUP($C16,'RECAP SECT'!$G$6:$DC$253,24,FALSE) -> 31% | M16: =VLOOKUP($C16,'RECAP SECT'!$G$6:$DC$253,25,FALSE) -> 18 | N16: =VLOOKUP($C16,'RECAP SECT'!$G$6:$DC$253,26,FALSE) -> 205 | O16: =VLOOKUP($C16,'RECAP SECT'!$G$6:$DC$253,27,FALSE) -> 3.35 | P16: =VLOOKUP($C16,'RECAP SECT'!$G$6:$DC$253,28,FALSE) -> 77% | Q16: =VLOOKUP($C16,'RECAP SECT'!$G$6:$DC$253,29,FALSE) -> 17 | R16: =VLOOKUP($C16,'RECAP SECT'!$G$6:$DC$253,30,FALSE) -> -126.5 | S16: =VLOOKUP($C16,'RECAP SECT'!$G$6:$DC$253,31,FALSE) -> -2.07 | T16: =VLOOKUP($C16,'RECAP SECT'!$G$6:$DC$253,32,FALSE) -> 26% | U16: =VLOOKUP($C16,'RECAP SECT'!$G$6:$DC$253,33,FALSE) -> 14 | V16: =VLOOKUP($C16,'RECAP SECT'!$G$6:$DC$253,34,FALSE) -> 61% | W16: =VLOOKUP($C16,'RECAP SECT'!$G$6:$DC$253,35,FALSE) -> 54% | X16: =VLOOKUP($C16,'RECAP SECT'!$G$6:$DC$253,36,FALSE) -> 18
A17: 30 | B17: MARNE-ARDENNES | C17: 6 | D17: CHALONS EN CHAMPAGNE | E17: =VLOOKUP($C17,'RECAP SECT'!$G$6:$DC$253,3,FALSE) -> 44.7 | F17: =VLOOKUP($C17,'RECAP SECT'!$G$6:$DC$253,18,FALSE) -> 2,171 | G17: =VLOOKUP($C17,'RECAP SECT'!$G$6:$DC$253,19,FALSE) -> 48.61 | H17: =VLOOKUP($C17,'RECAP SECT'!$G$6:$DC$253,20,FALSE) -> 31% | I17: =VLOOKUP($C17,'RECAP SECT'!$G$6:$DC$253,21,FALSE) -> 10 | J17: =VLOOKUP($C17,'RECAP SECT'!$G$6:$DC$253,22,FALSE) -> 1,570 | K17: =VLOOKUP($C17,'RECAP SECT'!$G$6:$DC$253,23,FALSE) -> 35.15 | L17: =VLOOKUP($C17,'RECAP SECT'!$G$6:$DC$253,24,FALSE) -> 20% | M17: =VLOOKUP($C17,'RECAP SECT'!$G$6:$DC$253,25,FALSE) -> 8 | N17: =VLOOKUP($C17,'RECAP SECT'!$G$6:$DC$253,26,FALSE) -> 485 | O17: =VLOOKUP($C17,'RECAP SECT'!$G$6:$DC$253,27,FALSE) -> 10.86 | P17: =VLOOKUP($C17,'RECAP SECT'!$G$6:$DC$253,28,FALSE) -> 26% | Q17: =VLOOKUP($C17,'RECAP SECT'!$G$6:$DC$253,29,FALSE) -> 4 | R17: =VLOOKUP($C17,'RECAP SECT'!$G$6:$DC$253,30,FALSE) -> -83.2 | S17: =VLOOKUP($C17,'RECAP SECT'!$G$6:$DC$253,31,FALSE) -> -1.86 | T17: =VLOOKUP($C17,'RECAP SECT'!$G$6:$DC$253,32,FALSE) -> 14% | U17: =VLOOKUP($C17,'RECAP SECT'!$G$6:$DC$253,33,FALSE) -> 6 | V17: =VLOOKUP($C17,'RECAP SECT'!$G$6:$DC$253,34,FALSE) -> 26% | W17: =VLOOKUP($C17,'RECAP SECT'!$G$6:$DC$253,35,FALSE) -> 19% | X17: =VLOOKUP($C17,'RECAP SECT'!$G$6:$DC$253,36,FALSE) -> 7
A18: 30 | B18: MARNE-ARDENNES | C18: 2 | D18: CHARLEVILLE MEZIERES | E18: =VLOOKUP($C18,'RECAP SECT'!$G$6:$DC$253,3,FALSE) -> 56.6 | F18: =VLOOKUP($C18,'RECAP SECT'!$G$6:$DC$253,18,FALSE) -> 2,292 | G18: =VLOOKUP($C18,'RECAP SECT'!$G$6:$DC$253,19,FALSE) -> 40.49 | H18: =VLOOKUP($C18,'RECAP SECT'!$G$6:$DC$253,20,FALSE) -> 43% | I18: =VLOOKUP($C18,'RECAP SECT'!$G$6:$DC$253,21,FALSE) -> 17 | J18: =VLOOKUP($C18,'RECAP SECT'!$G$6:$DC$253,22,FALSE) -> 2,229 | K18: =VLOOKUP($C18,'RECAP SECT'!$G$6:$DC$253,23,FALSE) -> 39.38 | L18: =VLOOKUP($C18,'RECAP SECT'!$G$6:$DC$253,24,FALSE) -> 10% | M18: =VLOOKUP($C18,'RECAP SECT'!$G$6:$DC$253,25,FALSE) -> 4 | N18: =VLOOKUP($C18,'RECAP SECT'!$G$6:$DC$253,26,FALSE) -> 622 | O18: =VLOOKUP($C18,'RECAP SECT'!$G$6:$DC$253,27,FALSE) -> 10.99 | P18: =VLOOKUP($C18,'RECAP SECT'!$G$6:$DC$253,28,FALSE) -> 25% | Q18: =VLOOKUP($C18,'RECAP SECT'!$G$6:$DC$253,29,FALSE) -> 3 | R18: =VLOOKUP($C18,'RECAP SECT'!$G$6:$DC$253,30,FALSE) -> -95.3 | S18: =VLOOKUP($C18,'RECAP SECT'!$G$6:$DC$253,31,FALSE) -> -1.68 | T18: =VLOOKUP($C18,'RECAP SECT'!$G$6:$DC$253,32,FALSE) -> 3% | U18: =VLOOKUP($C18,'RECAP SECT'!$G$6:$DC$253,33,FALSE) -> 2 | V18: =VLOOKUP($C18,'RECAP SECT'!$G$6:$DC$253,34,FALSE) -> 28% | W18: =VLOOKUP($C18,'RECAP SECT'!$G$6:$DC$253,35,FALSE) -> 21% | X18: =VLOOKUP($C18,'RECAP SECT'!$G$6:$DC$253,36,FALSE) -> 8
A19: 30 | B19: MARNE-ARDENNES | C19: 11 | D19: REIMS | E19: =VLOOKUP($C19,'RECAP SECT'!$G$6:$DC$253,3,FALSE) -> 79.7 | F19: =VLOOKUP($C19,'RECAP SECT'!$G$6:$DC$253,18,FALSE) -> 4,152 | G19: =VLOOKUP($C19,'RECAP SECT'!$G$6:$DC$253,19,FALSE) -> 52.08 | H19: =VLOOKUP($C19,'RECAP SECT'!$G$6:$DC$253,20,FALSE) -> 27% | I19: =VLOOKUP($C19,'RECAP SECT'!$G$6:$DC$253,21,FALSE) -> 8 | J19: =VLOOKUP($C19,'RECAP SECT'!$G$6:$DC$253,22,FALSE) -> 3,188 | K19: =VLOOKUP($C19,'RECAP SECT'!$G$6:$DC$253,23,FALSE) -> 39.99 | L19: =VLOOKUP($C19,'RECAP SECT'!$G$6:$DC$253,24,FALSE) -> 9% | M19: =VLOOKUP($C19,'RECAP SECT'!$G$6:$DC$253,25,FALSE) -> 3 | N19: =VLOOKUP($C19,'RECAP SECT'!$G$6:$DC$253,26,FALSE) -> 1,018 | O19: =VLOOKUP($C19,'RECAP SECT'!$G$6:$DC$253,27,FALSE) -> 12.77 | P19: =VLOOKUP($C19,'RECAP SECT'!$G$6:$DC$253,28,FALSE) -> 13% | Q19: =VLOOKUP($C19,'RECAP SECT'!$G$6:$DC$253,29,FALSE) -> 2 | R19: =VLOOKUP($C19,'RECAP SECT'!$G$6:$DC$253,30,FALSE) -> -185.2 | S19: =VLOOKUP($C19,'RECAP SECT'!$G$6:$DC$253,31,FALSE) -> -2.32 | T19: =VLOOKUP($C19,'RECAP SECT'!$G$6:$DC$253,32,FALSE) -> 42% | U19: =VLOOKUP($C19,'RECAP SECT'!$G$6:$DC$253,33,FALSE) -> 17 | V19: =VLOOKUP($C19,'RECAP SECT'!$G$6:$DC$253,34,FALSE) -> 23% | W19: =VLOOKUP($C19,'RECAP SECT'!$G$6:$DC$253,35,FALSE) -> 17% | X19: =VLOOKUP($C19,'RECAP SECT'!$G$6:$DC$253,36,FALSE) -> 6
A20: 110 | B20: MEURTHE ET MOSELLE MEUSE | C20: 26 | D20: NANCY | E20: =VLOOKUP($C20,'RECAP SECT'!$G$6:$DC$253,3,FALSE) -> 66.2 | F20: =VLOOKUP($C20,'RECAP SECT'!$G$6:$DC$253,18,FALSE) -> 4,592 | G20: =VLOOKUP($C20,'RECAP SECT'!$G$6:$DC$253,19,FALSE) -> 69.32 | H20: =VLOOKUP($C20,'RECAP SECT'!$G$6:$DC$253,20,FALSE) -> 2% | I20: =VLOOKUP($C20,'RECAP SECT'!$G$6:$DC$253,21,FALSE) -> 2 | J20: =VLOOKUP($C20,'RECAP SECT'!$G$6:$DC$253,22,FALSE) -> 2,904 | K20: =VLOOKUP($C20,'RECAP SECT'!$G$6:$DC$253,23,FALSE) -> 43.84 | L20: =VLOOKUP($C20,'RECAP SECT'!$G$6:$DC$253,24,FALSE) -> 0% | M20: =VLOOKUP($C20,'RECAP SECT'!$G$6:$DC$253,25,FALSE) -> 1 | N20: =VLOOKUP($C20,'RECAP SECT'!$G$6:$DC$253,26,FALSE) -> 974 | O20: =VLOOKUP($C20,'RECAP SECT'!$G$6:$DC$253,27,FALSE) -> 14.70 | P20: =VLOOKUP($C20,'RECAP SECT'!$G$6:$DC$253,28,FALSE) -> 0% | Q20: =VLOOKUP($C20,'RECAP SECT'!$G$6:$DC$253,29,FALSE) -> 1 | R20: =VLOOKUP($C20,'RECAP SECT'!$G$6:$DC$253,30,FALSE) -> -147.7 | S20: =VLOOKUP($C20,'RECAP SECT'!$G$6:$DC$253,31,FALSE) -> -2.23 | T20: =VLOOKUP($C20,'RECAP SECT'!$G$6:$DC$253,32,FALSE) -> 36% | U20: =VLOOKUP($C20,'RECAP SECT'!$G$6:$DC$253,33,FALSE) -> 16 | V20: =VLOOKUP($C20,'RECAP SECT'!$G$6:$DC$253,34,FALSE) -> 7% | W20: =VLOOKUP($C20,'RECAP SECT'!$G$6:$DC$253,35,FALSE) -> 0% | X20: =VLOOKUP($C20,'RECAP SECT'!$G$6:$DC$253,36,FALSE) -> 1
A21: 110 | B21: MEURTHE ET MOSELLE MEUSE | C21: 27 | D21: PONT A MOUSSON | E21: =VLOOKUP($C21,'RECAP SECT'!$G$6:$DC$253,3,FALSE) -> 76.5 | F21: =VLOOKUP($C21,'RECAP SECT'!$G$6:$DC$253,18,FALSE) -> 5,428 | G21: =VLOOKUP($C21,'RECAP SECT'!$G$6:$DC$253,19,FALSE) -> 70.95 | H21: =VLOOKUP($C21,'RECAP SECT'!$G$6:$DC$253,20,FALSE) -> 0% | I21: =VLOOKUP($C21,'RECAP SECT'!$G$6:$DC$253,21,FALSE) -> 1 | J21: =VLOOKUP($C21,'RECAP SECT'!$G$6:$DC$253,22,FALSE) -> 2,993 | K21: =VLOOKUP($C21,'RECAP SECT'!$G$6:$DC$253,23,FALSE) -> 39.12 | L21: =VLOOKUP($C21,'RECAP SECT'!$G$6:$DC$253,24,FALSE) -> 11% | M21: =VLOOKUP($C21,'RECAP SECT'!$G$6:$DC$253,25,FALSE) -> 5 | N21: =VLOOKUP($C21,'RECAP SECT'!$G$6:$DC$253,26,FALSE) -> 823 | O21: =VLOOKUP($C21,'RECAP SECT'!$G$6:$DC$253,27,FALSE) -> 10.76 | P21: =VLOOKUP($C21,'RECAP SECT'!$G$6:$DC$253,28,FALSE) -> 27% | Q21: =VLOOKUP($C21,'RECAP SECT'!$G$6:$DC$253,29,FALSE) -> 5 | R21: =VLOOKUP($C21,'RECAP SECT'!$G$6:$DC$253,30,FALSE) -> -155.0 | S21: =VLOOKUP($C21,'RECAP SECT'!$G$6:$DC$253,31,FALSE) -> -2.03 | T21: =VLOOKUP($C21,'RECAP SECT'!$G$6:$DC$253,32,FALSE) -> 24% | U21: =VLOOKUP($C21,'RECAP SECT'!$G$6:$DC$253,33,FALSE) -> 10 | V21: =VLOOKUP($C21,'RECAP SECT'!$G$6:$DC$253,34,FALSE) -> 10% | W21: =VLOOKUP($C21,'RECAP SECT'!$G$6:$DC$253,35,FALSE) -> 3% | X21: =VLOOKUP($C21,'RECAP SECT'!$G$6:$DC$253,36,FALSE) -> 2
A22: 110 | B22: MEURTHE ET MOSELLE MEUSE | C22: 31 | D22: VERDUN | E22: =VLOOKUP($C22,'RECAP SECT'!$G$6:$DC$253,3,FALSE) -> 55.1 | F22: =VLOOKUP($C22,'RECAP SECT'!$G$6:$DC$253,18,FALSE) -> 3,243 | G22: =VLOOKUP($C22,'RECAP SECT'!$G$6:$DC$253,19,FALSE) -> 58.83 | H22: =VLOOKUP($C22,'RECAP SECT'!$G$6:$DC$253,20,FALSE) -> 17% | I22: =VLOOKUP($C22,'RECAP SECT'!$G$6:$DC$253,21,FALSE) -> 6 | J22: =VLOOKUP($C22,'RECAP SECT'!$G$6:$DC$253,22,FALSE) -> 1,996 | K22: =VLOOKUP($C22,'RECAP SECT'!$G$6:$DC$253,23,FALSE) -> 36.21 | L22: =VLOOKUP($C22,'RECAP SECT'!$G$6:$DC$253,24,FALSE) -> 17% | M22: =VLOOKUP($C22,'RECAP SECT'!$G$6:$DC$253,25,FALSE) -> 7 | N22: =VLOOKUP($C22,'RECAP SECT'!$G$6:$DC$253,26,FALSE) -> 386 | O22: =VLOOKUP($C22,'RECAP SECT'!$G$6:$DC$253,27,FALSE) -> 7.00 | P22: =VLOOKUP($C22,'RECAP SECT'!$G$6:$DC$253,28,FALSE) -> 52% | Q22: =VLOOKUP($C22,'RECAP SECT'!$G$6:$DC$253,29,FALSE) -> 7 | R22: =VLOOKUP($C22,'RECAP SECT'!$G$6:$DC$253,30,FALSE) -> -94.4 | S22: =VLOOKUP($C22,'RECAP SECT'!$G$6:$DC$253,31,FALSE) -> -1.71 | T22: =VLOOKUP($C22,'RECAP SECT'!$G$6:$DC$253,32,FALSE) -> 4% | U22: =VLOOKUP($C22,'RECAP SECT'!$G$6:$DC$253,33,FALSE) -> 3 | V22: =VLOOKUP($C22,'RECAP SECT'!$G$6:$DC$253,34,FALSE) -> 21% | W22: =VLOOKUP($C22,'RECAP SECT'!$G$6:$DC$253,35,FALSE) -> 14% | X22: =VLOOKUP($C22,'RECAP SECT'!$G$6:$DC$253,36,FALSE) -> 3
A23: 160 | B23: MOSELLE | C23: 45 | D23: METZ | E23: =VLOOKUP($C23,'RECAP SECT'!$G$6:$DC$253,3,FALSE) -> 88.4 | F23: =VLOOKUP($C23,'RECAP SECT'!$G$6:$DC$253,18,FALSE) -> 3,590 | G23: =VLOOKUP($C23,'RECAP SECT'!$G$6:$DC$253,19,FALSE) -> 40.59 | H23: =VLOOKUP($C23,'RECAP SECT'!$G$6:$DC$253,20,FALSE) -> 43% | I23: =VLOOKUP($C23,'RECAP SECT'!$G$6:$DC$253,21,FALSE) -> 16 | J23: =VLOOKUP($C23,'RECAP SECT'!$G$6:$DC$253,22,FALSE) -> 2,814 | K23: =VLOOKUP($C23,'RECAP SECT'!$G$6:$DC$253,23,FALSE) -> 31.81 | L23: =VLOOKUP($C23,'RECAP SECT'!$G$6:$DC$253,24,FALSE) -> 27% | M23: =VLOOKUP($C23,'RECAP SECT'!$G$6:$DC$253,25,FALSE) -> 13 | N23: =VLOOKUP($C23,'RECAP SECT'!$G$6:$DC$253,26,FALSE) -> 470 | O23: =VLOOKUP($C23,'RECAP SECT'!$G$6:$DC$253,27,FALSE) -> 5.31 | P23: =VLOOKUP($C23,'RECAP SECT'!$G$6:$DC$253,28,FALSE) -> 64% | Q23: =VLOOKUP($C23,'RECAP SECT'!$G$6:$DC$253,29,FALSE) -> 12 | R23: =VLOOKUP($C23,'RECAP SECT'!$G$6:$DC$253,30,FALSE) -> -178.5 | S23: =VLOOKUP($C23,'RECAP SECT'!$G$6:$DC$253,31,FALSE) -> -2.02 | T23: =VLOOKUP($C23,'RECAP SECT'!$G$6:$DC$253,32,FALSE) -> 23% | U23: =VLOOKUP($C23,'RECAP SECT'!$G$6:$DC$253,33,FALSE) -> 9 | V23: =VLOOKUP($C23,'RECAP SECT'!$G$6:$DC$253,34,FALSE) -> 40% | W23: =VLOOKUP($C23,'RECAP SECT'!$G$6:$DC$253,35,FALSE) -> 33% | X23: =VLOOKUP($C23,'RECAP SECT'!$G$6:$DC$253,36,FALSE) -> 16
A24: 160 | B24: MOSELLE | C24: 42 | D24: MOSELLE EST | E24: =VLOOKUP($C24,'RECAP SECT'!$G$6:$DC$253,3,FALSE) -> 70.2 | F24: =VLOOKUP($C24,'RECAP SECT'!$G$6:$DC$253,18,FALSE) -> 3,566 | G24: =VLOOKUP($C24,'RECAP SECT'!$G$6:$DC$253,19,FALSE) -> 50.78 | H24: =VLOOKUP($C24,'RECAP SECT'!$G$6:$DC$253,20,FALSE) -> 28% | I24: =VLOOKUP($C24,'RECAP SECT'!$G$6:$DC$253,21,FALSE) -> 9 | J24: =VLOOKUP($C24,'RECAP SECT'!$G$6:$DC$253,22,FALSE) -> 2,317 | K24: =VLOOKUP($C24,'RECAP SECT'!$G$6:$DC$253,23,FALSE) -> 32.99 | L24: =VLOOKUP($C24,'RECAP SECT'!$G$6:$DC$253,24,FALSE) -> 25% | M24: =VLOOKUP($C24,'RECAP SECT'!$G$6:$DC$253,25,FALSE) -> 12 | N24: =VLOOKUP($C24,'RECAP SECT'!$G$6:$DC$253,26,FALSE) -> 378 | O24: =VLOOKUP($C24,'RECAP SECT'!$G$6:$DC$253,27,FALSE) -> 5.38 | P24: =VLOOKUP($C24,'RECAP SECT'!$G$6:$DC$253,28,FALSE) -> 63% | Q24: =VLOOKUP($C24,'RECAP SECT'!$G$6:$DC$253,29,FALSE) -> 11 | R24: =VLOOKUP($C24,'RECAP SECT'!$G$6:$DC$253,30,FALSE) -> -121.5 | S24: =VLOOKUP($C24,'RECAP SECT'!$G$6:$DC$253,31,FALSE) -> -1.73 | T24: =VLOOKUP($C24,'RECAP SECT'!$G$6:$DC$253,32,FALSE) -> 6% | U24: =VLOOKUP($C24,'RECAP SECT'!$G$6:$DC$253,33,FALSE) -> 4 | V24: =VLOOKUP($C24,'RECAP SECT'!$G$6:$DC$253,34,FALSE) -> 30% | W24: =VLOOKUP($C24,'RECAP SECT'!$G$6:$DC$253,35,FALSE) -> 23% | X24: =VLOOKUP($C24,'RECAP SECT'!$G$6:$DC$253,36,FALSE) -> 11
A25: 160 | B25: MOSELLE | C25: 44 | D25: MOSELLE NORD | E25: =VLOOKUP($C25,'RECAP SECT'!$G$6:$DC$253,3,FALSE) -> 65.8 | F25: =VLOOKUP($C25,'RECAP SECT'!$G$6:$DC$253,18,FALSE) -> 3,974 | G25: =VLOOKUP($C25,'RECAP SECT'!$G$6:$DC$253,19,FALSE) -> 60.38 | H25: =VLOOKUP($C25,'RECAP SECT'!$G$6:$DC$253,20,FALSE) -> 15% | I25: =VLOOKUP($C25,'RECAP SECT'!$G$6:$DC$253,21,FALSE) -> 5 | J25: =VLOOKUP($C25,'RECAP SECT'!$G$6:$DC$253,22,FALSE) -> 2,285 | K25: =VLOOKUP($C25,'RECAP SECT'!$G$6:$DC$253,23,FALSE) -> 34.72 | L25: =VLOOKUP($C25,'RECAP SECT'!$G$6:$DC$253,24,FALSE) -> 21% | M25: =VLOOKUP($C25,'RECAP SECT'!$G$6:$DC$253,25,FALSE) -> 9 | N25: =VLOOKUP($C25,'RECAP SECT'!$G$6:$DC$253,26,FALSE) -> 273 | O25: =VLOOKUP($C25,'RECAP SECT'!$G$6:$DC$253,27,FALSE) -> 4.15 | P25: =VLOOKUP($C25,'RECAP SECT'!$G$6:$DC$253,28,FALSE) -> 72% | Q25: =VLOOKUP($C25,'RECAP SECT'!$G$6:$DC$253,29,FALSE) -> 16 | R25: =VLOOKUP($C25,'RECAP SECT'!$G$6:$DC$253,30,FALSE) -> -107.9 | S25: =VLOOKUP($C25,'RECAP SECT'!$G$6:$DC$253,31,FALSE) -> -1.64 | T25: =VLOOKUP($C25,'RECAP SECT'!$G$6:$DC$253,32,FALSE) -> 0% | U25: =VLOOKUP($C25,'RECAP SECT'!$G$6:$DC$253,33,FALSE) -> 1 | V25: =VLOOKUP($C25,'RECAP SECT'!$G$6:$DC$253,34,FALSE) -> 22% | W25: =VLOOKUP($C25,'RECAP SECT'!$G$6:$DC$253,35,FALSE) -> 16% | X25: =VLOOKUP($C25,'RECAP SECT'!$G$6:$DC$253,36,FALSE) -> 4
A26: 80 | B26: VOSGES | C26: 57 | D26: EPINAL | E26: =VLOOKUP($C26,'RECAP SECT'!$G$6:$DC$253,3,FALSE) -> 61.1 | F26: =VLOOKUP($C26,'RECAP SECT'!$G$6:$DC$253,18,FALSE) -> 2,634 | G26: =VLOOKUP($C26,'RECAP SECT'!$G$6:$DC$253,19,FALSE) -> 43.12 | H26: =VLOOKUP($C26,'RECAP SECT'!$G$6:$DC$253,20,FALSE) -> 39% | I26: =VLOOKUP($C26,'RECAP SECT'!$G$6:$DC$253,21,FALSE) -> 13 | J26: =VLOOKUP($C26,'RECAP SECT'!$G$6:$DC$253,22,FALSE) -> 2,058 | K26: =VLOOKUP($C26,'RECAP SECT'!$G$6:$DC$253,23,FALSE) -> 33.69 | L26: =VLOOKUP($C26,'RECAP SECT'!$G$6:$DC$253,24,FALSE) -> 23% | M26: =VLOOKUP($C26,'RECAP SECT'!$G$6:$DC$253,25,FALSE) -> 10 | N26: =VLOOKUP($C26,'RECAP SECT'!$G$6:$DC$253,26,FALSE) -> 397 | O26: =VLOOKUP($C26,'RECAP SECT'!$G$6:$DC$253,27,FALSE) -> 6.50 | P26: =VLOOKUP($C26,'RECAP SECT'!$G$6:$DC$253,28,FALSE) -> 56% | Q26: =VLOOKUP($C26,'RECAP SECT'!$G$6:$DC$253,29,FALSE) -> 8 | R26: =VLOOKUP($C26,'RECAP SECT'!$G$6:$DC$253,30,FALSE) -> -126.2 | S26: =VLOOKUP($C26,'RECAP SECT'!$G$6:$DC$253,31,FALSE) -> -2.07 | T26: =VLOOKUP($C26,'RECAP SECT'!$G$6:$DC$253,32,FALSE) -> 26% | U26: =VLOOKUP($C26,'RECAP SECT'!$G$6:$DC$253,33,FALSE) -> 13 | V26: =VLOOKUP($C26,'RECAP SECT'!$G$6:$DC$253,34,FALSE) -> 37% | W26: =VLOOKUP($C26,'RECAP SECT'!$G$6:$DC$253,35,FALSE) -> 30% | X26: =VLOOKUP($C26,'RECAP SECT'!$G$6:$DC$253,36,FALSE) -> 14
A27: 80 | B27: VOSGES | C27: 55 | D27: SAINT DIE | E27: =VLOOKUP($C27,'RECAP SECT'!$G$6:$DC$253,3,FALSE) -> 47.1 | F27: =VLOOKUP($C27,'RECAP SECT'!$G$6:$DC$253,18,FALSE) -> 1,958 | G27: =VLOOKUP($C27,'RECAP SECT'!$G$6:$DC$253,19,FALSE) -> 41.60 | H27: =VLOOKUP($C27,'RECAP SECT'!$G$6:$DC$253,20,FALSE) -> 41% | I27: =VLOOKUP($C27,'RECAP SECT'!$G$6:$DC$253,21,FALSE) -> 15 | J27: =VLOOKUP($C27,'RECAP SECT'!$G$6:$DC$253,22,FALSE) -> 1,471 | K27: =VLOOKUP($C27,'RECAP SECT'!$G$6:$DC$253,23,FALSE) -> 31.24 | L27: =VLOOKUP($C27,'RECAP SECT'!$G$6:$DC$253,24,FALSE) -> 29% | M27: =VLOOKUP($C27,'RECAP SECT'!$G$6:$DC$253,25,FALSE) -> 15 | N27: =VLOOKUP($C27,'RECAP SECT'!$G$6:$DC$253,26,FALSE) -> 214 | O27: =VLOOKUP($C27,'RECAP SECT'!$G$6:$DC$253,27,FALSE) -> 4.55 | P27: =VLOOKUP($C27,'RECAP SECT'!$G$6:$DC$253,28,FALSE) -> 69% | Q27: =VLOOKUP($C27,'RECAP SECT'!$G$6:$DC$253,29,FALSE) -> 15 | R27: =VLOOKUP($C27,'RECAP SECT'!$G$6:$DC$253,30,FALSE) -> -91.4 | S27: =VLOOKUP($C27,'RECAP SECT'!$G$6:$DC$253,31,FALSE) -> -1.94 | T27: =VLOOKUP($C27,'RECAP SECT'!$G$6:$DC$253,32,FALSE) -> 18% | U27: =VLOOKUP($C27,'RECAP SECT'!$G$6:$DC$253,33,FALSE) -> 7 | V27: =VLOOKUP($C27,'RECAP SECT'!$G$6:$DC$253,34,FALSE) -> 40% | W27: =VLOOKUP($C27,'RECAP SECT'!$G$6:$DC$253,35,FALSE) -> 33% | X27: =VLOOKUP($C27,'RECAP SECT'!$G$6:$DC$253,36,FALSE) -> 15
A28: Total CEGEE Directions Régionales | E28: =SUM(E10:E27) -> 1140

Sheet SE_EPARGNE
B1: Accueil | F1: BAROMETRE BDD - TERRITOIRES
F2: EPARGNE
F3: =ACCUEIL!F7 -> 2021-08-22
F7: Excédent Epargne y/c DAV pondéré | J7: Ventes sur client non détenteur de l’univers | N7: Total Epargne
F8: =DATEMAJ!C14 -> au 22/08 | H8: coef | I8: ='RECAP DIRCOM'!AX4 -> 14% | J8: =DATEMAJ!C15 -> au 22/08 | L8: coef | M8: ='RECAP DIRCOM'!BB4 -> 6% | O8: coef | P8: ='RECAP DIRCOM'!BE4 -> 20%
A9: eds | B9: Direction | C9: eds | D9: Territoire | E9: ="ETP perf "&DATEMAJ!$C$28 -> ETP perf 30-juin | F9: Excédent | G9: Excédent / ETP | H9: % Ecart au 1er | I9: Rang | J9: VB | K9: VB / ETP | L9: % Ecart au 1er | M9: Rang | N9: Moyenne ecart au 1er | O9: % Ecart au 1er | P9: Rang CEGEE
A10: 50 | B10: AUBE HAUTE MARNE | C10: 21 | D10: CHAUMONT | E10: =VLOOKUP($C10,'RECAP SECT'!$G$6:$DC$253,3,FALSE) -> 33.9 | F10: =VLOOKUP($C10,'RECAP SECT'!$G$6:$DC$253,41,FALSE) -> 10,196 | G10: =VLOOKUP($C10,'RECAP SECT'!$G$6:$DC$253,42,FALSE) -> 300.69 | H10: =VLOOKUP($C10,'RECAP SECT'!$G$6:$DC$253,43,FALSE) -> 48% | I10: =VLOOKUP($C10,'RECAP SECT'!$G$6:$DC$253,44,FALSE) -> 15 | J10: =VLOOKUP($C10,'RECAP SECT'!$G$6:$DC$253,45,FALSE) -> 625 | K10: =VLOOKUP($C10,'RECAP SECT'!$G$6:$DC$253,46,FALSE) -> 18.43 | L10: =VLOOKUP($C10,'RECAP SECT'!$G$6:$DC$253,47,FALSE) -> 24% | M10: =VLOOKUP($C10,'RECAP SECT'!$G$6:$DC$253,48,FALSE) -> 8 | N10: =VLOOKUP($C10,'RECAP SECT'!$G$6:$DC$253,49,FALSE) -> 41% | O10: =VLOOKUP($C10,'RECAP SECT'!$G$6:$DC$253,50,FALSE) -> 33% | P10: =VLOOKUP($C10,'RECAP SECT'!$G$6:$DC$253,51,FALSE) -> 15
A11: 50 | B11: AUBE HAUTE MARNE | C11: 14 | D11: TROYES | E11: =VLOOKUP($C11,'RECAP SECT'!$G$6:$DC$253,3,FALSE) -> 67.1 | F11: =VLOOKUP($C11,'RECAP SECT'!$G$6:$DC$253,41,FALSE) -> 6,411 | G11: =VLOOKUP($C11,'RECAP SECT'!$G$6:$DC$253,42,FALSE) -> 95.59 | H11: =VLOOKUP($C11,'RECAP SECT'!$G$6:$DC$253,43,FALSE) -> 84% | I11: =VLOOKUP($C11,'RECAP SECT'!$G$6:$DC$253,44,FALSE) -> 18 | J11: =VLOOKUP($C11,'RECAP SECT'!$G$6:$DC$253,45,FALSE) -> 1,073 | K11: =VLOOKUP($C11,'RECAP SECT'!$G$6:$DC$253,46,FALSE) -> 16.00 | L11: =VLOOKUP($C11,'RECAP SECT'!$G$6:$DC$253,47,FALSE) -> 34% | M11: =VLOOKUP($C11,'RECAP SECT'!$G$6:$DC$253,48,FALSE) -> 15 | N11: =VLOOKUP($C11,'RECAP SECT'!$G$6:$DC$253,49,FALSE) -> 69% | O11: =VLOOKUP($C11,'RECAP SECT'!$G$6:$DC$253,50,FALSE) -> 61% | P11: =VLOOKUP($C11,'RECAP SECT'!$G$6:$DC$253,51,FALSE) -> 18
A12: 262 | B12: BAS-RHIN | C12: 5060 | D12: HAGUENAU | E12: =VLOOKUP($C12,'RECAP SECT'!$G$6:$DC$253,3,FALSE) -> 70.0 | F12: =VLOOKUP($C12,'RECAP SECT'!$G$6:$DC$253,41,FALSE) -> 30,247 | G12: =VLOOKUP($C12,'RECAP SECT'!$G$6:$DC$253,42,FALSE) -> 432.17 | H12: =VLOOKUP($C12,'RECAP SECT'!$G$6:$DC$253,43,FALSE) -> 26% | I12: =VLOOKUP($C12,'RECAP SECT'!$G$6:$DC$253,44,FALSE) -> 9 | J12: =VLOOKUP($C12,'RECAP SECT'!$G$6:$DC$253,45,FALSE) -> 1,290 | K12: =VLOOKUP($C12,'RECAP SECT'!$G$6:$DC$253,46,FALSE) -> 18.43 | L12: =VLOOKUP($C12,'RECAP SECT'!$G$6:$DC$253,47,FALSE) -> 24% | M12: =VLOOKUP($C12,'RECAP SECT'!$G$6:$DC$253,48,FALSE) -> 9 | N12: =VLOOKUP($C12,'RECAP SECT'!$G$6:$DC$253,49,FALSE) -> 25% | O12: =VLOOKUP($C12,'RECAP SECT'!$G$6:$DC$253,50,FALSE) -> 18% | P12: =VLOOKUP($C12,'RECAP SECT'!$G$6:$DC$253,51,FALSE) -> 7
A13: 262 | B13: BAS-RHIN | C13: 5101 | D13: SELESTAT | E13: =VLOOKUP($C13,'RECAP SECT'!$G$6:$DC$253,3,FALSE) -> 59.9 | F13: =VLOOKUP($C13,'RECAP SECT'!$G$6:$DC$253,41,FALSE) -> 31,567 | G13: =VLOOKUP($C13,'RECAP SECT'!$G$6:$DC$253,42,FALSE) -> 527.14 | H13: =VLOOKUP($C13,'RECAP SECT'!$G$6:$DC$253,43,FALSE) -> 10% | I13: =VLOOKUP($C13,'RECAP SECT'!$G$6:$DC$253,44,FALSE) -> 2 | J13: =VLOOKUP($C13,'RECAP SECT'!$G$6:$DC$253,45,FALSE) -> 1,276 | K13: =VLOOKUP($C13,'RECAP SECT'!$G$6:$DC$253,46,FALSE) -> 21.31 | L13: =VLOOKUP($C13,'RECAP SECT'!$G$6:$DC$253,47,FALSE) -> 12% | M13: =VLOOKUP($C13,'RECAP SECT'!$G$6:$DC$253,48,FALSE) -> 5 | N13: =VLOOKUP($C13,'RECAP SECT'!$G$6:$DC$253,49,FALSE) -> 10% | O13: =VLOOKUP($C13,'RECAP SECT'!$G$6:$DC$253,50,FALSE) -> 3% | P13: =VLOOKUP($C13,'RECAP SECT'!$G$6:$DC$253,51,FALSE) -> 4
A14: 262 | B14: BAS-RHIN | C14: 5006 | D14: STRASBOURG | E14: =VLOOKUP($C14,'RECAP SECT'!$G$6:$DC$253,3,FALSE) -> 75.2 | F14: =VLOOKUP($C14,'RECAP SECT'!$G$6:$DC$253,41,FALSE) -> 39,568 | G14: =VLOOKUP($C14,'RECAP SECT'!$G$6:$DC$253,42,FALSE) -> 525.99 | H14: =VLOOKUP($C14,'RECAP SECT'!$G$6:$DC$253,43,FALSE) -> 10% | I14: =VLOOKUP($C14,'RECAP SECT'!$G$6:$DC$253,44,FALSE) -> 3 | J14: =VLOOKUP($C14,'RECAP SECT'!$G$6:$DC$253,45,FALSE) -> 1,770 | K14: =VLOOKUP($C14,'RECAP SECT'!$G$6:$DC$253,46,FALSE) -> 23.53 | L14: =VLOOKUP($C14,'RECAP SECT'!$G$6:$DC$253,47,FALSE) -> 3% | M14: =VLOOKUP($C14,'RECAP SECT'!$G$6:$DC$253,48,FALSE) -> 2 | N14: =VLOOKUP($C14,'RECAP SECT'!$G$6:$DC$253,49,FALSE) -> 8% | O14: =VLOOKUP($C14,'RECAP SECT'!$G$6:$DC$253,50,FALSE) -> 0% | P14: =VLOOKUP($C14,'RECAP SECT'!$G$6:$DC$253,51,FALSE) -> 1
A15: 264 | B15: HAUT-RHIN | C15: 5130 | D15: COLMAR | E15: =VLOOKUP($C15,'RECAP SECT'!$G$6:$DC$253,3,FALSE) -> 61.5 | F15: =VLOOKUP($C15,'RECAP SECT'!$G$6:$DC$253,41,FALSE) -> 17,257 | G15: =VLOOKUP($C15,'RECAP SECT'!$G$6:$DC$253,42,FALSE) -> 280.43 | H15: =VLOOKUP($C15,'RECAP SECT'!$G$6:$DC$253,43,FALSE) -> 52% | I15: =VLOOKUP($C15,'RECAP SECT'!$G$6:$DC$253,44,FALSE) -> 16 | J15: =VLOOKUP($C15,'RECAP SECT'!$G$6:$DC$253,45,FALSE) -> 926 | K15: =VLOOKUP($C15,'RECAP SECT'!$G$6:$DC$253,46,FALSE) -> 15.05 | L15: =VLOOKUP($C15,'RECAP SECT'!$G$6:$DC$253,47,FALSE) -> 38% | M15: =VLOOKUP($C15,'RECAP SECT'!$G$6:$DC$253,48,FALSE) -> 16 | N15: =VLOOKUP($C15,'RECAP SECT'!$G$6:$DC$253,49,FALSE) -> 48% | O15: =VLOOKUP($C15,'RECAP SECT'!$G$6:$DC$253,50,FALSE) -> 40% | P15: =VLOOKUP($C15,'RECAP SECT'!$G$6:$DC$253,51,FALSE) -> 16
A16: 264 | B16: HAUT-RHIN | C16: 5169 | D16: MULHOUSE | E16: =VLOOKUP($C16,'RECAP SECT'!$G$6:$DC$253,3,FALSE) -> 61.1 | F16: =VLOOKUP($C16,'RECAP SECT'!$G$6:$DC$253,41,FALSE) -> 14,331 | G16: =VLOOKUP($C16,'RECAP SECT'!$G$6:$DC$253,42,FALSE) -> 234.42 | H16: =VLOOKUP($C16,'RECAP SECT'!$G$6:$DC$253,43,FALSE) -> 60% | I16: =VLOOKUP($C16,'RECAP SECT'!$G$6:$DC$253,44,FALSE) -> 17 | J16: =VLOOKUP($C16,'RECAP SECT'!$G$6:$DC$253,45,FALSE) -> 1,075 | K16: =VLOOKUP($C16,'RECAP SECT'!$G$6:$DC$253,46,FALSE) -> 17.58 | L16: =VLOOKUP($C16,'RECAP SECT'!$G$6:$DC$253,47,FALSE) -> 27% | M16: =VLOOKUP($C16,'RECAP SECT'!$G$6:$DC$253,48,FALSE) -> 14 | N16: =VLOOKUP($C16,'RECAP SECT'!$G$6:$DC$253,49,FALSE) -> 50% | O16: =VLOOKUP($C16,'RECAP SECT'!$G$6:$DC$253,50,FALSE) -> 42% | P16: =VLOOKUP($C16,'RECAP SECT'!$G$6:$DC$253,51,FALSE) -> 17
A17: 30 | B17: MARNE-ARDENNES | C17: 6 | D17: CHALONS EN CHAMPAGNE | E17: =VLOOKUP($C17,'RECAP SECT'!$G$6:$DC$253,3,FALSE) -> 44.7 | F17: =VLOOKUP($C17,'RECAP SECT'!$G$6:$DC$253,41,FALSE) -> 15,219 | G17: =VLOOKUP($C17,'RECAP SECT'!$G$6:$DC$253,42,FALSE) -> 340.70 | H17: =VLOOKUP($C17,'RECAP SECT'!$G$6:$DC$253,43,FALSE) -> 42% | I17: =VLOOKUP($C17,'RECAP SECT'!$G$6:$DC$253,44,FALSE) -> 14 | J17: =VLOOKUP($C17,'RECAP SECT'!$G$6:$DC$253,45,FALSE) -> 1,080 | K17: =VLOOKUP($C17,'RECAP SECT'!$G$6:$DC$253,46,FALSE) -> 24.18 | L17: =VLOOKUP($C17,'RECAP SECT'!$G$6:$DC$253,47,FALSE) -> 0% | M17: =VLOOKUP($C17,'RECAP SECT'!$G$6:$DC$253,48,FALSE) -> 1 | N17: =VLOOKUP($C17,'RECAP SECT'!$G$6:$DC$253,49,FALSE) -> 29% | O17: =VLOOKUP($C17,'RECAP SECT'!$G$6:$DC$253,50,FALSE) -> 21% | P17: =VLOOKUP($C17,'RECAP SECT'!$G$6:$DC$253,51,FALSE) -> 9
A18: 30 | B18: MARNE-ARDENNES | C18: 2 | D18: CHARLEVILLE MEZIERES | E18: =VLOOKUP($C18,'RECAP SECT'!$G$6:$DC$253,3,FALSE) -> 56.6 | F18: =VLOOKUP($C18,'RECAP SECT'!$G$6:$DC$253,41,FALSE) -> 27,111 | G18: =VLOOKUP($C18,'RECAP SECT'!$G$6:$DC$253,42,FALSE) -> 478.98 | H18: =VLOOKUP($C18,'RECAP SECT'!$G$6:$DC$253,43,FALSE) -> 18% | I18: =VLOOKUP($C18,'RECAP SECT'!$G$6:$DC$253,44,FALSE) -> 5 | J18: =VLOOKUP($C18,'RECAP SECT'!$G$6:$DC$253,45,FALSE) -> 1,295 | K18: =VLOOKUP($C18,'RECAP SECT'!$G$6:$DC$253,46,FALSE) -> 22.88 | L18: =VLOOKUP($C18,'RECAP SECT'!$G$6:$DC$253,47,FALSE) -> 5% | M18: =VLOOKUP($C18,'RECAP SECT'!$G$6:$DC$253,48,FALSE) -> 3 | N18: =VLOOKUP($C18,'RECAP SECT'!$G$6:$DC$253,49,FALSE) -> 14% | O18: =VLOOKUP($C18,'RECAP SECT'!$G$6:$DC$253,50,FALSE) -> 6% | P18: =VLOOKUP($C18,'RECAP SECT'!$G$6:$DC$253,51,FALSE) -> 5
A19: 30 | B19: MARNE-ARDENNES | C19: 11 | D19: REIMS | E19: =VLOOKUP($C19,'RECAP SECT'!$G$6:$DC$253,3,FALSE) -> 79.7 | F19: =VLOOKUP($C19,'RECAP SECT'!$G$6:$DC$253,41,FALSE) -> 33,253 | G19: =VLOOKUP($C19,'RECAP SECT'!$G$6:$DC$253,42,FALSE) -> 417.11 | H19: =VLOOKUP($C19,'RECAP SECT'!$G$6:$DC$253,43,FALSE) -> 28% | I19: =VLOOKUP($C19,'RECAP SECT'!$G$6:$DC$253,44,FALSE) -> 10 | J19: =VLOOKUP($C19,'RECAP SECT'!$G$6:$DC$253,45,FALSE) -> 1,460 | K19: =VLOOKUP($C19,'RECAP SECT'!$G$6:$DC$253,46,FALSE) -> 18.31 | L19: =VLOOKUP($C19,'RECAP SECT'!$G$6:$DC$253,47,FALSE) -> 24% | M19: =VLOOKUP($C19,'RECAP SECT'!$G$6:$DC$253,48,FALSE) -> 10 | N19: =VLOOKUP($C19,'RECAP SECT'!$G$6:$DC$253,49,FALSE) -> 27% | O19: =VLOOKUP($C19,'RECAP SECT'!$G$6:$DC$253,50,FALSE) -> 20% | P19: =VLOOKUP($C19,'RECAP SECT'!$G$6:$DC$253,51,FALSE) -> 8
A20: 110 | B20: MEURTHE ET MOSELLE MEUSE | C20: 26 | D20: NANCY | E20: =VLOOKUP($C20,'RECAP SECT'!$G$6:$DC$253,3,FALSE) -> 66.2 | F20: =VLOOKUP($C20,'RECAP SECT'!$G$6:$DC$253,41,FALSE) -> 34,100 | G20: =VLOOKUP($C20,'RECAP SECT'!$G$6:$DC$253,42,FALSE) -> 514.79 | H20: =VLOOKUP($C20,'RECAP SECT'!$G$6:$DC$253,43,FALSE) -> 12% | I20: =VLOOKUP($C20,'RECAP SECT'!$G$6:$DC$253,44,FALSE) -> 4 | J20: =VLOOKUP($C20,'RECAP SECT'!$G$6:$DC$253,45,FALSE) -> 1,501 | K20: =VLOOKUP($C20,'RECAP SECT'!$G$6:$DC$253,46,FALSE) -> 22.66 | L20: =VLOOKUP($C20,'RECAP SECT'!$G$6:$DC$253,47,FALSE) -> 6% | M20: =VLOOKUP($C20,'RECAP SECT'!$G$6:$DC$253,48,FALSE) -> 4 | N20: =VLOOKUP($C20,'RECAP SECT'!$G$6:$DC$253,49,FALSE) -> 10% | O20: =VLOOKUP($C20,'RECAP SECT'!$G$6:$DC$253,50,FALSE) -> 2% | P20: =VLOOKUP($C20,'RECAP SECT'!$G$6:$DC$253,51,FALSE) -> 3
A21: 110 | B21: MEURTHE ET MOSELLE MEUSE | C21: 27 | D21: PONT A MOUSSON | E21: =VLOOKUP($C21,'RECAP SECT'!$G$6:$DC$253,3,FALSE) -> 76.5 | F21: =VLOOKUP($C21,'RECAP SECT'!$G$6:$DC$253,41,FALSE) -> 44,625 | G21: =VLOOKUP($C21,'RECAP SECT'!$G$6:$DC$253,42,FALSE) -> 583.27 | H21: =VLOOKUP($C21,'RECAP SECT'!$G$6:$DC$253,43,FALSE) -> 0% | I21: =VLOOKUP($C21,'RECAP SECT'!$G$6:$DC$253,44,FALSE) -> 1 | J21: =VLOOKUP($C21,'RECAP SECT'!$G$6:$DC$253,45,FALSE) -> 1,363 | K21: =VLOOKUP($C21,'RECAP SECT'!$G$6:$DC$253,46,FALSE) -> 17.82 | L21: =VLOOKUP($C21,'RECAP SECT'!$G$6:$DC$253,47,FALSE) -> 26% | M21: =VLOOKUP($C21,'RECAP SECT'!$G$6:$DC$253,48,FALSE) -> 13 | N21: =VLOOKUP($C21,'RECAP SECT'!$G$6:$DC$253,49,FALSE) -> 8% | O21: =VLOOKUP($C21,'RECAP SECT'!$G$6:$DC$253,50,FALSE) -> 0% | P21: =VLOOKUP($C21,'RECAP SECT'!$G$6:$DC$253,51,FALSE) -> 2
A22: 110 | B22: MEURTHE ET MOSELLE MEUSE | C22: 31 | D22: VERDUN | E22: =VLOOKUP($C22,'RECAP SECT'!$G$6:$DC$253,3,FALSE) -> 55.1 | F22: =VLOOKUP($C22,'RECAP SECT'!$G$6:$DC$253,41,FALSE) -> 22,020 | G22: =VLOOKUP($C22,'RECAP SECT'!$G$6:$DC$253,42,FALSE) -> 399.48 | H22: =VLOOKUP($C22,'RECAP SECT'!$G$6:$DC$253,43,FALSE) -> 32% | I22: =VLOOKUP($C22,'RECAP SECT'!$G$6:$DC$253,44,FALSE) -> 12 | J22: =VLOOKUP($C22,'RECAP SECT'!$G$6:$DC$253,45,FALSE) -> 1,000 | K22: =VLOOKUP($C22,'RECAP SECT'!$G$6:$DC$253,46,FALSE) -> 18.14 | L22: =VLOOKUP($C22,'RECAP SECT'!$G$6:$DC$253,47,FALSE) -> 25% | M22: =VLOOKUP($C22,'RECAP SECT'!$G$6:$DC$253,48,FALSE) -> 11 | N22: =VLOOKUP($C22,'RECAP SECT'!$G$6:$DC$253,49,FALSE) -> 30% | O22: =VLOOKUP($C22,'RECAP SECT'!$G$6:$DC$253,50,FALSE) -> 22% | P22: =VLOOKUP($C22,'RECAP SECT'!$G$6:$DC$253,51,FALSE) -> 10
A23: 160 | B23: MOSELLE | C23: 45 | D23: METZ | E23: =VLOOKUP($C23,'RECAP SECT'!$G$6:$DC$253,3,FALSE) -> 88.4 | F23: =VLOOKUP($C23,'RECAP SECT'!$G$6:$DC$253,41,FALSE) -> 35,428 | G23: =VLOOKUP($C23,'RECAP SECT'!$G$6:$DC$253,42,FALSE) -> 400.54 | H23: =VLOOKUP($C23,'RECAP SECT'!$G$6:$DC$253,43,FALSE) -> 31% | I23: =VLOOKUP($C23,'RECAP SECT'!$G$6:$DC$253,44,FALSE) -> 11 | J23: =VLOOKUP($C23,'RECAP SECT'!$G$6:$DC$253,45,FALSE) -> 1,595 | K23: =VLOOKUP($C23,'RECAP SECT'!$G$6:$DC$253,46,FALSE) -> 18.03 | L23: =VLOOKUP($C23,'RECAP SECT'!$G$6:$DC$253,47,FALSE) -> 25% | M23: =VLOOKUP($C23,'RECAP SECT'!$G$6:$DC$253,48,FALSE) -> 12 | N23: =VLOOKUP($C23,'RECAP SECT'!$G$6:$DC$253,49,FALSE) -> 30% | O23: =VLOOKUP($C23,'RECAP SECT'!$G$6:$DC$253,50,FALSE) -> 22% | P23: =VLOOKUP($C23,'RECAP SECT'!$G$6:$DC$253,51,FALSE) -> 11
A24: 160 | B24: MOSELLE | C24: 42 | D24: MOSELLE EST | E24: =VLOOKUP($C24,'RECAP SECT'!$G$6:$DC$253,3,FALSE) -> 70.2 | F24: =VLOOKUP($C24,'RECAP SECT'!$G$6:$DC$253,41,FALSE) -> 24,947 | G24: =VLOOKUP($C24,'RECAP SECT'!$G$6:$DC$253,42,FALSE) -> 355.23 | H24: =VLOOKUP($C24,'RECAP SECT'!$G$6:$DC$253,43,FALSE) -> 39% | I24: =VLOOKUP($C24,'RECAP SECT'!$G$6:$DC$253,44,FALSE) -> 13 | J24: =VLOOKUP($C24,'RECAP SECT'!$G$6:$DC$253,45,FALSE) -> 1,474 | K24: =VLOOKUP($C24,'RECAP SECT'!$G$6:$DC$253,46,FALSE) -> 20.99 | L24: =VLOOKUP($C24,'RECAP SECT'!$G$6:$DC$253,47,FALSE) -> 13% | M24: =VLOOKUP($C24,'RECAP SECT'!$G$6:$DC$253,48,FALSE) -> 6 | N24: =VLOOKUP($C24,'RECAP SECT'!$G$6:$DC$253,49,FALSE) -> 31% | O24: =VLOOKUP($C24,'RECAP SECT'!$G$6:$DC$253,50,FALSE) -> 24% | P24: =VLOOKUP($C24,'RECAP SECT'!$G$6:$DC$253,51,FALSE) -> 14
A25: 160 | B25: MOSELLE | C25: 44 | D25: MOSELLE NORD | E25: =VLOOKUP($C25,'RECAP SECT'!$G$6:$DC$253,3,FALSE) -> 65.8 | F25: =VLOOKUP($C25,'RECAP SECT'!$G$6:$DC$253,41,FALSE) -> 29,474 | G25: =VLOOKUP($C25,'RECAP SECT'!$G$6:$DC$253,42,FALSE) -> 447.81 | H25: =VLOOKUP($C25,'RECAP SECT'!$G$6:$DC$253,43,FALSE) -> 23% | I25: =VLOOKUP($C25,'RECAP SECT'!$G$6:$DC$253,44,FALSE) -> 6 | J25: =VLOOKUP($C25,'RECAP SECT'!$G$6:$DC$253,45,FALSE) -> 1,380 | K25: =VLOOKUP($C25,'RECAP SECT'!$G$6:$DC$253,46,FALSE) -> 20.97 | L25: =VLOOKUP($C25,'RECAP SECT'!$G$6:$DC$253,47,FALSE) -> 13% | M25: =VLOOKUP($C25,'RECAP SECT'!$G$6:$DC$253,48,FALSE) -> 7 | N25: =VLOOKUP($C25,'RECAP SECT'!$G$6:$DC$253,49,FALSE) -> 20% | O25: =VLOOKUP($C25,'RECAP SECT'!$G$6:$DC$253,50,FALSE) -> 13% | P25: =VLOOKUP($C25,'RECAP SECT'!$G$6:$DC$253,51,FALSE) -> 6
A26: 80 | B26: VOSGES | C26: 57 | D26: EPINAL | E26: =VLOOKUP($C26,'RECAP SECT'!$G$6:$DC$253,3,FALSE) -> 61.1 | F26: =VLOOKUP($C26,'RECAP SECT'!$G$6:$DC$253,41,FALSE) -> 27,201 | G26: =VLOOKUP($C26,'RECAP SECT'!$G$6:$DC$253,42,FALSE) -> 445.28 | H26: =VLOOKUP($C26,'RECAP SECT'!$G$6:$DC$253,43,FALSE) -> 24% | I26: =VLOOKUP($C26,'RECAP SECT'!$G$6:$DC$253,44,FALSE) -> 7 | J26: =VLOOKUP($C26,'RECAP SECT'!$G$6:$DC$253,45,FALSE) -> 773 | K26: =VLOOKUP($C26,'RECAP SECT'!$G$6:$DC$253,46,FALSE) -> 12.65 | L26: =VLOOKUP($C26,'RECAP SECT'!$G$6:$DC$253,47,FALSE) -> 48% | M26: =VLOOKUP($C26,'RECAP SECT'!$G$6:$DC$253,48,FALSE) -> 18 | N26: =VLOOKUP($C26,'RECAP SECT'!$G$6:$DC$253,49,FALSE) -> 31% | O26: =VLOOKUP($C26,'RECAP SECT'!$G$6:$DC$253,50,FALSE) -> 23% | P26: =VLOOKUP($C26,'RECAP SECT'!$G$6:$DC$253,51,FALSE) -> 13
A27: 80 | B27: VOSGES | C27: 55 | D27: SAINT DIE | E27: =VLOOKUP($C27,'RECAP SECT'!$G$6:$DC$253,3,FALSE) -> 47.1 | F27: =VLOOKUP($C27,'RECAP SECT'!$G$6:$DC$253,41,FALSE) -> 20,445 | G27: =VLOOKUP($C27,'RECAP SECT'!$G$6:$DC$253,42,FALSE) -> 434.27 | H27: =VLOOKUP($C27,'RECAP SECT'!$G$6:$DC$253,43,FALSE) -> 26% | I27: =VLOOKUP($C27,'RECAP SECT'!$G$6:$DC$253,44,FALSE) -> 8 | J27: =VLOOKUP($C27,'RECAP SECT'!$G$6:$DC$253,45,FALSE) -> 661 | K27: =VLOOKUP($C27,'RECAP SECT'!$G$6:$DC$253,46,FALSE) -> 14.04 | L27: =VLOOKUP($C27,'RECAP SECT'!$G$6:$DC$253,47,FALSE) -> 42% | M27: =VLOOKUP($C27,'RECAP SECT'!$G$6:$DC$253,48,FALSE) -> 17 | N27: =VLOOKUP($C27,'RECAP SECT'!$G$6:$DC$253,49,FALSE) -> 30% | O27: =VLOOKUP($C27,'RECAP SECT'!$G$6:$DC$253,50,FALSE) -> 23% | P27: =VLOOKUP($C27,'RECAP SECT'!$G$6:$DC$253,51,FALSE) -> 12
A28: Total CEGEE Directions Régionales | E28: =SUM(E10:E27) -> 1140

Sheet SE_CREDIT
B1: Accueil | F1: BAROMETRE BDD - TERRITOIRES
F2: CREDITS
F3: =ACCUEIL!F7 -> 2021-08-22
F7: Engagements et ventes accessoires pondérés Immo | J7: Engagements et ventes accessoires pondérés Conso | N7: Ventes sur client non détenteur de l’univers | R7: Total Crédits
F8: =DATEMAJ!C18 -> au 22/08 | H8: coef | I8: ='RECAP DIRCOM'!BM4 -> 8% | J8: =DATEMAJ!C19 -> au 22/08 | L8: coef | M8: ='RECAP DIRCOM'!BQ4 -> 6% | N8: =DATEMAJ!C20 -> au 22/08 | P8: coef | Q8: ='RECAP DIRCOM'!BU4 -> 6% | S8: coef | T8: ='RECAP DIRCOM'!BX4 -> 20%
B9: Direction | C9: eds | D9: Territoire | E9: ="ETP perf "&DATEMAJ!$C$28 -> ETP perf 30-juin | F9: PNB | G9: PNB / ETP | H9: % Ecart au 1er | I9: Rang | J9: PNB | K9: PNB / ETP | L9: % Ecart au 1er | M9: Rang | N9: VB | O9: VB / ETP | P9: % Ecart au 1er | Q9: Rang | R9: Moyenne ecart au 1er | S9: % Ecart au 1er | T9: Rang CEGEE
A10: 50 | B10: AUBE HAUTE MARNE | C10: 21 | D10: CHAUMONT | E10: =VLOOKUP($C10,'RECAP SECT'!$G$6:$DC$253,3,FALSE) -> 33.9 | F10: =VLOOKUP($C10,'RECAP SECT'!$G$6:$DC$253,56,FALSE) -> 2,457 | G10: =VLOOKUP($C10,'RECAP SECT'!$G$6:$DC$253,57,FALSE) -> 72.46 | H10: =VLOOKUP($C10,'RECAP SECT'!$G$6:$DC$253,58,FALSE) -> 60% | I10: =VLOOKUP($C10,'RECAP SECT'!$G$6:$DC$253,59,FALSE) -> 15 | J10: =VLOOKUP($C10,'RECAP SECT'!$G$6:$DC$253,60,FALSE) -> 2,009 | K10: =VLOOKUP($C10,'RECAP SECT'!$G$6:$DC$253,61,FALSE) -> 59.25 | L10: =VLOOKUP($C10,'RECAP SECT'!$G$6:$DC$253,62,FALSE) -> 0% | M10: =VLOOKUP($C10,'RECAP SECT'!$G$6:$DC$253,63,FALSE) -> 1 | N10: =VLOOKUP($C10,'RECAP SECT'!$G$6:$DC$253,64,FALSE) -> 499 | O10: =VLOOKUP($C10,'RECAP SECT'!$G$6:$DC$253,65,FALSE) -> 14.72 | P10: =VLOOKUP($C10,'RECAP SECT'!$G$6:$DC$253,66,FALSE) -> 24% | Q10: =VLOOKUP($C10,'RECAP SECT'!$G$6:$DC$253,67,FALSE) -> 7 | R10: =VLOOKUP($C10,'RECAP SECT'!$G$6:$DC$253,68,FALSE) -> 31% | S10: =VLOOKUP($C10,'RECAP SECT'!$G$6:$DC$253,69,FALSE) -> 26% | T10: =VLOOKUP($C10,'RECAP SECT'!$G$6:$DC$253,70,FALSE) -> 8
A11: 50 | B11: AUBE HAUTE MARNE | C11: 14 | D11: TROYES | E11: =VLOOKUP($C11,'RECAP SECT'!$G$6:$DC$253,3,FALSE) -> 67.1 | F11: =VLOOKUP($C11,'RECAP SECT'!$G$6:$DC$253,56,FALSE) -> 5,952 | G11: =VLOOKUP($C11,'RECAP SECT'!$G$6:$DC$253,57,FALSE) -> 88.74 | H11: =VLOOKUP($C11,'RECAP SECT'!$G$6:$DC$253,58,FALSE) -> 52% | I11: =VLOOKUP($C11,'RECAP SECT'!$G$6:$DC$253,59,FALSE) -> 11 | J11: =VLOOKUP($C11,'RECAP SECT'!$G$6:$DC$253,60,FALSE) -> 3,163 | K11: =VLOOKUP($C11,'RECAP SECT'!$G$6:$DC$253,61,FALSE) -> 47.17 | L11: =VLOOKUP($C11,'RECAP SECT'!$G$6:$DC$253,62,FALSE) -> 20% | M11: =VLOOKUP($C11,'RECAP SECT'!$G$6:$DC$253,63,FALSE) -> 11 | N11: =VLOOKUP($C11,'RECAP SECT'!$G$6:$DC$253,64,FALSE) -> 862 | O11: =VLOOKUP($C11,'RECAP SECT'!$G$6:$DC$253,65,FALSE) -> 12.85 | P11: =VLOOKUP($C11,'RECAP SECT'!$G$6:$DC$253,66,FALSE) -> 34% | Q11: =VLOOKUP($C11,'RECAP SECT'!$G$6:$DC$253,67,FALSE) -> 12 | R11: =VLOOKUP($C11,'RECAP SECT'!$G$6:$DC$253,68,FALSE) -> 37% | S11: =VLOOKUP($C11,'RECAP SECT'!$G$6:$DC$253,69,FALSE) -> 32% | T11: =VLOOKUP($C11,'RECAP SECT'!$G$6:$DC$253,70,FALSE) -> 14
A12: 262 | B12: BAS-RHIN | C12: 5060 | D12: HAGUENAU | E12: =VLOOKUP($C12,'RECAP SECT'!$G$6:$DC$253,3,FALSE) -> 70.0 | F12: =VLOOKUP($C12,'RECAP SECT'!$G$6:$DC$253,56,FALSE) -> 5,709 | G12: =VLOOKUP($C12,'RECAP SECT'!$G$6:$DC$253,57,FALSE) -> 81.57 | H12: =VLOOKUP($C12,'RECAP SECT'!$G$6:$DC$253,58,FALSE) -> 55% | I12: =VLOOKUP($C12,'RECAP SECT'!$G$6:$DC$253,59,FALSE) -> 14 | J12: =VLOOKUP($C12,'RECAP SECT'!$G$6:$DC$253,60,FALSE) -> 3,456 | K12: =VLOOKUP($C12,'RECAP SECT'!$G$6:$DC$253,61,FALSE) -> 49.39 | L12: =VLOOKUP($C12,'RECAP SECT'!$G$6:$DC$253,62,FALSE) -> 17% | M12: =VLOOKUP($C12,'RECAP SECT'!$G$6:$DC$253,63,FALSE) -> 8 | N12: =VLOOKUP($C12,'RECAP SECT'!$G$6:$DC$253,64,FALSE) -> 729 | O12: =VLOOKUP($C12,'RECAP SECT'!$G$6:$DC$253,65,FALSE) -> 10.42 | P12: =VLOOKUP($C12,'RECAP SECT'!$G$6:$DC$253,66,FALSE) -> 46% | Q12: =VLOOKUP($C12,'RECAP SECT'!$G$6:$DC$253,67,FALSE) -> 16 | R12: =VLOOKUP($C12,'RECAP SECT'!$G$6:$DC$253,68,FALSE) -> 41% | S12: =VLOOKUP($C12,'RECAP SECT'!$G$6:$DC$253,69,FALSE) -> 36% | T12: =VLOOKUP($C12,'RECAP SECT'!$G$6:$DC$253,70,FALSE) -> 15
A13: 262 | B13: BAS-RHIN | C13: 5101 | D13: SELESTAT | E13: =VLOOKUP($C13,'RECAP SECT'!$G$6:$DC$253,3,FALSE) -> 59.9 | F13: =VLOOKUP($C13,'RECAP SECT'!$G$6:$DC$253,56,FALSE) -> 4,004 | G13: =VLOOKUP($C13,'RECAP SECT'!$G$6:$DC$253,57,FALSE) -> 66.87 | H13: =VLOOKUP($C13,'RECAP SECT'!$G$6:$DC$253,58,FALSE) -> 64% | I13: =VLOOKUP($C13,'RECAP SECT'!$G$6:$DC$253,59,FALSE) -> 17 | J13: =VLOOKUP($C13,'RECAP SECT'!$G$6:$DC$253,60,FALSE) -> 2,928 | K13: =VLOOKUP($C13,'RECAP SECT'!$G$6:$DC$253,61,FALSE) -> 48.90 | L13: =VLOOKUP($C13,'RECAP SECT'!$G$6:$DC$253,62,FALSE) -> 17% | M13: =VLOOKUP($C13,'RECAP SECT'!$G$6:$DC$253,63,FALSE) -> 9 | N13: =VLOOKUP($C13,'RECAP SECT'!$G$6:$DC$253,64,FALSE) -> 681 | O13: =VLOOKUP($C13,'RECAP SECT'!$G$6:$DC$253,65,FALSE) -> 11.37 | P13: =VLOOKUP($C13,'RECAP SECT'!$G$6:$DC$253,66,FALSE) -> 41% | Q13: =VLOOKUP($C13,'RECAP SECT'!$G$6:$DC$253,67,FALSE) -> 15 | R13: =VLOOKUP($C13,'RECAP SECT'!$G$6:$DC$253,68,FALSE) -> 43% | S13: =VLOOKUP($C13,'RECAP SECT'!$G$6:$DC$253,69,FALSE) -> 38% | T13: =VLOOKUP($C13,'RECAP SECT'!$G$6:$DC$253,70,FALSE) -> 16
A14: 262 | B14: BAS-RHIN | C14: 5006 | D14: STRASBOURG | E14: =VLOOKUP($C14,'RECAP SECT'!$G$6:$DC$253,3,FALSE) -> 75.2 | F14: =VLOOKUP($C14,'RECAP SECT'!$G$6:$DC$253,56,FALSE) -> 8,077 | G14: =VLOOKUP($C14,'RECAP SECT'!$G$6:$DC$253,57,FALSE) -> 107.37 | H14: =VLOOKUP($C14,'RECAP SECT'!$G$6:$DC$253,58,FALSE) -> 41% | I14: =VLOOKUP($C14,'RECAP SECT'!$G$6:$DC$253,59,FALSE) -> 8 | J14: =VLOOKUP($C14,'RECAP SECT'!$G$6:$DC$253,60,FALSE) -> 3,037 | K14: =VLOOKUP($C14,'RECAP SECT'!$G$6:$DC$253,61,FALSE) -> 40.37 | L14: =VLOOKUP($C14,'RECAP SECT'!$G$6:$DC$253,62,FALSE) -> 32% | M14: =VLOOKUP($C14,'RECAP SECT'!$G$6:$DC$253,63,FALSE) -> 18 | N14: =VLOOKUP($C14,'RECAP SECT'!$G$6:$DC$253,64,FALSE) -> 987 | O14: =VLOOKUP($C14,'RECAP SECT'!$G$6:$DC$253,65,FALSE) -> 13.12 | P14: =VLOOKUP($C14,'RECAP SECT'!$G$6:$DC$253,66,FALSE) -> 32% | Q14: =VLOOKUP($C14,'RECAP SECT'!$G$6:$DC$253,67,FALSE) -> 11 | R14: =VLOOKUP($C14,'RECAP SECT'!$G$6:$DC$253,68,FALSE) -> 36% | S14: =VLOOKUP($C14,'RECAP SECT'!$G$6:$DC$253,69,FALSE) -> 31% | T14: =VLOOKUP($C14,'RECAP SECT'!$G$6:$DC$253,70,FALSE) -> 12
A15: 264 | B15: HAUT-RHIN | C15: 5130 | D15: COLMAR | E15: =VLOOKUP($C15,'RECAP SECT'!$G$6:$DC$253,3,FALSE) -> 61.5 | F15: =VLOOKUP($C15,'RECAP SECT'!$G$6:$DC$253,56,FALSE) -> 3,488 | G15: =VLOOKUP($C15,'RECAP SECT'!$G$6:$DC$253,57,FALSE) -> 56.68 | H15: =VLOOKUP($C15,'RECAP SECT'!$G$6:$DC$253,58,FALSE) -> 69% | I15: =VLOOKUP($C15,'RECAP SECT'!$G$6:$DC$253,59,FALSE) -> 18 | J15: =VLOOKUP($C15,'RECAP SECT'!$G$6:$DC$253,60,FALSE) -> 2,582 | K15: =VLOOKUP($C15,'RECAP SECT'!$G$6:$DC$253,61,FALSE) -> 41.96 | L15: =VLOOKUP($C15,'RECAP SECT'!$G$6:$DC$253,62,FALSE) -> 29% | M15: =VLOOKUP($C15,'RECAP SECT'!$G$6:$DC$253,63,FALSE) -> 17 | N15: =VLOOKUP($C15,'RECAP SECT'!$G$6:$DC$253,64,FALSE) -> 592 | O15: =VLOOKUP($C15,'RECAP SECT'!$G$6:$DC$253,65,FALSE) -> 9.62 | P15: =VLOOKUP($C15,'RECAP SECT'!$G$6:$DC$253,66,FALSE) -> 50% | Q15: =VLOOKUP($C15,'RECAP SECT'!$G$6:$DC$253,67,FALSE) -> 18 | R15: =VLOOKUP($C15,'RECAP SECT'!$G$6:$DC$253,68,FALSE) -> 52% | S15: =VLOOKUP($C15,'RECAP SECT'!$G$6:$DC$253,69,FALSE) -> 47% | T15: =VLOOKUP($C15,'RECAP SECT'!$G$6:$DC$253,70,FALSE) -> 18
A16: 264 | B16: HAUT-RHIN | C16: 5169 | D16: MULHOUSE | E16: =VLOOKUP($C16,'RECAP SECT'!$G$6:$DC$253,3,FALSE) -> 61.1 | F16: =VLOOKUP($C16,'RECAP SECT'!$G$6:$DC$253,56,FALSE) -> 4,204 | G16: =VLOOKUP($C16,'RECAP SECT'!$G$6:$DC$253,57,FALSE) -> 68.77 | H16: =VLOOKUP($C16,'RECAP SECT'!$G$6:$DC$253,58,FALSE) -> 62% | I16: =VLOOKUP($C16,'RECAP SECT'!$G$6:$DC$253,59,FALSE) -> 16 | J16: =VLOOKUP($C16,'RECAP SECT'!$G$6:$DC$253,60,FALSE) -> 2,641 | K16: =VLOOKUP($C16,'RECAP SECT'!$G$6:$DC$253,61,FALSE) -> 43.20 | L16: =VLOOKUP($C16,'RECAP SECT'!$G$6:$DC$253,62,FALSE) -> 27% | M16: =VLOOKUP($C16,'RECAP SECT'!$G$6:$DC$253,63,FALSE) -> 16 | N16: =VLOOKUP($C16,'RECAP SECT'!$G$6:$DC$253,64,FALSE) -> 603 | O16: =VLOOKUP($C16,'RECAP SECT'!$G$6:$DC$253,65,FALSE) -> 9.86 | P16: =VLOOKUP($C16,'RECAP SECT'!$G$6:$DC$253,66,FALSE) -> 49% | Q16: =VLOOKUP($C16,'RECAP SECT'!$G$6:$DC$253,67,FALSE) -> 17 | R16: =VLOOKUP($C16,'RECAP SECT'!$G$6:$DC$253,68,FALSE) -> 48% | S16: =VLOOKUP($C16,'RECAP SECT'!$G$6:$DC$253,69,FALSE) -> 43% | T16: =VLOOKUP($C16,'RECAP SECT'!$G$6:$DC$253,70,FALSE) -> 17
A17: 30 | B17: MARNE-ARDENNES | C17: 6 | D17: CHALONS EN CHAMPAGNE | E17: =VLOOKUP($C17,'RECAP SECT'!$G$6:$DC$253,3,FALSE) -> 44.7 | F17: =VLOOKUP($C17,'RECAP SECT'!$G$6:$DC$253,56,FALSE) -> 5,449 | G17: =VLOOKUP($C17,'RECAP SECT'!$G$6:$DC$253,57,FALSE) -> 121.99 | H17: =VLOOKUP($C17,'RECAP SECT'!$G$6:$DC$253,58,FALSE) -> 33% | I17: =VLOOKUP($C17,'RECAP SECT'!$G$6:$DC$253,59,FALSE) -> 6 | J17: =VLOOKUP($C17,'RECAP SECT'!$G$6:$DC$253,60,FALSE) -> 2,154 | K17: =VLOOKUP($C17,'RECAP SECT'!$G$6:$DC$253,61,FALSE) -> 48.22 | L17: =VLOOKUP($C17,'RECAP SECT'!$G$6:$DC$253,62,FALSE) -> 19% | M17: =VLOOKUP($C17,'RECAP SECT'!$G$6:$DC$253,63,FALSE) -> 10 | N17: =VLOOKUP($C17,'RECAP SECT'!$G$6:$DC$253,64,FALSE) -> 687 | O17: =VLOOKUP($C17,'RECAP SECT'!$G$6:$DC$253,65,FALSE) -> 15.38 | P17: =VLOOKUP($C17,'RECAP SECT'!$G$6:$DC$253,66,FALSE) -> 21% | Q17: =VLOOKUP($C17,'RECAP SECT'!$G$6:$DC$253,67,FALSE) -> 5 | R17: =VLOOKUP($C17,'RECAP SECT'!$G$6:$DC$253,68,FALSE) -> 25% | S17: =VLOOKUP($C17,'RECAP SECT'!$G$6:$DC$253,69,FALSE) -> 20% | T17: =VLOOKUP($C17,'RECAP SECT'!$G$6:$DC$253,70,FALSE) -> 7
A18: 30 | B18: MARNE-ARDENNES | C18: 2 | D18: CHARLEVILLE MEZIERES | E18: =VLOOKUP($C18,'RECAP SECT'!$G$6:$DC$253,3,FALSE) -> 56.6 | F18: =VLOOKUP($C18,'RECAP SECT'!$G$6:$DC$253,56,FALSE) -> 8,363 | G18: =VLOOKUP($C18,'RECAP SECT'!$G$6:$DC$253,57,FALSE) -> 147.75 | H18: =VLOOKUP($C18,'RECAP SECT'!$G$6:$DC$253,58,FALSE) -> 19% | I18: =VLOOKUP($C18,'RECAP SECT'!$G$6:$DC$253,59,FALSE) -> 4 | J18: =VLOOKUP($C18,'RECAP SECT'!$G$6:$DC$253,60,FALSE) -> 2,626 | K18: =VLOOKUP($C18,'RECAP SECT'!$G$6:$DC$253,61,FALSE) -> 46.39 | L18: =VLOOKUP($C18,'RECAP SECT'!$G$6:$DC$253,62,FALSE) -> 22% | M18: =VLOOKUP($C18,'RECAP SECT'!$G$6:$DC$253,63,FALSE) -> 12 | N18: =VLOOKUP($C18,'RECAP SECT'!$G$6:$DC$253,64,FALSE) -> 931 | O18: =VLOOKUP($C18,'RECAP SECT'!$G$6:$DC$253,65,FALSE) -> 16.45 | P18: =VLOOKUP($C18,'RECAP SECT'!$G$6:$DC$253,66,FALSE) -> 15% | Q18: =VLOOKUP($C18,'RECAP SECT'!$G$6:$DC$253,67,FALSE) -> 4 | R18: =VLOOKUP($C18,'RECAP SECT'!$G$6:$DC$253,68,FALSE) -> 19% | S18: =VLOOKUP($C18,'RECAP SECT'!$G$6:$DC$253,69,FALSE) -> 14% | T18: =VLOOKUP($C18,'RECAP SECT'!$G$6:$DC$253,70,FALSE) -> 4
A19: 30 | B19: MARNE-ARDENNES | C19: 11 | D19: REIMS | E19: =VLOOKUP($C19,'RECAP SECT'!$G$6:$DC$253,3,FALSE) -> 79.7 | F19: =VLOOKUP($C19,'RECAP SECT'!$G$6:$DC$253,56,FALSE) -> 14,328 | G19: =VLOOKUP($C19,'RECAP SECT'!$G$6:$DC$253,57,FALSE) -> 179.73 | H19: =VLOOKUP($C19,'RECAP SECT'!$G$6:$DC$253,58,FALSE) -> 2% | I19: =VLOOKUP($C19,'RECAP SECT'!$G$6:$DC$253,59,FALSE) -> 2 | J19: =VLOOKUP($C19,'RECAP SECT'!$G$6:$DC$253,60,FALSE) -> 3,642 | K19: =VLOOKUP($C19,'RECAP SECT'!$G$6:$DC$253,61,FALSE) -> 45.68 | L19: =VLOOKUP($C19,'RECAP SECT'!$G$6:$DC$253,62,FALSE) -> 23% | M19: =VLOOKUP($C19,'RECAP SECT'!$G$6:$DC$253,63,FALSE) -> 13 | N19: =VLOOKUP($C19,'RECAP SECT'!$G$6:$DC$253,64,FALSE) -> 1,390 | O19: =VLOOKUP($C19,'RECAP SECT'!$G$6:$DC$253,65,FALSE) -> 17.44 | P19: =VLOOKUP($C19,'RECAP SECT'!$G$6:$DC$253,66,FALSE) -> 10% | Q19: =VLOOKUP($C19,'RECAP SECT'!$G$6:$DC$253,67,FALSE) -> 2 | R19: =VLOOKUP($C19,'RECAP SECT'!$G$6:$DC$253,68,FALSE) -> 11% | S19: =VLOOKUP($C19,'RECAP SECT'!$G$6:$DC$253,69,FALSE) -> 6% | T19: =VLOOKUP($C19,'RECAP SECT'!$G$6:$DC$253,70,FALSE) -> 3
A20: 110 | B20: MEURTHE ET MOSELLE MEUSE | C20: 26 | D20: NANCY | E20: =VLOOKUP($C20,'RECAP SECT'!$G$6:$DC$253,3,FALSE) -> 66.2 | F20: =VLOOKUP($C20,'RECAP SECT'!$G$6:$DC$253,56,FALSE) -> 12,137 | G20: =VLOOKUP($C20,'RECAP SECT'!$G$6:$DC$253,57,FALSE) -> 183.22 | H20: =VLOOKUP($C20,'RECAP SECT'!$G$6:$DC$253,58,FALSE) -> 0% | I20: =VLOOKUP($C20,'RECAP SECT'!$G$6:$DC$253,59,FALSE) -> 1 | J20: =VLOOKUP($C20,'RECAP SECT'!$G$6:$DC$253,60,FALSE) -> 3,277 | K20: =VLOOKUP($C20,'RECAP SECT'!$G$6:$DC$253,61,FALSE) -> 49.47 | L20: =VLOOKUP($C20,'RECAP SECT'!$G$6:$DC$253,62,FALSE) -> 17% | M20: =VLOOKUP($C20,'RECAP SECT'!$G$6:$DC$253,63,FALSE) -> 7 | N20: =VLOOKUP($C20,'RECAP SECT'!$G$6:$DC$253,64,FALSE) -> 1,285 | O20: =VLOOKUP($C20,'RECAP SECT'!$G$6:$DC$253,65,FALSE) -> 19.40 | P20: =VLOOKUP($C20,'RECAP SECT'!$G$6:$DC$253,66,FALSE) -> 0% | Q20: =VLOOKUP($C20,'RECAP SECT'!$G$6:$DC$253,67,FALSE) -> 1 | R20: =VLOOKUP($C20,'RECAP SECT'!$G$6:$DC$253,68,FALSE) -> 5% | S20: =VLOOKUP($C20,'RECAP SECT'!$G$6:$DC$253,69,FALSE) -> 0% | T20: =VLOOKUP($C20,'RECAP SECT'!$G$6:$DC$253,70,FALSE) -> 1
A21: 110 | B21: MEURTHE ET MOSELLE MEUSE | C21: 27 | D21: PONT A MOUSSON | E21: =VLOOKUP($C21,'RECAP SECT'!$G$6:$DC$253,3,FALSE) -> 76.5 | F21: =VLOOKUP($C21,'RECAP SECT'!$G$6:$DC$253,56,FALSE) -> 13,733 | G21: =VLOOKUP($C21,'RECAP SECT'!$G$6:$DC$253,57,FALSE) -> 179.50 | H21: =VLOOKUP($C21,'RECAP SECT'!$G$6:$DC$253,58,FALSE) -> 2% | I21: =VLOOKUP($C21,'RECAP SECT'!$G$6:$DC$253,59,FALSE) -> 3 | J21: =VLOOKUP($C21,'RECAP SECT'!$G$6:$DC$253,60,FALSE) -> 3,823 | K21: =VLOOKUP($C21,'RECAP SECT'!$G$6:$DC$253,61,FALSE) -> 49.97 | L21: =VLOOKUP($C21,'RECAP SECT'!$G$6:$DC$253,62,FALSE) -> 16% | M21: =VLOOKUP($C21,'RECAP SECT'!$G$6:$DC$253,63,FALSE) -> 5 | N21: =VLOOKUP($C21,'RECAP SECT'!$G$6:$DC$253,64,FALSE) -> 1,329 | O21: =VLOOKUP($C21,'RECAP SECT'!$G$6:$DC$253,65,FALSE) -> 17.37 | P21: =VLOOKUP($C21,'RECAP SECT'!$G$6:$DC$253,66,FALSE) -> 10% | Q21: =VLOOKUP($C21,'RECAP SECT'!$G$6:$DC$253,67,FALSE) -> 3 | R21: =VLOOKUP($C21,'RECAP SECT'!$G$6:$DC$253,68,FALSE) -> 9% | S21: =VLOOKUP($C21,'RECAP SECT'!$G$6:$DC$253,69,FALSE) -> 4% | T21: =VLOOKUP($C21,'RECAP SECT'!$G$6:$DC$253,70,FALSE) -> 2
A22: 110 | B22: MEURTHE ET MOSELLE MEUSE | C22: 31 | D22: VERDUN | E22: =VLOOKUP($C22,'RECAP SECT'!$G$6:$DC$253,3,FALSE) -> 55.1 | F22: =VLOOKUP($C22,'RECAP SECT'!$G$6:$DC$253,56,FALSE) -> 6,579 | G22: =VLOOKUP($C22,'RECAP SECT'!$G$6:$DC$253,57,FALSE) -> 119.35 | H22: =VLOOKUP($C22,'RECAP SECT'!$G$6:$DC$253,58,FALSE) -> 35% | I22: =VLOOKUP($C22,'RECAP SECT'!$G$6:$DC$253,59,FALSE) -> 7 | J22: =VLOOKUP($C22,'RECAP SECT'!$G$6:$DC$253,60,FALSE) -> 3,182 | K22: =VLOOKUP($C22,'RECAP SECT'!$G$6:$DC$253,61,FALSE) -> 57.73 | L22: =VLOOKUP($C22,'RECAP SECT'!$G$6:$DC$253,62,FALSE) -> 3% | M22: =VLOOKUP($C22,'RECAP SECT'!$G$6:$DC$253,63,FALSE) -> 2 | N22: =VLOOKUP($C22,'RECAP SECT'!$G$6:$DC$253,64,FALSE) -> 840 | O22: =VLOOKUP($C22,'RECAP SECT'!$G$6:$DC$253,65,FALSE) -> 15.24 | P22: =VLOOKUP($C22,'RECAP SECT'!$G$6:$DC$253,66,FALSE) -> 21% | Q22: =VLOOKUP($C22,'RECAP SECT'!$G$6:$DC$253,67,FALSE) -> 6 | R22: =VLOOKUP($C22,'RECAP SECT'!$G$6:$DC$253,68,FALSE) -> 21% | S22: =VLOOKUP($C22,'RECAP SECT'!$G$6:$DC$253,69,FALSE) -> 16% | T22: =VLOOKUP($C22,'RECAP SECT'!$G$6:$DC$253,70,FALSE) -> 5
A23: 160 | B23: MOSELLE | C23: 45 | D23: METZ | E23: =VLOOKUP($C23,'RECAP SECT'!$G$6:$DC$253,3,FALSE) -> 88.4 | F23: =VLOOKUP($C23,'RECAP SECT'!$G$6:$DC$253,56,FALSE) -> 8,729 | G23: =VLOOKUP($C23,'RECAP SECT'!$G$6:$DC$253,57,FALSE) -> 98.69 | H23: =VLOOKUP($C23,'RECAP SECT'!$G$6:$DC$253,58,FALSE) -> 46% | I23: =VLOOKUP($C23,'RECAP SECT'!$G$6:$DC$253,59,FALSE) -> 9 | J23: =VLOOKUP($C23,'RECAP SECT'!$G$6:$DC$253,60,FALSE) -> 3,985 | K23: =VLOOKUP($C23,'RECAP SECT'!$G$6:$DC$253,61,FALSE) -> 45.06 | L23: =VLOOKUP($C23,'RECAP SECT'!$G$6:$DC$253,62,FALSE) -> 24% | M23: =VLOOKUP($C23,'RECAP SECT'!$G$6:$DC$253,63,FALSE) -> 14 | N23: =VLOOKUP($C23,'RECAP SECT'!$G$6:$DC$253,64,FALSE) -> 1,100 | O23: =VLOOKUP($C23,'RECAP SECT'!$G$6:$DC$253,65,FALSE) -> 12.44 | P23: =VLOOKUP($C23,'RECAP SECT'!$G$6:$DC$253,66,FALSE) -> 36% | Q23: =VLOOKUP($C23,'RECAP SECT'!$G$6:$DC$253,67,FALSE) -> 13 | R23: =VLOOKUP($C23,'RECAP SECT'!$G$6:$DC$253,68,FALSE) -> 36% | S23: =VLOOKUP($C23,'RECAP SECT'!$G$6:$DC$253,69,FALSE) -> 31% | T23: =VLOOKUP($C23,'RECAP SECT'!$G$6:$DC$253,70,FALSE) -> 13
A24: 160 | B24: MOSELLE | C24: 42 | D24: MOSELLE EST | E24: =VLOOKUP($C24,'RECAP SECT'!$G$6:$DC$253,3,FALSE) -> 70.2 | F24: =VLOOKUP($C24,'RECAP SECT'!$G$6:$DC$253,56,FALSE) -> 6,123 | G24: =VLOOKUP($C24,'RECAP SECT'!$G$6:$DC$253,57,FALSE) -> 87.19 | H24: =VLOOKUP($C24,'RECAP SECT'!$G$6:$DC$253,58,FALSE) -> 52% | I24: =VLOOKUP($C24,'RECAP SECT'!$G$6:$DC$253,59,FALSE) -> 12 | J24: =VLOOKUP($C24,'RECAP SECT'!$G$6:$DC$253,60,FALSE) -> 3,809 | K24: =VLOOKUP($C24,'RECAP SECT'!$G$6:$DC$253,61,FALSE) -> 54.23 | L24: =VLOOKUP($C24,'RECAP SECT'!$G$6:$DC$253,62,FALSE) -> 8% | M24: =VLOOKUP($C24,'RECAP SECT'!$G$6:$DC$253,63,FALSE) -> 3 | N24: =VLOOKUP($C24,'RECAP SECT'!$G$6:$DC$253,64,FALSE) -> 855 | O24: =VLOOKUP($C24,'RECAP SECT'!$G$6:$DC$253,65,FALSE) -> 12.17 | P24: =VLOOKUP($C24,'RECAP SECT'!$G$6:$DC$253,66,FALSE) -> 37% | Q24: =VLOOKUP($C24,'RECAP SECT'!$G$6:$DC$253,67,FALSE) -> 14 | R24: =VLOOKUP($C24,'RECAP SECT'!$G$6:$DC$253,68,FALSE) -> 35% | S24: =VLOOKUP($C24,'RECAP SECT'!$G$6:$DC$253,69,FALSE) -> 30% | T24: =VLOOKUP($C24,'RECAP SECT'!$G$6:$DC$253,70,FALSE) -> 9
A25: 160 | B25: MOSELLE | C25: 44 | D25: MOSELLE NORD | E25: =VLOOKUP($C25,'RECAP SECT'!$G$6:$DC$253,3,FALSE) -> 65.8 | F25: =VLOOKUP($C25,'RECAP SECT'!$G$6:$DC$253,56,FALSE) -> 8,578 | G25: =VLOOKUP($C25,'RECAP SECT'!$G$6:$DC$253,57,FALSE) -> 130.34 | H25: =VLOOKUP($C25,'RECAP SECT'!$G$6:$DC$253,58,FALSE) -> 29% | I25: =VLOOKUP($C25,'RECAP SECT'!$G$6:$DC$253,59,FALSE) -> 5 | J25: =VLOOKUP($C25,'RECAP SECT'!$G$6:$DC$253,60,FALSE) -> 3,323 | K25: =VLOOKUP($C25,'RECAP SECT'!$G$6:$DC$253,61,FALSE) -> 50.49 | L25: =VLOOKUP($C25,'RECAP SECT'!$G$6:$DC$253,62,FALSE) -> 15% | M25: =VLOOKUP($C25,'RECAP SECT'!$G$6:$DC$253,63,FALSE) -> 4 | N25: =VLOOKUP($C25,'RECAP SECT'!$G$6:$DC$253,64,FALSE) -> 894 | O25: =VLOOKUP($C25,'RECAP SECT'!$G$6:$DC$253,65,FALSE) -> 13.58 | P25: =VLOOKUP($C25,'RECAP SECT'!$G$6:$DC$253,66,FALSE) -> 30% | Q25: =VLOOKUP($C25,'RECAP SECT'!$G$6:$DC$253,67,FALSE) -> 9 | R25: =VLOOKUP($C25,'RECAP SECT'!$G$6:$DC$253,68,FALSE) -> 25% | S25: =VLOOKUP($C25,'RECAP SECT'!$G$6:$DC$253,69,FALSE) -> 20% | T25: =VLOOKUP($C25,'RECAP SECT'!$G$6:$DC$253,70,FALSE) -> 6
A26: 80 | B26: VOSGES | C26: 57 | D26: EPINAL | E26: =VLOOKUP($C26,'RECAP SECT'!$G$6:$DC$253,3,FALSE) -> 61.1 | F26: =VLOOKUP($C26,'RECAP SECT'!$G$6:$DC$253,56,FALSE) -> 5,705 | G26: =VLOOKUP($C26,'RECAP SECT'!$G$6:$DC$253,57,FALSE) -> 93.39 | H26: =VLOOKUP($C26,'RECAP SECT'!$G$6:$DC$253,58,FALSE) -> 49% | I26: =VLOOKUP($C26,'RECAP SECT'!$G$6:$DC$253,59,FALSE) -> 10 | J26: =VLOOKUP($C26,'RECAP SECT'!$G$6:$DC$253,60,FALSE) -> 2,640 | K26: =VLOOKUP($C26,'RECAP SECT'!$G$6:$DC$253,61,FALSE) -> 43.21 | L26: =VLOOKUP($C26,'RECAP SECT'!$G$6:$DC$253,62,FALSE) -> 27% | M26: =VLOOKUP($C26,'RECAP SECT'!$G$6:$DC$253,63,FALSE) -> 15 | N26: =VLOOKUP($C26,'RECAP SECT'!$G$6:$DC$253,64,FALSE) -> 889 | O26: =VLOOKUP($C26,'RECAP SECT'!$G$6:$DC$253,65,FALSE) -> 14.55 | P26: =VLOOKUP($C26,'RECAP SECT'!$G$6:$DC$253,66,FALSE) -> 25% | Q26: =VLOOKUP($C26,'RECAP SECT'!$G$6:$DC$253,67,FALSE) -> 8 | R26: =VLOOKUP($C26,'RECAP SECT'!$G$6:$DC$253,68,FALSE) -> 35% | S26: =VLOOKUP($C26,'RECAP SECT'!$G$6:$DC$253,69,FALSE) -> 30% | T26: =VLOOKUP($C26,'RECAP SECT'!$G$6:$DC$253,70,FALSE) -> 10
A27: 80 | B27: VOSGES | C27: 55 | D27: SAINT DIE | E27: =VLOOKUP($C27,'RECAP SECT'!$G$6:$DC$253,3,FALSE) -> 47.1 | F27: =VLOOKUP($C27,'RECAP SECT'!$G$6:$DC$253,56,FALSE) -> 3,981 | G27: =VLOOKUP($C27,'RECAP SECT'!$G$6:$DC$253,57,FALSE) -> 84.57 | H27: =VLOOKUP($C27,'RECAP SECT'!$G$6:$DC$253,58,FALSE) -> 54% | I27: =VLOOKUP($C27,'RECAP SECT'!$G$6:$DC$253,59,FALSE) -> 13 | J27: =VLOOKUP($C27,'RECAP SECT'!$G$6:$DC$253,60,FALSE) -> 2,338 | K27: =VLOOKUP($C27,'RECAP SECT'!$G$6:$DC$253,61,FALSE) -> 49.67 | L27: =VLOOKUP($C27,'RECAP SECT'!$G$6:$DC$253,62,FALSE) -> 16% | M27: =VLOOKUP($C27,'RECAP SECT'!$G$6:$DC$253,63,FALSE) -> 6 | N27: =VLOOKUP($C27,'RECAP SECT'!$G$6:$DC$253,64,FALSE) -> 633 | O27: =VLOOKUP($C27,'RECAP SECT'!$G$6:$DC$253,65,FALSE) -> 13.45 | P27: =VLOOKUP($C27,'RECAP SECT'!$G$6:$DC$253,66,FALSE) -> 31% | Q27: =VLOOKUP($C27,'RECAP SECT'!$G$6:$DC$253,67,FALSE) -> 10 | R27: =VLOOKUP($C27,'RECAP SECT'!$G$6:$DC$253,68,FALSE) -> 36% | S27: =VLOOKUP($C27,'RECAP SECT'!$G$6:$DC$253,69,FALSE) -> 31% | T27: =VLOOKUP($C27,'RECAP SECT'!$G$6:$DC$253,70,FALSE) -> 11
A28: Total CEGEE Directions Régionales | E28: =SUM(E10:E27) -> 1140

Sheet SE_IARD
B1: Accueil | F1: BAROMETRE BDD - TERRITOIRES
F2: IARD ET PREVOYANCE
F3: =ACCUEIL!F7 -> 2021-08-22
F7: Ventes Nettes produits pondérés | J7: Ventes sur client non détenteur de l’univers | N7: Total IARD Prévoyance
F8: =DATEMAJ!C23 -> au 22/08 | H8: coef | I8: ='RECAP DIRCOM'!CF4 -> 14% | J8: =DATEMAJ!C24 -> au 22/08 | L8: coef | M8: ='RECAP DIRCOM'!CJ4 -> 6% | O8: coef | P8: ='RECAP DIRCOM'!CM4 -> 20%
B9: Direction | C9: eds | D9: Territoire | E9: ="ETP perf "&DATEMAJ!$C$28 -> ETP perf 30-juin | F9: VN | G9: VN / ETP | H9: % Ecart au 1er | I9: Rang | J9: VB | K9: VB / ETP | L9: % Ecart au 1er | M9: Rang | N9: Moyenne ecart au 1er | O9: % Ecart au 1er | P9: Rang CEGEE
A10: 50 | B10: AUBE HAUTE MARNE | C10: 21 | D10: CHAUMONT | E10: =VLOOKUP($C10,'RECAP SECT'!$G$6:$DC$253,3,FALSE) -> 33.9 | F10: =VLOOKUP($C10,'RECAP SECT'!$G$6:$DC$253,75,FALSE) -> 5,538 | G10: =VLOOKUP($C10,'RECAP SECT'!$G$6:$DC$253,76,FALSE) -> 163.33 | H10: =VLOOKUP($C10,'RECAP SECT'!$G$6:$DC$253,77,FALSE) -> 23% | I10: =VLOOKUP($C10,'RECAP SECT'!$G$6:$DC$253,78,FALSE) -> 9 | J10: =VLOOKUP($C10,'RECAP SECT'!$G$6:$DC$253,79,FALSE) -> 1,108 | K10: =VLOOKUP($C10,'RECAP SECT'!$G$6:$DC$253,80,FALSE) -> 32.68 | L10: =VLOOKUP($C10,'RECAP SECT'!$G$6:$DC$253,81,FALSE) -> 14% | M10: =VLOOKUP($C10,'RECAP SECT'!$G$6:$DC$253,82,FALSE) -> 4 | N10: =VLOOKUP($C10,'RECAP SECT'!$G$6:$DC$253,83,FALSE) -> 21% | O10: =VLOOKUP($C10,'RECAP SECT'!$G$6:$DC$253,84,FALSE) -> 18% | P10: =VLOOKUP($C10,'RECAP SECT'!$G$6:$DC$253,85,FALSE) -> 8
A11: 50 | B11: AUBE HAUTE MARNE | C11: 14 | D11: TROYES | E11: =VLOOKUP($C11,'RECAP SECT'!$G$6:$DC$253,3,FALSE) -> 67.1 | F11: =VLOOKUP($C11,'RECAP SECT'!$G$6:$DC$253,75,FALSE) -> 7,288 | G11: =VLOOKUP($C11,'RECAP SECT'!$G$6:$DC$253,76,FALSE) -> 108.67 | H11: =VLOOKUP($C11,'RECAP SECT'!$G$6:$DC$253,77,FALSE) -> 49% | I11: =VLOOKUP($C11,'RECAP SECT'!$G$6:$DC$253,78,FALSE) -> 17 | J11: =VLOOKUP($C11,'RECAP SECT'!$G$6:$DC$253,79,FALSE) -> 1,815 | K11: =VLOOKUP($C11,'RECAP SECT'!$G$6:$DC$253,80,FALSE) -> 27.06 | L11: =VLOOKUP($C11,'RECAP SECT'!$G$6:$DC$253,81,FALSE) -> 29% | M11: =VLOOKUP($C11,'RECAP SECT'!$G$6:$DC$253,82,FALSE) -> 15 | N11: =VLOOKUP($C11,'RECAP SECT'!$G$6:$DC$253,83,FALSE) -> 43% | O11: =VLOOKUP($C11,'RECAP SECT'!$G$6:$DC$253,84,FALSE) -> 40% | P11: =VLOOKUP($C11,'RECAP SECT'!$G$6:$DC$253,85,FALSE) -> 17
A12: 262 | B12: BAS-RHIN | C12: 5060 | D12: HAGUENAU | E12: =VLOOKUP($C12,'RECAP SECT'!$G$6:$DC$253,3,FALSE) -> 70.0 | F12: =VLOOKUP($C12,'RECAP SECT'!$G$6:$DC$253,75,FALSE) -> 8,885 | G12: =VLOOKUP($C12,'RECAP SECT'!$G$6:$DC$253,76,FALSE) -> 126.95 | H12: =VLOOKUP($C12,'RECAP SECT'!$G$6:$DC$253,77,FALSE) -> 40% | I12: =VLOOKUP($C12,'RECAP SECT'!$G$6:$DC$253,78,FALSE) -> 16 | J12: =VLOOKUP($C12,'RECAP SECT'!$G$6:$DC$253,79,FALSE) -> 1,722 | K12: =VLOOKUP($C12,'RECAP SECT'!$G$6:$DC$253,80,FALSE) -> 24.60 | L12: =VLOOKUP($C12,'RECAP SECT'!$G$6:$DC$253,81,FALSE) -> 36% | M12: =VLOOKUP($C12,'RECAP SECT'!$G$6:$DC$253,82,FALSE) -> 18 | N12: =VLOOKUP($C12,'RECAP SECT'!$G$6:$DC$253,83,FALSE) -> 39% | O12: =VLOOKUP($C12,'RECAP SECT'!$G$6:$DC$253,84,FALSE) -> 36% | P12: =VLOOKUP($C12,'RECAP SECT'!$G$6:$DC$253,85,FALSE) -> 16
A13: 262 | B13: BAS-RHIN | C13: 5101 | D13: SELESTAT | E13: =VLOOKUP($C13,'RECAP SECT'!$G$6:$DC$253,3,FALSE) -> 59.9 | F13: =VLOOKUP($C13,'RECAP SECT'!$G$6:$DC$253,75,FALSE) -> 9,739 | G13: =VLOOKUP($C13,'RECAP SECT'!$G$6:$DC$253,76,FALSE) -> 162.63 | H13: =VLOOKUP($C13,'RECAP SECT'!$G$6:$DC$253,77,FALSE) -> 24% | I13: =VLOOKUP($C13,'RECAP SECT'!$G$6:$DC$253,78,FALSE) -> 10 | J13: =VLOOKUP($C13,'RECAP SECT'!$G$6:$DC$253,79,FALSE) -> 1,664 | K13: =VLOOKUP($C13,'RECAP SECT'!$G$6:$DC$253,80,FALSE) -> 27.79 | L13: =VLOOKUP($C13,'RECAP SECT'!$G$6:$DC$253,81,FALSE) -> 27% | M13: =VLOOKUP($C13,'RECAP SECT'!$G$6:$DC$253,82,FALSE) -> 13 | N13: =VLOOKUP($C13,'RECAP SECT'!$G$6:$DC$253,83,FALSE) -> 25% | O13: =VLOOKUP($C13,'RECAP SECT'!$G$6:$DC$253,84,FALSE) -> 22% | P13: =VLOOKUP($C13,'RECAP SECT'!$G$6:$DC$253,85,FALSE) -> 11
A14: 262 | B14: BAS-RHIN | C14: 5006 | D14: STRASBOURG | E14: =VLOOKUP($C14,'RECAP SECT'!$G$6:$DC$253,3,FALSE) -> 75.2 | F14: =VLOOKUP($C14,'RECAP SECT'!$G$6:$DC$253,75,FALSE) -> 16,041 | G14: =VLOOKUP($C14,'RECAP SECT'!$G$6:$DC$253,76,FALSE) -> 213.24 | H14: =VLOOKUP($C14,'RECAP SECT'!$G$6:$DC$253,77,FALSE) -> 0% | I14: =VLOOKUP($C14,'RECAP SECT'!$G$6:$DC$253,78,FALSE) -> 1 | J14: =VLOOKUP($C14,'RECAP SECT'!$G$6:$DC$253,79,FALSE) -> 2,438 | K14: =VLOOKUP($C14,'RECAP SECT'!$G$6:$DC$253,80,FALSE) -> 32.41 | L14: =VLOOKUP($C14,'RECAP SECT'!$G$6:$DC$253,81,FALSE) -> 15% | M14: =VLOOKUP($C14,'RECAP SECT'!$G$6:$DC$253,82,FALSE) -> 5 | N14: =VLOOKUP($C14,'RECAP SECT'!$G$6:$DC$253,83,FALSE) -> 5% | O14: =VLOOKUP($C14,'RECAP SECT'!$G$6:$DC$253,84,FALSE) -> 2% | P14: =VLOOKUP($C14,'RECAP SECT'!$G$6:$DC$253,85,FALSE) -> 2
A15: 264 | B15: HAUT-RHIN | C15: 5130 | D15: COLMAR | E15: =VLOOKUP($C15,'RECAP SECT'!$G$6:$DC$253,3,FALSE) -> 61.5 | F15: =VLOOKUP($C15,'RECAP SECT'!$G$6:$DC$253,75,FALSE) -> 9,662 | G15: =VLOOKUP($C15,'RECAP SECT'!$G$6:$DC$253,76,FALSE) -> 157.01 | H15: =VLOOKUP($C15,'RECAP SECT'!$G$6:$DC$253,77,FALSE) -> 26% | I15: =VLOOKUP($C15,'RECAP SECT'!$G$6:$DC$253,78,FALSE) -> 12 | J15: =VLOOKUP($C15,'RECAP SECT'!$G$6:$DC$253,79,FALSE) -> 1,584 | K15: =VLOOKUP($C15,'RECAP SECT'!$G$6:$DC$253,80,FALSE) -> 25.74 | L15: =VLOOKUP($C15,'RECAP SECT'!$G$6:$DC$253,81,FALSE) -> 33% | M15: =VLOOKUP($C15,'RECAP SECT'!$G$6:$DC$253,82,FALSE) -> 16 | N15: =VLOOKUP($C15,'RECAP SECT'!$G$6:$DC$253,83,FALSE) -> 28% | O15: =VLOOKUP($C15,'RECAP SECT'!$G$6:$DC$253,84,FALSE) -> 25% | P15: =VLOOKUP($C15,'RECAP SECT'!$G$6:$DC$253,85,FALSE) -> 13
A16: 264 | B16: HAUT-RHIN | C16: 5169 | D16: MULHOUSE | E16: =VLOOKUP($C16,'RECAP SECT'!$G$6:$DC$253,3,FALSE) -> 61.1 | F16: =VLOOKUP($C16,'RECAP SECT'!$G$6:$DC$253,75,FALSE) -> 5,185 | G16: =VLOOKUP($C16,'RECAP SECT'!$G$6:$DC$253,76,FALSE) -> 84.81 | H16: =VLOOKUP($C16,'RECAP SECT'!$G$6:$DC$253,77,FALSE) -> 60% | I16: =VLOOKUP($C16,'RECAP SECT'!$G$6:$DC$253,78,FALSE) -> 18 | J16: =VLOOKUP($C16,'RECAP SECT'!$G$6:$DC$253,79,FALSE) -> 1,703 | K16: =VLOOKUP($C16,'RECAP SECT'!$G$6:$DC$253,80,FALSE) -> 27.86 | L16: =VLOOKUP($C16,'RECAP SECT'!$G$6:$DC$253,81,FALSE) -> 27% | M16: =VLOOKUP($C16,'RECAP SECT'!$G$6:$DC$253,82,FALSE) -> 12 | N16: =VLOOKUP($C16,'RECAP SECT'!$G$6:$DC$253,83,FALSE) -> 50% | O16: =VLOOKUP($C16,'RECAP SECT'!$G$6:$DC$253,84,FALSE) -> 47% | P16: =VLOOKUP($C16,'RECAP SECT'!$G$6:$DC$253,85,FALSE) -> 18
A17: 30 | B17: MARNE-ARDENNES | C17: 6 | D17: CHALONS EN CHAMPAGNE | E17: =VLOOKUP($C17,'RECAP SECT'!$G$6:$DC$253,3,FALSE) -> 44.7 | F17: =VLOOKUP($C17,'RECAP SECT'!$G$6:$DC$253,75,FALSE) -> 7,917 | G17: =VLOOKUP($C17,'RECAP SECT'!$G$6:$DC$253,76,FALSE) -> 177.23 | H17: =VLOOKUP($C17,'RECAP SECT'!$G$6:$DC$253,77,FALSE) -> 17% | I17: =VLOOKUP($C17,'RECAP SECT'!$G$6:$DC$253,78,FALSE) -> 5 | J17: =VLOOKUP($C17,'RECAP SECT'!$G$6:$DC$253,79,FALSE) -> 1,424 | K17: =VLOOKUP($C17,'RECAP SECT'!$G$6:$DC$253,80,FALSE) -> 31.88 | L17: =VLOOKUP($C17,'RECAP SECT'!$G$6:$DC$253,81,FALSE) -> 17% | M17: =VLOOKUP($C17,'RECAP SECT'!$G$6:$DC$253,82,FALSE) -> 6 | N17: =VLOOKUP($C17,'RECAP SECT'!$G$6:$DC$253,83,FALSE) -> 17% | O17: =VLOOKUP($C17,'RECAP SECT'!$G$6:$DC$253,84,FALSE) -> 14% | P17: =VLOOKUP($C17,'RECAP SECT'!$G$6:$DC$253,85,FALSE) -> 5
A18: 30 | B18: MARNE-ARDENNES | C18: 2 | D18: CHARLEVILLE MEZIERES | E18: =VLOOKUP($C18,'RECAP SECT'!$G$6:$DC$253,3,FALSE) -> 56.6 | F18: =VLOOKUP($C18,'RECAP SECT'!$G$6:$DC$253,75,FALSE) -> 11,260 | G18: =VLOOKUP($C18,'RECAP SECT'!$G$6:$DC$253,76,FALSE) -> 198.93 | H18: =VLOOKUP($C18,'RECAP SECT'!$G$6:$DC$253,77,FALSE) -> 7% | I18: =VLOOKUP($C18,'RECAP SECT'!$G$6:$DC$253,78,FALSE) -> 3 | J18: =VLOOKUP($C18,'RECAP SECT'!$G$6:$DC$253,79,FALSE) -> 1,685 | K18: =VLOOKUP($C18,'RECAP SECT'!$G$6:$DC$253,80,FALSE) -> 29.77 | L18: =VLOOKUP($C18,'RECAP SECT'!$G$6:$DC$253,81,FALSE) -> 22% | M18: =VLOOKUP($C18,'RECAP SECT'!$G$6:$DC$253,82,FALSE) -> 9 | N18: =VLOOKUP($C18,'RECAP SECT'!$G$6:$DC$253,83,FALSE) -> 11% | O18: =VLOOKUP($C18,'RECAP SECT'!$G$6:$DC$253,84,FALSE) -> 8% | P18: =VLOOKUP($C18,'RECAP SECT'!$G$6:$DC$253,85,FALSE) -> 4
A19: 30 | B19: MARNE-ARDENNES | C19: 11 | D19: REIMS | E19: =VLOOKUP($C19,'RECAP SECT'!$G$6:$DC$253,3,FALSE) -> 79.7 | F19: =VLOOKUP($C19,'RECAP SECT'!$G$6:$DC$253,75,FALSE) -> 15,383 | G19: =VLOOKUP($C19,'RECAP SECT'!$G$6:$DC$253,76,FALSE) -> 192.95 | H19: =VLOOKUP($C19,'RECAP SECT'!$G$6:$DC$253,77,FALSE) -> 10% | I19: =VLOOKUP($C19,'RECAP SECT'!$G$6:$DC$253,78,FALSE) -> 4 | J19: =VLOOKUP($C19,'RECAP SECT'!$G$6:$DC$253,79,FALSE) -> 2,817 | K19: =VLOOKUP($C19,'RECAP SECT'!$G$6:$DC$253,80,FALSE) -> 35.33 | L19: =VLOOKUP($C19,'RECAP SECT'!$G$6:$DC$253,81,FALSE) -> 7% | M19: =VLOOKUP($C19,'RECAP SECT'!$G$6:$DC$253,82,FALSE) -> 3 | N19: =VLOOKUP($C19,'RECAP SECT'!$G$6:$DC$253,83,FALSE) -> 9% | O19: =VLOOKUP($C19,'RECAP SECT'!$G$6:$DC$253,84,FALSE) -> 6% | P19: =VLOOKUP($C19,'RECAP SECT'!$G$6:$DC$253,85,FALSE) -> 3
A20: 110 | B20: MEURTHE ET MOSELLE MEUSE | C20: 26 | D20: NANCY | E20: =VLOOKUP($C20,'RECAP SECT'!$G$6:$DC$253,3,FALSE) -> 66.2 | F20: =VLOOKUP($C20,'RECAP SECT'!$G$6:$DC$253,75,FALSE) -> 13,535 | G20: =VLOOKUP($C20,'RECAP SECT'!$G$6:$DC$253,76,FALSE) -> 204.34 | H20: =VLOOKUP($C20,'RECAP SECT'!$G$6:$DC$253,77,FALSE) -> 4% | I20: =VLOOKUP($C20,'RECAP SECT'!$G$6:$DC$253,78,FALSE) -> 2 | J20: =VLOOKUP($C20,'RECAP SECT'!$G$6:$DC$253,79,FALSE) -> 2,530 | K20: =VLOOKUP($C20,'RECAP SECT'!$G$6:$DC$253,80,FALSE) -> 38.19 | L20: =VLOOKUP($C20,'RECAP SECT'!$G$6:$DC$253,81,FALSE) -> 0% | M20: =VLOOKUP($C20,'RECAP SECT'!$G$6:$DC$253,82,FALSE) -> 1 | N20: =VLOOKUP($C20,'RECAP SECT'!$G$6:$DC$253,83,FALSE) -> 3% | O20: =VLOOKUP($C20,'RECAP SECT'!$G$6:$DC$253,84,FALSE) -> 0% | P20: =VLOOKUP($C20,'RECAP SECT'!$G$6:$DC$253,85,FALSE) -> 1
A21: 110 | B21: MEURTHE ET MOSELLE MEUSE | C21: 27 | D21: PONT A MOUSSON | E21: =VLOOKUP($C21,'RECAP SECT'!$G$6:$DC$253,3,FALSE) -> 76.5 | F21: =VLOOKUP($C21,'RECAP SECT'!$G$6:$DC$253,75,FALSE) -> 12,576 | G21: =VLOOKUP($C21,'RECAP SECT'!$G$6:$DC$253,76,FALSE) -> 164.37 | H21: =VLOOKUP($C21,'RECAP SECT'!$G$6:$DC$253,77,FALSE) -> 23% | I21: =VLOOKUP($C21,'RECAP SECT'!$G$6:$DC$253,78,FALSE) -> 8 | J21: =VLOOKUP($C21,'RECAP SECT'!$G$6:$DC$253,79,FALSE) -> 2,704 | K21: =VLOOKUP($C21,'RECAP SECT'!$G$6:$DC$253,80,FALSE) -> 35.34 | L21: =VLOOKUP($C21,'RECAP SECT'!$G$6:$DC$253,81,FALSE) -> 7% | M21: =VLOOKUP($C21,'RECAP SECT'!$G$6:$DC$253,82,FALSE) -> 2 | N21: =VLOOKUP($C21,'RECAP SECT'!$G$6:$DC$253,83,FALSE) -> 18% | O21: =VLOOKUP($C21,'RECAP SECT'!$G$6:$DC$253,84,FALSE) -> 15% | P21: =VLOOKUP($C21,'RECAP SECT'!$G$6:$DC$253,85,FALSE) -> 6
A22: 110 | B22: MEURTHE ET MOSELLE MEUSE | C22: 31 | D22: VERDUN | E22: =VLOOKUP($C22,'RECAP SECT'!$G$6:$DC$253,3,FALSE) -> 55.1 | F22: =VLOOKUP($C22,'RECAP SECT'!$G$6:$DC$253,75,FALSE) -> 8,428 | G22: =VLOOKUP($C22,'RECAP SECT'!$G$6:$DC$253,76,FALSE) -> 152.90 | H22: =VLOOKUP($C22,'RECAP SECT'!$G$6:$DC$253,77,FALSE) -> 28% | I22: =VLOOKUP($C22,'RECAP SECT'!$G$6:$DC$253,78,FALSE) -> 13 | J22: =VLOOKUP($C22,'RECAP SECT'!$G$6:$DC$253,79,FALSE) -> 1,693 | K22: =VLOOKUP($C22,'RECAP SECT'!$G$6:$DC$253,80,FALSE) -> 30.71 | L22: =VLOOKUP($C22,'RECAP SECT'!$G$6:$DC$253,81,FALSE) -> 20% | M22: =VLOOKUP($C22,'RECAP SECT'!$G$6:$DC$253,82,FALSE) -> 8 | N22: =VLOOKUP($C22,'RECAP SECT'!$G$6:$DC$253,83,FALSE) -> 26% | O22: =VLOOKUP($C22,'RECAP SECT'!$G$6:$DC$253,84,FALSE) -> 23% | P22: =VLOOKUP($C22,'RECAP SECT'!$G$6:$DC$253,85,FALSE) -> 12
A23: 160 | B23: MOSELLE | C23: 45 | D23: METZ | E23: =VLOOKUP($C23,'RECAP SECT'!$G$6:$DC$253,3,FALSE) -> 88.4 | F23: =VLOOKUP($C23,'RECAP SECT'!$G$6:$DC$253,75,FALSE) -> 11,682 | G23: =VLOOKUP($C23,'RECAP SECT'!$G$6:$DC$253,76,FALSE) -> 132.08 | H23: =VLOOKUP($C23,'RECAP SECT'!$G$6:$DC$253,77,FALSE) -> 38% | I23: =VLOOKUP($C23,'RECAP SECT'!$G$6:$DC$253,78,FALSE) -> 15 | J23: =VLOOKUP($C23,'RECAP SECT'!$G$6:$DC$253,79,FALSE) -> 2,525 | K23: =VLOOKUP($C23,'RECAP SECT'!$G$6:$DC$253,80,FALSE) -> 28.55 | L23: =VLOOKUP($C23,'RECAP SECT'!$G$6:$DC$253,81,FALSE) -> 25% | M23: =VLOOKUP($C23,'RECAP SECT'!$G$6:$DC$253,82,FALSE) -> 11 | N23: =VLOOKUP($C23,'RECAP SECT'!$G$6:$DC$253,83,FALSE) -> 34% | O23: =VLOOKUP($C23,'RECAP SECT'!$G$6:$DC$253,84,FALSE) -> 31% | P23: =VLOOKUP($C23,'RECAP SECT'!$G$6:$DC$253,85,FALSE) -> 14
A24: 160 | B24: MOSELLE | C24: 42 | D24: MOSELLE EST | E24: =VLOOKUP($C24,'RECAP SECT'!$G$6:$DC$253,3,FALSE) -> 70.2 | F24: =VLOOKUP($C24,'RECAP SECT'!$G$6:$DC$253,75,FALSE) -> 11,303 | G24: =VLOOKUP($C24,'RECAP SECT'!$G$6:$DC$253,76,FALSE) -> 160.95 | H24: =VLOOKUP($C24,'RECAP SECT'!$G$6:$DC$253,77,FALSE) -> 25% | I24: =VLOOKUP($C24,'RECAP SECT'!$G$6:$DC$253,78,FALSE) -> 11 | J24: =VLOOKUP($C24,'RECAP SECT'!$G$6:$DC$253,79,FALSE) -> 2,015 | K24: =VLOOKUP($C24,'RECAP SECT'!$G$6:$DC$253,80,FALSE) -> 28.69 | L24: =VLOOKUP($C24,'RECAP SECT'!$G$6:$DC$253,81,FALSE) -> 25% | M24: =VLOOKUP($C24,'RECAP SECT'!$G$6:$DC$253,82,FALSE) -> 10 | N24: =VLOOKUP($C24,'RECAP SECT'!$G$6:$DC$253,83,FALSE) -> 25% | O24: =VLOOKUP($C24,'RECAP SECT'!$G$6:$DC$253,84,FALSE) -> 22% | P24: =VLOOKUP($C24,'RECAP SECT'!$G$6:$DC$253,85,FALSE) -> 10
A25: 160 | B25: MOSELLE | C25: 44 | D25: MOSELLE NORD | E25: =VLOOKUP($C25,'RECAP SECT'!$G$6:$DC$253,3,FALSE) -> 65.8 | F25: =VLOOKUP($C25,'RECAP SECT'!$G$6:$DC$253,75,FALSE) -> 11,230 | G25: =VLOOKUP($C25,'RECAP SECT'!$G$6:$DC$253,76,FALSE) -> 170.62 | H25: =VLOOKUP($C25,'RECAP SECT'!$G$6:$DC$253,77,FALSE) -> 20% | I25: =VLOOKUP($C25,'RECAP SECT'!$G$6:$DC$253,78,FALSE) -> 7 | J25: =VLOOKUP($C25,'RECAP SECT'!$G$6:$DC$253,79,FALSE) -> 2,025 | K25: =VLOOKUP($C25,'RECAP SECT'!$G$6:$DC$253,80,FALSE) -> 30.77 | L25: =VLOOKUP($C25,'RECAP SECT'!$G$6:$DC$253,81,FALSE) -> 19% | M25: =VLOOKUP($C25,'RECAP SECT'!$G$6:$DC$253,82,FALSE) -> 7 | N25: =VLOOKUP($C25,'RECAP SECT'!$G$6:$DC$253,83,FALSE) -> 20% | O25: =VLOOKUP($C25,'RECAP SECT'!$G$6:$DC$253,84,FALSE) -> 17% | P25: =VLOOKUP($C25,'RECAP SECT'!$G$6:$DC$253,85,FALSE) -> 7
A26: 80 | B26: VOSGES | C26: 57 | D26: EPINAL | E26: =VLOOKUP($C26,'RECAP SECT'!$G$6:$DC$253,3,FALSE) -> 61.1 | F26: =VLOOKUP($C26,'RECAP SECT'!$G$6:$DC$253,75,FALSE) -> 10,644 | G26: =VLOOKUP($C26,'RECAP SECT'!$G$6:$DC$253,76,FALSE) -> 174.24 | H26: =VLOOKUP($C26,'RECAP SECT'!$G$6:$DC$253,77,FALSE) -> 18% | I26: =VLOOKUP($C26,'RECAP SECT'!$G$6:$DC$253,78,FALSE) -> 6 | J26: =VLOOKUP($C26,'RECAP SECT'!$G$6:$DC$253,79,FALSE) -> 1,697 | K26: =VLOOKUP($C26,'RECAP SECT'!$G$6:$DC$253,80,FALSE) -> 27.78 | L26: =VLOOKUP($C26,'RECAP SECT'!$G$6:$DC$253,81,FALSE) -> 27% | M26: =VLOOKUP($C26,'RECAP SECT'!$G$6:$DC$253,82,FALSE) -> 14 | N26: =VLOOKUP($C26,'RECAP SECT'!$G$6:$DC$253,83,FALSE) -> 21% | O26: =VLOOKUP($C26,'RECAP SECT'!$G$6:$DC$253,84,FALSE) -> 18% | P26: =VLOOKUP($C26,'RECAP SECT'!$G$6:$DC$253,85,FALSE) -> 9
A27: 80 | B27: VOSGES | C27: 55 | D27: SAINT DIE | E27: =VLOOKUP($C27,'RECAP SECT'!$G$6:$DC$253,3,FALSE) -> 47.1 | F27: =VLOOKUP($C27,'RECAP SECT'!$G$6:$DC$253,75,FALSE) -> 6,342 | G27: =VLOOKUP($C27,'RECAP SECT'!$G$6:$DC$253,76,FALSE) -> 134.70 | H27: =VLOOKUP($C27,'RECAP SECT'!$G$6:$DC$253,77,FALSE) -> 37% | I27: =VLOOKUP($C27,'RECAP SECT'!$G$6:$DC$253,78,FALSE) -> 14 | J27: =VLOOKUP($C27,'RECAP SECT'!$G$6:$DC$253,79,FALSE) -> 1,178 | K27: =VLOOKUP($C27,'RECAP SECT'!$G$6:$DC$253,80,FALSE) -> 25.02 | L27: =VLOOKUP($C27,'RECAP SECT'!$G$6:$DC$253,81,FALSE) -> 34% | M27: =VLOOKUP($C27,'RECAP SECT'!$G$6:$DC$253,82,FALSE) -> 17 | N27: =VLOOKUP($C27,'RECAP SECT'!$G$6:$DC$253,83,FALSE) -> 36% | O27: =VLOOKUP($C27,'RECAP SECT'!$G$6:$DC$253,84,FALSE) -> 33% | P27: =VLOOKUP($C27,'RECAP SECT'!$G$6:$DC$253,85,FALSE) -> 15
A28: Total CEGEE Directions Régionales | E28: =SUM(E10:E27) -> 1140

Sheet SE_SATISFACTION
B1: Accueil | F1: BAROMETRE BDD - TERRITOIRES
F2: SATISFACTION
F3: =ACCUEIL!F7 -> 2021-08-22
F7: NPS à froid (SAE) | I7: NPS à chaud (QHD) | L7: Total Satisfaction Clients
F8: =DATEMAJ!E4 -> au 30/06 | G8: coef | H8: ='RECAP DIRCOM'!M4 -> 10% | I8: =DATEMAJ!C5 -> au 30/06 | J8: coef | K8: ='RECAP DIRCOM'!P4 -> 10% | M8: coef | N8: ='RECAP DIRCOM'!S4 -> 20%
B9: Direction | C9: eds | D9: Territoire | E9: ="ETP perf "&DATEMAJ!$C$28 -> ETP perf 30-juin | G9: % Ecart au 1er | H9: Rang | J9: % Ecart au 1er | K9: Rang | L9: Moyenne ecart au 1er | M9: % Ecart au 1er | N9: Rang CEGEE
A10: 50 | B10: AUBE HAUTE MARNE | C10: 21 | D10: CHAUMONT | E10: =VLOOKUP($C10,'RECAP SECT'!$G$6:$DC$253,3,FALSE) -> 33.9 | F10: =VLOOKUP($C10,'RECAP SECT'!$G$6:$DC$253,5,FALSE) -> 10 | G10: =VLOOKUP($C10,'RECAP SECT'!$G$6:$DC$253,6,FALSE) -> 58% | H10: =VLOOKUP($C10,'RECAP SECT'!$G$6:$DC$253,7,FALSE) -> 12 | I10: =VLOOKUP($C10,'RECAP SECT'!$G$6:$DC$253,8,FALSE) -> 62% | J10: =VLOOKUP($C10,'RECAP SECT'!$G$6:$DC$253,9,FALSE) -> 15% | K10: =VLOOKUP($C10,'RECAP SECT'!$G$6:$DC$253,10,FALSE) -> 6 | L10: =VLOOKUP($C10,'RECAP SECT'!$G$6:$DC$253,11,FALSE) -> 37% | M10: =VLOOKUP($C10,'RECAP SECT'!$G$6:$DC$253,12,FALSE) -> 33% | N10: =VLOOKUP($C10,'RECAP SECT'!$G$6:$DC$253,13,FALSE) -> 11
A11: 50 | B11: AUBE HAUTE MARNE | C11: 14 | D11: TROYES | E11: =VLOOKUP($C11,'RECAP SECT'!$G$6:$DC$253,3,FALSE) -> 67.1 | F11: =VLOOKUP($C11,'RECAP SECT'!$G$6:$DC$253,5,FALSE) -> 19 | G11: =VLOOKUP($C11,'RECAP SECT'!$G$6:$DC$253,6,FALSE) -> 21% | H11: =VLOOKUP($C11,'RECAP SECT'!$G$6:$DC$253,7,FALSE) -> 5 | I11: =VLOOKUP($C11,'RECAP SECT'!$G$6:$DC$253,8,FALSE) -> 53% | J11: =VLOOKUP($C11,'RECAP SECT'!$G$6:$DC$253,9,FALSE) -> 28% | K11: =VLOOKUP($C11,'RECAP SECT'!$G$6:$DC$253,10,FALSE) -> 13 | L11: =VLOOKUP($C11,'RECAP SECT'!$G$6:$DC$253,11,FALSE) -> 25% | M11: =VLOOKUP($C11,'RECAP SECT'!$G$6:$DC$253,12,FALSE) -> 21% | N11: =VLOOKUP($C11,'RECAP SECT'!$G$6:$DC$253,13,FALSE) -> 6
A12: 262 | B12: BAS-RHIN | C12: 5060 | D12: HAGUENAU | E12: =VLOOKUP($C12,'RECAP SECT'!$G$6:$DC$253,3,FALSE) -> 70.0 | F12: =VLOOKUP($C12,'RECAP SECT'!$G$6:$DC$253,5,FALSE) -> 10 | G12: =VLOOKUP($C12,'RECAP SECT'!$G$6:$DC$253,6,FALSE) -> 58% | H12: =VLOOKUP($C12,'RECAP SECT'!$G$6:$DC$253,7,FALSE) -> 12 | I12: =VLOOKUP($C12,'RECAP SECT'!$G$6:$DC$253,8,FALSE) -> 54% | J12: =VLOOKUP($C12,'RECAP SECT'!$G$6:$DC$253,9,FALSE) -> 27% | K12: =VLOOKUP($C12,'RECAP SECT'!$G$6:$DC$253,10,FALSE) -> 11 | L12: =VLOOKUP($C12,'RECAP SECT'!$G$6:$DC$253,11,FALSE) -> 42% | M12: =VLOOKUP($C12,'RECAP SECT'!$G$6:$DC$253,12,FALSE) -> 38% | N12: =VLOOKUP($C12,'RECAP SECT'!$G$6:$DC$253,13,FALSE) -> 13
A13: 262 | B13: BAS-RHIN | C13: 5101 | D13: SELESTAT | E13: =VLOOKUP($C13,'RECAP SECT'!$G$6:$DC$253,3,FALSE) -> 59.9 | F13: =VLOOKUP($C13,'RECAP SECT'!$G$6:$DC$253,5,FALSE) -> 10 | G13: =VLOOKUP($C13,'RECAP SECT'!$G$6:$DC$253,6,FALSE) -> 58% | H13: =VLOOKUP($C13,'RECAP SECT'!$G$6:$DC$253,7,FALSE) -> 12 | I13: =VLOOKUP($C13,'RECAP SECT'!$G$6:$DC$253,8,FALSE) -> 53% | J13: =VLOOKUP($C13,'RECAP SECT'!$G$6:$DC$253,9,FALSE) -> 27% | K13: =VLOOKUP($C13,'RECAP SECT'!$G$6:$DC$253,10,FALSE) -> 12 | L13: =VLOOKUP($C13,'RECAP SECT'!$G$6:$DC$253,11,FALSE) -> 43% | M13: =VLOOKUP($C13,'RECAP SECT'!$G$6:$DC$253,12,FALSE) -> 39% | N13: =VLOOKUP($C13,'RECAP SECT'!$G$6:$DC$253,13,FALSE) -> 14
A14: 262 | B14: BAS-RHIN | C14: 5006 | D14: STRASBOURG | E14: =VLOOKUP($C14,'RECAP SECT'!$G$6:$DC$253,3,FALSE) -> 75.2 | F14: =VLOOKUP($C14,'RECAP SECT'!$G$6:$DC$253,5,FALSE) -> 17 | G14: =VLOOKUP($C14,'RECAP SECT'!$G$6:$DC$253,6,FALSE) -> 29% | H14: =VLOOKUP($C14,'RECAP SECT'!$G$6:$DC$253,7,FALSE) -> 7 | I14: =VLOOKUP($C14,'RECAP SECT'!$G$6:$DC$253,8,FALSE) -> 52% | J14: =VLOOKUP($C14,'RECAP SECT'!$G$6:$DC$253,9,FALSE) -> 30% | K14: =VLOOKUP($C14,'RECAP SECT'!$G$6:$DC$253,10,FALSE) -> 15 | L14: =VLOOKUP($C14,'RECAP SECT'!$G$6:$DC$253,11,FALSE) -> 29% | M14: =VLOOKUP($C14,'RECAP SECT'!$G$6:$DC$253,12,FALSE) -> 25% | N14: =VLOOKUP($C14,'RECAP SECT'!$G$6:$DC$253,13,FALSE) -> 8
A15: 264 | B15: HAUT-RHIN | C15: 5130 | D15: COLMAR | E15: =VLOOKUP($C15,'RECAP SECT'!$G$6:$DC$253,3,FALSE) -> 61.5 | F15: =VLOOKUP($C15,'RECAP SECT'!$G$6:$DC$253,5,FALSE) -> 6 | G15: =VLOOKUP($C15,'RECAP SECT'!$G$6:$DC$253,6,FALSE) -> 75% | H15: =VLOOKUP($C15,'RECAP SECT'!$G$6:$DC$253,7,FALSE) -> 17 | I15: =VLOOKUP($C15,'RECAP SECT'!$G$6:$DC$253,8,FALSE) -> 47% | J15: =VLOOKUP($C15,'RECAP SECT'!$G$6:$DC$253,9,FALSE) -> 36% | K15: =VLOOKUP($C15,'RECAP SECT'!$G$6:$DC$253,10,FALSE) -> 17 | L15: =VLOOKUP($C15,'RECAP SECT'!$G$6:$DC$253,11,FALSE) -> 55% | M15: =VLOOKUP($C15,'RECAP SECT'!$G$6:$DC$253,12,FALSE) -> 51% | N15: =VLOOKUP($C15,'RECAP SECT'!$G$6:$DC$253,13,FALSE) -> 17
A16: 264 | B16: HAUT-RHIN | C16: 5169 | D16: MULHOUSE | E16: =VLOOKUP($C16,'RECAP SECT'!$G$6:$DC$253,3,FALSE) -> 61.1 | F16: =VLOOKUP($C16,'RECAP SECT'!$G$6:$DC$253,5,FALSE) -> 6 | G16: =VLOOKUP($C16,'RECAP SECT'!$G$6:$DC$253,6,FALSE) -> 75% | H16: =VLOOKUP($C16,'RECAP SECT'!$G$6:$DC$253,7,FALSE) -> 17 | I16: =VLOOKUP($C16,'RECAP SECT'!$G$6:$DC$253,8,FALSE) -> 32% | J16: =VLOOKUP($C16,'RECAP SECT'!$G$6:$DC$253,9,FALSE) -> 56% | K16: =VLOOKUP($C16,'RECAP SECT'!$G$6:$DC$253,10,FALSE) -> 18 | L16: =VLOOKUP($C16,'RECAP SECT'!$G$6:$DC$253,11,FALSE) -> 66% | M16: =VLOOKUP($C16,'RECAP SECT'!$G$6:$DC$253,12,FALSE) -> 62% | N16: =VLOOKUP($C16,'RECAP SECT'!$G$6:$DC$253,13,FALSE) -> 18
A17: 30 | B17: MARNE-ARDENNES | C17: 6 | D17: CHALONS EN CHAMPAGNE | E17: =VLOOKUP($C17,'RECAP SECT'!$G$6:$DC$253,3,FALSE) -> 44.7 | F17: =VLOOKUP($C17,'RECAP SECT'!$G$6:$DC$253,5,FALSE) -> 21 | G17: =VLOOKUP($C17,'RECAP SECT'!$G$6:$DC$253,6,FALSE) -> 13% | H17: =VLOOKUP($C17,'RECAP SECT'!$G$6:$DC$253,7,FALSE) -> 3 | I17: =VLOOKUP($C17,'RECAP SECT'!$G$6:$DC$253,8,FALSE) -> 74% | J17: =VLOOKUP($C17,'RECAP SECT'!$G$6:$DC$253,9,FALSE) -> 0% | K17: =VLOOKUP($C17,'RECAP SECT'!$G$6:$DC$253,10,FALSE) -> 1 | L17: =VLOOKUP($C17,'RECAP SECT'!$G$6:$DC$253,11,FALSE) -> 6% | M17: =VLOOKUP($C17,'RECAP SECT'!$G$6:$DC$253,12,FALSE) -> 2% | N17: =VLOOKUP($C17,'RECAP SECT'!$G$6:$DC$253,13,FALSE) -> 3
A18: 30 | B18: MARNE-ARDENNES | C18: 2 | D18: CHARLEVILLE MEZIERES | E18: =VLOOKUP($C18,'RECAP SECT'!$G$6:$DC$253,3,FALSE) -> 56.6 | F18: =VLOOKUP($C18,'RECAP SECT'!$G$6:$DC$253,5,FALSE) -> 21 | G18: =VLOOKUP($C18,'RECAP SECT'!$G$6:$DC$253,6,FALSE) -> 13% | H18: =VLOOKUP($C18,'RECAP SECT'!$G$6:$DC$253,7,FALSE) -> 3 | I18: =VLOOKUP($C18,'RECAP SECT'!$G$6:$DC$253,8,FALSE) -> 67% | J18: =VLOOKUP($C18,'RECAP SECT'!$G$6:$DC$253,9,FALSE) -> 9% | K18: =VLOOKUP($C18,'RECAP SECT'!$G$6:$DC$253,10,FALSE) -> 4 | L18: =VLOOKUP($C18,'RECAP SECT'!$G$6:$DC$253,11,FALSE) -> 11% | M18: =VLOOKUP($C18,'RECAP SECT'!$G$6:$DC$253,12,FALSE) -> 7% | N18: =VLOOKUP($C18,'RECAP SECT'!$G$6:$DC$253,13,FALSE) -> 4
A19: 30 | B19: MARNE-ARDENNES | C19: 11 | D19: REIMS | E19: =VLOOKUP($C19,'RECAP SECT'!$G$6:$DC$253,3,FALSE) -> 79.7 | F19: =VLOOKUP($C19,'RECAP SECT'!$G$6:$DC$253,5,FALSE) -> 10 | G19: =VLOOKUP($C19,'RECAP SECT'!$G$6:$DC$253,6,FALSE) -> 58% | H19: =VLOOKUP($C19,'RECAP SECT'!$G$6:$DC$253,7,FALSE) -> 12 | I19: =VLOOKUP($C19,'RECAP SECT'!$G$6:$DC$253,8,FALSE) -> 62% | J19: =VLOOKUP($C19,'RECAP SECT'!$G$6:$DC$253,9,FALSE) -> 16% | K19: =VLOOKUP($C19,'RECAP SECT'!$G$6:$DC$253,10,FALSE) -> 7 | L19: =VLOOKUP($C19,'RECAP SECT'!$G$6:$DC$253,11,FALSE) -> 37% | M19: =VLOOKUP($C19,'RECAP SECT'!$G$6:$DC$253,12,FALSE) -> 33% | N19: =VLOOKUP($C19,'RECAP SECT'!$G$6:$DC$253,13,FALSE) -> 12
A20: 110 | B20: MEURTHE ET MOSELLE MEUSE | C20: 26 | D20: NANCY | E20: =VLOOKUP($C20,'RECAP SECT'!$G$6:$DC$253,3,FALSE) -> 66.2 | F20: =VLOOKUP($C20,'RECAP SECT'!$G$6:$DC$253,5,FALSE) -> 14 | G20: =VLOOKUP($C20,'RECAP SECT'!$G$6:$DC$253,6,FALSE) -> 42% | H20: =VLOOKUP($C20,'RECAP SECT'!$G$6:$DC$253,7,FALSE) -> 9 | I20: =VLOOKUP($C20,'RECAP SECT'!$G$6:$DC$253,8,FALSE) -> 57% | J20: =VLOOKUP($C20,'RECAP SECT'!$G$6:$DC$253,9,FALSE) -> 23% | K20: =VLOOKUP($C20,'RECAP SECT'!$G$6:$DC$253,10,FALSE) -> 10 | L20: =VLOOKUP($C20,'RECAP SECT'!$G$6:$DC$253,11,FALSE) -> 32% | M20: =VLOOKUP($C20,'RECAP SECT'!$G$6:$DC$253,12,FALSE) -> 28% | N20: =VLOOKUP($C20,'RECAP SECT'!$G$6:$DC$253,13,FALSE) -> 10
A21: 110 | B21: MEURTHE ET MOSELLE MEUSE | C21: 27 | D21: PONT A MOUSSON | E21: =VLOOKUP($C21,'RECAP SECT'!$G$6:$DC$253,3,FALSE) -> 76.5 | F21: =VLOOKUP($C21,'RECAP SECT'!$G$6:$DC$253,5,FALSE) -> 11 | G21: =VLOOKUP($C21,'RECAP SECT'!$G$6:$DC$253,6,FALSE) -> 54% | H21: =VLOOKUP($C21,'RECAP SECT'!$G$6:$DC$253,7,FALSE) -> 11 | I21: =VLOOKUP($C21,'RECAP SECT'!$G$6:$DC$253,8,FALSE) -> 50% | J21: =VLOOKUP($C21,'RECAP SECT'!$G$6:$DC$253,9,FALSE) -> 32% | K21: =VLOOKUP($C21,'RECAP SECT'!$G$6:$DC$253,10,FALSE) -> 16 | L21: =VLOOKUP($C21,'RECAP SECT'!$G$6:$DC$253,11,FALSE) -> 43% | M21: =VLOOKUP($C21,'RECAP SECT'!$G$6:$DC$253,12,FALSE) -> 39% | N21: =VLOOKUP($C21,'RECAP SECT'!$G$6:$DC$253,13,FALSE) -> 15
A22: 110 | B22: MEURTHE ET MOSELLE MEUSE | C22: 31 | D22: VERDUN | E22: =VLOOKUP($C22,'RECAP SECT'!$G$6:$DC$253,3,FALSE) -> 55.1 | F22: =VLOOKUP($C22,'RECAP SECT'!$G$6:$DC$253,5,FALSE) -> 18 | G22: =VLOOKUP($C22,'RECAP SECT'!$G$6:$DC$253,6,FALSE) -> 25% | H22: =VLOOKUP($C22,'RECAP SECT'!$G$6:$DC$253,7,FALSE) -> 6 | I22: =VLOOKUP($C22,'RECAP SECT'!$G$6:$DC$253,8,FALSE) -> 62% | J22: =VLOOKUP($C22,'RECAP SECT'!$G$6:$DC$253,9,FALSE) -> 15% | K22: =VLOOKUP($C22,'RECAP SECT'!$G$6:$DC$253,10,FALSE) -> 5 | L22: =VLOOKUP($C22,'RECAP SECT'!$G$6:$DC$253,11,FALSE) -> 20% | M22: =VLOOKUP($C22,'RECAP SECT'!$G$6:$DC$253,12,FALSE) -> 16% | N22: =VLOOKUP($C22,'RECAP SECT'!$G$6:$DC$253,13,FALSE) -> 5
A23: 160 | B23: MOSELLE | C23: 45 | D23: METZ | E23: =VLOOKUP($C23,'RECAP SECT'!$G$6:$DC$253,3,FALSE) -> 88.4 | F23: =VLOOKUP($C23,'RECAP SECT'!$G$6:$DC$253,5,FALSE) -> 14 | G23: =VLOOKUP($C23,'RECAP SECT'!$G$6:$DC$253,6,FALSE) -> 42% | H23: =VLOOKUP($C23,'RECAP SECT'!$G$6:$DC$253,7,FALSE) -> 9 | I23: =VLOOKUP($C23,'RECAP SECT'!$G$6:$DC$253,8,FALSE) -> 58% | J23: =VLOOKUP($C23,'RECAP SECT'!$G$6:$DC$253,9,FALSE) -> 21% | K23: =VLOOKUP($C23,'RECAP SECT'!$G$6:$DC$253,10,FALSE) -> 9 | L23: =VLOOKUP($C23,'RECAP SECT'!$G$6:$DC$253,11,FALSE) -> 31% | M23: =VLOOKUP($C23,'RECAP SECT'!$G$6:$DC$253,12,FALSE) -> 27% | N23: =VLOOKUP($C23,'RECAP SECT'!$G$6:$DC$253,13,FALSE) -> 9
A24: 160 | B24: MOSELLE | C24: 42 | D24: MOSELLE EST | E24: =VLOOKUP($C24,'RECAP SECT'!$G$6:$DC$253,3,FALSE) -> 70.2 | F24: =VLOOKUP($C24,'RECAP SECT'!$G$6:$DC$253,5,FALSE) -> 15 | G24: =VLOOKUP($C24,'RECAP SECT'!$G$6:$DC$253,6,FALSE) -> 38% | H24: =VLOOKUP($C24,'RECAP SECT'!$G$6:$DC$253,7,FALSE) -> 8 | I24: =VLOOKUP($C24,'RECAP SECT'!$G$6:$DC$253,8,FALSE) -> 61% | J24: =VLOOKUP($C24,'RECAP SECT'!$G$6:$DC$253,9,FALSE) -> 17% | K24: =VLOOKUP($C24,'RECAP SECT'!$G$6:$DC$253,10,FALSE) -> 8 | L24: =VLOOKUP($C24,'RECAP SECT'!$G$6:$DC$253,11,FALSE) -> 27% | M24: =VLOOKUP($C24,'RECAP SECT'!$G$6:$DC$253,12,FALSE) -> 23% | N24: =VLOOKUP($C24,'RECAP SECT'!$G$6:$DC$253,13,FALSE) -> 7
A25: 160 | B25: MOSELLE | C25: 44 | D25: MOSELLE NORD | E25: =VLOOKUP($C25,'RECAP SECT'!$G$6:$DC$253,3,FALSE) -> 65.8 | F25: =VLOOKUP($C25,'RECAP SECT'!$G$6:$DC$253,5,FALSE) -> 9 | G25: =VLOOKUP($C25,'RECAP SECT'!$G$6:$DC$253,6,FALSE) -> 63% | H25: =VLOOKUP($C25,'RECAP SECT'!$G$6:$DC$253,7,FALSE) -> 16 | I25: =VLOOKUP($C25,'RECAP SECT'!$G$6:$DC$253,8,FALSE) -> 52% | J25: =VLOOKUP($C25,'RECAP SECT'!$G$6:$DC$253,9,FALSE) -> 29% | K25: =VLOOKUP($C25,'RECAP SECT'!$G$6:$DC$253,10,FALSE) -> 14 | L25: =VLOOKUP($C25,'RECAP SECT'!$G$6:$DC$253,11,FALSE) -> 46% | M25: =VLOOKUP($C25,'RECAP SECT'!$G$6:$DC$253,12,FALSE) -> 42% | N25: =VLOOKUP($C25,'RECAP SECT'!$G$6:$DC$253,13,FALSE) -> 16
A26: 80 | B26: VOSGES | C26: 57 | D26: EPINAL | E26: =VLOOKUP($C26,'RECAP SECT'!$G$6:$DC$253,3,FALSE) -> 61.1 | F26: =VLOOKUP($C26,'RECAP SECT'!$G$6:$DC$253,5,FALSE) -> 24 | G26: =VLOOKUP($C26,'RECAP SECT'!$G$6:$DC$253,6,FALSE) -> 0% | H26: =VLOOKUP($C26,'RECAP SECT'!$G$6:$DC$253,7,FALSE) -> 1 | I26: =VLOOKUP($C26,'RECAP SECT'!$G$6:$DC$253,8,FALSE) -> 68% | J26: =VLOOKUP($C26,'RECAP SECT'!$G$6:$DC$253,9,FALSE) -> 8% | K26: =VLOOKUP($C26,'RECAP SECT'!$G$6:$DC$253,10,FALSE) -> 3 | L26: =VLOOKUP($C26,'RECAP SECT'!$G$6:$DC$253,11,FALSE) -> 4% | M26: =VLOOKUP($C26,'RECAP SECT'!$G$6:$DC$253,12,FALSE) -> 0% | N26: =VLOOKUP($C26,'RECAP SECT'!$G$6:$DC$253,13,FALSE) -> 1
A27: 80 | B27: VOSGES | C27: 55 | D27: SAINT DIE | E27: =VLOOKUP($C27,'RECAP SECT'!$G$6:$DC$253,3,FALSE) -> 47.1 | F27: =VLOOKUP($C27,'RECAP SECT'!$G$6:$DC$253,5,FALSE) -> 23 | G27: =VLOOKUP($C27,'RECAP SECT'!$G$6:$DC$253,6,FALSE) -> 4% | H27: =VLOOKUP($C27,'RECAP SECT'!$G$6:$DC$253,7,FALSE) -> 2 | I27: =VLOOKUP($C27,'RECAP SECT'!$G$6:$DC$253,8,FALSE) -> 69% | J27: =VLOOKUP($C27,'RECAP SECT'!$G$6:$DC$253,9,FALSE) -> 7% | K27: =VLOOKUP($C27,'RECAP SECT'!$G$6:$DC$253,10,FALSE) -> 2 | L27: =VLOOKUP($C27,'RECAP SECT'!$G$6:$DC$253,11,FALSE) -> 5% | M27: =VLOOKUP($C27,'RECAP SECT'!$G$6:$DC$253,12,FALSE) -> 1% | N27: =VLOOKUP($C27,'RECAP SECT'!$G$6:$DC$253,13,FALSE) -> 2
A28: Total CEGEE Directions Régionales | E28: =SUM(E10:E27) -> 1140

Sheet AG_CLASS
B1: Accueil | H1: BAROMETRE BDD - AGENCES
H2: CLASSEMENTS
H3: =ACCUEIL!F7 -> 2021-08-22
H8: CLASSEMENT GENERAL | I8: CRITERE Satisfaction Clients | J8: NPS à froid (SAE) | K8: NPS à chaud (QHD) | L8: CRITERE BANCARISATION | M8: Ventes Nettes produits pondérés | N8: Ventes sur client non détenteur de l’univers | O8: Mobilité Macron | P8: Remises commerciales | Q8: CRITERE EPARGNE | R8: Excédent Epargne y/c DAV pondéré | S8: Ventes sur client non détenteur de l’univers | T8: CRITERE IARD PREVOYANCE | U8: Ventes Nettes produits pondérés | V8: Ventes sur client non détenteur de l’univers | W8: CRITERE CREDITS | X8: Engagements et ventes accessoires pondérés Immo | Y8: Engagements et ventes accessoires pondérés Conso | Z8: Ventes sur client non détenteur de l’univers
B9: Direction | C9: eds | D9: Territoire | E9: eds | F9: Agence | G9: ="ETP perf "&DATEMAJ!$C$28 -> ETP perf 30-juin | H9: Rang | I9: Rang | J9: Rang | K9: Rang | L9: Rang | M9: Rang | N9: Rang | O9: Rang | P9: Rang | Q9: Rang | R9: Rang | S9: Rang | T9: Rang | U9: Rang | V9: Rang | W9: Rang | X9: Rang | Y9: Rang | Z9: Rang
A10: 50 | B10: MEURTHE ET MOSELLE MEUSE | C10: 26 | D10: NANCY | E10: 454481 | F10: NANCY PLACE DOMBASLE | G10: 11.6 | H10: 1 | I10: 131 | J10: 131 | K10: 142 | L10: 1 | M10: 2 | N10: 2 | O10: 1 | P10: 241 | Q10: 16 | R10: 70 | S10: 3 | T10: 4 | U10: 7 | V10: 3 | W10: 3 | X10: 3 | Y10: 92 | Z10: 1
A11: 50 | B11: MEURTHE ET MOSELLE MEUSE | C11: 27 | D11: PONT A MOUSSON | E11: 554531 | F11: POMPEY | G11: 2.8 | H11: 2 | I11: 91 | J11: 102 | K11: 83 | L11: 2 | M11: 1 | N11: 13 | O11: 8 | P11: 97 | Q11: 6 | R11: 14 | S11: 4 | T11: 19 | U11: 20 | V11: 18 | W11: 9 | X11: 11 | Y11: 10 | Z11: 20
A12: 50 | B12: MEURTHE ET MOSELLE MEUSE | C12: 26 | D12: NANCY | E12: 554356 | F12: JARVILLE LA MALGRANGE | G12: 3.5 | H12: 3 | I12: 37 | J12: 47 | K12: 49 | L12: 3 | M12: 8 | N12: 5 | O12: 2 | P12: 140 | Q12: 58 | R12: 106 | S12: 20 | T12: 9 | U12: 12 | V12: 11 | W12: 5 | X12: 4 | Y12: 110 | Z12: 4
A13: 50 | B13: MARNE-ARDENNES | C13: 2 | D13: CHARLEVILLE MEZIERES | E13: 408822 | F13: CHARLEVILLE MEZIERES | G13: 3.7 | H13: 4 | I13: 109 | J13: 113 | K13: 125 | L13: 30 | M13: 81 | N13: 6 | O13: 4 | P13: 154 | Q13: 3 | R13: 13 | S13: 2 | T13: 6 | U13: 11 | V13: 8 | W13: 14 | X13: 9 | Y13: 183 | Z13: 8
A14: 50 | B14: MOSELLE | C14: 42 | D14: MOSELLE EST | E14: 457163 | F14: BEHREN LES FORBACH | G14: 2.4 | H14: 5 | I14: 3 | J14: 5 | K14: 20 | L14: 12 | M14: 39 | N14: 7 | O14: 19 | P14: 106 | Q14: 107 | R14: 165 | S14: 24 | T14: 46 | U14: 62 | V14: 26 | W14: 4 | X14: 10 | Y14: 5 | Z14: 3
A15: 50 | B15: MARNE-ARDENNES | C15: 6 | D15: CHALONS EN CHAMPAGNE | E15: 451115 | F15: MOURMELON LE GRAND | G15: 2.9 | H15: 6 | I15: 50 | J15: 85 | K15: 13 | L15: 7 | M15: 6 | N15: 45 | O15: 3 | P15: 234 | Q15: 21 | R15: 152 | S15: 1 | T15: 28 | U15: 32 | V15: 31 | W15: 13 | X15: 31 | Y15: 3 | Z15: 14
A16: 50 | B16: MOSELLE | C16: 44 | D16: MOSELLE NORD | E16: 557508 | F16: NILVANGE | G16: 2.6 | H16: 7 | I16: 87 | J16: 85 | K16: 87 | L16: 13 | M16: 12 | N16: 50 | O16: 59 | P16: 134 | Q16: 29 | R16: 93 | S16: 5 | T16: 5 | U16: 8 | V16: 7 | W16: 25 | X16: 34 | Y16: 44 | Z16: 36
A17: 50 | B17: MOSELLE | C17: 44 | D17: MOSELLE NORD | E17: 557113 | F17: AUDUN LE TICHE | G17: 2.0 | H17: 8 | I17: 59 | J17: 20 | K17: 174 | L17: 23 | M17: 28 | N17: 3 | O17: 240 | P17: 199 | Q17: 79 | R17: 123 | S17: 29 | T17: 34 | U17: 57 | V17: 22 | W17: 2 | X17: 2 | Y17: 30 | Z17: 5
A18: 50 | B18: BAS-RHIN | C18: 5101 | D18: SELESTAT | E18: 4113 | F18: BARR | G18: 2.9 | H18: 9 | I18: 56 | J18: 113 | K18: 7 | L18: 10 | M18: 25 | N18: 118 | O18: 17 | P18: 15 | Q18: 5 | R18: 6 | S18: 8 | T18: 31 | U18: 25 | V18: 121 | W18: 86 | X18: 43 | Y18: 229 | Z18: 67
A19: 50 | B19: MARNE-ARDENNES | C19: 2 | D19: CHARLEVILLE MEZIERES | E19: 508820 | F19: VOUZIERS | G19: 2.9 | H19: 10 | I19: 66 | J19: 64 | K19: 82 | L19: 67 | M19: 92 | N19: 19 | O19: 45 | P19: 180 | Q19: 126 | R19: 122 | S19: 155 | T19: 1 | U19: 1 | V19: 17 | W19: 32 | X19: 50 | Y19: 45 | Z19: 27
A20: 50 | B20: MARNE-ARDENNES | C20: 11 | D20: REIMS | E20: 551349 | F20: REIMS SAINT REMI | G20: 3.0 | H20: 11 | I20: 137 | J20: 173 | K20: 76 | L20: 32 | M20: 43 | N20: 15 | O20: 14 | P20: 215 | Q20: 23 | R20: 46 | S20: 10 | T20: 11 | U20: 10 | V20: 16 | W20: 21 | X20: 24 | Y20: 137 | Z20: 16
A21: 50 | B21: VOSGES | C21: 57 | D21: EPINAL | E21: 488288 | F21: EPINAL LEOPOLD BOURG | G21: 2.0 | H21: 12 | I21: 61 | J21: 78 | K21: 38 | L21: 28 | M21: 35 | N21: 46 | O21: 13 | P21: 205 | Q21: 22 | R21: 15 | S21: 126 | T21: 88 | U21: 71 | V21: 172 | W21: 7 | X21: 8 | Y21: 39 | Z21: 15
A22: 50 | B22: MARNE-ARDENNES | C22: 11 | D22: REIMS | E22: 451336 | F22: TINQUEUX | G22: 5.7 | H22: 13 | I22: 144 | J22: 173 | K22: 106 | L22: 53 | M22: 56 | N22: 27 | O22: 18 | P22: 230 | Q22: 2 | R22: 1 | S22: 121 | T22: 37 | U22: 36 | V22: 48 | W22: 30 | X22: 20 | Y22: 177 | Z22: 33
A23: 50 | B23: MEURTHE ET MOSELLE MEUSE | C23: 27 | D23: PONT A MOUSSON | E23: 454651 | F23: TOUL | G23: 10.4 | H23: 14 | I23: 228 | J23: 118 | K23: 260 | L23: 18 | M23: 15 | N23: 9 | O23: 7 | P23: 248 | Q23: 53 | R23: 42 | S23: 105 | T23: 56 | U23: 88 | V23: 14 | W23: 1 | X23: 1 | Y23: 42 | Z23: 2
A24: 50 | B24: MEURTHE ET MOSELLE MEUSE | C24: 31 | D24: VERDUN | E24: 554413 | F24: LONGWY BAS | G24: 3.6 | H24: 15 | I24: 42 | J24: 47 | K24: 61 | L24: 24 | M24: 32 | N24: 95 | O24: 200 | P24: 31 | Q24: 10 | R24: 21 | S24: 11 | T24: 101 | U24: 95 | V24: 119 | W24: 42 | X24: 32 | Y24: 26 | Z24: 140
A25: 50 | B25: MARNE-ARDENNES | C25: 6 | D25: CHALONS EN CHAMPAGNE | E25: 551330 | F25: MONTMIRAIL | G25: 2.9 | H25: 16 | I25: 15 | J25: 23 | K25: 9 | L25: 135 | M25: 171 | N25: 197 | O25: 58 | P25: 49 | Q25: 18 | R25: 33 | S25: 12 | T25: 48 | U25: 46 | V25: 43 | W25: 52 | X25: 37 | Y25: 72 | Z25: 100
A26: 50 | B26: BAS-RHIN | C26: 5101 | D26: SELESTAT | E26: 4126 | F26: MUTZIG | G26: 2.0 | H26: 17 | I26: 123 | J26: 131 | K26: 135 | L26: 35 | M26: 42 | N26: 33 | O26: 24 | P26: 212 | Q26: 19 | R26: 34 | S26: 13 | T26: 98 | U26: 147 | V26: 36 | W26: 8 | X26: 49 | Y26: 1 | Z26: 17
A27: 50 | B27: MARNE-ARDENNES | C27: 11 | D27: REIMS | E27: 551367 | F27: AY CHAMPAGNE | G27: 2.5 | H27: 18 | I27: 36 | J27: 17 | K27: 146 | L27: 25 | M27: 73 | N27: 22 | O27: 5 | P27: 84 | Q27: 222 | R27: 216 | S27: 193 | T27: 45 | U27: 51 | V27: 39 | W27: 11 | X27: 7 | Y27: 133 | Z27: 10
A28: 50 | B28: MEURTHE ET MOSELLE MEUSE | C28: 26 | D28: NANCY | E28: 554476 | F28: NANCY ARTEM | G28: 2.7 | H28: 19 | I28: 97 | J28: 152 | K28: 30 | L28: 34 | M28: 24 | N28: 30 | O28: 12 | P28: 251 | Q28: 15 | R28: 12 | S28: 109 | T28: 61 | U28: 70 | V28: 46 | W28: 41 | X28: 65 | Y28: 108 | Z28: 11
A29: 50 | B29: MARNE-ARDENNES | C29: 11 | D29: REIMS | E29: 551340 | F29: BETHENY | G29: 3.0 | H29: 20 | I29: 112 | J29: 118 | K29: 118 | L29: 122 | M29: 129 | N29: 23 | O29: 11 | P29: 245 | Q29: 8 | R29: 10 | S29: 18 | T29: 75 | U29: 82 | V29: 77 | W29: 12 | X29: 12 | Y29: 76 | Z29: 6
A30: 50 | B30: BAS-RHIN | C30: 5060 | D30: HAGUENAU | E30: 4092 | F30: HOCHFELDEN | G30: 2.4 | H30: 21 | I30: 116 | J30: 152 | K30: 75 | L30: 5 | M30: 4 | N30: 52 | O30: 66 | P30: 55 | Q30: 208 | R30: 239 | S30: 39 | T30: 30 | U30: 35 | V30: 25 | W30: 18 | X30: 25 | Y30: 12 | Z30: 51
A31: 262 | B31: MEURTHE ET MOSELLE MEUSE | C31: 31 | D31: VERDUN | E31: 454414 | F31: LONGWY HAUT | G31: 3.7 | H31: 22 | I31: 96 | J31: 69 | K31: 150 | L31: 75 | M31: 86 | N31: 59 | O31: 103 | P31: 109 | Q31: 9 | R31: 9 | S31: 45 | T31: 35 | U31: 43 | V31: 32 | W31: 55 | X31: 61 | Y31: 113 | Z31: 31
A32: 262 | B32: BAS-RHIN | C32: 5101 | D32: SELESTAT | E32: 4121 | F32: SCHIRMECK | G32: 3.2 | H32: 23 | I32: 10 | J32: 11 | K32: 32 | L32: 83 | M32: 101 | N32: 162 | O32: 97 | P32: 36 | Q32: 37 | R32: 62 | S32: 26 | T32: 66 | U32: 52 | V32: 112 | W32: 80 | X32: 94 | Y32: 91 | Z32: 55
A33: 262 | B33: MOSELLE | C33: 42 | D33: MOSELLE EST | E33: 457165 | F33: BITCHE | G33: 2.1 | H33: 24 | I33: 147 | J33: 173 | K33: 112 | L33: 6 | M33: 9 | N33: 16 | O33: 109 | P33: 41 | Q33: 181 | R33: 251 | S33: 6 | T33: 13 | U33: 16 | V33: 2 | W33: 78 | X33: 154 | Y33: 14 | Z33: 114
A34: 262 | B34: MOSELLE | C34: 45 | D34: METZ | E34: 557444 | F34: SAINT JULIEN LES METZ | G34: 4.9 | H34: 25 | I34: 143 | J34: 173 | K34: 103 | L34: 113 | M34: 111 | N34: 74 | O34: 141 | P34: 142 | Q34: 20 | R34: 22 | S34: 41 | T34: 12 | U34: 13 | V34: 9 | W34: 73 | X34: 93 | Y34: 28 | Z34: 130
A35: 262 | B35: BAS-RHIN | C35: 5006 | D35: STRASBOURG | E35: 4047 | F35: STRASBOURG CRONENBOURG | G35: 5.0 | H35: 26 | I35: 76 | J35: 102 | K35: 55 | L35: 115 | M35: 121 | N35: 26 | O35: 21 | P35: 239 | Q35: 38 | R35: 98 | S35: 9 | T35: 29 | U35: 24 | V35: 96 | W35: 35 | X35: 15 | Y35: 202 | Z35: 54
A36: 262 | B36: MARNE-ARDENNES | C36: 2 | D36: CHARLEVILLE MEZIERES | E36: 508839 | F36: GIVET | G36: 3.7 | H36: 27 | I36: 60 | J36: 40 | K36: 105 | L36: 144 | M36: 204 | N36: 83 | O36: 102 | P36: 27 | Q36: 160 | R36: 200 | S36: 49 | T36: 3 | U36: 2 | V36: 78 | W36: 98 | X36: 136 | Y36: 33 | Z36: 145
A37: 262 | B37: BAS-RHIN | C37: 5006 | D37: STRASBOURG | E37: 4010 | F37: STRASBOURG MEINAU | G37: 3.3 | H37: 28 | I37: 155 | J37: 137 | K37: 181 | L37: 19 | M37: 23 | N37: 8 | O37: 50 | P37: 182 | Q37: 116 | R37: 217 | S37: 7 | T37: 7 | U37: 9 | V37: 12 | W37: 126 | X37: 230 | Y37: 37 | Z37: 90
A38: 262 | B38: MARNE-ARDENNES | C38: 11 | D38: REIMS | E38: 551305 | F38: REIMS HIPPODROME | G38: 3.9 | H38: 29 | I38: 14 | J38: 28 | K38: 5 | L38: 203 | M38: 183 | N38: 25 | O38: 9 | P38: 262 | Q38: 125 | R38: 140 | S38: 88 | T38: 32 | U38: 28 | V38: 75 | W38: 22 | X38: 23 | Y38: 126 | Z38: 22
A39: 262 | B39: VOSGES | C39: 55 | D39: SAINT DIE | E39: 488246 | F39: CORNIMONT LA BRESSE | G39: 2.7 | H39: 30 | I39: 8 | J39: 14 | K39: 6 | L39: 166 | M39: 161 | N39: 123 | O39: 188 | P39: 146 | Q39: 132 | R39: 114 | S39: 208 | T39: 38 | U39: 31 | V39: 104 | W39: 51 | X39: 81 | Y39: 21 | Z39: 82
A40: 262 | B40: MEURTHE ET MOSELLE MEUSE | C40: 27 | D40: PONT A MOUSSON | E40: 554381 | F40: LAXOU ARISTIDE BRIAND | G40: 4.0 | H40: 31 | I40: 72 | J40: 47 | K40: 137 | L40: 17 | M40: 3 | N40: 107 | O40: 83 | P40: 235 | Q40: 87 | R40: 101 | S40: 63 | T40: 62 | U40: 65 | V40: 66 | W40: 113 | X40: 78 | Y40: 193 | Z40: 96
A41: 262 | B41: MOSELLE | C41: 42 | D41: MOSELLE EST | E41: 557305 | F41: FAULQUEMONT | G41: 2.4 | H41: 32 | I41: 29 | J41: 17 | K41: 117 | L41: 60 | M41: 75 | N41: 43 | O41: 39 | P41: 175 | Q41: 99 | R41: 135 | S41: 46 | T41: 68 | U41: 73 | V41: 56 | W41: 48 | X41: 52 | Y41: 51 | Z41: 71
A42: 262 | B42: MARNE-ARDENNES | C42: 2 | D42: CHARLEVILLE MEZIERES | E42: 508833 | F42: VILLERS SEMEUSE CORA | G42: 3.6 | H42: 33 | I42: 136 | J42: 152 | K42: 113 | L42: 36 | M42: 60 | N42: 10 | O42: 31 | P42: 158 | Q42: 50 | R42: 86 | S42: 23 | T42: 54 | U42: 49 | V42: 71 | W42: 31 | X42: 39 | Y42: 46 | Z42: 41
A43: 262 | B43: MARNE-ARDENNES | C43: 2 | D43: CHARLEVILLE MEZIERES | E43: 508815 | F43: CARIGNAN | G43: 2.8 | H43: 34 | I43: 79 | J43: 95 | K43: 67 | L43: 71 | M43: 136 | N43: 28 | O43: 153 | P43: 35 | Q43: 7 | R43: 7 | S43: 14 | T43: 141 | U43: 136 | V43: 148 | W43: 72 | X43: 57 | Y43: 105 | Z43: 94
A44: 262 | B44: MARNE-ARDENNES | C44: 2 | D44: CHARLEVILLE MEZIERES | E44: 408801 | F44: CHARLEVILLE JEAN JAURES | G44: 9.4 | H44: 35 | I44: 55 | J44: 47 | K44: 84 | L44: 57 | M44: 105 | N44: 49 | O44: 6 | P44: 162 | Q44: 81 | R44: 131 | S44: 22 | T44: 147 | U44: 150 | V44: 132 | W44: 16 | X44: 13 | Y44: 140 | Z44: 9
A45: 262 | B45: MEURTHE ET MOSELLE MEUSE | C45: 27 | D45: PONT A MOUSSON | E45: 554533 | F45: PONT A MOUSSON BREUIL | G45: 2.8 | H45: 36 | I45: 185 | J45: 169 | K45: 196 | L45: 48 | M45: 70 | N45: 36 | O45: 35 | P45: 128 | Q45: 4 | R45: 3 | S45: 137 | T45: 151 | U45: 161 | V45: 122 | W45: 23 | X45: 22 | Y45: 100 | Z45: 45
A46: 262 | B46: MARNE-ARDENNES | C46: 11 | D46: REIMS | E46: 451350 | F46: REIMS CENTRE VILLE | G46: 7.3 | H46: 37 | I46: 158 | J46: 169 | K46: 158 | L46: 121 | M46: 128 | N46: 32 | O46: 20 | P46: 231 | Q46: 59 | R46: 56 | S46: 104 | T46: 47 | U46: 54 | V46: 37 | W46: 6 | X46: 6 | Y46: 60 | Z46: 13
A47: 262 | B47: MARNE-ARDENNES | C47: 6 | D47: CHALONS EN CHAMPAGNE | E47: 451120 | F47: SARRY | G47: 2.5 | H47: 38 | I47: 16 | J47: 33 | K47: 4 | L47: 89 | M47: 172 | N47: 159 | O47: 41 | P47: 8 | Q47: 41 | R47: 40 | S47: 55 | T47: 103 | U47: 99 | V47: 111 | W47: 138 | X47: 98 | Y47: 170 | Z47: 133
A48: 262 | B48: MARNE-ARDENNES | C48: 11 | D48: REIMS | E48: 551310 | F48: REIMS CHATILLONS | G48: 4.1 | H48: 39 | I48: 149 | J48: 189 | K48: 88 | L48: 41 | M48: 66 | N48: 70 | O48: 26 | P48: 62 | Q48: 73 | R48: 88 | S48: 61 | T48: 60 | U48: 47 | V48: 91 | W48: 19 | X48: 16 | Y48: 122 | Z48: 32
A49: 262 | B49: MOSELLE | C49: 42 | D49: MOSELLE EST | E49: 557250 | F49: CREUTZWALD | G49: 2.7 | H49: 40 | I49: 148 | J49: 203 | K49: 51 | L49: 140 | M49: 190 | N49: 69 | O49: 160 | P49: 44 | Q49: 26 | R49: 44 | S49: 19 | T49: 22 | U49: 22 | V49: 42 | W49: 57 | X49: 135 | Y49: 6 | Z49: 121
A50: 262 | B50: BAS-RHIN | C50: 5060 | D50: HAGUENAU | E50: 4079 | F50: SOULTZ SOUS FORETS | G50: 2.2 | H50: 41 | I50: 89 | J50: 102 | K50: 79 | L50: 22 | M50: 18 | N50: 168 | O50: 57 | P50: 66 | Q50: 118 | R50: 158 | S50: 36 | T50: 67 | U50: 74 | V50: 50 | W50: 66 | X50: 69 | Y50: 62 | Z50: 87
A51: 262 | B51: MEURTHE ET MOSELLE MEUSE | C51: 27 | D51: PONT A MOUSSON | E51: 454535 | F51: PONT A MOUSSON CENTRALE | G51: 7.8 | H51: 42 | I51: 167 | J51: 118 | K51: 218 | L51: 9 | M51: 10 | N51: 31 | O51: 29 | P51: 173 | Q51: 54 | R51: 35 | S51: 133 | T51: 74 | U51: 84 | V51: 52 | W51: 61 | X51: 29 | Y51: 236 | Z51: 46
A52: 262 | B52: MEURTHE ET MOSELLE MEUSE | C52: 26 | D52: NANCY | E52: 554601 | F52: SAINT MAX | G52: 4.3 | H52: 43 | I52: 18 | J52: 9 | K52: 99 | L52: 93 | M52: 90 | N52: 210 | O52: 54 | P52: 88 | Q52: 95 | R52: 154 | S52: 16 | T52: 63 | U52: 66 | V52: 69 | W52: 159 | X52: 141 | Y52: 152 | Z52: 160
A53: 262 | B53: BAS-RHIN | C53: 5006 | D53: STRASBOURG | E53: 4037 | F53: MUNDOLSHEIM | G53: 4.0 | H53: 44 | I53: 179 | J53: 209 | K53: 115 | L53: 16 | M53: 11 | N53: 40 | O53: 47 | P53: 187 | Q53: 42 | R53: 38 | S53: 78 | T53: 55 | U53: 41 | V53: 93 | W53: 91 | X53: 104 | Y53: 102 | Z53: 69
A54: 262 | B54: VOSGES | C54: 57 | D54: EPINAL | E54: 588631 | F54: THAON LES VOSGES | G54: 5.5 | H54: 45 | I54: 67 | J54: 95 | K54: 39 | L54: 69 | M54: 65 | N54: 65 | O54: 76 | P54: 164 | Q54: 102 | R54: 64 | S54: 238 | T54: 26 | U54: 29 | V54: 41 | W54: 121 | X54: 151 | Y54: 73 | Z54: 120
A55: 262 | B55: MARNE-ARDENNES | C55: 2 | D55: CHARLEVILLE MEZIERES | E55: 408862 | F55: REVIN | G55: 4.3 | H55: 46 | I55: 7 | J55: 5 | K55: 40 | L55: 119 | M55: 168 | N55: 113 | O55: 101 | P55: 46 | Q55: 77 | R55: 95 | S55: 53 | T55: 135 | U55: 127 | V55: 140 | W55: 139 | X55: 124 | Y55: 213 | Z55: 79
A56: 262 | B56: AUBE HAUTE MARNE | C56: 21 | D56: CHAUMONT | E56: 451151 | F56: WASSY | G56: 2.0 | H56: 47 | I56: 24 | J56: 23 | K56: 54 | L56: 58 | M56: 61 | N56: 71 | O56: 147 | P56: 86 | Q56: 207 | R56: 248 | S56: 17 | T56: 83 | U56: 81 | V56: 94 | W56: 45 | X56: 137 | Y56: 2 | Z56: 105
A57: 262 | B57: MARNE-ARDENNES | C57: 6 | D57: CHALONS EN CHAMPAGNE | E57: 551110 | F57: CHALONS ROOSEVELT | G57: 5.0 | H57: 48 | I57: 25 | J57: 47 | K57: 8 | L57: 97 | M57: 135 | N57: 84 | O57: 56 | P57: 93 | Q57: 76 | R57: 100 | S57: 50 | T57: 73 | U57: 59 | V57: 129 | W57: 119 | X57: 74 | Y57: 201 | Z57: 115
A58: 262 | B58: MEURTHE ET MOSELLE MEUSE | C58: 31 | D58: VERDUN | E58: 555679 | F58: VERDUN MAZEL | G58: 3.8 | H58: 49 | I58: 11 | J58: 11 | K58: 41 | L58: 77 | M58: 83 | N58: 90 | O58: 84 | P58: 101 | Q58: 72 | R58: 113 | S58: 30 | T58: 186 | U58: 201 | V58: 156 | W58: 65 | X58: 71 | Y58: 63 | Z58: 76
A59: 262 | B59: MEURTHE ET MOSELLE MEUSE | C59: 31 | D59: VERDUN | E59: 555624 | F59: STENAY | G59: 2.8 | H59: 50 | I59: 48 | J59: 40 | K59: 86 | L59: 14 | M59: 21 | N59: 39 | O59: 143 | P59: 24 | Q59: 163 | R59: 205 | S59: 38 | T59: 114 | U59: 118 | V59: 106 | W59: 102 | X59: 125 | Y59: 66 | Z59: 118
A60: 262 | B60: MOSELLE | C60: 42 | D60: MOSELLE EST | E60: 457308 | F60: FORBACH CENTRALE | G60: 11.2 | H60: 51 | I60: 47 | J60: 47 | K60: 71 | L60: 46 | M60: 48 | N60: 122 | O60: 159 | P60: 60 | Q60: 92 | R60: 110 | S60: 62 | T60: 85 | U60: 67 | V60: 162 | W60: 145 | X60: 159 | Y60: 52 | Z60: 191
A61: 262 | B61: MEURTHE ET MOSELLE MEUSE | C61: 27 | D61: PONT A MOUSSON | E61: 554506 | F61: CHALIGNY NEUVES MAISONS | G61: 3.8 | H61: 52 | I61: 233 | J61: 217 | K61: 235 | L61: 4 | M61: 5 | N61: 18 | O61: 10 | P61: 94 | Q61: 212 | R61: 197 | S61: 218 | T61: 77 | U61: 87 | V61: 64 | W61: 10 | X61: 5 | Y61: 208 | Z61: 7
A62: 262 | B62: AUBE HAUTE MARNE | C62: 21 | D62: CHAUMONT | E62: 510590 | F62: CHAUMONT REPUBLIQUE | G62: 4.4 | H62: 53 | I62: 99 | J62: 102 | K62: 109 | L62: 87 | M62: 157 | N62: 44 | O62: 64 | P62: 47 | Q62: 86 | R62: 76 | S62: 132 | T62: 49 | U62: 39 | V62: 74 | W62: 82 | X62: 160 | Y62: 16 | Z62: 107
A63: 262 | B63: MARNE-ARDENNES | C63: 6 | D63: CHALONS EN CHAMPAGNE | E63: 551354 | F63: VERTUS | G63: 2.5 | H63: 54 | I63: 5 | J63: 20 | K63: 1 | L63: 204 | M63: 147 | N63: 217 | O63: 110 | P63: 229 | Q63: 98 | R63: 92 | S63: 113 | T63: 120 | U63: 126 | V63: 102 | W63: 97 | X63: 85 | Y63: 111 | Z63: 112
A64: 262 | B64: MEURTHE ET MOSELLE MEUSE | C64: 26 | D64: NANCY | E64: 454426 | F64: LUNEVILLE CARNOT | G64: 10.0 | H64: 55 | I64: 156 | J64: 152 | K64: 166 | L64: 52 | M64: 52 | N64: 63 | O64: 62 | P64: 150 | Q64: 115 | R64: 94 | S64: 179 | T64: 43 | U64: 33 | V64: 76 | W64: 39 | X64: 35 | Y64: 64 | Z64: 47
A65: 262 | B65: BAS-RHIN | C65: 5006 | D65: STRASBOURG | E65: 4054 | F65: STRASBOURG MONTAGNE VERTE | G65: 2.4 | H65: 56 | I65: 130 | J65: 85 | K65: 186 | L65: 172 | M65: 218 | N65: 14 | O65: 136 | P65: 144 | Q65: 238 | R65: 234 | S65: 167 | T65: 2 | U65: 3 | V65: 1 | W65: 117 | X65: 168 | Y65: 99 | Z65: 65
A66: 262 | B66: MEURTHE ET MOSELLE MEUSE | C66: 31 | D66: VERDUN | E66: 455298 | F66: ETAIN | G66: 1.5 | H66: 57 | I66: 225 | J66: 217 | K66: 221 | L66: 84 | M66: 41 | N66: 111 | O66: 241 | P66: 228 | Q66: 61 | R66: 68 | S66: 75 | T66: 17 | U66: 18 | V66: 10 | W66: 49 | X66: 66 | Y66: 4 | Z66: 196
A67: 262 | B67: MEURTHE ET MOSELLE MEUSE | C67: 27 | D67: PONT A MOUSSON | E67: 554357 | F67: JOEUF | G67: 3.8 | H67: 58 | I67: 135 | J67: 173 | K67: 72 | L67: 95 | M67: 140 | N67: 48 | O67: 23 | P67: 163 | Q67: 249 | R67: 244 | S67: 209 | T67: 21 | U67: 27 | V67: 20 | W67: 15 | X67: 17 | Y67: 32 | Z67: 18
A68: 262 | B68: MEURTHE ET MOSELLE MEUSE | C68: 31 | D68: VERDUN | E68: 554412 | F68: LONGUYON | G68: 2.8 | H68: 59 | I68: 23 | J68: 28 | K68: 29 | L68: 148 | M68: 179 | N68: 109 | O68: 85 | P68: 100 | Q68: 170 | R68: 144 | S68: 217 | T68: 109 | U68: 111 | V68: 113 | W68: 38 | X68: 41 | Y68: 43 | Z68: 56
A69: 262 | B69: MOSELLE | C69: 44 | D69: MOSELLE NORD | E69: 457306 | F69: FLORANGE | G69: 3.7 | H69: 60 | I69: 129 | J69: 85 | K69: 185 | L69: 66 | M69: 64 | N69: 130 | O69: 167 | P69: 95 | Q69: 27 | R69: 23 | S69: 68 | T69: 76 | U69: 77 | V69: 86 | W69: 107 | X69: 58 | Y69: 132 | Z69: 190
A70: 262 | B70: MOSELLE | C70: 44 | D70: MOSELLE NORD | E70: 457348 | F70: HAGONDANGE | G70: 9.3 | H70: 61 | I70: 171 | J70: 192 | K70: 136 | L70: 33 | M70: 34 | N70: 202 | O70: 88 | P70: 50 | Q70: 88 | R70: 69 | S70: 150 | T70: 64 | U70: 42 | V70: 137 | W70: 59 | X70: 47 | Y70: 135 | Z70: 52
A71: 262 | B71: VOSGES | C71: 55 | D71: SAINT DIE | E71: 588666 | F71: VAGNEY | G71: 3.9 | H71: 62 | I71: 4 | J71: 3 | K71: 31 | L71: 143 | M71: 139 | N71: 191 | O71: 142 | P71: 85 | Q71: 67 | R71: 31 | S71: 219 | T71: 189 | U71: 149 | V71: 250 | W71: 168 | X71: 170 | Y71: 165 | Z71: 134
A72: 262 | B72: HAUT-RHIN | C72: 5130 | D72: COLMAR | E72: 4144 | F72: RIBEAUVILLE | G72: 2.9 | H72: 63 | I72: 101 | J72: 118 | K72: 80 | L72: 44 | M72: 57 | N72: 103 | O72: 140 | P72: 34 | Q72: 40 | R72: 32 | S72: 74 | T72: 53 | U72: 26 | V72: 213 | W72: 244 | X72: 217 | Y72: 205 | Z72: 254
A73: 262 | B73: MOSELLE | C73: 44 | D73: MOSELLE NORD | E73: 557352 | F73: HETTANGE GRANDE | G73: 4.1 | H73: 64 | I73: 191 | J73: 173 | K73: 197 | L73: 21 | M73: 7 | N73: 75 | O73: 213 | P73: 188 | Q73: 141 | R73: 137 | S73: 144 | T73: 33 | U73: 30 | V73: 90 | W73: 63 | X73: 72 | Y73: 35 | Z73: 116
A74: 262 | B74: VOSGES | C74: 57 | D74: EPINAL | E74: 588716 | F74: XERTIGNY | G74: 2.9 | H74: 65 | I74: 159 | J74: 152 | K74: 178 | L74: 55 | M74: 63 | N74: 144 | O74: 178 | P74: 32 | Q74: 114 | R74: 116 | S74: 125 | T74: 14 | U74: 6 | V74: 125 | W74: 187 | X74: 205 | Y74: 156 | Z74: 150
A75: 262 | B75: MEURTHE ET MOSELLE MEUSE | C75: 27 | D75: PONT A MOUSSON | E75: 554416 | F75: LUDRES | G75: 3.8 | H75: 66 | I75: 32 | J75: 40 | K75: 46 | L75: 126 | M75: 122 | N75: 64 | O75: 37 | P75: 208 | Q75: 31 | R75: 25 | S75: 80 | T75: 221 | U75: 215 | V75: 218 | W75: 62 | X75: 63 | Y75: 138 | Z75: 42
A76: 262 | B76: MARNE-ARDENNES | C76: 11 | D76: REIMS | E76: 551314 | F76: FISMES | G76: 3.0 | H76: 67 | I76: 51 | J76: 85 | K76: 14 | L76: 54 | M76: 97 | N76: 54 | O76: 16 | P76: 110 | Q76: 171 | R76: 202 | S76: 60 | T76: 129 | U76: 151 | V76: 79 | W76: 54 | X76: 45 | Y76: 146 | Z76: 38
A77: 262 | B77: BAS-RHIN | C77: 5006 | D77: STRASBOURG | E77: 4019 | F77: STRASBOURG ANVERS | G77: 4.3 | H77: 68 | I77: 120 | J77: 64 | K77: 199 | L77: 45 | M77: 16 | N77: 35 | O77: 49 | P77: 261 | Q77: 24 | R77: 20 | S77: 71 | T77: 95 | U77: 100 | V77: 87 | W77: 176 | X77: 114 | Y77: 217 | Z77: 186
A78: 262 | B78: BAS-RHIN | C78: 5060 | D78: HAGUENAU | E78: 4082 | F78: BOUXWILLER | G78: 2.5 | H78: 69 | I78: 69 | J78: 78 | K78: 64 | L78: 120 | M78: 82 | N78: 112 | O78: 73 | P78: 207 | Q78: 60 | R78: 73 | S78: 67 | T78: 152 | U78: 192 | V78: 59 | W78: 46 | X78: 33 | Y78: 70 | Z78: 88
A79: 264 | B79: VOSGES | C79: 57 | D79: EPINAL | E79: 588206 | F79: CHARMES | G79: 2.8 | H79: 70 | I79: 45 | J79: 64 | K79: 37 | L79: 154 | M79: 91 | N79: 137 | O79: 182 | P79: 217 | Q79: 221 | R79: 195 | S79: 251 | T79: 23 | U79: 17 | V79: 83 | W79: 88 | X79: 140 | Y79: 41 | Z79: 99
A80: 264 | B80: MARNE-ARDENNES | C80: 6 | D80: CHALONS EN CHAMPAGNE | E80: 451101 | F80: CHALONS VIVIERS | G80: 9.3 | H80: 71 | I80: 49 | J80: 78 | K80: 25 | L80: 98 | M80: 106 | N80: 105 | O80: 52 | P80: 143 | Q80: 112 | R80: 151 | S80: 42 | T80: 117 | U80: 132 | V80: 85 | W80: 74 | X80: 77 | Y80: 90 | Z80: 63
A81: 264 | B81: BAS-RHIN | C81: 5006 | D81: STRASBOURG | E81: 4048 | F81: STRASBOURG KOENIGSHOFFEN | G81: 2.0 | H81: 72 | I81: 211 | J81: 131 | K81: 249 | L81: 27 | M81: 29 | N81: 4 | O81: 111 | P81: 222 | Q81: 198 | R81: 231 | S81: 37 | T81: 10 | U81: 14 | V81: 6 | W81: 124 | X81: 142 | Y81: 57 | Z81: 166
A82: 264 | B82: MEURTHE ET MOSELLE MEUSE | C82: 31 | D82: VERDUN | E82: 455676 | F82: VAUCOULEURS | G82: 1.8 | H82: 73 | I82: 246 | J82: 235 | K82: 244 | L82: 11 | M82: 22 | N82: 67 | O82: 33 | P82: 22 | Q82: 219 | R82: 190 | S82: 249 | T82: 18 | U82: 19 | V82: 13 | W82: 33 | X82: 82 | Y82: 17 | Z82: 24
A83: 264 | B83: MEURTHE ET MOSELLE MEUSE | C83: 27 | D83: PONT A MOUSSON | E83: 554376 | F83: LAXOU BOUFFLERS | G83: 2.8 | H83: 74 | I83: 170 | J83: 196 | K83: 119 | L83: 73 | M83: 47 | N83: 29 | O83: 28 | P83: 257 | Q83: 71 | R83: 49 | S83: 184 | T83: 89 | U83: 109 | V83: 65 | W83: 29 | X83: 53 | Y83: 9 | Z83: 72
A84: 264 | B84: MOSELLE | C84: 45 | D84: METZ | E84: 557447 | F84: METZ SAINT MAXIMIN | G84: 3.1 | H84: 75 | I84: 166 | J84: 209 | K84: 85 | L84: 26 | M84: 143 | N84: 1 | O84: 15 | P84: 43 | Q84: 80 | R84: 80 | S84: 91 | T84: 159 | U84: 196 | V84: 72 | W84: 37 | X84: 28 | Y84: 130 | Z84: 34
A85: 264 | B85: MEURTHE ET MOSELLE MEUSE | C85: 26 | D85: NANCY | E85: 554636 | F85: TOMBLAINE | G85: 2.5 | H85: 76 | I85: 20 | J85: 28 | K85: 15 | L85: 224 | M85: 233 | N85: 106 | O85: 151 | P85: 174 | Q85: 89 | R85: 82 | S85: 107 | T85: 80 | U85: 122 | V85: 27 | W85: 149 | X85: 214 | Y85: 162 | Z85: 50
A86: 264 | B86: VOSGES | C86: 57 | D86: EPINAL | E86: 488706 | F86: VITTEL | G86: 3.6 | H86: 77 | I86: 40 | J86: 69 | K86: 18 | L86: 229 | M86: 235 | N86: 201 | O86: 100 | P86: 155 | Q86: 52 | R86: 28 | S86: 192 | T86: 78 | U86: 53 | V86: 189 | W86: 111 | X86: 193 | Y86: 117 | Z86: 39
A87: 264 | B87: VOSGES | C87: 57 | D87: EPINAL | E87: 588501 | F87: NEUFCHATEAU | G87: 5.2 | H87: 78 | I87: 9 | J87: 9 | K87: 65 | L87: 194 | M87: 213 | N87: 129 | O87: 43 | P87: 153 | Q87: 194 | R87: 194 | S87: 157 | T87: 139 | U87: 133 | V87: 147 | W87: 53 | X87: 88 | Y87: 85 | Z87: 23
A88: 264 | B88: BAS-RHIN | C88: 5101 | D88: SELESTAT | E88: 4120 | F88: WASSELONNE | G88: 4.4 | H88: 79 | I88: 202 | J88: 238 | K88: 108 | L88: 180 | M88: 109 | N88: 175 | O88: 246 | P88: 198 | Q88: 11 | R88: 18 | S88: 28 | T88: 39 | U88: 34 | V88: 62 | W88: 93 | X88: 204 | Y88: 13 | Z88: 109
A89: 264 | B89: VOSGES | C89: 55 | D89: SAINT DIE | E89: 488326 | F89: GERARDMER | G89: 5.1 | H89: 80 | I89: 38 | J89: 60 | K89: 36 | L89: 179 | M89: 104 | N89: 239 | O89: 152 | P89: 202 | Q89: 13 | R89: 4 | S89: 229 | T89: 208 | U89: 178 | V89: 243 | W89: 141 | X89: 119 | Y89: 114 | Z89: 165
A90: 264 | B90: BAS-RHIN | C90: 5006 | D90: STRASBOURG | E90: 4045 | F90: STRASBOURG FRANCS BOURGEOIS | G90: 4.6 | H90: 81 | I90: 182 | J90: 161 | K90: 203 | L90: 112 | M90: 112 | N90: 99 | O90: 137 | P90: 130 | Q90: 1 | R90: 2 | S90: 112 | T90: 219 | U90: 168 | V90: 260 | W90: 172 | X90: 99 | Y90: 224 | Z90: 185
A91: 264 | B91: VOSGES | C91: 55 | D91: SAINT DIE | E91: 488586 | F91: SAINT DIE | G91: 10.7 | H91: 82 | I91: 13 | J91: 11 | K91: 44 | L91: 162 | M91: 127 | N91: 155 | O91: 158 | P91: 170 | Q91: 106 | R91: 115 | S91: 103 | T91: 170 | U91: 148 | V91: 215 | W91: 147 | X91: 121 | Y91: 209 | Z91: 108
A92: 264 | B92: MARNE-ARDENNES | C92: 6 | D92: CHALONS EN CHAMPAGNE | E92: 551128 | F92: SAINTE MENEHOULD | G92: 3.2 | H92: 83 | I92: 62 | J92: 47 | K92: 102 | L92: 85 | M92: 98 | N92: 125 | O92: 81 | P92: 61 | Q92: 175 | R92: 209 | S92: 56 | T92: 44 | U92: 38 | V92: 63 | W92: 216 | X92: 228 | Y92: 161 | Z92: 194
A93: 264 | B93: MARNE-ARDENNES | C93: 2 | D93: CHARLEVILLE MEZIERES | E93: 508802 | F93: CHARLEVILLE NEVERS | G93: 3.0 | H93: 84 | I93: 52 | J93: 55 | K93: 66 | L93: 156 | M93: 211 | N93: 151 | O93: 34 | P93: 54 | Q93: 241 | R93: 250 | S93: 58 | T93: 24 | U93: 23 | V93: 61 | W93: 142 | X93: 139 | Y93: 59 | Z93: 211
A94: 264 | B94: VOSGES | C94: 57 | D94: EPINAL | E94: 588396 | F94: LE VAL D AJOL | G94: 2.9 | H94: 85 | I94: 1 | J94: 1 | K94: 2 | L94: 228 | M94: 226 | N94: 261 | O94: 220 | P94: 57 | Q94: 131 | R94: 84 | S94: 254 | T94: 155 | U94: 104 | V94: 247 | W94: 229 | X94: 161 | Y94: 259 | Z94: 204
A95: 264 | B95: BAS-RHIN | C95: 5006 | D95: STRASBOURG | E95: 4006 | F95: STRASBOURG NEUDORF | G95: 8.6 | H95: 86 | I95: 28 | J95: 20 | K95: 98 | L95: 79 | M95: 77 | N95: 60 | O95: 92 | P95: 145 | Q95: 174 | R95: 160 | S95: 172 | T95: 84 | U95: 85 | V95: 84 | W95: 228 | X95: 176 | Y95: 261 | Z95: 174
A96: 264 | B96: MARNE-ARDENNES | C96: 11 | D96: REIMS | E96: 451301 | F96: REIMS HOTEL DE VILLE | G96: 7.8 | H96: 87 | I96: 124 | J96: 142 | K96: 110 | L96: 29 | M96: 27 | N96: 56 | O96: 27 | P96: 192 | Q96: 247 | R96: 240 | S96: 226 | T96: 58 | U96: 56 | V96: 70 | W96: 85 | X96: 51 | Y96: 186 | Z96: 86
A97: 264 | B97: MEURTHE ET MOSELLE MEUSE | C97: 31 | D97: VERDUN | E97: 455456 | F97: MONTMEDY | G97: 1.8 | H97: 88 | I97: 104 | J97: 118 | K97: 94 | L97: 74 | M97: 94 | N97: 81 | O97: 175 | P97: 45 | Q97: 159 | R97: 156 | S97: 143 | T97: 115 | U97: 91 | V97: 164 | W97: 64 | X97: 105 | Y97: 23 | Z97: 85
A98: 264 | B98: BAS-RHIN | C98: 5101 | D98: SELESTAT | E98: 4107 | F98: VILLE | G98: 2.9 | H98: 89 | I98: 259 | J98: 262 | K98: 165 | L98: 15 | M98: 13 | N98: 172 | O98: 157 | P98: 11 | Q98: 51 | R98: 57 | S98: 73 | T98: 16 | U98: 4 | V98: 209 | W98: 177 | X98: 261 | Y98: 80 | Z98: 103
A99: 264 | B99: MARNE-ARDENNES | C99: 6 | D99: CHALONS EN CHAMPAGNE | E99: 551103 | F99: FAGNIERES LECLERC | G99: 3.1 | H99: 90 | I99: 27 | J99: 28 | K99: 57 | L99: 78 | M99: 119 | N99: 58 | O99: 53 | P99: 80 | Q99: 231 | R99: 222 | S99: 199 | T99: 150 | U99: 197 | V99: 49 | W99: 84 | X99: 117 | Y99: 69 | Z99: 68
A100: 264 | B100: BAS-RHIN | C100: 5006 | D100: STRASBOURG | E100: 4038 | F100: OBERHAUSBERGEN | G100: 4.8 | H100: 91 | I100: 142 | J100: 196 | K100: 56 | L100: 141 | M100: 68 | N100: 93 | O100: 69 | P100: 250 | Q100: 35 | R100: 54 | S100: 31 | T100: 118 | U100: 89 | V100: 181 | W100: 90 | X100: 60 | Y100: 134 | Z100: 117
A101: 264 | B101: MARNE-ARDENNES | C101: 2 | D101: CHARLEVILLE MEZIERES | E101: 508819 | F101: MOUZON | G101: 2.0 | H101: 92 | I101: 114 | J101: 113 | K101: 139 | L101: 243 | M101: 243 | N101: 98 | O101: 173 | P101: 223 | Q101: 69 | R101: 26 | S101: 258 | T101: 123 | U101: 155 | V101: 55 | W101: 17 | X101: 26 | Y101: 55 | Z101: 12
A102: 264 | B102: VOSGES | C102: 57 | D102: EPINAL | E102: 488281 | F102: ELOYES | G102: 4.7 | H102: 93 | I102: 22 | J102: 14 | K102: 70 | L102: 76 | M102: 103 | N102: 230 | O102: 203 | P102: 3 | Q102: 108 | R102: 89 | S102: 183 | T102: 230 | U102: 235 | V102: 198 | W102: 157 | X102: 120 | Y102: 154 | Z102: 184
A103: 30 | B103: BAS-RHIN | C103: 5006 | D103: STRASBOURG | E103: 4043 | F103: STRASBOURG HALLES | G103: 8.2 | H103: 94 | I103: 93 | J103: 69 | K103: 145 | L103: 195 | M103: 120 | N103: 17 | O103: 44 | P103: 264 | Q103: 45 | R103: 45 | S103: 79 | T103: 136 | U103: 145 | V103: 110 | W103: 96 | X103: 48 | Y103: 248 | Z103: 58
A104: 30 | B104: MOSELLE | C104: 45 | D104: METZ | E104: 457453 | F104: MONTIGNY LES METZ | G104: 7.9 | H104: 95 | I104: 54 | J104: 85 | K104: 19 | L104: 117 | M104: 51 | N104: 208 | O104: 70 | P104: 233 | Q104: 82 | R104: 132 | S104: 21 | T104: 233 | U104: 213 | V104: 253 | W104: 75 | X104: 64 | Y104: 143 | Z104: 64
A105: 30 | B105: BAS-RHIN | C105: 5006 | D105: STRASBOURG | E105: 4023 | F105: STRASBOURG VOSGES | G105: 3.3 | H105: 96 | I105: 126 | J105: 33 | K105: 240 | L105: 70 | M105: 71 | N105: 91 | O105: 90 | P105: 131 | Q105: 30 | R105: 36 | S105: 32 | T105: 148 | U105: 94 | V105: 244 | W105: 203 | X105: 196 | Y105: 190 | Z105: 170
A106: 30 | B106: BAS-RHIN | C106: 5006 | D106: STRASBOURG | E106: 4024 | F106: STRASBOURG AUSTERLITZ | G106: 2.3 | H106: 97 | I106: 256 | J106: 241 | K106: 250 | L106: 20 | M106: 14 | N106: 24 | O106: 51 | P106: 200 | Q106: 68 | R106: 83 | S106: 54 | T106: 40 | U106: 64 | V106: 19 | W106: 83 | X106: 75 | Y106: 174 | Z106: 48
A107: 30 | B107: VOSGES | C107: 57 | D107: EPINAL | E107: 488561 | F107: REMIREMONT | G107: 6.7 | H107: 98 | I107: 86 | J107: 102 | K107: 62 | L107: 94 | M107: 95 | N107: 134 | O107: 105 | P107: 92 | Q107: 100 | R107: 85 | S107: 160 | T107: 145 | U107: 120 | V107: 207 | W107: 148 | X107: 102 | Y107: 228 | Z107: 91
A108: 30 | B108: MEURTHE ET MOSELLE MEUSE | C108: 31 | D108: VERDUN | E108: 455151 | F108: BAR LE DUC | G108: 8.9 | H108: 99 | I108: 121 | J108: 118 | K108: 140 | L108: 80 | M108: 67 | N108: 167 | O108: 98 | P108: 103 | Q108: 138 | R108: 103 | S108: 235 | T108: 111 | U108: 124 | V108: 88 | W108: 94 | X108: 156 | Y108: 61 | Z108: 70
A109: 30 | B109: VOSGES | C109: 55 | D109: SAINT DIE | E109: 588386 | F109: LE THILLOT | G109: 2.5 | H109: 100 | I109: 110 | J109: 102 | K109: 143 | L109: 137 | M109: 185 | N109: 229 | O109: 170 | P109: 5 | Q109: 105 | R109: 139 | S109: 48 | T109: 57 | U109: 37 | V109: 109 | W109: 201 | X109: 234 | Y109: 81 | Z109: 203
A110: 30 | B110: AUBE HAUTE MARNE | C110: 21 | D110: CHAUMONT | E110: 451154 | F110: JOINVILLE | G110: 1.9 | H110: 101 | I110: 2 | J110: 3 | K110: 3 | L110: 236 | M110: 231 | N110: 96 | O110: 184 | P110: 220 | Q110: 258 | R110: 253 | S110: 260 | T110: 90 | U110: 128 | V110: 38 | W110: 131 | X110: 233 | Y110: 94 | Z110: 43
A111: 30 | B111: MOSELLE | C111: 45 | D111: METZ | E111: 457443 | F111: METZ REPUBLIQUE | G111: 4.2 | H111: 102 | I111: 6 | J111: 8 | K111: 21 | L111: 210 | M111: 214 | N111: 205 | O111: 195 | P111: 76 | Q111: 156 | R111: 120 | S111: 240 | T111: 240 | U111: 248 | V111: 170 | W111: 99 | X111: 84 | Y111: 163 | Z111: 80
A112: 30 | B112: MEURTHE ET MOSELLE MEUSE | C112: 26 | D112: NANCY | E112: 554166 | F112: BLAINVILLE | G112: 3.2 | H112: 103 | I112: 216 | J112: 173 | K112: 242 | L112: 81 | M112: 93 | N112: 51 | O112: 42 | P112: 160 | Q112: 46 | R112: 48 | S112: 69 | T112: 108 | U112: 163 | V112: 30 | W112: 58 | X112: 86 | Y112: 68 | Z112: 37
A113: 30 | B113: MARNE-ARDENNES | C113: 11 | D113: REIMS | E113: 451370 | F113: EPERNAY | G113: 11.5 | H113: 104 | I113: 90 | J113: 131 | K113: 50 | L113: 91 | M113: 79 | N113: 150 | O113: 61 | P113: 132 | Q113: 145 | R113: 125 | S113: 202 | T113: 125 | U113: 97 | V113: 176 | W113: 140 | X113: 107 | Y113: 192 | Z113: 111
A114: 30 | B114: MOSELLE | C114: 42 | D114: MOSELLE EST | E114: 557210 | F114: CHATEAU SALINS | G114: 2.6 | H114: 105 | I114: 197 | J114: 244 | K114: 63 | L114: 31 | M114: 26 | N114: 189 | O114: 202 | P114: 39 | Q114: 62 | R114: 77 | S114: 59 | T114: 161 | U114: 154 | V114: 175 | W114: 100 | X114: 162 | Y114: 24 | Z114: 138
A115: 30 | B115: VOSGES | C115: 57 | D115: EPINAL | E115: 588336 | F115: GOLBEY | G115: 3.1 | H115: 106 | I115: 134 | J115: 161 | K115: 89 | L115: 198 | M115: 198 | N115: 86 | O115: 77 | P115: 197 | Q115: 111 | R115: 81 | S115: 224 | T115: 107 | U115: 105 | V115: 118 | W115: 44 | X115: 44 | Y115: 164 | Z115: 19
A116: 30 | B116: MOSELLE | C116: 45 | D116: METZ | E116: 557439 | F116: METZ POMPIDOU | G116: 3.9 | H116: 107 | I116: 84 | J116: 40 | K116: 172 | L116: 211 | M116: 160 | N116: 212 | O116: 162 | P116: 214 | Q116: 49 | R116: 53 | S116: 66 | T116: 99 | U116: 144 | V116: 45 | W116: 194 | X116: 164 | Y116: 195 | Z116: 178
A117: 30 | B117: AUBE HAUTE MARNE | C117: 14 | D117: TROYES | E117: 510523 | F117: LA CHAPELLE ST LUC | G117: 5.6 | H117: 108 | I117: 164 | J117: 152 | K117: 182 | L117: 42 | M117: 53 | N117: 42 | O117: 120 | P117: 113 | Q117: 217 | R117: 236 | S117: 77 | T117: 27 | U117: 61 | V117: 4 | W117: 182 | X117: 167 | Y117: 172 | Z117: 179
A118: 30 | B118: VOSGES | C118: 57 | D118: EPINAL | E118: 488451 | F118: MIRECOURT | G118: 4.7 | H118: 109 | I118: 39 | J118: 55 | K118: 47 | L118: 220 | M118: 217 | N118: 115 | O118: 89 | P118: 194 | Q118: 133 | R118: 128 | S118: 147 | T118: 112 | U118: 116 | V118: 114 | W118: 144 | X118: 150 | Y118: 181 | Z118: 83
A119: 30 | B119: BAS-RHIN | C119: 5060 | D119: HAGUENAU | E119: 4030 | F119: BRUMATH | G119: 5.2 | H119: 110 | I119: 152 | J119: 118 | K119: 190 | L119: 124 | M119: 58 | N119: 156 | O119: 114 | P119: 237 | Q119: 34 | R119: 51 | S119: 35 | T119: 195 | U119: 177 | V119: 223 | W119: 79 | X119: 73 | Y119: 89 | Z119: 89
A120: 30 | B120: MEURTHE ET MOSELLE MEUSE | C120: 26 | D120: NANCY | E120: 554116 | F120: BACCARAT | G120: 2.6 | H120: 111 | I120: 64 | J120: 78 | K120: 48 | L120: 111 | M120: 115 | N120: 178 | O120: 138 | P120: 63 | Q120: 135 | R120: 121 | S120: 189 | T120: 167 | U120: 159 | V120: 177 | W120: 153 | X120: 147 | Y120: 106 | Z120: 183
A121: 30 | B121: MEURTHE ET MOSELLE MEUSE | C121: 26 | D121: NANCY | E121: 554266 | F121: DOMBASLE SUR MEURTHE | G121: 3.7 | H121: 112 | I121: 232 | J121: 232 | K121: 216 | L121: 173 | M121: 155 | N121: 78 | O121: 72 | P121: 225 | Q121: 44 | R121: 47 | S121: 64 | T121: 59 | U121: 78 | V121: 29 | W121: 50 | X121: 59 | Y121: 31 | Z121: 104
A122: 30 | B122: MEURTHE ET MOSELLE MEUSE | C122: 31 | D122: VERDUN | E122: 554700 | F122: VILLERUPT | G122: 3.0 | H122: 113 | I122: 31 | J122: 17 | K122: 130 | L122: 139 | M122: 149 | N122: 147 | O122: 233 | P122: 52 | Q122: 121 | R122: 141 | S122: 81 | T122: 207 | U122: 195 | V122: 216 | W122: 155 | X122: 186 | Y122: 38 | Z122: 228
A123: 30 | B123: BAS-RHIN | C123: 5006 | D123: STRASBOURG | E123: 4027 | F123: SCHILTIGHEIM CENTRE | G123: 3.7 | H123: 114 | I123: 175 | J123: 142 | K123: 204 | L123: 63 | M123: 78 | N123: 20 | O123: 36 | P123: 204 | Q123: 57 | R123: 79 | S123: 47 | T123: 166 | U123: 160 | V123: 173 | W123: 101 | X123: 54 | Y123: 220 | Z123: 101
A124: 30 | B124: AUBE HAUTE MARNE | C124: 14 | D124: TROYES | E124: 510570 | F124: NOGENT SUR SEINE | G124: 4.5 | H124: 115 | I124: 21 | J124: 28 | K124: 16 | L124: 145 | M124: 163 | N124: 166 | O124: 68 | P124: 118 | Q124: 183 | R124: 157 | S124: 222 | T124: 228 | U124: 194 | V124: 258 | W124: 104 | X124: 91 | Y124: 109 | Z124: 119
A125: 30 | B125: HAUT-RHIN | C125: 5130 | D125: COLMAR | E125: 4143 | F125: MUNSTER | G125: 5.0 | H125: 116 | I125: 133 | J125: 118 | K125: 157 | L125: 38 | M125: 44 | N125: 94 | O125: 95 | P125: 87 | Q125: 177 | R125: 162 | S125: 180 | T125: 126 | U125: 103 | V125: 168 | W125: 152 | X125: 192 | Y125: 54 | Z125: 188
A126: 30 | B126: MARNE-ARDENNES | C126: 11 | D126: REIMS | E126: 551309 | F126: REIMS EUROPE | G126: 2.7 | H126: 117 | I126: 92 | J126: 69 | K126: 141 | L126: 205 | M126: 222 | N126: 131 | O126: 115 | P126: 116 | Q126: 127 | R126: 133 | S126: 116 | T126: 65 | U126: 108 | V126: 15 | W126: 170 | X126: 155 | Y126: 168 | Z126: 152
A127: 30 | B127: BAS-RHIN | C127: 5060 | D127: HAGUENAU | E127: 4066 | F127: NIEDERBRONN LES BAINS | G127: 6.1 | H127: 118 | I127: 44 | J127: 69 | K127: 28 | L127: 192 | M127: 192 | N127: 234 | O127: 183 | P127: 71 | Q127: 90 | R127: 52 | S127: 223 | T127: 165 | U127: 130 | V127: 232 | W127: 184 | X127: 183 | Y127: 86 | Z127: 230
A128: 30 | B128: VOSGES | C128: 57 | D128: EPINAL | E128: 488286 | F128: EPINAL ARISTIDE BRIAND | G128: 9.1 | H128: 119 | I128: 41 | J128: 33 | K128: 93 | L128: 130 | M128: 85 | N128: 66 | O128: 130 | P128: 221 | Q128: 206 | R128: 178 | S128: 236 | T128: 87 | U128: 76 | V128: 135 | W128: 221 | X128: 171 | Y128: 254 | Z128: 169
A129: 30 | B129: AUBE HAUTE MARNE | C129: 21 | D129: CHAUMONT | E129: 451156 | F129: SAINT DIZIER CENTRE | G129: 9.2 | H129: 120 | I129: 117 | J129: 102 | K129: 154 | L129: 155 | M129: 137 | N129: 88 | O129: 117 | P129: 189 | Q129: 122 | R129: 124 | S129: 124 | T129: 102 | U129: 117 | V129: 80 | W129: 127 | X129: 175 | Y129: 97 | Z129: 77
A130: 30 | B130: MEURTHE ET MOSELLE MEUSE | C130: 31 | D130: VERDUN | E130: 455231 | F130: COMMERCY | G130: 4.7 | H130: 121 | I130: 150 | J130: 142 | K130: 168 | L130: 132 | M130: 159 | N130: 102 | O130: 125 | P130: 90 | Q130: 117 | R130: 91 | S130: 196 | T130: 137 | U130: 106 | V130: 200 | W130: 71 | X130: 132 | Y130: 34 | Z130: 62
A131: 30 | B131: MARNE-ARDENNES | C131: 11 | D131: REIMS | E131: 451361 | F131: PIERRY LECLERC | G131: 1.9 | H131: 122 | I131: 77 | J131: 118 | K131: 35 | L131: 114 | M131: 205 | N131: 77 | O131: 55 | P131: 10 | Q131: 210 | R131: 175 | S131: 246 | T131: 110 | U131: 107 | V131: 124 | W131: 143 | X131: 149 | Y131: 116 | Z131: 127
A132: 30 | B132: VOSGES | C132: 55 | D132: SAINT DIE | E132: 588186 | F132: BRUYERES | G132: 3.7 | H132: 123 | I132: 70 | J132: 95 | K132: 42 | L132: 123 | M132: 150 | N132: 85 | O132: 174 | P132: 77 | Q132: 260 | R132: 260 | S132: 243 | T132: 91 | U132: 110 | V132: 67 | W132: 47 | X132: 130 | Y132: 29 | Z132: 26
A133: 30 | B133: MOSELLE | C133: 44 | D133: MOSELLE NORD | E133: 457350 | F133: HAYANGE | G133: 7.3 | H133: 124 | I133: 145 | J133: 78 | K133: 222 | L133: 37 | M133: 49 | N133: 139 | O133: 131 | P133: 28 | Q133: 197 | R133: 247 | S133: 15 | T133: 134 | U133: 125 | V133: 130 | W133: 133 | X133: 87 | Y133: 159 | Z133: 157
A134: 30 | B134: MEURTHE ET MOSELLE MEUSE | C134: 31 | D134: VERDUN | E134: 555406 | F134: LIGNY EN BARROIS | G134: 2.8 | H134: 125 | I134: 57 | J134: 55 | K134: 73 | L134: 168 | M134: 162 | N134: 169 | O134: 164 | P134: 139 | Q134: 136 | R134: 134 | S134: 142 | T134: 171 | U134: 156 | V134: 203 | W134: 150 | X134: 157 | Y134: 93 | Z134: 158
A135: 30 | B135: MARNE-ARDENNES | C135: 6 | D135: CHALONS EN CHAMPAGNE | E135: 451381 | F135: SEZANNE | G135: 6.5 | H135: 126 | I135: 95 | J135: 118 | K135: 69 | L135: 108 | M135: 144 | N135: 128 | O135: 48 | P135: 89 | Q135: 195 | R135: 206 | S135: 108 | T135: 124 | U135: 96 | V135: 180 | W135: 134 | X135: 113 | Y135: 207 | Z135: 84
A136: 30 | B136: MOSELLE | C136: 42 | D136: MOSELLE EST | E136: 457583 | F136: SAINT AVOLD | G136: 7.6 | H136: 127 | I136: 105 | J136: 102 | K136: 126 | L136: 147 | M136: 153 | N136: 143 | O136: 104 | P136: 125 | Q136: 147 | R136: 138 | S136: 149 | T136: 132 | U136: 139 | V136: 107 | W136: 130 | X136: 122 | Y136: 124 | Z136: 132
A137: 30 | B137: MOSELLE | C137: 44 | D137: MOSELLE NORD | E137: 457632 | F137: THIONVILLE CENTRALE | G137: 11.8 | H137: 128 | I137: 108 | J137: 69 | K137: 175 | L137: 90 | M137: 108 | N137: 100 | O137: 207 | P137: 33 | Q137: 154 | R137: 182 | S137: 70 | T137: 122 | U137: 119 | V137: 126 | W137: 190 | X137: 169 | Y137: 125 | Z137: 221
A138: 30 | B138: MARNE-ARDENNES | C138: 11 | D138: REIMS | E138: 551365 | F138: DORMANS | G138: 2.6 | H138: 129 | I138: 53 | J138: 33 | K138: 124 | L138: 240 | M138: 238 | N138: 218 | O138: 46 | P138: 206 | Q138: 124 | R138: 146 | S138: 72 | T138: 181 | U138: 204 | V138: 134 | W138: 67 | X138: 55 | Y138: 149 | Z138: 57
A139: 30 | B139: AUBE HAUTE MARNE | C139: 14 | D139: TROYES | E139: 510520 | F139: SAINT ANDRE LES VERGERS | G139: 4.1 | H139: 130 | I139: 128 | J139: 95 | K139: 177 | L139: 106 | M139: 148 | N139: 89 | O139: 124 | P139: 53 | Q139: 64 | R139: 61 | S139: 93 | T139: 244 | U139: 249 | V139: 195 | W139: 69 | X139: 134 | Y139: 25 | Z139: 75
A140: 30 | B140: MOSELLE | C140: 45 | D140: METZ | E140: 557612 | F140: SAINTE MARIE AUX CHENES | G140: 3.9 | H140: 131 | I140: 17 | J140: 14 | K140: 45 | L140: 237 | M140: 246 | N140: 249 | O140: 243 | P140: 40 | Q140: 184 | R140: 223 | S140: 44 | T140: 130 | U140: 123 | V140: 141 | W140: 202 | X140: 213 | Y140: 231 | Z140: 92
A141: 30 | B141: MEURTHE ET MOSELLE MEUSE | C141: 31 | D141: VERDUN | E141: 455678 | F141: VERDUN CENTRALE | G141: 10.6 | H141: 132 | I141: 85 | J141: 95 | K141: 74 | L141: 86 | M141: 74 | N141: 101 | O141: 38 | P141: 178 | Q141: 237 | R141: 230 | S141: 171 | T141: 196 | U141: 210 | V141: 158 | W141: 56 | X141: 36 | Y141: 151 | Z141: 60
A142: 30 | B142: MOSELLE | C142: 42 | D142: MOSELLE EST | E142: 457614 | F142: SARREBOURG | G142: 8.7 | H142: 133 | I142: 160 | J142: 142 | K142: 184 | L142: 116 | M142: 116 | N142: 185 | O142: 146 | P142: 65 | Q142: 66 | R142: 74 | S142: 82 | T142: 157 | U142: 129 | V142: 221 | W142: 122 | X142: 100 | Y142: 95 | Z142: 153
A143: 30 | B143: MOSELLE | C143: 44 | D143: MOSELLE NORD | E143: 457158 | F143: YUTZ | G143: 4.6 | H143: 134 | I143: 138 | J143: 102 | K143: 189 | L143: 107 | M143: 69 | N143: 245 | O143: 231 | P143: 79 | Q143: 140 | R143: 117 | S143: 213 | T143: 100 | U143: 83 | V143: 166 | W143: 151 | X143: 111 | Y143: 166 | Z143: 163
A144: 110 | B144: AUBE HAUTE MARNE | C144: 21 | D144: CHAUMONT | E144: 410560 | F144: BOURBONNE LES BAINS | G144: 2.0 | H144: 135 | I144: 30 | J144: 60 | K144: 11 | L144: 128 | M144: 84 | N144: 233 | O144: 193 | P144: 119 | Q144: 215 | R144: 208 | S144: 195 | T144: 133 | U144: 142 | V144: 103 | W144: 231 | X144: 249 | Y144: 115 | Z144: 243
A145: 110 | B145: MOSELLE | C145: 44 | D145: MOSELLE NORD | E145: 557347 | F145: GUENANGE | G145: 5.0 | H145: 136 | I145: 243 | J145: 244 | K145: 223 | L145: 101 | M145: 158 | N145: 97 | O145: 161 | P145: 25 | Q145: 56 | R145: 37 | S145: 158 | T145: 146 | U145: 164 | V145: 92 | W145: 20 | X145: 21 | Y145: 157 | Z145: 21
A146: 110 | B146: MEURTHE ET MOSELLE MEUSE | C146: 27 | D146: PONT A MOUSSON | E146: 554321 | F146: FROUARD | G146: 3.0 | H146: 137 | I146: 252 | J146: 254 | K146: 176 | L146: 62 | M146: 114 | N146: 146 | O146: 63 | P146: 16 | Q146: 14 | R146: 5 | S146: 212 | T146: 143 | U146: 167 | V146: 73 | W146: 92 | X146: 46 | Y146: 212 | Z146: 106
A147: 110 | B147: BAS-RHIN | C147: 5101 | D147: SELESTAT | E147: 4109 | F147: MARCKOLSHEIM | G147: 2.7 | H147: 138 | I147: 88 | J147: 85 | K147: 104 | L147: 151 | M147: 113 | N147: 163 | O147: 181 | P147: 166 | Q147: 158 | R147: 169 | S147: 89 | T147: 180 | U147: 206 | V147: 115 | W147: 110 | X147: 127 | Y147: 48 | Z147: 177
A148: 110 | B148: MEURTHE ET MOSELLE MEUSE | C148: 26 | D148: NANCY | E148: 554296 | F148: ESSEY LES NANCY | G148: 3.9 | H148: 139 | I148: 125 | J148: 137 | K148: 120 | L148: 103 | M148: 76 | N148: 138 | O148: 78 | P148: 185 | Q148: 129 | R148: 97 | S148: 230 | T148: 203 | U148: 199 | V148: 202 | W148: 106 | X148: 70 | Y148: 187 | Z148: 102
A149: 110 | B149: MEURTHE ET MOSELLE MEUSE | C149: 27 | D149: PONT A MOUSSON | E149: 454696 | F149: VILLERS GENERAL LECLERC | G149: 6.1 | H149: 140 | I149: 68 | J149: 47 | K149: 129 | L149: 161 | M149: 152 | N149: 225 | O149: 121 | P149: 117 | Q149: 120 | R149: 112 | S149: 153 | T149: 174 | U149: 165 | V149: 186 | W149: 206 | X149: 180 | Y149: 188 | Z149: 199
A150: 110 | B150: AUBE HAUTE MARNE | C150: 14 | D150: TROYES | E150: 510513 | F150: TROYES 1ER MAI | G150: 3.2 | H150: 141 | I150: 184 | J150: 69 | K150: 251 | L150: 149 | M150: 212 | N150: 12 | O150: 94 | P150: 126 | Q150: 161 | R150: 177 | S150: 87 | T150: 160 | U150: 171 | V150: 120 | W150: 26 | X150: 27 | Y150: 112 | Z150: 25
A151: 110 | B151: MARNE-ARDENNES | C151: 2 | D151: CHARLEVILLE MEZIERES | E151: 408840 | F151: RETHEL | G151: 5.3 | H151: 142 | I151: 63 | J151: 85 | K151: 33 | L151: 110 | M151: 145 | N151: 157 | O151: 122 | P151: 38 | Q151: 143 | R151: 130 | S151: 166 | T151: 192 | U151: 170 | V151: 233 | W151: 225 | X151: 146 | Y151: 255 | Z151: 215
A152: 110 | B152: AUBE HAUTE MARNE | C152: 14 | D152: TROYES | E152: 410571 | F152: ROMILLY SUR SEINE | G152: 6.9 | H152: 143 | I152: 83 | J152: 64 | K152: 128 | L152: 105 | M152: 100 | N152: 192 | O152: 96 | P152: 91 | Q152: 196 | R152: 193 | S152: 162 | T152: 193 | U152: 187 | V152: 204 | W152: 132 | X152: 118 | Y152: 123 | Z152: 142
A153: 110 | B153: HAUT-RHIN | C153: 5130 | D153: COLMAR | E153: 4153 | F153: ROUFFACH | G153: 3.7 | H153: 144 | I153: 193 | J153: 227 | K153: 111 | L153: 219 | M153: 210 | N153: 104 | O153: 227 | P153: 168 | Q153: 178 | R153: 184 | S153: 128 | T153: 20 | U153: 21 | V153: 35 | W153: 156 | X153: 218 | Y153: 74 | Z153: 135
A154: 110 | B154: MOSELLE | C154: 45 | D154: METZ | E154: 457574 | F154: ROMBAS | G154: 3.2 | H154: 145 | I154: 212 | J154: 235 | K154: 155 | L154: 43 | M154: 87 | N154: 110 | O154: 165 | P154: 1 | Q154: 32 | R154: 27 | S154: 83 | T154: 142 | U154: 134 | V154: 152 | W154: 249 | X154: 202 | Y154: 245 | Z154: 242
A155: 110 | B155: MOSELLE | C155: 45 | D155: METZ | E155: 557437 | F155: METZ SARRE | G155: 3.9 | H155: 146 | I155: 173 | J155: 85 | K155: 246 | L155: 159 | M155: 169 | N155: 53 | O155: 205 | P155: 159 | Q155: 242 | R155: 235 | S155: 185 | T155: 15 | U155: 15 | V155: 23 | W155: 239 | X155: 222 | Y155: 179 | Z155: 247
A156: 110 | B156: MARNE-ARDENNES | C156: 11 | D156: REIMS | E156: 551369 | F156: DAMERY | G156: 2.3 | H156: 147 | I156: 208 | J156: 196 | K156: 208 | L156: 213 | M156: 195 | N156: 41 | O156: 25 | P156: 259 | Q156: 189 | R156: 191 | S156: 156 | T156: 52 | U156: 72 | V156: 21 | W156: 43 | X156: 30 | Y156: 82 | Z156: 66
A157: 110 | B157: MEURTHE ET MOSELLE MEUSE | C157: 27 | D157: PONT A MOUSSON | E157: 454355 | F157: JARNY | G157: 4.7 | H157: 148 | I157: 218 | J157: 241 | K157: 156 | L157: 59 | M157: 40 | N157: 188 | O157: 106 | P157: 181 | Q157: 165 | R157: 150 | S157: 177 | T157: 81 | U157: 93 | V157: 53 | W157: 112 | X157: 38 | Y157: 239 | Z157: 137
A158: 110 | B158: MOSELLE | C158: 45 | D158: METZ | E158: 557712 | F158: WOIPPY | G158: 5.4 | H158: 149 | I158: 102 | J158: 78 | K158: 149 | L158: 118 | M158: 138 | N158: 57 | O158: 149 | P158: 115 | Q158: 225 | R158: 211 | S158: 216 | T158: 96 | U158: 137 | V158: 44 | W158: 189 | X158: 138 | Y158: 232 | Z158: 155
A159: 110 | B159: MEURTHE ET MOSELLE MEUSE | C159: 26 | D159: NANCY | E159: 454171 | F159: BLAMONT | G159: 1.5 | H159: 150 | I159: 257 | J159: 263 | K159: 100 | L159: 8 | M159: 17 | N159: 21 | O159: 108 | P159: 23 | Q159: 228 | R159: 201 | S159: 255 | T159: 50 | U159: 60 | V159: 33 | W159: 95 | X159: 79 | Y159: 200 | Z159: 53
A160: 110 | B160: AUBE HAUTE MARNE | C160: 14 | D160: TROYES | E160: 410550 | F160: BAR SUR AUBE | G160: 5.9 | H160: 151 | I160: 65 | J160: 55 | K160: 95 | L160: 176 | M160: 177 | N160: 180 | O160: 232 | P160: 72 | Q160: 246 | R160: 233 | S160: 244 | T160: 97 | U160: 115 | V160: 82 | W160: 160 | X160: 243 | Y160: 47 | Z160: 148
A161: 110 | B161: MOSELLE | C161: 42 | D161: MOSELLE EST | E161: 557523 | F161: PHALSBOURG | G161: 2.2 | H161: 152 | I161: 177 | J161: 192 | K161: 152 | L161: 246 | M161: 223 | N161: 121 | O161: 80 | P161: 256 | Q161: 85 | R161: 78 | S161: 114 | T161: 140 | U161: 113 | V161: 201 | W161: 36 | X161: 106 | Y161: 7 | Z161: 40
A162: 110 | B162: MARNE-ARDENNES | C162: 2 | D162: CHARLEVILLE MEZIERES | E162: 408806 | F162: SEDAN | G162: 9.2 | H162: 153 | I162: 98 | J162: 161 | K162: 27 | L162: 208 | M162: 216 | N162: 204 | O162: 71 | P162: 121 | Q162: 93 | R162: 58 | S162: 232 | T162: 214 | U162: 181 | V162: 248 | W162: 120 | X162: 76 | Y162: 216 | Z162: 98
A163: 110 | B163: MOSELLE | C163: 45 | D163: METZ | E163: 557559 | F163: REMILLY | G163: 4.1 | H163: 154 | I163: 157 | J163: 173 | K163: 144 | L163: 206 | M163: 193 | N163: 232 | O163: 209 | P163: 112 | Q163: 83 | R163: 55 | S163: 201 | T163: 131 | U163: 131 | V163: 116 | W163: 135 | X163: 144 | Y163: 75 | Z163: 164
A164: 110 | B164: BAS-RHIN | C164: 5060 | D164: HAGUENAU | E164: 4085 | F164: INGWILLER | G164: 3.2 | H164: 155 | I164: 103 | J164: 55 | K164: 191 | L164: 92 | M164: 30 | N164: 76 | O164: 263 | P164: 246 | Q164: 204 | R164: 220 | S164: 86 | T164: 169 | U164: 190 | V164: 95 | W164: 166 | X164: 232 | Y164: 11 | Z164: 248
A165: 110 | B165: VOSGES | C165: 55 | D165: SAINT DIE | E165: 588587 | F165: SAINT DIE CATHEDRALE | G165: 3.7 | H165: 156 | I165: 75 | J165: 131 | K165: 22 | L165: 193 | M165: 186 | N165: 209 | O165: 211 | P165: 96 | Q165: 91 | R165: 63 | S165: 181 | T165: 225 | U165: 236 | V165: 178 | W165: 167 | X165: 148 | Y165: 169 | Z165: 147
A166: 110 | B166: BAS-RHIN | C166: 5060 | D166: HAGUENAU | E166: 4057 | F166: BISCHWILLER | G166: 6.5 | H166: 157 | I166: 188 | J166: 169 | K166: 201 | L166: 64 | M166: 54 | N166: 182 | O166: 228 | P166: 69 | Q166: 187 | R166: 186 | S166: 154 | T166: 72 | U166: 58 | V166: 127 | W166: 200 | X166: 207 | Y166: 71 | Z166: 238
A167: 110 | B167: MEURTHE ET MOSELLE MEUSE | C167: 27 | D167: PONT A MOUSSON | E167: 554496 | F167: NANCY TROIS MAISONS | G167: 2.6 | H167: 158 | I167: 258 | J167: 256 | K167: 229 | L167: 39 | M167: 50 | N167: 179 | O167: 196 | P167: 13 | Q167: 39 | R167: 41 | S167: 51 | T167: 69 | U167: 92 | V167: 28 | W167: 164 | X167: 212 | Y167: 18 | Z167: 241
A168: 110 | B168: MOSELLE | C168: 45 | D168: METZ | E168: 557434 | F168: MARLY | G168: 3.7 | H168: 159 | I168: 71 | J168: 78 | K168: 68 | L168: 125 | M168: 130 | N168: 142 | O168: 144 | P168: 81 | Q168: 119 | R168: 126 | S168: 111 | T168: 246 | U168: 247 | V168: 236 | W168: 169 | X168: 143 | Y168: 182 | Z168: 162
A169: 110 | B169: MEURTHE ET MOSELLE MEUSE | C169: 27 | D169: PONT A MOUSSON | E169: 554257 | F169: DIEULOUARD | G169: 3.4 | H169: 160 | I169: 26 | J169: 33 | K169: 34 | L169: 165 | M169: 207 | N169: 246 | O169: 145 | P169: 6 | Q169: 229 | R169: 210 | S169: 233 | T169: 223 | U169: 216 | V169: 226 | W169: 154 | X169: 103 | Y169: 119 | Z169: 219
A170: 110 | B170: MARNE-ARDENNES | C170: 11 | D170: REIMS | E170: 551341 | F170: REIMS JEAN JAURES | G170: 4.3 | H170: 161 | I170: 209 | J170: 227 | K170: 171 | L170: 65 | M170: 134 | N170: 132 | O170: 40 | P170: 14 | Q170: 139 | R170: 192 | S170: 33 | T170: 104 | U170: 141 | V170: 58 | W170: 146 | X170: 110 | Y170: 234 | Z170: 73
A171: 110 | B171: MOSELLE | C171: 42 | D171: MOSELLE EST | E171: 557503 | F171: NEUNKIRCH | G171: 3.8 | H171: 162 | I171: 34 | J171: 60 | K171: 23 | L171: 212 | M171: 209 | N171: 211 | O171: 247 | P171: 68 | Q171: 113 | R171: 66 | S171: 257 | T171: 229 | U171: 221 | V171: 234 | W171: 207 | X171: 244 | Y171: 77 | Z171: 222
A172: 110 | B172: BAS-RHIN | C172: 5101 | D172: SELESTAT | E172: 4007 | F172: ILLKIRCH CENTRE | G172: 7.3 | H172: 163 | I172: 201 | J172: 217 | K172: 164 | L172: 51 | M172: 20 | N172: 186 | O172: 119 | P172: 213 | Q172: 166 | R172: 176 | S172: 95 | T172: 94 | U172: 80 | V172: 149 | W172: 195 | X172: 172 | Y172: 160 | Z172: 195
A173: 110 | B173: BAS-RHIN | C173: 5006 | D173: STRASBOURG | E173: 4026 | F173: STRASBOURG DANUBE | G173: 4.5 | H173: 164 | I173: 169 | J173: 33 | K173: 258 | L173: 235 | M173: 170 | N173: 206 | O173: 255 | P173: 243 | Q173: 248 | R173: 259 | S173: 40 | T173: 8 | U173: 5 | V173: 54 | W173: 218 | X173: 225 | Y173: 101 | Z173: 245
A174: 110 | B174: BAS-RHIN | C174: 5101 | D174: SELESTAT | E174: 4116 | F174: MOLSHEIM | G174: 5.1 | H174: 165 | I174: 176 | J174: 161 | K174: 188 | L174: 186 | M174: 131 | N174: 214 | O174: 186 | P174: 190 | Q174: 12 | R174: 8 | S174: 119 | T174: 209 | U174: 202 | V174: 211 | W174: 199 | X174: 198 | Y174: 185 | Z174: 159
A175: 110 | B175: MOSELLE | C175: 45 | D175: METZ | E175: 557105 | F175: ARS SUR MOSELLE | G175: 3.6 | H175: 166 | I175: 132 | J175: 113 | K175: 163 | L175: 231 | M175: 191 | N175: 171 | O175: 87 | P175: 247 | Q175: 169 | R175: 155 | S175: 170 | T175: 185 | U175: 180 | V175: 197 | W175: 34 | X175: 18 | Y175: 144 | Z175: 49
A176: 110 | B176: MOSELLE | C176: 42 | D176: MOSELLE EST | E176: 457617 | F176: SARREGUEMINES | G176: 8.2 | H176: 167 | I176: 111 | J176: 113 | K176: 132 | L176: 157 | M176: 118 | N176: 223 | O176: 168 | P176: 147 | Q176: 150 | R176: 172 | S176: 65 | T176: 149 | U176: 140 | V176: 171 | W176: 197 | X176: 128 | Y176: 218 | Z176: 200
A177: 110 | B177: MOSELLE | C177: 45 | D177: METZ | E177: 557178 | F177: BOULAY | G177: 3.9 | H177: 168 | I177: 35 | J177: 25 | K177: 101 | L177: 187 | M177: 201 | N177: 136 | O177: 172 | P177: 105 | Q177: 201 | R177: 203 | S177: 135 | T177: 202 | U177: 217 | V177: 145 | W177: 188 | X177: 203 | Y177: 84 | Z177: 216
A178: 110 | B178: MEURTHE ET MOSELLE MEUSE | C178: 27 | D178: PONT A MOUSSON | E178: 554184 | F178: BRIEY | G178: 4.6 | H178: 169 | I178: 119 | J178: 142 | K178: 96 | L178: 202 | M178: 239 | N178: 196 | O178: 177 | P178: 19 | Q178: 78 | R178: 59 | S178: 186 | T178: 227 | U178: 225 | V178: 225 | W178: 103 | X178: 131 | Y178: 50 | Z178: 141
A179: 110 | B179: AUBE HAUTE MARNE | C179: 21 | D179: CHAUMONT | E179: 410541 | F179: LANGRES | G179: 6.7 | H179: 170 | I179: 190 | J179: 227 | K179: 107 | L179: 146 | M179: 107 | N179: 174 | O179: 113 | P179: 171 | Q179: 155 | R179: 163 | S179: 99 | T179: 92 | U179: 86 | V179: 123 | W179: 129 | X179: 182 | Y179: 96 | Z179: 74
A180: 110 | B180: MOSELLE | C180: 42 | D180: MOSELLE EST | E180: 557668 | F180: VALMONT | G180: 4.5 | H180: 171 | I180: 19 | J180: 25 | K180: 26 | L180: 239 | M180: 236 | N180: 258 | O180: 248 | P180: 82 | Q180: 157 | R180: 153 | S180: 134 | T180: 172 | U180: 162 | V180: 205 | W180: 247 | X180: 208 | Y180: 230 | Z180: 246
A181: 110 | B181: HAUT-RHIN | C181: 5169 | D181: MULHOUSE | E181: 4195 | F181: CERNAY | G181: 2.4 | H181: 172 | I181: 187 | J181: 196 | K181: 160 | L181: 217 | M181: 250 | N181: 62 | O181: 86 | P181: 104 | Q181: 28 | R181: 17 | S181: 151 | T181: 236 | U181: 250 | V181: 117 | W181: 60 | X181: 62 | Y181: 120 | Z181: 44
A182: 110 | B182: HAUT-RHIN | C182: 5130 | D182: COLMAR | E182: 4157 | F182: NEUF BRISACH | G182: 3.6 | H182: 173 | I182: 107 | J182: 69 | K182: 173 | L182: 225 | M182: 234 | N182: 160 | O182: 235 | P182: 122 | Q182: 182 | R182: 167 | S182: 188 | T182: 86 | U182: 68 | V182: 160 | W182: 183 | X182: 189 | Y182: 107 | Z182: 208
A183: 110 | B183: AUBE HAUTE MARNE | C183: 14 | D183: TROYES | E183: 510530 | F183: ARCIS SUR AUBE | G183: 3.9 | H183: 174 | I183: 33 | J183: 1 | K183: 233 | L183: 104 | M183: 110 | N183: 228 | O183: 126 | P183: 37 | Q183: 252 | R183: 255 | S183: 102 | T183: 176 | U183: 169 | V183: 188 | W183: 213 | X183: 236 | Y183: 173 | Z183: 171
A184: 110 | B184: BAS-RHIN | C184: 5060 | D184: HAGUENAU | E184: 4071 | F184: WISSEMBOURG | G184: 8.4 | H184: 175 | I184: 127 | J184: 196 | K184: 17 | L184: 177 | M184: 178 | N184: 181 | O184: 223 | P184: 83 | Q184: 75 | R184: 65 | S184: 122 | T184: 173 | U184: 173 | V184: 165 | W184: 220 | X184: 219 | Y184: 191 | Z184: 198
A185: 110 | B185: BAS-RHIN | C185: 5060 | D185: HAGUENAU | E185: 4031 | F185: TRUCHTERSHEIM | G185: 2.9 | H185: 176 | I185: 162 | J185: 203 | K185: 91 | L185: 72 | M185: 19 | N185: 253 | O185: 229 | P185: 211 | Q185: 17 | R185: 16 | S185: 76 | T185: 249 | U185: 228 | V185: 263 | W185: 241 | X185: 216 | Y185: 242 | Z185: 209
A186: 110 | B186: MEURTHE ET MOSELLE MEUSE | C186: 31 | D186: VERDUN | E186: 455566 | F186: REVIGNY SUR ORNAIN | G186: 3.4 | H186: 177 | I186: 100 | J186: 137 | K186: 58 | L186: 100 | M186: 154 | N186: 154 | O186: 180 | P186: 12 | Q186: 224 | R186: 219 | S186: 182 | T186: 162 | U186: 166 | V186: 133 | W186: 179 | X186: 223 | Y186: 88 | Z186: 172
A187: 110 | B187: MOSELLE | C187: 42 | D187: MOSELLE EST | E187: 457258 | F187: DIEUZE | G187: 3.2 | H187: 178 | I187: 118 | J187: 152 | K187: 78 | L187: 131 | M187: 176 | N187: 226 | O187: 190 | P187: 4 | Q187: 185 | R187: 168 | S187: 197 | T187: 121 | U187: 101 | V187: 161 | W187: 222 | X187: 251 | Y187: 145 | Z187: 201
A188: 110 | B188: MOSELLE | C188: 44 | D188: MOSELLE NORD | E188: 557622 | F188: SIERCK LES BAINS | G188: 1.3 | H188: 179 | I188: 181 | J188: 209 | K188: 127 | L188: 129 | M188: 232 | N188: 11 | O188: 118 | P188: 26 | Q188: 55 | R188: 29 | S188: 191 | T188: 248 | U188: 254 | V188: 159 | W188: 77 | X188: 56 | Y188: 233 | Z188: 35
A189: 110 | B189: AUBE HAUTE MARNE | C189: 14 | D189: TROYES | E189: 410512 | F189: TROYES ZOLA | G189: 4.5 | H189: 180 | I189: 189 | J189: 131 | K189: 237 | L189: 138 | M189: 165 | N189: 127 | O189: 112 | P189: 74 | Q189: 63 | R189: 50 | S189: 138 | T189: 188 | U189: 198 | V189: 163 | W189: 163 | X189: 123 | Y189: 189 | Z189: 156
A190: 110 | B190: VOSGES | C190: 55 | D190: SAINT DIE | E190: 588461 | F190: MOYENMOUTIER | G190: 2.5 | H190: 181 | I190: 231 | J190: 223 | K190: 225 | L190: 68 | M190: 62 | N190: 124 | O190: 245 | P190: 70 | Q190: 47 | R190: 19 | S190: 256 | T190: 204 | U190: 184 | V190: 222 | W190: 137 | X190: 211 | Y190: 27 | Z190: 173
A191: 110 | B191: MARNE-ARDENNES | C191: 6 | D191: CHALONS EN CHAMPAGNE | E191: 451166 | F191: VITRY LE FRANCOIS | G191: 6.8 | H191: 182 | I191: 122 | J191: 173 | K191: 53 | L191: 199 | M191: 208 | N191: 176 | O191: 32 | P191: 167 | Q191: 188 | R191: 181 | S191: 178 | T191: 164 | U191: 146 | V191: 206 | W191: 109 | X191: 67 | Y191: 226 | Z191: 81
A192: 160 | B192: MOSELLE | C192: 45 | D192: METZ | E192: 557445 | F192: METZ SAINT LIVIER | G192: 2.9 | H192: 183 | I192: 140 | J192: 173 | K192: 97 | L192: 136 | M192: 126 | N192: 235 | O192: 189 | P192: 51 | Q192: 109 | R192: 87 | S192: 200 | T192: 198 | U192: 179 | V192: 227 | W192: 185 | X192: 129 | Y192: 253 | Z192: 129
A193: 160 | B193: MEURTHE ET MOSELLE MEUSE | C193: 26 | D193: NANCY | E193: 454671 | F193: VANDOEUVRE LES NANCY | G193: 4.6 | H193: 184 | I193: 210 | J193: 223 | K193: 180 | L193: 82 | M193: 99 | N193: 38 | O193: 30 | P193: 184 | Q193: 235 | R193: 221 | S193: 225 | T193: 175 | U193: 186 | V193: 138 | W193: 27 | X193: 19 | Y193: 171 | Z193: 29
A194: 160 | B194: HAUT-RHIN | C194: 5169 | D194: MULHOUSE | E194: 4181 | F194: WITTELSHEIM | G194: 3.3 | H194: 185 | I194: 168 | J194: 185 | K194: 151 | L194: 226 | M194: 225 | N194: 87 | O194: 129 | P194: 201 | Q194: 230 | R194: 227 | S194: 168 | T194: 119 | U194: 153 | V194: 47 | W194: 40 | X194: 90 | Y194: 19 | Z194: 28
A195: 160 | B195: MEURTHE ET MOSELLE MEUSE | C195: 27 | D195: PONT A MOUSSON | E195: 554196 | F195: CHAMPIGNEULLES | G195: 3.6 | H195: 186 | I195: 199 | J195: 217 | K195: 161 | L195: 49 | M195: 33 | N195: 222 | O195: 134 | P195: 135 | Q195: 213 | R195: 224 | S195: 117 | T195: 106 | U195: 112 | V195: 105 | W195: 192 | X195: 153 | Y195: 158 | Z195: 213
A196: 160 | B196: AUBE HAUTE MARNE | C196: 21 | D196: CHAUMONT | E196: 410566 | F196: CHAUMONT HOTEL DE VILLE | G196: 7.7 | H196: 187 | I196: 161 | J196: 192 | K196: 116 | L196: 133 | M196: 151 | N196: 68 | O196: 107 | P196: 136 | Q196: 173 | R196: 183 | S196: 115 | T196: 183 | U196: 203 | V196: 144 | W196: 105 | X196: 158 | Y196: 36 | Z196: 124
A197: 160 | B197: BAS-RHIN | C197: 5101 | D197: SELESTAT | E197: 4015 | F197: LINGOLSHEIM | G197: 4.4 | H197: 188 | I197: 165 | J197: 173 | K197: 159 | L197: 218 | M197: 194 | N197: 231 | O197: 234 | P197: 141 | Q197: 84 | R197: 71 | S197: 139 | T197: 93 | U197: 102 | V197: 81 | W197: 240 | X197: 250 | Y197: 142 | Z197: 249
A198: 160 | B198: HAUT-RHIN | C198: 5130 | D198: COLMAR | E198: 4141 | F198: HORBOURG WIHR | G198: 5.8 | H198: 189 | I198: 172 | J198: 137 | K198: 210 | L198: 247 | M198: 228 | N198: 165 | O198: 169 | P198: 244 | Q198: 65 | R198: 43 | S198: 169 | T198: 154 | U198: 152 | V198: 157 | W198: 114 | X198: 101 | Y198: 141 | Z198: 95
A199: 160 | B199: MARNE-ARDENNES | C199: 11 | D199: REIMS | E199: 451308 | F199: REIMS SAINT THOMAS | G199: 7.3 | H199: 190 | I199: 213 | J199: 189 | K199: 232 | L199: 167 | M199: 133 | N199: 119 | O199: 67 | P199: 226 | Q199: 209 | R199: 198 | S199: 204 | T199: 156 | U199: 175 | V199: 100 | W199: 24 | X199: 14 | Y199: 121 | Z199: 59
A200: 160 | B200: MARNE-ARDENNES | C200: 2 | D200: CHARLEVILLE MEZIERES | E200: 508817 | F200: CHARLEVILLE MOHON | G200: 3.4 | H200: 191 | I200: 82 | J200: 102 | K200: 59 | L200: 170 | M200: 248 | N200: 120 | O200: 65 | P200: 7 | Q200: 214 | R200: 185 | S200: 253 | T200: 213 | U200: 218 | V200: 179 | W200: 165 | X200: 126 | Y200: 219 | Z200: 123
A201: 160 | B201: MARNE-ARDENNES | C201: 11 | D201: REIMS | E201: 551306 | F201: REIMS SAINT MARCEAUX | G201: 4.5 | H201: 192 | I201: 226 | J201: 251 | K201: 60 | L201: 99 | M201: 89 | N201: 153 | O201: 22 | P201: 193 | Q201: 257 | R201: 258 | S201: 141 | T201: 42 | U201: 40 | V201: 51 | W201: 89 | X201: 42 | Y201: 198 | Z201: 110
A202: 160 | B202: MOSELLE | C202: 45 | D202: METZ | E202: 457446 | F202: METZ SAINT LOUIS | G202: 6.5 | H202: 193 | I202: 174 | J202: 142 | K202: 202 | L202: 185 | M202: 164 | N202: 221 | O202: 79 | P202: 172 | Q202: 104 | R202: 118 | S202: 90 | T202: 201 | U202: 209 | V202: 169 | W202: 123 | X202: 68 | Y202: 206 | Z202: 125
A203: 160 | B203: VOSGES | C203: 55 | D203: SAINT DIE | E203: 588551 | F203: RAMBERVILLERS | G203: 3.5 | H203: 194 | I203: 58 | J203: 95 | K203: 12 | L203: 244 | M203: 203 | N203: 203 | O203: 93 | P203: 249 | Q203: 240 | R203: 212 | S203: 250 | T203: 182 | U203: 183 | V203: 182 | W203: 116 | X203: 109 | Y203: 98 | Z203: 128
A204: 160 | B204: BAS-RHIN | C204: 5060 | D204: HAGUENAU | E204: 4087 | F204: SAVERNE | G204: 7.9 | H204: 195 | I204: 203 | J204: 161 | K204: 234 | L204: 134 | M204: 45 | N204: 133 | O204: 116 | P204: 260 | Q204: 137 | R204: 127 | S204: 161 | T204: 179 | U204: 191 | V204: 153 | W204: 115 | X204: 92 | Y204: 103 | Z204: 151
... 70 more rows

Sheet AG_FICHE
A1: Accueil
A2: BAROMETRE GRAND PUBLIC
A4: UNITE: | B4: Agence | E4: ETP perf : | F4: =VLOOKUP(A5,'RECAP AG'!$G$6:$DG$271,3,FALSE) -> 7.90
A5: =VLOOKUP(B5,LISTES!$C$6:$D$271,2,FALSE) -> 4189 | B5: ALTKIRCH
C6: Coefficient du critère | E6: Résultats | I6: Ecart au 1ier | K6: =IF(OR(A5=4017,A5=4022),"Rang estimé","Rang") -> Rang
E7: du 1ier | G7: de l'Agence | I7: Du mois
A9: RANG GRAND PUBLIC | K9: =VLOOKUP($A$5,'RECAP AG'!$G$6:$DG$271,104,FALSE) -> 258
A11: SATISFACTION CLIENTS | C11: 20% | K11: =VLOOKUP($A$5,'RECAP AG'!$G$6:$DG$271,13,FALSE) -> 224
B12: NPS à froid (SAE) | C12: 10% | E12: =+'RECAP AG'!K4 -> 46 | G12: =VLOOKUP($A$5,'RECAP AG'!$G$6:$DG$271,5,FALSE) -> 8.0 | I12: =VLOOKUP($A$5,'RECAP AG'!$G$6:$DG$271,6,FALSE) -> 72% | K12: =VLOOKUP($A$5,'RECAP AG'!$G$6:$DG$271,7,FALSE) -> 189
B13: NPS à chaud (QHD) | C13: 10% | E13: =+'RECAP AG'!M4 -> 10% | G13: =VLOOKUP($A$5,'RECAP AG'!$G$6:$DG$271,8,FALSE) -> 34% | I13: =VLOOKUP($A$5,'RECAP AG'!$G$6:$DG$271,9,FALSE) -> 62% | K13: =VLOOKUP($A$5,'RECAP AG'!$G$6:$DG$271,10,FALSE) -> 245
A15: BANCARISATION | C15: 20% | K15: =VLOOKUP($A$5,'RECAP AG'!$G$6:$DG$271,36,FALSE) -> 262
B16: Ventes Nettes produits pondérés | C16: 10% | E16: ='RECAP AG'!X4 -> 134.2 | G16: =VLOOKUP($A$5,'RECAP AG'!$G$6:$DG$271,19,FALSE) -> 6.2 | I16: =VLOOKUP($A$5,'RECAP AG'!$G$6:$DG$271,20,FALSE) -> 95% | K16: =VLOOKUP($A$5,'RECAP AG'!$G$6:$DG$271,21,FALSE) -> 260
B17: Ventes sur client non détenteur de l’univers | C17: 4% | E17: ='RECAP AG'!AB4 -> 72.0 | G17: =VLOOKUP($A$5,'RECAP AG'!$G$6:$DG$271,23,FALSE) -> 22.0 | I17: =VLOOKUP($A$5,'RECAP AG'!$G$6:$DG$271,24,FALSE) -> 69% | K17: =VLOOKUP($A$5,'RECAP AG'!$G$6:$DG$271,25,FALSE) -> 251
B18: Mobilité Macron | C18: 3% | E18: ='RECAP AG'!AF4 -> 36.1 | G18: =VLOOKUP($A$5,'RECAP AG'!$G$6:$DG$271,27,FALSE) -> 2.8 | I18: =VLOOKUP($A$5,'RECAP AG'!$G$6:$DG$271,28,FALSE) -> 92% | K18: =VLOOKUP($A$5,'RECAP AG'!$G$6:$DG$271,29,FALSE) -> 219
B19: Remises commerciales | C19: 3% | E19: ='RECAP AG'!AJ4 -> -0.5 | G19: =VLOOKUP($A$5,'RECAP AG'!$G$6:$DG$271,31,FALSE) -> -2.9 | I19: =VLOOKUP($A$5,'RECAP AG'!$G$6:$DG$271,32,FALSE) -> 98% | K19: =VLOOKUP($A$5,'RECAP AG'!$G$6:$DG$271,33,FALSE) -> 240
A21: EPARGNE | C21: 20% | K21: =VLOOKUP($A$5,'RECAP AG'!$G$6:$DG$271,51,FALSE) -> 223
B22: Excédent Epargne y/c DAV pondéré | C22: 14% | E22: ='RECAP AG'!AU4 -> 1878.6 | G22: =VLOOKUP($A$5,'RECAP AG'!$G$6:$DG$271,42,FALSE) -> 215.8 | I22: =VLOOKUP($A$5,'RECAP AG'!$G$6:$DG$271,43,FALSE) -> 73% | K22: =VLOOKUP($A$5,'RECAP AG'!$G$6:$DG$271,44,FALSE) -> 189
B23: Ventes sur client non détenteur de l’univers | C23: 6% | E23: ='RECAP AG'!AY4 -> 57.9 | G23: =VLOOKUP($A$5,'RECAP AG'!$G$6:$DG$271,46,FALSE) -> 7.3 | I23: =VLOOKUP($A$5,'RECAP AG'!$G$6:$DG$271,47,FALSE) -> 87% | K23: =VLOOKUP($A$5,'RECAP AG'!$G$6:$DG$271,48,FALSE) -> 261
A25: IARD PREVOYANCE | C25: 20% | K25: =VLOOKUP($A$5,'RECAP AG'!$G$6:$DG$271,85,FALSE) -> 258
B26: Ventes Nettes produits pondérés | C26: 14% | E26: ='RECAP AG'!CC4 -> 513.7 | G26: =VLOOKUP($A$5,'RECAP AG'!$G$6:$DG$271,76,FALSE) -> -2.4 | I26: =VLOOKUP($A$5,'RECAP AG'!$G$6:$DG$271,77,FALSE) -> 100% | K26: =VLOOKUP($A$5,'RECAP AG'!$G$6:$DG$271,78,FALSE) -> 260
B27: Ventes sur client non détenteur de l’univers | C27: 6% | E27: ='RECAP AG'!CG4 -> 61.8 | G27: =VLOOKUP($A$5,'RECAP AG'!$G$6:$DG$271,80,FALSE) -> 20.9 | I27: =VLOOKUP($A$5,'RECAP AG'!$G$6:$DG$271,81,FALSE) -> 66% | K27: =VLOOKUP($A$5,'RECAP AG'!$G$6:$DG$271,82,FALSE) -> 230
A29: CREDITS | C29: 20% | K29: =VLOOKUP($A$5,'RECAP AG'!$G$6:$DG$271,70,FALSE) -> 205
B30: Engagements et ventes accessoires pondérés Immo | C30: 8% | E30: ='RECAP AG'!BJ4 -> 409.6 | G30: =VLOOKUP($A$5,'RECAP AG'!$G$6:$DG$271,57,FALSE) -> 50.6 | I30: =VLOOKUP($A$5,'RECAP AG'!$G$6:$DG$271,58,FALSE) -> 88% | K30: =VLOOKUP($A$5,'RECAP AG'!$G$6:$DG$271,59,FALSE) -> 220
B31: Engagements et ventes accessoires pondérés Conso | C31: 6% | E31: ='RECAP AG'!BN4 -> 109.6 | G31: =VLOOKUP($A$5,'RECAP AG'!$G$6:$DG$271,61,FALSE) -> 54.7 | I31: =VLOOKUP($A$5,'RECAP AG'!$G$6:$DG$271,62,FALSE) -> 50% | K31: =VLOOKUP($A$5,'RECAP AG'!$G$6:$DG$271,63,FALSE) -> 78
B32: Ventes sur client non détenteur de l’univers | C32: 6% | E32: ='RECAP AG'!BR4 -> 33.4 | G32: =VLOOKUP($A$5,'RECAP AG'!$G$6:$DG$271,65,FALSE) -> 8.6 | I32: =VLOOKUP($A$5,'RECAP AG'!$G$6:$DG$271,66,FALSE) -> 74% | K32: =VLOOKUP($A$5,'RECAP AG'!$G$6:$DG$271,67,FALSE) -> 235

Sheet AG_TOTAL
B1: Accueil | H1: BAROMETRE BDD - AGENCES
H2: TOTAL GENERAL
H3: =ACCUEIL!F7 -> 2021-08-22
H7: TOTAL GENERAL | K7: Total Satisfaction Clients | N7: Total Bancarisation | Q7: Total Epargne | T7: Total IARD Prévoyance | W7: Total Crédits
I8: coef | J8: 100% | L8: coef | M8: =AG_SATISFACTION!P8 -> 20% | O8: coef | P8: =AG_BANCA!Z8 -> 20% | R8: coef | S8: =AG_EPARGNE!R8 -> 20% | U8: coef | V8: =AG_IARD!R8 -> 20% | X8: coef | Y8: =AG_CREDIT!V8 -> 20%
B9: Direction | C9: eds | D9: Territoire | E9: eds | F9: Agence | G9: ="ETP perf "&DATEMAJ!$C$28 -> ETP perf 30-juin | H9: Moyenne ecart au 1er | I9: % Ecart au 1er | J9: Rang CEGEE | K9: Moyenne ecart au 1er | L9: % Ecart au 1er | M9: Rang CEGEE | N9: Moyenne ecart au 1er | O9: % Ecart au 1er | P9: Rang CEGEE | Q9: Moyenne ecart au 1er | R9: % Ecart au 1er | S9: Rang CEGEE | T9: Moyenne ecart au 1er | U9: % Ecart au 1er | V9: Rang CEGEE | W9: Moyenne ecart au 1er | X9: % Ecart au 1er | Y9: Rang CEGEE
A10: 50 | B10: MEURTHE ET MOSELLE MEUSE | C10: 26 | D10: NANCY | E10: 454481 | F10: NANCY PLACE DOMBASLE | G10: 11.6 | H10: 18% | I10: 0% | J10: 1 | K10: 46% | L10: 44% | M10: 131 | N10: 17% | O10: 0% | P10: 1 | Q10: 46% | R10: 25% | S10: 16 | T10: 23% | U10: 15% | V10: 4 | W10: 20% | X10: 7% | Y10: 3
A11: 50 | B11: MEURTHE ET MOSELLE MEUSE | C11: 27 | D11: PONT A MOUSSON | E11: 554531 | F11: POMPEY | G11: 2.8 | H11: 21% | I11: 3% | J11: 2 | K11: 39% | L11: 37% | M11: 91 | N11: 20% | O11: 3% | P11: 2 | Q11: 33% | R11: 13% | S11: 6 | T11: 38% | U11: 30% | V11: 19 | W11: 36% | X11: 23% | Y11: 9
A12: 50 | B12: MEURTHE ET MOSELLE MEUSE | C12: 26 | D12: NANCY | E12: 554356 | F12: JARVILLE LA MALGRANGE | G12: 3.5 | H12: 22% | I12: 4% | J12: 3 | K12: 29% | L12: 27% | M12: 37 | N12: 27% | O12: 10% | P12: 3 | Q12: 56% | R12: 36% | S12: 58 | T12: 29% | U12: 21% | V12: 9 | W12: 29% | X12: 15% | Y12: 5
A13: 50 | B13: MARNE-ARDENNES | C13: 2 | D13: CHARLEVILLE MEZIERES | E13: 408822 | F13: CHARLEVILLE MEZIERES | G13: 3.7 | H13: 25% | I13: 7% | J13: 4 | K13: 43% | L13: 41% | M13: 109 | N13: 47% | O13: 30% | P13: 30 | Q13: 27% | R13: 6% | S13: 3 | T13: 28% | U13: 20% | V13: 6 | W13: 40% | X13: 27% | Y13: 14
A14: 50 | B14: MOSELLE | C14: 42 | D14: MOSELLE EST | E14: 457163 | F14: BEHREN LES FORBACH | G14: 2.4 | H14: 26% | I14: 8% | J14: 5 | K14: 10% | L14: 8% | M14: 3 | N14: 40% | O14: 24% | P14: 12 | Q14: 63% | R14: 43% | S14: 107 | T14: 50% | U14: 42% | V14: 46 | W14: 27% | X14: 13% | Y14: 4
A15: 50 | B15: MARNE-ARDENNES | C15: 6 | D15: CHALONS EN CHAMPAGNE | E15: 451115 | F15: MOURMELON LE GRAND | G15: 2.9 | H15: 28% | I15: 10% | J15: 6 | K15: 31% | L15: 29% | M15: 50 | N15: 36% | O15: 20% | P15: 7 | Q15: 47% | R15: 27% | S15: 21 | T15: 45% | U15: 37% | V15: 28 | W15: 39% | X15: 26% | Y15: 13
A16: 50 | B16: MOSELLE | C16: 44 | D16: MOSELLE NORD | E16: 557508 | F16: NILVANGE | G16: 2.6 | H16: 28% | I16: 10% | J16: 7 | K16: 38% | L16: 36% | M16: 87 | N16: 41% | O16: 24% | P16: 13 | Q16: 50% | R16: 29% | S16: 29 | T16: 24% | U16: 16% | V16: 5 | W16: 49% | X16: 36% | Y16: 25
A17: 50 | B17: MOSELLE | C17: 44 | D17: MOSELLE NORD | E17: 557113 | F17: AUDUN LE TICHE | G17: 2.0 | H17: 29% | I17: 11% | J17: 8 | K17: 32% | L17: 30% | M17: 59 | N17: 45% | O17: 29% | P17: 23 | Q17: 59% | R17: 39% | S17: 79 | T17: 48% | U17: 40% | V17: 34 | W17: 19% | X17: 6% | Y17: 2
A18: 50 | B18: BAS-RHIN | C18: 5101 | D18: SELESTAT | E18: 4113 | F18: BARR | G18: 2.9 | H18: 30% | I18: 12% | J18: 9 | K18: 32% | L18: 30% | M18: 56 | N18: 39% | O18: 23% | P18: 10 | Q18: 32% | R18: 11% | S18: 5 | T18: 46% | U18: 39% | V18: 31 | W18: 60% | X18: 46% | Y18: 86
A19: 50 | B19: MARNE-ARDENNES | C19: 2 | D19: CHARLEVILLE MEZIERES | E19: 508820 | F19: VOUZIERS | G19: 2.9 | H19: 31% | I19: 13% | J19: 10 | K19: 35% | L19: 33% | M19: 66 | N19: 57% | O19: 40% | P19: 67 | Q19: 65% | R19: 45% | S19: 126 | T19: 8% | U19: 0% | V19: 1 | W19: 50% | X19: 37% | Y19: 32
A20: 50 | B20: MARNE-ARDENNES | C20: 11 | D20: REIMS | E20: 551349 | F20: REIMS SAINT REMI | G20: 3.0 | H20: 32% | I20: 14% | J20: 11 | K20: 47% | L20: 45% | M20: 137 | N20: 49% | O20: 32% | P20: 32 | Q20: 48% | R20: 27% | S20: 23 | T20: 29% | U20: 22% | V20: 11 | W20: 48% | X20: 35% | Y20: 21
A21: 50 | B21: VOSGES | C21: 57 | D21: EPINAL | E21: 488288 | F21: EPINAL LEOPOLD BOURG | G21: 2.0 | H21: 32% | I21: 14% | J21: 12 | K21: 33% | L21: 31% | M21: 61 | N21: 47% | O21: 30% | P21: 28 | Q21: 48% | R21: 27% | S21: 22 | T21: 59% | U21: 52% | V21: 88 | W21: 35% | X21: 21% | Y21: 7
A22: 50 | B22: MARNE-ARDENNES | C22: 11 | D22: REIMS | E22: 451336 | F22: TINQUEUX | G22: 5.7 | H22: 32% | I22: 14% | J22: 13 | K22: 49% | L22: 47% | M22: 144 | N22: 54% | O22: 37% | P22: 53 | Q22: 21% | R22: 0% | S22: 2 | T22: 49% | U22: 41% | V22: 37 | W22: 50% | X22: 37% | Y22: 30
A23: 50 | B23: MEURTHE ET MOSELLE MEUSE | C23: 27 | D23: PONT A MOUSSON | E23: 454651 | F23: TOUL | G23: 10.4 | H23: 34% | I23: 16% | J23: 14 | K23: 68% | L23: 66% | M23: 228 | N23: 42% | O23: 25% | P23: 18 | Q23: 55% | R23: 35% | S23: 53 | T23: 52% | U23: 44% | V23: 56 | W23: 14% | X23: 0% | Y23: 1
A24: 50 | B24: MEURTHE ET MOSELLE MEUSE | C24: 31 | D24: VERDUN | E24: 554413 | F24: LONGWY BAS | G24: 3.6 | H24: 34% | I24: 16% | J24: 15 | K24: 30% | L24: 28% | M24: 42 | N24: 47% | O24: 30% | P24: 24 | Q24: 42% | R24: 21% | S24: 10 | T24: 61% | U24: 54% | V24: 101 | W24: 53% | X24: 39% | Y24: 42
A25: 50 | B25: MARNE-ARDENNES | C25: 6 | D25: CHALONS EN CHAMPAGNE | E25: 551330 | F25: MONTMIRAIL | G25: 2.9 | H25: 35% | I25: 17% | J25: 16 | K25: 19% | L25: 17% | M25: 15 | N25: 64% | O25: 47% | P25: 135 | Q25: 46% | R25: 26% | S25: 18 | T25: 50% | U25: 42% | V25: 48 | W25: 55% | X25: 41% | Y25: 52
A26: 50 | B26: BAS-RHIN | C26: 5101 | D26: SELESTAT | E26: 4126 | F26: MUTZIG | G26: 2.0 | H26: 36% | I26: 18% | J26: 17 | K26: 46% | L26: 44% | M26: 123 | N26: 50% | O26: 33% | P26: 35 | Q26: 47% | R26: 26% | S26: 19 | T26: 61% | U26: 53% | V26: 98 | W26: 36% | X26: 22% | Y26: 8
A27: 50 | B27: MARNE-ARDENNES | C27: 11 | D27: REIMS | E27: 551367 | F27: AY CHAMPAGNE | G27: 2.5 | H27: 36% | I27: 18% | J27: 18 | K27: 29% | L27: 27% | M27: 36 | N27: 47% | O27: 30% | P27: 25 | Q27: 77% | R27: 57% | S27: 222 | T27: 50% | U27: 42% | V27: 45 | W27: 38% | X27: 24% | Y27: 11
A28: 50 | B28: MEURTHE ET MOSELLE MEUSE | C28: 26 | D28: NANCY | E28: 554476 | F28: NANCY ARTEM | G28: 2.7 | H28: 36% | I28: 18% | J28: 19 | K28: 41% | L28: 38% | M28: 97 | N28: 49% | O28: 32% | P28: 34 | Q28: 45% | R28: 25% | S28: 15 | T28: 53% | U28: 46% | V28: 61 | W28: 52% | X28: 39% | Y28: 41
A29: 50 | B29: MARNE-ARDENNES | C29: 11 | D29: REIMS | E29: 551340 | F29: BETHENY | G29: 3.0 | H29: 36% | I29: 18% | J29: 20 | K29: 44% | L29: 42% | M29: 112 | N29: 62% | O29: 46% | P29: 122 | Q29: 39% | R29: 18% | S29: 8 | T29: 57% | U29: 49% | V29: 75 | W29: 39% | X29: 25% | Y29: 12
A30: 50 | B30: BAS-RHIN | C30: 5060 | D30: HAGUENAU | E30: 4092 | F30: HOCHFELDEN | G30: 2.4 | H30: 36% | I30: 18% | J30: 21 | K30: 44% | L30: 42% | M30: 116 | N30: 31% | O30: 14% | P30: 5 | Q30: 74% | R30: 54% | S30: 208 | T30: 46% | U30: 38% | V30: 30 | W30: 45% | X30: 32% | Y30: 18
A31: 262 | B31: MEURTHE ET MOSELLE MEUSE | C31: 31 | D31: VERDUN | E31: 454414 | F31: LONGWY HAUT | G31: 3.7 | H31: 36% | I31: 18% | J31: 22 | K31: 40% | L31: 38% | M31: 96 | N31: 57% | O31: 41% | P31: 75 | Q31: 41% | R31: 20% | S31: 9 | T31: 48% | U31: 40% | V31: 35 | W31: 55% | X31: 42% | Y31: 55
A32: 262 | B32: BAS-RHIN | C32: 5101 | D32: SELESTAT | E32: 4121 | F32: SCHIRMECK | G32: 3.2 | H32: 36% | I32: 18% | J32: 23 | K32: 18% | L32: 16% | M32: 10 | N32: 58% | O32: 41% | P32: 83 | Q32: 52% | R32: 32% | S32: 37 | T32: 54% | U32: 47% | V32: 66 | W32: 59% | X32: 46% | Y32: 80
A33: 262 | B33: MOSELLE | C33: 42 | D33: MOSELLE EST | E33: 457165 | F33: BITCHE | G33: 2.1 | H33: 37% | I33: 19% | J33: 24 | K33: 50% | L33: 48% | M33: 147 | N33: 35% | O33: 18% | P33: 6 | Q33: 71% | R33: 51% | S33: 181 | T33: 31% | U33: 23% | V33: 13 | W33: 59% | X33: 46% | Y33: 78
A34: 262 | B34: MOSELLE | C34: 45 | D34: METZ | E34: 557444 | F34: SAINT JULIEN LES METZ | G34: 4.9 | H34: 37% | I34: 19% | J34: 25 | K34: 49% | L34: 47% | M34: 143 | N34: 61% | O34: 45% | P34: 113 | Q34: 47% | R34: 27% | S34: 20 | T34: 30% | U34: 22% | V34: 12 | W34: 58% | X34: 45% | Y34: 73
A35: 262 | B35: BAS-RHIN | C35: 5006 | D35: STRASBOURG | E35: 4047 | F35: STRASBOURG CRONENBOURG | G35: 5.0 | H35: 37% | I35: 19% | J35: 26 | K35: 37% | L35: 35% | M35: 76 | N35: 62% | O35: 45% | P35: 115 | Q35: 52% | R35: 32% | S35: 38 | T35: 45% | U35: 37% | V35: 29 | W35: 51% | X35: 38% | Y35: 35
A36: 262 | B36: MARNE-ARDENNES | C36: 2 | D36: CHARLEVILLE MEZIERES | E36: 508839 | F36: GIVET | G36: 3.7 | H36: 37% | I36: 19% | J36: 27 | K36: 32% | L36: 30% | M36: 60 | N36: 64% | O36: 48% | P36: 144 | Q36: 69% | R36: 49% | S36: 160 | T36: 20% | U36: 12% | V36: 3 | W36: 62% | X36: 48% | Y36: 98
A37: 262 | B37: BAS-RHIN | C37: 5006 | D37: STRASBOURG | E37: 4010 | F37: STRASBOURG MEINAU | G37: 3.3 | H37: 38% | I37: 20% | J37: 28 | K37: 51% | L37: 49% | M37: 155 | N37: 43% | O37: 26% | P37: 19 | Q37: 64% | R37: 44% | S37: 116 | T37: 28% | U37: 20% | V37: 7 | W37: 64% | X37: 51% | Y37: 126
A38: 262 | B38: MARNE-ARDENNES | C38: 11 | D38: REIMS | E38: 551305 | F38: REIMS HIPPODROME | G38: 3.9 | H38: 38% | I38: 20% | J38: 29 | K38: 19% | L38: 17% | M38: 14 | N38: 71% | O38: 54% | P38: 203 | Q38: 65% | R38: 45% | S38: 125 | T38: 47% | U38: 39% | V38: 32 | W38: 48% | X38: 35% | Y38: 22
A39: 262 | B39: VOSGES | C39: 55 | D39: SAINT DIE | E39: 488246 | F39: CORNIMONT LA BRESSE | G39: 2.7 | H39: 38% | I39: 20% | J39: 30 | K39: 15% | L39: 13% | M39: 8 | N39: 67% | O39: 50% | P39: 166 | Q39: 66% | R39: 46% | S39: 132 | T39: 49% | U39: 41% | V39: 38 | W39: 55% | X39: 41% | Y39: 51
A40: 262 | B40: MEURTHE ET MOSELLE MEUSE | C40: 27 | D40: PONT A MOUSSON | E40: 554381 | F40: LAXOU ARISTIDE BRIAND | G40: 4.0 | H40: 39% | I40: 20% | J40: 31 | K40: 36% | L40: 33% | M40: 72 | N40: 41% | O40: 24% | P40: 17 | Q40: 60% | R40: 39% | S40: 87 | T40: 54% | U40: 46% | V40: 62 | W40: 63% | X40: 50% | Y40: 113
A41: 262 | B41: MOSELLE | C41: 42 | D41: MOSELLE EST | E41: 557305 | F41: FAULQUEMONT | G41: 2.4 | H41: 39% | I41: 20% | J41: 32 | K41: 27% | L41: 25% | M41: 29 | N41: 56% | O41: 39% | P41: 60 | Q41: 62% | R41: 42% | S41: 99 | T41: 55% | U41: 47% | V41: 68 | W41: 54% | X41: 41% | Y41: 48
A42: 262 | B42: MARNE-ARDENNES | C42: 2 | D42: CHARLEVILLE MEZIERES | E42: 508833 | F42: VILLERS SEMEUSE CORA | G42: 3.6 | H42: 39% | I42: 21% | J42: 33 | K42: 47% | L42: 45% | M42: 136 | N42: 50% | O42: 33% | P42: 36 | Q42: 55% | R42: 34% | S42: 50 | T42: 52% | U42: 44% | V42: 54 | W42: 50% | X42: 37% | Y42: 31
A43: 262 | B43: MARNE-ARDENNES | C43: 2 | D43: CHARLEVILLE MEZIERES | E43: 508815 | F43: CARIGNAN | G43: 2.8 | H43: 39% | I43: 21% | J43: 34 | K43: 37% | L43: 35% | M43: 79 | N43: 57% | O43: 40% | P43: 71 | Q43: 37% | R43: 16% | S43: 7 | T43: 66% | U43: 58% | V43: 141 | W43: 58% | X43: 45% | Y43: 72
A44: 262 | B44: MARNE-ARDENNES | C44: 2 | D44: CHARLEVILLE MEZIERES | E44: 408801 | F44: CHARLEVILLE JEAN JAURES | G44: 9.4 | H44: 39% | I44: 21% | J44: 35 | K44: 32% | L44: 30% | M44: 55 | N44: 55% | O44: 38% | P44: 57 | Q44: 59% | R44: 39% | S44: 81 | T44: 67% | U44: 59% | V44: 147 | W44: 43% | X44: 29% | Y44: 16
A45: 262 | B45: MEURTHE ET MOSELLE MEUSE | C45: 27 | D45: PONT A MOUSSON | E45: 554533 | F45: PONT A MOUSSON BREUIL | G45: 2.8 | H45: 39% | I45: 21% | J45: 36 | K45: 57% | L45: 55% | M45: 185 | N45: 53% | O45: 36% | P45: 48 | Q45: 30% | R45: 9% | S45: 4 | T45: 67% | U45: 60% | V45: 151 | W45: 49% | X45: 36% | Y45: 23
A46: 262 | B46: MARNE-ARDENNES | C46: 11 | D46: REIMS | E46: 451350 | F46: REIMS CENTRE VILLE | G46: 7.3 | H46: 39% | I46: 21% | J46: 37 | K46: 53% | L46: 51% | M46: 158 | N46: 62% | O46: 45% | P46: 121 | Q46: 57% | R46: 36% | S46: 59 | T46: 50% | U46: 42% | V46: 47 | W46: 35% | X46: 21% | Y46: 6
A47: 262 | B47: MARNE-ARDENNES | C47: 6 | D47: CHALONS EN CHAMPAGNE | E47: 451120 | F47: SARRY | G47: 2.5 | H47: 39% | I47: 21% | J47: 38 | K47: 20% | L47: 17% | M47: 16 | N47: 59% | O47: 42% | P47: 89 | Q47: 53% | R47: 32% | S47: 41 | T47: 61% | U47: 54% | V47: 103 | W47: 65% | X47: 52% | Y47: 138
A48: 262 | B48: MARNE-ARDENNES | C48: 11 | D48: REIMS | E48: 551310 | F48: REIMS CHATILLONS | G48: 4.1 | H48: 40% | I48: 22% | J48: 39 | K48: 50% | L48: 48% | M48: 149 | N48: 52% | O48: 35% | P48: 41 | Q48: 59% | R48: 38% | S48: 73 | T48: 53% | U48: 45% | V48: 60 | W48: 47% | X48: 33% | Y48: 19
A49: 262 | B49: MOSELLE | C49: 42 | D49: MOSELLE EST | E49: 557250 | F49: CREUTZWALD | G49: 2.7 | H49: 40% | I49: 22% | J49: 40 | K49: 50% | L49: 48% | M49: 148 | N49: 64% | O49: 47% | P49: 140 | Q49: 49% | R49: 29% | S49: 26 | T49: 42% | U49: 34% | V49: 22 | W49: 56% | X49: 43% | Y49: 57
A50: 262 | B50: BAS-RHIN | C50: 5060 | D50: HAGUENAU | E50: 4079 | F50: SOULTZ SOUS FORETS | G50: 2.2 | H50: 40% | I50: 22% | J50: 41 | K50: 39% | L50: 37% | M50: 89 | N50: 45% | O50: 28% | P50: 22 | Q50: 64% | R50: 44% | S50: 118 | T50: 55% | U50: 47% | V50: 67 | W50: 58% | X50: 44% | Y50: 66
A51: 262 | B51: MEURTHE ET MOSELLE MEUSE | C51: 27 | D51: PONT A MOUSSON | E51: 454535 | F51: PONT A MOUSSON CENTRALE | G51: 7.8 | H51: 40% | I51: 22% | J51: 42 | K51: 54% | L51: 52% | M51: 167 | N51: 39% | O51: 22% | P51: 9 | Q51: 55% | R51: 35% | S51: 54 | T51: 56% | U51: 48% | V51: 74 | W51: 57% | X51: 43% | Y51: 61
A52: 262 | B52: MEURTHE ET MOSELLE MEUSE | C52: 26 | D52: NANCY | E52: 554601 | F52: SAINT MAX | G52: 4.3 | H52: 40% | I52: 22% | J52: 43 | K52: 21% | L52: 18% | M52: 18 | N52: 60% | O52: 43% | P52: 93 | Q52: 61% | R52: 41% | S52: 95 | T52: 54% | U52: 46% | V52: 63 | W52: 68% | X52: 54% | Y52: 159
A53: 262 | B53: BAS-RHIN | C53: 5006 | D53: STRASBOURG | E53: 4037 | F53: MUNDOLSHEIM | G53: 4.0 | H53: 41% | I53: 22% | J53: 44 | K53: 56% | L53: 54% | M53: 179 | N53: 41% | O53: 24% | P53: 16 | Q53: 53% | R53: 33% | S53: 42 | T53: 52% | U53: 44% | V53: 55 | W53: 61% | X53: 47% | Y53: 91
A54: 262 | B54: VOSGES | C54: 57 | D54: EPINAL | E54: 588631 | F54: THAON LES VOSGES | G54: 5.5 | H54: 41% | I54: 22% | J54: 45 | K54: 35% | L54: 33% | M54: 67 | N54: 57% | O54: 40% | P54: 69 | Q54: 63% | R54: 42% | S54: 102 | T54: 45% | U54: 37% | V54: 26 | W54: 64% | X54: 51% | Y54: 121
A55: 262 | B55: MARNE-ARDENNES | C55: 2 | D55: CHARLEVILLE MEZIERES | E55: 408862 | F55: REVIN | G55: 4.3 | H55: 41% | I55: 22% | J55: 46 | K55: 12% | L55: 10% | M55: 7 | N55: 62% | O55: 45% | P55: 119 | Q55: 59% | R55: 39% | S55: 77 | T55: 65% | U55: 57% | V55: 135 | W55: 66% | X55: 52% | Y55: 139
A56: 262 | B56: AUBE HAUTE MARNE | C56: 21 | D56: CHAUMONT | E56: 451151 | F56: WASSY | G56: 2.0 | H56: 41% | I56: 23% | J56: 47 | K56: 24% | L56: 21% | M56: 24 | N56: 55% | O56: 38% | P56: 58 | Q56: 74% | R56: 54% | S56: 207 | T56: 58% | U56: 50% | V56: 83 | W56: 53% | X56: 40% | Y56: 45
A57: 262 | B57: MARNE-ARDENNES | C57: 6 | D57: CHALONS EN CHAMPAGNE | E57: 551110 | F57: CHALONS ROOSEVELT | G57: 5.0 | H57: 41% | I57: 23% | J57: 48 | K57: 25% | L57: 22% | M57: 25 | N57: 60% | O57: 44% | P57: 97 | Q57: 59% | R57: 39% | S57: 76 | T57: 56% | U57: 48% | V57: 73 | W57: 64% | X57: 50% | Y57: 119
A58: 262 | B58: MEURTHE ET MOSELLE MEUSE | C58: 31 | D58: VERDUN | E58: 555679 | F58: VERDUN MAZEL | G58: 3.8 | H58: 41% | I58: 23% | J58: 49 | K58: 19% | L58: 17% | M58: 11 | N58: 58% | O58: 41% | P58: 77 | Q58: 58% | R58: 38% | S58: 72 | T58: 72% | U58: 65% | V58: 186 | W58: 57% | X58: 44% | Y58: 65
A59: 262 | B59: MEURTHE ET MOSELLE MEUSE | C59: 31 | D59: VERDUN | E59: 555624 | F59: STENAY | G59: 2.8 | H59: 41% | I59: 23% | J59: 50 | K59: 31% | L59: 29% | M59: 48 | N59: 41% | O59: 24% | P59: 14 | Q59: 69% | R59: 49% | S59: 163 | T59: 62% | U59: 55% | V59: 114 | W59: 62% | X59: 49% | Y59: 102
A60: 262 | B60: MOSELLE | C60: 42 | D60: MOSELLE EST | E60: 457308 | F60: FORBACH CENTRALE | G60: 11.2 | H60: 41% | I60: 23% | J60: 51 | K60: 31% | L60: 29% | M60: 47 | N60: 52% | O60: 35% | P60: 46 | Q60: 61% | R60: 40% | S60: 92 | T60: 58% | U60: 51% | V60: 85 | W60: 66% | X60: 53% | Y60: 145
A61: 262 | B61: MEURTHE ET MOSELLE MEUSE | C61: 27 | D61: PONT A MOUSSON | E61: 554506 | F61: CHALIGNY NEUVES MAISONS | G61: 3.8 | H61: 42% | I61: 23% | J61: 52 | K61: 70% | L61: 68% | M61: 233 | N61: 29% | O61: 12% | P61: 4 | Q61: 75% | R61: 55% | S61: 212 | T61: 57% | U61: 50% | V61: 77 | W61: 37% | X61: 23% | Y61: 10
A62: 262 | B62: AUBE HAUTE MARNE | C62: 21 | D62: CHAUMONT | E62: 510590 | F62: CHAUMONT REPUBLIQUE | G62: 4.4 | H62: 42% | I62: 23% | J62: 53 | K62: 41% | L62: 39% | M62: 99 | N62: 58% | O62: 41% | P62: 87 | Q62: 60% | R62: 39% | S62: 86 | T62: 50% | U62: 43% | V62: 49 | W62: 60% | X62: 46% | Y62: 82
A63: 262 | B63: MARNE-ARDENNES | C63: 6 | D63: CHALONS EN CHAMPAGNE | E63: 551354 | F63: VERTUS | G63: 2.5 | H63: 42% | I63: 24% | J63: 54 | K63: 11% | L63: 9% | M63: 5 | N63: 71% | O63: 54% | P63: 204 | Q63: 62% | R63: 41% | S63: 98 | T63: 63% | U63: 55% | V63: 120 | W63: 62% | X63: 48% | Y63: 97
A64: 262 | B64: MEURTHE ET MOSELLE MEUSE | C64: 26 | D64: NANCY | E64: 454426 | F64: LUNEVILLE CARNOT | G64: 10.0 | H64: 42% | I64: 24% | J64: 55 | K64: 51% | L64: 49% | M64: 156 | N64: 54% | O64: 37% | P64: 52 | Q64: 64% | R64: 43% | S64: 115 | T64: 49% | U64: 42% | V64: 43 | W64: 52% | X64: 38% | Y64: 39
A65: 262 | B65: BAS-RHIN | C65: 5006 | D65: STRASBOURG | E65: 4054 | F65: STRASBOURG MONTAGNE VERTE | G65: 2.4 | H65: 42% | I65: 24% | J65: 56 | K65: 46% | L65: 44% | M65: 130 | N65: 67% | O65: 51% | P65: 172 | Q65: 79% | R65: 59% | S65: 238 | T65: 14% | U65: 6% | V65: 2 | W65: 64% | X65: 50% | Y65: 117
A66: 262 | B66: MEURTHE ET MOSELLE MEUSE | C66: 31 | D66: VERDUN | E66: 455298 | F66: ETAIN | G66: 1.5 | H66: 42% | I66: 24% | J66: 57 | K66: 67% | L66: 65% | M66: 225 | N66: 58% | O66: 41% | P66: 84 | Q66: 57% | R66: 36% | S66: 61 | T66: 35% | U66: 27% | V66: 17 | W66: 54% | X66: 41% | Y66: 49
A67: 262 | B67: MEURTHE ET MOSELLE MEUSE | C67: 27 | D67: PONT A MOUSSON | E67: 554357 | F67: JOEUF | G67: 3.8 | H67: 42% | I67: 24% | J67: 58 | K67: 47% | L67: 45% | M67: 135 | N67: 60% | O67: 43% | P67: 95 | Q67: 82% | R67: 62% | S67: 249 | T67: 41% | U67: 34% | V67: 21 | W67: 41% | X67: 28% | Y67: 15
A68: 262 | B68: MEURTHE ET MOSELLE MEUSE | C68: 31 | D68: VERDUN | E68: 554412 | F68: LONGUYON | G68: 2.8 | H68: 42% | I68: 24% | J68: 59 | K68: 23% | L68: 21% | M68: 23 | N68: 65% | O68: 48% | P68: 148 | Q68: 70% | R68: 50% | S68: 170 | T68: 62% | U68: 54% | V68: 109 | W68: 52% | X68: 38% | Y68: 38
A69: 262 | B69: MOSELLE | C69: 44 | D69: MOSELLE NORD | E69: 457306 | F69: FLORANGE | G69: 3.7 | H69: 42% | I69: 24% | J69: 60 | K69: 46% | L69: 44% | M69: 129 | N69: 57% | O69: 40% | P69: 66 | Q69: 49% | R69: 29% | S69: 27 | T69: 57% | U69: 50% | V69: 76 | W69: 63% | X69: 49% | Y69: 107
A70: 262 | B70: MOSELLE | C70: 44 | D70: MOSELLE NORD | E70: 457348 | F70: HAGONDANGE | G70: 9.3 | H70: 43% | I70: 24% | J70: 61 | K70: 54% | L70: 52% | M70: 171 | N70: 49% | O70: 32% | P70: 33 | Q70: 60% | R70: 39% | S70: 88 | T70: 54% | U70: 46% | V70: 64 | W70: 56% | X70: 43% | Y70: 59
A71: 262 | B71: VOSGES | C71: 55 | D71: SAINT DIE | E71: 588666 | F71: VAGNEY | G71: 3.9 | H71: 43% | I71: 24% | J71: 62 | K71: 10% | L71: 8% | M71: 4 | N71: 64% | O71: 47% | P71: 143 | Q71: 58% | R71: 37% | S71: 67 | T71: 73% | U71: 65% | V71: 189 | W71: 69% | X71: 55% | Y71: 168
A72: 262 | B72: HAUT-RHIN | C72: 5130 | D72: COLMAR | E72: 4144 | F72: RIBEAUVILLE | G72: 2.9 | H72: 43% | I72: 25% | J72: 63 | K72: 41% | L72: 39% | M72: 101 | N72: 52% | O72: 35% | P72: 44 | Q72: 52% | R72: 32% | S72: 40 | T72: 51% | U72: 43% | V72: 53 | W72: 77% | X72: 64% | Y72: 244
A73: 262 | B73: MOSELLE | C73: 44 | D73: MOSELLE NORD | E73: 557352 | F73: HETTANGE GRANDE | G73: 4.1 | H73: 43% | I73: 25% | J73: 64 | K73: 58% | L73: 56% | M73: 191 | N73: 44% | O73: 28% | P73: 21 | Q73: 67% | R73: 46% | S73: 141 | T73: 48% | U73: 40% | V73: 33 | W73: 57% | X73: 44% | Y73: 63
A74: 262 | B74: VOSGES | C74: 57 | D74: EPINAL | E74: 588716 | F74: XERTIGNY | G74: 2.9 | H74: 43% | I74: 25% | J74: 65 | K74: 53% | L74: 51% | M74: 159 | N74: 54% | O74: 38% | P74: 55 | Q74: 64% | R74: 43% | S74: 114 | T74: 33% | U74: 25% | V74: 14 | W74: 70% | X74: 57% | Y74: 187
A75: 262 | B75: MEURTHE ET MOSELLE MEUSE | C75: 27 | D75: PONT A MOUSSON | E75: 554416 | F75: LUDRES | G75: 3.8 | H75: 43% | I75: 25% | J75: 66 | K75: 28% | L75: 26% | M75: 32 | N75: 63% | O75: 46% | P75: 126 | Q75: 50% | R75: 30% | S75: 31 | T75: 77% | U75: 69% | V75: 221 | W75: 57% | X75: 43% | Y75: 62
A76: 262 | B76: MARNE-ARDENNES | C76: 11 | D76: REIMS | E76: 551314 | F76: FISMES | G76: 3.0 | H76: 43% | I76: 25% | J76: 67 | K76: 31% | L76: 29% | M76: 51 | N76: 54% | O76: 37% | P76: 54 | Q76: 70% | R76: 50% | S76: 171 | T76: 64% | U76: 57% | V76: 129 | W76: 55% | X76: 42% | Y76: 54
A77: 262 | B77: BAS-RHIN | C77: 5006 | D77: STRASBOURG | E77: 4019 | F77: STRASBOURG ANVERS | G77: 4.3 | H77: 43% | I77: 25% | J77: 68 | K77: 45% | L77: 43% | M77: 120 | N77: 52% | O77: 35% | P77: 45 | Q77: 48% | R77: 27% | S77: 24 | T77: 60% | U77: 53% | V77: 95 | W77: 70% | X77: 56% | Y77: 176
A78: 262 | B78: BAS-RHIN | C78: 5060 | D78: HAGUENAU | E78: 4082 | F78: BOUXWILLER | G78: 2.5 | H78: 43% | I78: 25% | J78: 69 | K78: 35% | L78: 33% | M78: 69 | N78: 62% | O78: 45% | P78: 120 | Q78: 57% | R78: 36% | S78: 60 | T78: 67% | U78: 60% | V78: 152 | W78: 54% | X78: 40% | Y78: 46
A79: 264 | B79: VOSGES | C79: 57 | D79: EPINAL | E79: 588206 | F79: CHARMES | G79: 2.8 | H79: 43% | I79: 25% | J79: 70 | K79: 31% | L79: 29% | M79: 45 | N79: 66% | O79: 49% | P79: 154 | Q79: 77% | R79: 56% | S79: 221 | T79: 42% | U79: 35% | V79: 23 | W79: 60% | X79: 47% | Y79: 88
A80: 264 | B80: MARNE-ARDENNES | C80: 6 | D80: CHALONS EN CHAMPAGNE | E80: 451101 | F80: CHALONS VIVIERS | G80: 9.3 | H80: 43% | I80: 25% | J80: 71 | K80: 31% | L80: 29% | M80: 49 | N80: 60% | O80: 44% | P80: 98 | Q80: 64% | R80: 43% | S80: 112 | T80: 63% | U80: 55% | V80: 117 | W80: 58% | X80: 45% | Y80: 74
A81: 264 | B81: BAS-RHIN | C81: 5006 | D81: STRASBOURG | E81: 4048 | F81: STRASBOURG KOENIGSHOFFEN | G81: 2.0 | H81: 43% | I81: 25% | J81: 72 | K81: 63% | L81: 61% | M81: 211 | N81: 47% | O81: 30% | P81: 27 | Q81: 73% | R81: 53% | S81: 198 | T81: 29% | U81: 22% | V81: 10 | W81: 64% | X81: 51% | Y81: 124
A82: 264 | B82: MEURTHE ET MOSELLE MEUSE | C82: 31 | D82: VERDUN | E82: 455676 | F82: VAUCOULEURS | G82: 1.8 | H82: 44% | I82: 25% | J82: 73 | K82: 76% | L82: 74% | M82: 246 | N82: 40% | O82: 23% | P82: 11 | Q82: 76% | R82: 56% | S82: 219 | T82: 36% | U82: 29% | V82: 18 | W82: 50% | X82: 37% | Y82: 33
A83: 264 | B83: MEURTHE ET MOSELLE MEUSE | C83: 27 | D83: PONT A MOUSSON | E83: 554376 | F83: LAXOU BOUFFLERS | G83: 2.8 | H83: 44% | I83: 26% | J83: 74 | K83: 54% | L83: 52% | M83: 170 | N83: 57% | O83: 41% | P83: 73 | Q83: 58% | R83: 38% | S83: 71 | T83: 59% | U83: 52% | V83: 89 | W83: 50% | X83: 37% | Y83: 29
A84: 264 | B84: MOSELLE | C84: 45 | D84: METZ | E84: 557447 | F84: METZ SAINT MAXIMIN | G84: 3.1 | H84: 44% | I84: 26% | J84: 75 | K84: 54% | L84: 52% | M84: 166 | N84: 47% | O84: 30% | P84: 26 | Q84: 59% | R84: 39% | S84: 80 | T84: 68% | U84: 61% | V84: 159 | W84: 52% | X84: 38% | Y84: 37
A85: 264 | B85: MEURTHE ET MOSELLE MEUSE | C85: 26 | D85: NANCY | E85: 554636 | F85: TOMBLAINE | G85: 2.5 | H85: 44% | I85: 26% | J85: 76 | K85: 22% | L85: 20% | M85: 20 | N85: 74% | O85: 57% | P85: 224 | Q85: 60% | R85: 40% | S85: 89 | T85: 57% | U85: 50% | V85: 80 | W85: 67% | X85: 53% | Y85: 149
A86: 264 | B86: VOSGES | C86: 57 | D86: EPINAL | E86: 488706 | F86: VITTEL | G86: 3.6 | H86: 44% | I86: 26% | J86: 77 | K86: 30% | L86: 28% | M86: 40 | N86: 76% | O86: 59% | P86: 229 | Q86: 55% | R86: 35% | S86: 52 | T86: 57% | U86: 50% | V86: 78 | W86: 63% | X86: 50% | Y86: 111
A87: 264 | B87: VOSGES | C87: 57 | D87: EPINAL | E87: 588501 | F87: NEUFCHATEAU | G87: 5.2 | H87: 44% | I87: 26% | J87: 78 | K87: 18% | L87: 16% | M87: 9 | N87: 70% | O87: 53% | P87: 194 | Q87: 73% | R87: 52% | S87: 194 | T87: 65% | U87: 58% | V87: 139 | W87: 55% | X87: 42% | Y87: 53
A88: 264 | B88: BAS-RHIN | C88: 5101 | D88: SELESTAT | E88: 4120 | F88: WASSELONNE | G88: 4.4 | H88: 44% | I88: 26% | J88: 79 | K88: 61% | L88: 59% | M88: 202 | N88: 68% | O88: 51% | P88: 180 | Q88: 43% | R88: 23% | S88: 11 | T88: 49% | U88: 41% | V88: 39 | W88: 61% | X88: 48% | Y88: 93
A89: 264 | B89: VOSGES | C89: 55 | D89: SAINT DIE | E89: 488326 | F89: GERARDMER | G89: 5.1 | H89: 44% | I89: 26% | J89: 80 | K89: 30% | L89: 27% | M89: 38 | N89: 68% | O89: 51% | P89: 179 | Q89: 44% | R89: 24% | S89: 13 | T89: 75% | U89: 67% | V89: 208 | W89: 66% | X89: 52% | Y89: 141
A90: 264 | B90: BAS-RHIN | C90: 5006 | D90: STRASBOURG | E90: 4045 | F90: STRASBOURG FRANCS BOURGEOIS | G90: 4.6 | H90: 45% | I90: 27% | J90: 81 | K90: 57% | L90: 55% | M90: 182 | N90: 61% | O90: 45% | P90: 112 | Q90: 20% | R90: 0% | S90: 1 | T90: 77% | U90: 69% | V90: 219 | W90: 69% | X90: 56% | Y90: 172
A91: 264 | B91: VOSGES | C91: 55 | D91: SAINT DIE | E91: 488586 | F91: SAINT DIE | G91: 10.7 | H91: 45% | I91: 27% | J91: 82 | K91: 19% | L91: 17% | M91: 13 | N91: 66% | O91: 50% | P91: 162 | Q91: 63% | R91: 43% | S91: 106 | T91: 70% | U91: 62% | V91: 170 | W91: 66% | X91: 53% | Y91: 147
A92: 264 | B92: MARNE-ARDENNES | C92: 6 | D92: CHALONS EN CHAMPAGNE | E92: 551128 | F92: SAINTE MENEHOULD | G92: 3.2 | H92: 45% | I92: 27% | J92: 83 | K92: 33% | L92: 31% | M92: 62 | N92: 58% | O92: 41% | P92: 85 | Q92: 71% | R92: 50% | S92: 175 | T92: 50% | U92: 42% | V92: 44 | W92: 74% | X92: 60% | Y92: 216
A93: 264 | B93: MARNE-ARDENNES | C93: 2 | D93: CHARLEVILLE MEZIERES | E93: 508802 | F93: CHARLEVILLE NEVERS | G93: 3.0 | H93: 45% | I93: 27% | J93: 84 | K93: 31% | L93: 29% | M93: 52 | N93: 66% | O93: 49% | P93: 156 | Q93: 79% | R93: 59% | S93: 241 | T93: 43% | U93: 35% | V93: 24 | W93: 66% | X93: 52% | Y93: 142
A94: 264 | B94: VOSGES | C94: 57 | D94: EPINAL | E94: 588396 | F94: LE VAL D AJOL | G94: 2.9 | H94: 45% | I94: 27% | J94: 85 | K94: 2% | L94: 0% | M94: 1 | N94: 76% | O94: 59% | P94: 228 | Q94: 66% | R94: 45% | S94: 131 | T94: 68% | U94: 60% | V94: 155 | W94: 75% | X94: 62% | Y94: 229
A95: 264 | B95: BAS-RHIN | C95: 5006 | D95: STRASBOURG | E95: 4006 | F95: STRASBOURG NEUDORF | G95: 8.6 | H95: 45% | I95: 27% | J95: 86 | K95: 26% | L95: 24% | M95: 28 | N95: 58% | O95: 41% | P95: 79 | Q95: 70% | R95: 50% | S95: 174 | T95: 58% | U95: 50% | V95: 84 | W95: 75% | X95: 62% | Y95: 228
A96: 264 | B96: MARNE-ARDENNES | C96: 11 | D96: REIMS | E96: 451301 | F96: REIMS HOTEL DE VILLE | G96: 7.8 | H96: 45% | I96: 27% | J96: 87 | K96: 46% | L96: 44% | M96: 124 | N96: 47% | O96: 30% | P96: 29 | Q96: 82% | R96: 62% | S96: 247 | T96: 53% | U96: 45% | V96: 58 | W96: 60% | X96: 46% | Y96: 85
A97: 264 | B97: MEURTHE ET MOSELLE MEUSE | C97: 31 | D97: VERDUN | E97: 455456 | F97: MONTMEDY | G97: 1.8 | H97: 46% | I97: 27% | J97: 88 | K97: 42% | L97: 40% | M97: 104 | N97: 57% | O97: 41% | P97: 74 | Q97: 69% | R97: 48% | S97: 159 | T97: 63% | U97: 55% | V97: 115 | W97: 57% | X97: 44% | Y97: 64
A98: 264 | B98: BAS-RHIN | C98: 5101 | D98: SELESTAT | E98: 4107 | F98: VILLE | G98: 2.9 | H98: 46% | I98: 27% | J98: 89 | K98: 88% | L98: 86% | M98: 259 | N98: 41% | O98: 24% | P98: 15 | Q98: 55% | R98: 35% | S98: 51 | T98: 34% | U98: 26% | V98: 16 | W98: 70% | X98: 56% | Y98: 177
A99: 264 | B99: MARNE-ARDENNES | C99: 6 | D99: CHALONS EN CHAMPAGNE | E99: 551103 | F99: FAGNIERES LECLERC | G99: 3.1 | H99: 46% | I99: 27% | J99: 90 | K99: 26% | L99: 24% | M99: 27 | N99: 58% | O99: 41% | P99: 78 | Q99: 78% | R99: 58% | S99: 231 | T99: 67% | U99: 60% | V99: 150 | W99: 60% | X99: 46% | Y99: 84
A100: 264 | B100: BAS-RHIN | C100: 5006 | D100: STRASBOURG | E100: 4038 | F100: OBERHAUSBERGEN | G100: 4.8 | H100: 46% | I100: 27% | J100: 91 | K100: 49% | L100: 47% | M100: 142 | N100: 64% | O100: 47% | P100: 141 | Q100: 52% | R100: 32% | S100: 35 | T100: 63% | U100: 55% | V100: 118 | W100: 60% | X100: 47% | Y100: 90
A101: 264 | B101: MARNE-ARDENNES | C101: 2 | D101: CHARLEVILLE MEZIERES | E101: 508819 | F101: MOUZON | G101: 2.0 | H101: 46% | I101: 28% | J101: 92 | K101: 44% | L101: 42% | M101: 114 | N101: 79% | O101: 62% | P101: 243 | Q101: 58% | R101: 38% | S101: 69 | T101: 63% | U101: 56% | V101: 123 | W101: 45% | X101: 31% | Y101: 17
A102: 264 | B102: VOSGES | C102: 57 | D102: EPINAL | E102: 488281 | F102: ELOYES | G102: 4.7 | H102: 46% | I102: 28% | J102: 93 | K102: 22% | L102: 20% | M102: 22 | N102: 58% | O102: 41% | P102: 76 | Q102: 63% | R102: 43% | S102: 108 | T102: 78% | U102: 71% | V102: 230 | W102: 68% | X102: 54% | Y102: 157
A103: 30 | B103: BAS-RHIN | C103: 5006 | D103: STRASBOURG | E103: 4043 | F103: STRASBOURG HALLES | G103: 8.2 | H103: 46% | I103: 28% | J103: 94 | K103: 40% | L103: 38% | M103: 93 | N103: 70% | O103: 54% | P103: 195 | Q103: 54% | R103: 34% | S103: 45 | T103: 65% | U103: 57% | V103: 136 | W103: 61% | X103: 48% | Y103: 96
A104: 30 | B104: MOSELLE | C104: 45 | D104: METZ | E104: 457453 | F104: MONTIGNY LES METZ | G104: 7.9 | H104: 46% | I104: 28% | J104: 95 | K104: 32% | L104: 30% | M104: 54 | N104: 62% | O104: 45% | P104: 117 | Q104: 59% | R104: 39% | S104: 82 | T104: 79% | U104: 72% | V104: 233 | W104: 59% | X104: 45% | Y104: 75
A105: 30 | B105: BAS-RHIN | C105: 5006 | D105: STRASBOURG | E105: 4023 | F105: STRASBOURG VOSGES | G105: 3.3 | H105: 46% | I105: 28% | J105: 96 | K105: 46% | L105: 44% | M105: 126 | N105: 57% | O105: 40% | P105: 70 | Q105: 50% | R105: 30% | S105: 30 | T105: 67% | U105: 59% | V105: 148 | W105: 72% | X105: 58% | Y105: 203
A106: 30 | B106: BAS-RHIN | C106: 5006 | D106: STRASBOURG | E106: 4024 | F106: STRASBOURG AUSTERLITZ | G106: 2.3 | H106: 46% | I106: 28% | J106: 97 | K106: 82% | L106: 79% | M106: 256 | N106: 44% | O106: 27% | P106: 20 | Q106: 58% | R106: 37% | S106: 68 | T106: 49% | U106: 41% | V106: 40 | W106: 60% | X106: 46% | Y106: 83
A107: 30 | B107: VOSGES | C107: 57 | D107: EPINAL | E107: 488561 | F107: REMIREMONT | G107: 6.7 | H107: 46% | I107: 28% | J107: 98 | K107: 38% | L107: 36% | M107: 86 | N107: 60% | O107: 43% | P107: 94 | Q107: 62% | R107: 42% | S107: 100 | T107: 67% | U107: 59% | V107: 145 | W107: 66% | X107: 53% | Y107: 148
A108: 30 | B108: MEURTHE ET MOSELLE MEUSE | C108: 31 | D108: VERDUN | E108: 455151 | F108: BAR LE DUC | G108: 8.9 | H108: 47% | I108: 28% | J108: 99 | K108: 45% | L108: 43% | M108: 121 | N108: 58% | O108: 41% | P108: 80 | Q108: 67% | R108: 46% | S108: 138 | T108: 62% | U108: 55% | V108: 111 | W108: 61% | X108: 48% | Y108: 94
A109: 30 | B109: VOSGES | C109: 55 | D109: SAINT DIE | E109: 588386 | F109: LE THILLOT | G109: 2.5 | H109: 47% | I109: 29% | J109: 100 | K109: 44% | L109: 42% | M109: 110 | N109: 64% | O109: 47% | P109: 137 | Q109: 63% | R109: 43% | S109: 105 | T109: 52% | U109: 45% | V109: 57 | W109: 72% | X109: 58% | Y109: 201
A110: 30 | B110: AUBE HAUTE MARNE | C110: 21 | D110: CHAUMONT | E110: 451154 | F110: JOINVILLE | G110: 1.9 | H110: 47% | I110: 29% | J110: 101 | K110: 4% | L110: 2% | M110: 2 | N110: 77% | O110: 60% | P110: 236 | Q110: 89% | R110: 68% | S110: 258 | T110: 59% | U110: 52% | V110: 90 | W110: 65% | X110: 52% | Y110: 131
A111: 30 | B111: MOSELLE | C111: 45 | D111: METZ | E111: 457443 | F111: METZ REPUBLIQUE | G111: 4.2 | H111: 47% | I111: 29% | J111: 102 | K111: 12% | L111: 10% | M111: 6 | N111: 72% | O111: 55% | P111: 210 | Q111: 68% | R111: 48% | S111: 156 | T111: 81% | U111: 73% | V111: 240 | W111: 62% | X111: 48% | Y111: 99
A112: 30 | B112: MEURTHE ET MOSELLE MEUSE | C112: 26 | D112: NANCY | E112: 554166 | F112: BLAINVILLE | G112: 3.2 | H112: 47% | I112: 29% | J112: 103 | K112: 65% | L112: 63% | M112: 216 | N112: 58% | O112: 41% | P112: 81 | Q112: 54% | R112: 34% | S112: 46 | T112: 62% | U112: 54% | V112: 108 | W112: 56% | X112: 43% | Y112: 58
A113: 30 | B113: MARNE-ARDENNES | C113: 11 | D113: REIMS | E113: 451370 | F113: EPERNAY | G113: 11.5 | H113: 47% | I113: 29% | J113: 104 | K113: 39% | L113: 37% | M113: 90 | N113: 59% | O113: 42% | P113: 91 | Q113: 67% | R113: 47% | S113: 145 | T113: 63% | U113: 56% | V113: 125 | W113: 66% | X113: 52% | Y113: 140
A114: 30 | B114: MOSELLE | C114: 42 | D114: MOSELLE EST | E114: 557210 | F114: CHATEAU SALINS | G114: 2.6 | H114: 47% | I114: 29% | J114: 105 | K114: 60% | L114: 58% | M114: 197 | N114: 48% | O114: 31% | P114: 31 | Q114: 57% | R114: 36% | S114: 62 | T114: 69% | U114: 61% | V114: 161 | W114: 62% | X114: 48% | Y114: 100
A115: 30 | B115: VOSGES | C115: 57 | D115: EPINAL | E115: 588336 | F115: GOLBEY | G115: 3.1 | H115: 47% | I115: 29% | J115: 106 | K115: 47% | L115: 44% | M115: 134 | N115: 70% | O115: 54% | P115: 198 | Q115: 64% | R115: 43% | S115: 111 | T115: 62% | U115: 54% | V115: 107 | W115: 53% | X115: 39% | Y115: 44
A116: 30 | B116: MOSELLE | C116: 45 | D116: METZ | E116: 557439 | F116: METZ POMPIDOU | G116: 3.9 | H116: 47% | I116: 29% | J116: 107 | K116: 38% | L116: 36% | M116: 84 | N116: 72% | O116: 55% | P116: 211 | Q116: 55% | R116: 34% | S116: 49 | T116: 61% | U116: 53% | V116: 99 | W116: 71% | X116: 57% | Y116: 194
A117: 30 | B117: AUBE HAUTE MARNE | C117: 14 | D117: TROYES | E117: 510523 | F117: LA CHAPELLE ST LUC | G117: 5.6 | H117: 47% | I117: 29% | J117: 108 | K117: 54% | L117: 52% | M117: 164 | N117: 52% | O117: 35% | P117: 42 | Q117: 76% | R117: 55% | S117: 217 | T117: 45% | U117: 37% | V117: 27 | W117: 70% | X117: 57% | Y117: 182
A118: 30 | B118: VOSGES | C118: 57 | D118: EPINAL | E118: 488451 | F118: MIRECOURT | G118: 4.7 | H118: 47% | I118: 29% | J118: 109 | K118: 30% | L118: 27% | M118: 39 | N118: 73% | O118: 56% | P118: 220 | Q118: 66% | R118: 46% | S118: 133 | T118: 62% | U118: 55% | V118: 112 | W118: 66% | X118: 52% | Y118: 144
A119: 30 | B119: BAS-RHIN | C119: 5060 | D119: HAGUENAU | E119: 4030 | F119: BRUMATH | G119: 5.2 | H119: 47% | I119: 29% | J119: 110 | K119: 51% | L119: 49% | M119: 152 | N119: 63% | O119: 46% | P119: 124 | Q119: 52% | R119: 31% | S119: 34 | T119: 73% | U119: 66% | V119: 195 | W119: 59% | X119: 46% | Y119: 79
A120: 30 | B120: MEURTHE ET MOSELLE MEUSE | C120: 26 | D120: NANCY | E120: 554116 | F120: BACCARAT | G120: 2.6 | H120: 48% | I120: 29% | J120: 111 | K120: 34% | L120: 32% | M120: 64 | N120: 61% | O120: 45% | P120: 111 | Q120: 66% | R120: 46% | S120: 135 | T120: 69% | U120: 62% | V120: 167 | W120: 67% | X120: 54% | Y120: 153
A121: 30 | B121: MEURTHE ET MOSELLE MEUSE | C121: 26 | D121: NANCY | E121: 554266 | F121: DOMBASLE SUR MEURTHE | G121: 3.7 | H121: 48% | I121: 29% | J121: 112 | K121: 70% | L121: 68% | M121: 232 | N121: 67% | O121: 51% | P121: 173 | Q121: 54% | R121: 33% | S121: 44 | T121: 53% | U121: 45% | V121: 59 | W121: 54% | X121: 41% | Y121: 50
A122: 30 | B122: MEURTHE ET MOSELLE MEUSE | C122: 31 | D122: VERDUN | E122: 554700 | F122: VILLERUPT | G122: 3.0 | H122: 48% | I122: 29% | J122: 113 | K122: 27% | L122: 25% | M122: 31 | N122: 64% | O122: 47% | P122: 139 | Q122: 65% | R122: 44% | S122: 121 | T122: 75% | U122: 67% | V122: 207 | W122: 68% | X122: 54% | Y122: 155
A123: 30 | B123: BAS-RHIN | C123: 5006 | D123: STRASBOURG | E123: 4027 | F123: SCHILTIGHEIM CENTRE | G123: 3.7 | H123: 48% | I123: 29% | J123: 114 | K123: 55% | L123: 53% | M123: 175 | N123: 56% | O123: 39% | P123: 63 | Q123: 56% | R123: 36% | S123: 57 | T123: 69% | U123: 62% | V123: 166 | W123: 62% | X123: 49% | Y123: 101
A124: 30 | B124: AUBE HAUTE MARNE | C124: 14 | D124: TROYES | E124: 510570 | F124: NOGENT SUR SEINE | G124: 4.5 | H124: 48% | I124: 29% | J124: 115 | K124: 22% | L124: 20% | M124: 21 | N124: 65% | O124: 48% | P124: 145 | Q124: 72% | R124: 51% | S124: 183 | T124: 78% | U124: 71% | V124: 228 | W124: 62% | X124: 49% | Y124: 104
A125: 30 | B125: HAUT-RHIN | C125: 5130 | D125: COLMAR | E125: 4143 | F125: MUNSTER | G125: 5.0 | H125: 48% | I125: 30% | J125: 116 | K125: 47% | L125: 44% | M125: 133 | N125: 51% | O125: 34% | P125: 38 | Q125: 71% | R125: 50% | S125: 177 | T125: 64% | U125: 56% | V125: 126 | W125: 67% | X125: 54% | Y125: 152
A126: 30 | B126: MARNE-ARDENNES | C126: 11 | D126: REIMS | E126: 551309 | F126: REIMS EUROPE | G126: 2.7 | H126: 48% | I126: 30% | J126: 117 | K126: 40% | L126: 37% | M126: 92 | N126: 71% | O126: 54% | P126: 205 | Q126: 66% | R126: 45% | S126: 127 | T126: 54% | U126: 47% | V126: 65 | W126: 69% | X126: 55% | Y126: 170
A127: 30 | B127: BAS-RHIN | C127: 5060 | D127: HAGUENAU | E127: 4066 | F127: NIEDERBRONN LES BAINS | G127: 6.1 | H127: 48% | I127: 30% | J127: 118 | K127: 30% | L127: 28% | M127: 44 | N127: 70% | O127: 53% | P127: 192 | Q127: 60% | R127: 40% | S127: 90 | T127: 69% | U127: 61% | V127: 165 | W127: 70% | X127: 57% | Y127: 184
A128: 30 | B128: VOSGES | C128: 57 | D128: EPINAL | E128: 488286 | F128: EPINAL ARISTIDE BRIAND | G128: 9.1 | H128: 48% | I128: 30% | J128: 119 | K128: 30% | L128: 28% | M128: 41 | N128: 63% | O128: 46% | P128: 130 | Q128: 74% | R128: 54% | S128: 206 | T128: 59% | U128: 52% | V128: 87 | W128: 74% | X128: 61% | Y128: 221
A129: 30 | B129: AUBE HAUTE MARNE | C129: 21 | D129: CHAUMONT | E129: 451156 | F129: SAINT DIZIER CENTRE | G129: 9.2 | H129: 48% | I129: 30% | J129: 120 | K129: 45% | L129: 42% | M129: 117 | N129: 66% | O129: 49% | P129: 155 | Q129: 65% | R129: 44% | S129: 122 | T129: 61% | U129: 54% | V129: 102 | W129: 65% | X129: 51% | Y129: 127
A130: 30 | B130: MEURTHE ET MOSELLE MEUSE | C130: 31 | D130: VERDUN | E130: 455231 | F130: COMMERCY | G130: 4.7 | H130: 48% | I130: 30% | J130: 121 | K130: 50% | L130: 48% | M130: 150 | N130: 63% | O130: 47% | P130: 132 | Q130: 64% | R130: 44% | S130: 117 | T130: 65% | U130: 57% | V130: 137 | W130: 58% | X130: 45% | Y130: 71
A131: 30 | B131: MARNE-ARDENNES | C131: 11 | D131: REIMS | E131: 451361 | F131: PIERRY LECLERC | G131: 1.9 | H131: 48% | I131: 30% | J131: 122 | K131: 37% | L131: 35% | M131: 77 | N131: 62% | O131: 45% | P131: 114 | Q131: 75% | R131: 54% | S131: 210 | T131: 62% | U131: 55% | V131: 110 | W131: 66% | X131: 52% | Y131: 143
A132: 30 | B132: VOSGES | C132: 55 | D132: SAINT DIE | E132: 588186 | F132: BRUYERES | G132: 3.7 | H132: 48% | I132: 30% | J132: 123 | K132: 35% | L132: 33% | M132: 70 | N132: 62% | O132: 46% | P132: 123 | Q132: 91% | R132: 71% | S132: 260 | T132: 60% | U132: 52% | V132: 91 | W132: 54% | X132: 41% | Y132: 47
A133: 30 | B133: MOSELLE | C133: 44 | D133: MOSELLE NORD | E133: 457350 | F133: HAYANGE | G133: 7.3 | H133: 48% | I133: 30% | J133: 124 | K133: 50% | L133: 47% | M133: 145 | N133: 50% | O133: 34% | P133: 37 | Q133: 73% | R133: 53% | S133: 197 | T133: 64% | U133: 57% | V133: 134 | W133: 65% | X133: 52% | Y133: 133
A134: 30 | B134: MEURTHE ET MOSELLE MEUSE | C134: 31 | D134: VERDUN | E134: 555406 | F134: LIGNY EN BARROIS | G134: 2.8 | H134: 48% | I134: 30% | J134: 125 | K134: 32% | L134: 30% | M134: 57 | N134: 67% | O134: 50% | P134: 168 | Q134: 66% | R134: 46% | S134: 136 | T134: 70% | U134: 62% | V134: 171 | W134: 67% | X134: 53% | Y134: 150
A135: 30 | B135: MARNE-ARDENNES | C135: 6 | D135: CHALONS EN CHAMPAGNE | E135: 451381 | F135: SEZANNE | G135: 6.5 | H135: 49% | I135: 30% | J135: 126 | K135: 40% | L135: 38% | M135: 95 | N135: 61% | O135: 44% | P135: 108 | Q135: 73% | R135: 52% | S135: 195 | T135: 63% | U135: 56% | V135: 124 | W135: 65% | X135: 52% | Y135: 134
A136: 30 | B136: MOSELLE | C136: 42 | D136: MOSELLE EST | E136: 457583 | F136: SAINT AVOLD | G136: 7.6 | H136: 49% | I136: 30% | J136: 127 | K136: 42% | L136: 40% | M136: 105 | N136: 65% | O136: 48% | P136: 147 | Q136: 67% | R136: 47% | S136: 147 | T136: 64% | U136: 57% | V136: 132 | W136: 65% | X136: 51% | Y136: 130
A137: 30 | B137: MOSELLE | C137: 44 | D137: MOSELLE NORD | E137: 457632 | F137: THIONVILLE CENTRALE | G137: 11.8 | H137: 49% | I137: 30% | J137: 128 | K137: 43% | L137: 41% | M137: 108 | N137: 59% | O137: 42% | P137: 90 | Q137: 68% | R137: 48% | S137: 154 | T137: 63% | U137: 56% | V137: 122 | W137: 71% | X137: 57% | Y137: 190
A138: 30 | B138: MARNE-ARDENNES | C138: 11 | D138: REIMS | E138: 551365 | F138: DORMANS | G138: 2.6 | H138: 49% | I138: 31% | J138: 129 | K138: 32% | L138: 30% | M138: 53 | N138: 77% | O138: 61% | P138: 240 | Q138: 65% | R138: 44% | S138: 124 | T138: 72% | U138: 65% | V138: 181 | W138: 58% | X138: 44% | Y138: 67
A139: 30 | B139: AUBE HAUTE MARNE | C139: 14 | D139: TROYES | E139: 510520 | F139: SAINT ANDRE LES VERGERS | G139: 4.1 | H139: 49% | I139: 31% | J139: 130 | K139: 46% | L139: 44% | M139: 128 | N139: 61% | O139: 44% | P139: 106 | Q139: 57% | R139: 37% | S139: 64 | T139: 82% | U139: 74% | V139: 244 | W139: 58% | X139: 44% | Y139: 69
A140: 30 | B140: MOSELLE | C140: 45 | D140: METZ | E140: 557612 | F140: SAINTE MARIE AUX CHENES | G140: 3.9 | H140: 49% | I140: 31% | J140: 131 | K140: 20% | L140: 18% | M140: 17 | N140: 77% | O140: 60% | P140: 237 | Q140: 72% | R140: 51% | S140: 184 | T140: 64% | U140: 57% | V140: 130 | W140: 72% | X140: 58% | Y140: 202
A141: 30 | B141: MEURTHE ET MOSELLE MEUSE | C141: 31 | D141: VERDUN | E141: 455678 | F141: VERDUN CENTRALE | G141: 10.6 | H141: 49% | I141: 31% | J141: 132 | K141: 38% | L141: 36% | M141: 85 | N141: 58% | O141: 41% | P141: 86 | Q141: 79% | R141: 59% | S141: 237 | T141: 74% | U141: 66% | V141: 196 | W141: 56% | X141: 42% | Y141: 56
A142: 30 | B142: MOSELLE | C142: 42 | D142: MOSELLE EST | E142: 457614 | F142: SARREBOURG | G142: 8.7 | H142: 49% | I142: 31% | J142: 133 | K142: 53% | L142: 51% | M142: 160 | N142: 62% | O142: 45% | P142: 116 | Q142: 57% | R142: 37% | S142: 66 | T142: 68% | U142: 61% | V142: 157 | W142: 64% | X142: 51% | Y142: 122
A143: 30 | B143: MOSELLE | C143: 44 | D143: MOSELLE NORD | E143: 457158 | F143: YUTZ | G143: 4.6 | H143: 49% | I143: 31% | J143: 134 | K143: 49% | L143: 47% | M143: 138 | N143: 61% | O143: 44% | P143: 107 | Q143: 67% | R143: 46% | S143: 140 | T143: 61% | U143: 54% | V143: 100 | W143: 67% | X143: 53% | Y143: 151
A144: 110 | B144: AUBE HAUTE MARNE | C144: 21 | D144: CHAUMONT | E144: 410560 | F144: BOURBONNE LES BAINS | G144: 2.0 | H144: 49% | I144: 31% | J144: 135 | K144: 27% | L144: 25% | M144: 30 | N144: 63% | O144: 46% | P144: 128 | Q144: 76% | R144: 55% | S144: 215 | T144: 64% | U144: 57% | V144: 133 | W144: 75% | X144: 62% | Y144: 231
A145: 110 | B145: MOSELLE | C145: 44 | D145: MOSELLE NORD | E145: 557347 | F145: GUENANGE | G145: 5.0 | H145: 49% | I145: 31% | J145: 136 | K145: 74% | L145: 72% | M145: 243 | N145: 61% | O145: 44% | P145: 101 | Q145: 56% | R145: 36% | S145: 56 | T145: 67% | U145: 59% | V145: 146 | W145: 48% | X145: 34% | Y145: 20
A146: 110 | B146: MEURTHE ET MOSELLE MEUSE | C146: 27 | D146: PONT A MOUSSON | E146: 554321 | F146: FROUARD | G146: 3.0 | H146: 49% | I146: 31% | J146: 137 | K146: 79% | L146: 77% | M146: 252 | N146: 56% | O146: 39% | P146: 62 | Q146: 44% | R146: 24% | S146: 14 | T146: 66% | U146: 58% | V146: 143 | W146: 61% | X146: 47% | Y146: 92
A147: 110 | B147: BAS-RHIN | C147: 5101 | D147: SELESTAT | E147: 4109 | F147: MARCKOLSHEIM | G147: 2.7 | H147: 49% | I147: 31% | J147: 138 | K147: 39% | L147: 37% | M147: 88 | N147: 65% | O147: 49% | P147: 151 | Q147: 68% | R147: 48% | S147: 158 | T147: 72% | U147: 64% | V147: 180 | W147: 63% | X147: 50% | Y147: 110
A148: 110 | B148: MEURTHE ET MOSELLE MEUSE | C148: 26 | D148: NANCY | E148: 554296 | F148: ESSEY LES NANCY | G148: 3.9 | H148: 50% | I148: 32% | J148: 139 | K148: 46% | L148: 44% | M148: 125 | N148: 61% | O148: 44% | P148: 103 | Q148: 66% | R148: 45% | S148: 129 | T148: 74% | U148: 66% | V148: 203 | W148: 63% | X148: 49% | Y148: 106
A149: 110 | B149: MEURTHE ET MOSELLE MEUSE | C149: 27 | D149: PONT A MOUSSON | E149: 454696 | F149: VILLERS GENERAL LECLERC | G149: 6.1 | H149: 50% | I149: 32% | J149: 140 | K149: 35% | L149: 33% | M149: 68 | N149: 66% | O149: 50% | P149: 161 | Q149: 64% | R149: 44% | S149: 120 | T149: 71% | U149: 63% | V149: 174 | W149: 72% | X149: 59% | Y149: 206
A150: 110 | B150: AUBE HAUTE MARNE | C150: 14 | D150: TROYES | E150: 510513 | F150: TROYES 1ER MAI | G150: 3.2 | H150: 50% | I150: 32% | J150: 141 | K150: 57% | L150: 55% | M150: 184 | N150: 65% | O150: 48% | P150: 149 | Q150: 69% | R150: 49% | S150: 161 | T150: 69% | U150: 61% | V150: 160 | W150: 49% | X150: 36% | Y150: 26
A151: 110 | B151: MARNE-ARDENNES | C151: 2 | D151: CHARLEVILLE MEZIERES | E151: 408840 | F151: RETHEL | G151: 5.3 | H151: 50% | I151: 32% | J151: 142 | K151: 33% | L151: 31% | M151: 63 | N151: 61% | O151: 45% | P151: 110 | Q151: 67% | R151: 47% | S151: 143 | T151: 73% | U151: 66% | V151: 192 | W151: 75% | X151: 61% | Y151: 225
A152: 110 | B152: AUBE HAUTE MARNE | C152: 14 | D152: TROYES | E152: 410571 | F152: ROMILLY SUR SEINE | G152: 6.9 | H152: 50% | I152: 32% | J152: 143 | K152: 38% | L152: 35% | M152: 83 | N152: 61% | O152: 44% | P152: 105 | Q152: 73% | R152: 52% | S152: 196 | T152: 73% | U152: 66% | V152: 193 | W152: 65% | X152: 52% | Y152: 132
A153: 110 | B153: HAUT-RHIN | C153: 5130 | D153: COLMAR | E153: 4153 | F153: ROUFFACH | G153: 3.7 | H153: 50% | I153: 32% | J153: 144 | K153: 58% | L153: 56% | M153: 193 | N153: 73% | O153: 56% | P153: 219 | Q153: 71% | R153: 50% | S153: 178 | T153: 41% | U153: 33% | V153: 20 | W153: 68% | X153: 54% | Y153: 156
A154: 110 | B154: MOSELLE | C154: 45 | D154: METZ | E154: 457574 | F154: ROMBAS | G154: 3.2 | H154: 50% | I154: 32% | J154: 145 | K154: 64% | L154: 61% | M154: 212 | N154: 52% | O154: 35% | P154: 43 | Q154: 51% | R154: 31% | S154: 32 | T154: 66% | U154: 58% | V154: 142 | W154: 78% | X154: 65% | Y154: 249
A155: 110 | B155: MOSELLE | C155: 45 | D155: METZ | E155: 557437 | F155: METZ SARRE | G155: 3.9 | H155: 50% | I155: 32% | J155: 146 | K155: 55% | L155: 53% | M155: 173 | N155: 66% | O155: 50% | P155: 159 | Q155: 80% | R155: 59% | S155: 242 | T155: 34% | U155: 26% | V155: 15 | W155: 76% | X155: 63% | Y155: 239
A156: 110 | B156: MARNE-ARDENNES | C156: 11 | D156: REIMS | E156: 551369 | F156: DAMERY | G156: 2.3 | H156: 50% | I156: 32% | J156: 147 | K156: 63% | L156: 61% | M156: 208 | N156: 72% | O156: 55% | P156: 213 | Q156: 72% | R156: 52% | S156: 189 | T156: 51% | U156: 43% | V156: 52 | W156: 53% | X156: 39% | Y156: 43
A157: 110 | B157: MEURTHE ET MOSELLE MEUSE | C157: 27 | D157: PONT A MOUSSON | E157: 454355 | F157: JARNY | G157: 4.7 | H157: 50% | I157: 32% | J157: 148 | K157: 65% | L157: 63% | M157: 218 | N157: 55% | O157: 39% | P157: 59 | Q157: 69% | R157: 49% | S157: 165 | T157: 57% | U157: 50% | V157: 81 | W157: 63% | X157: 50% | Y157: 112
A158: 110 | B158: MOSELLE | C158: 45 | D158: METZ | E158: 557712 | F158: WOIPPY | G158: 5.4 | H158: 50% | I158: 32% | J158: 149 | K158: 41% | L158: 39% | M158: 102 | N158: 62% | O158: 45% | P158: 118 | Q158: 77% | R158: 57% | S158: 225 | T158: 60% | U158: 53% | V158: 96 | W158: 71% | X158: 57% | Y158: 189
A159: 110 | B159: MEURTHE ET MOSELLE MEUSE | C159: 26 | D159: NANCY | E159: 454171 | F159: BLAMONT | G159: 1.5 | H159: 50% | I159: 32% | J159: 150 | K159: 84% | L159: 82% | M159: 257 | N159: 38% | O159: 21% | P159: 8 | Q159: 78% | R159: 57% | S159: 228 | T159: 51% | U159: 43% | V159: 50 | W159: 61% | X159: 48% | Y159: 95
A160: 110 | B160: AUBE HAUTE MARNE | C160: 14 | D160: TROYES | E160: 410550 | F160: BAR SUR AUBE | G160: 5.9 | H160: 50% | I160: 32% | J160: 151 | K160: 34% | L160: 32% | M160: 65 | N160: 68% | O160: 51% | P160: 176 | Q160: 82% | R160: 61% | S160: 246 | T160: 61% | U160: 53% | V160: 97 | W160: 68% | X160: 54% | Y160: 160
A161: 110 | B161: MOSELLE | C161: 42 | D161: MOSELLE EST | E161: 557523 | F161: PHALSBOURG | G161: 2.2 | H161: 50% | I161: 32% | J161: 152 | K161: 56% | L161: 54% | M161: 177 | N161: 80% | O161: 63% | P161: 246 | Q161: 60% | R161: 39% | S161: 85 | T161: 65% | U161: 58% | V161: 140 | W161: 51% | X161: 38% | Y161: 36
A162: 110 | B162: MARNE-ARDENNES | C162: 2 | D162: CHARLEVILLE MEZIERES | E162: 408806 | F162: SEDAN | G162: 9.2 | H162: 50% | I162: 32% | J162: 153 | K162: 41% | L162: 39% | M162: 98 | N162: 71% | O162: 55% | P162: 208 | Q162: 61% | R162: 40% | S162: 93 | T162: 75% | U162: 68% | V162: 214 | W162: 64% | X162: 50% | Y162: 120
A163: 110 | B163: MOSELLE | C163: 45 | D163: METZ | E163: 557559 | F163: REMILLY | G163: 4.1 | H163: 50% | I163: 32% | J163: 154 | K163: 52% | L163: 50% | M163: 157 | N163: 71% | O163: 55% | P163: 206 | Q163: 60% | R163: 39% | S163: 83 | T163: 64% | U163: 57% | V163: 131 | W163: 65% | X163: 52% | Y163: 135
A164: 110 | B164: BAS-RHIN | C164: 5060 | D164: HAGUENAU | E164: 4085 | F164: INGWILLER | G164: 3.2 | H164: 50% | I164: 32% | J164: 155 | K164: 42% | L164: 40% | M164: 103 | N164: 59% | O164: 42% | P164: 92 | Q164: 74% | R164: 54% | S164: 204 | T164: 69% | U164: 62% | V164: 169 | W164: 68% | X164: 55% | Y164: 166
A165: 110 | B165: VOSGES | C165: 55 | D165: SAINT DIE | E165: 588587 | F165: SAINT DIE CATHEDRALE | G165: 3.7 | H165: 50% | I165: 32% | J165: 156 | K165: 37% | L165: 35% | M165: 75 | N165: 70% | O165: 53% | P165: 193 | Q165: 60% | R165: 40% | S165: 91 | T165: 78% | U165: 70% | V165: 225 | W165: 68% | X165: 55% | Y165: 167
A166: 110 | B166: BAS-RHIN | C166: 5060 | D166: HAGUENAU | E166: 4057 | F166: BISCHWILLER | G166: 6.5 | H166: 51% | I166: 32% | J166: 157 | K166: 58% | L166: 56% | M166: 188 | N166: 56% | O166: 40% | P166: 64 | Q166: 72% | R166: 52% | S166: 187 | T166: 56% | U166: 48% | V166: 72 | W166: 71% | X166: 58% | Y166: 200
A167: 110 | B167: MEURTHE ET MOSELLE MEUSE | C167: 27 | D167: PONT A MOUSSON | E167: 554496 | F167: NANCY TROIS MAISONS | G167: 2.6 | H167: 51% | I167: 33% | J167: 158 | K167: 88% | L167: 85% | M167: 258 | N167: 51% | O167: 34% | P167: 39 | Q167: 52% | R167: 32% | S167: 39 | T167: 55% | U167: 47% | V167: 69 | W167: 68% | X167: 54% | Y167: 164
A168: 110 | B168: MOSELLE | C168: 45 | D168: METZ | E168: 557434 | F168: MARLY | G168: 3.7 | H168: 51% | I168: 33% | J168: 159 | K168: 35% | L168: 33% | M168: 71 | N168: 63% | O168: 46% | P168: 125 | Q168: 64% | R168: 44% | S168: 119 | T168: 83% | U168: 75% | V168: 246 | W168: 69% | X168: 55% | Y168: 169
A169: 110 | B169: MEURTHE ET MOSELLE MEUSE | C169: 27 | D169: PONT A MOUSSON | E169: 554257 | F169: DIEULOUARD | G169: 3.4 | H169: 51% | I169: 33% | J169: 160 | K169: 25% | L169: 23% | M169: 26 | N169: 67% | O169: 50% | P169: 165 | Q169: 78% | R169: 57% | S169: 229 | T169: 78% | U169: 70% | V169: 223 | W169: 67% | X169: 54% | Y169: 154
A170: 110 | B170: MARNE-ARDENNES | C170: 11 | D170: REIMS | E170: 551341 | F170: REIMS JEAN JAURES | G170: 4.3 | H170: 51% | I170: 33% | J170: 161 | K170: 63% | L170: 61% | M170: 209 | N170: 57% | O170: 40% | P170: 65 | Q170: 67% | R170: 46% | S170: 139 | T170: 62% | U170: 54% | V170: 104 | W170: 66% | X170: 53% | Y170: 146
A171: 110 | B171: MOSELLE | C171: 42 | D171: MOSELLE EST | E171: 557503 | F171: NEUNKIRCH | G171: 3.8 | H171: 51% | I171: 33% | J171: 162 | K171: 28% | L171: 26% | M171: 34 | N171: 72% | O171: 55% | P171: 212 | Q171: 64% | R171: 43% | S171: 113 | T171: 78% | U171: 71% | V171: 229 | W171: 73% | X171: 59% | Y171: 207
A172: 110 | B172: BAS-RHIN | C172: 5101 | D172: SELESTAT | E172: 4007 | F172: ILLKIRCH CENTRE | G172: 7.3 | H172: 51% | I172: 33% | J172: 163 | K172: 61% | L172: 59% | M172: 201 | N172: 54% | O172: 37% | P172: 51 | Q172: 69% | R172: 49% | S172: 166 | T172: 60% | U172: 52% | V172: 94 | W172: 71% | X172: 57% | Y172: 195
A173: 110 | B173: BAS-RHIN | C173: 5006 | D173: STRASBOURG | E173: 4026 | F173: STRASBOURG DANUBE | G173: 4.5 | H173: 51% | I173: 33% | J173: 164 | K173: 54% | L173: 52% | M173: 169 | N173: 77% | O173: 60% | P173: 235 | Q173: 82% | R173: 62% | S173: 248 | T173: 28% | U173: 21% | V173: 8 | W173: 74% | X173: 60% | Y173: 218
A174: 110 | B174: BAS-RHIN | C174: 5101 | D174: SELESTAT | E174: 4116 | F174: MOLSHEIM | G174: 5.1 | H174: 51% | I174: 33% | J174: 165 | K174: 55% | L174: 53% | M174: 176 | N174: 69% | O174: 52% | P174: 186 | Q174: 44% | R174: 24% | S174: 12 | T174: 75% | U174: 67% | V174: 209 | W174: 71% | X174: 58% | Y174: 199
A175: 110 | B175: MOSELLE | C175: 45 | D175: METZ | E175: 557105 | F175: ARS SUR MOSELLE | G175: 3.6 | H175: 51% | I175: 33% | J175: 166 | K175: 47% | L175: 44% | M175: 132 | N175: 76% | O175: 59% | P175: 231 | Q175: 70% | R175: 49% | S175: 169 | T175: 72% | U175: 65% | V175: 185 | W175: 51% | X175: 37% | Y175: 34
A176: 110 | B176: MOSELLE | C176: 42 | D176: MOSELLE EST | E176: 457617 | F176: SARREGUEMINES | G176: 8.2 | H176: 51% | I176: 33% | J176: 167 | K176: 44% | L176: 42% | M176: 111 | N176: 66% | O176: 49% | P176: 157 | Q176: 68% | R176: 47% | S176: 150 | T176: 67% | U176: 59% | V176: 149 | W176: 71% | X176: 58% | Y176: 197
A177: 110 | B177: MOSELLE | C177: 45 | D177: METZ | E177: 557178 | F177: BOULAY | G177: 3.9 | H177: 51% | I177: 33% | J177: 168 | K177: 28% | L177: 26% | M177: 35 | N177: 69% | O177: 52% | P177: 187 | Q177: 73% | R177: 53% | S177: 201 | T177: 74% | U177: 66% | V177: 202 | W177: 71% | X177: 57% | Y177: 188
A178: 110 | B178: MEURTHE ET MOSELLE MEUSE | C178: 27 | D178: PONT A MOUSSON | E178: 554184 | F178: BRIEY | G178: 4.6 | H178: 51% | I178: 33% | J178: 169 | K178: 45% | L178: 43% | M178: 119 | N178: 71% | O178: 54% | P178: 202 | Q178: 59% | R178: 39% | S178: 78 | T178: 78% | U178: 70% | V178: 227 | W178: 62% | X178: 49% | Y178: 103
A179: 110 | B179: AUBE HAUTE MARNE | C179: 21 | D179: CHAUMONT | E179: 410541 | F179: LANGRES | G179: 6.7 | H179: 51% | I179: 33% | J179: 170 | K179: 58% | L179: 56% | M179: 190 | N179: 65% | O179: 48% | P179: 146 | Q179: 68% | R179: 48% | S179: 155 | T179: 60% | U179: 52% | V179: 92 | W179: 65% | X179: 51% | Y179: 129
A180: 110 | B180: MOSELLE | C180: 42 | D180: MOSELLE EST | E180: 557668 | F180: VALMONT | G180: 4.5 | H180: 51% | I180: 33% | J180: 171 | K180: 22% | L180: 20% | M180: 19 | N180: 77% | O180: 61% | P180: 239 | Q180: 68% | R180: 48% | S180: 157 | T180: 70% | U180: 63% | V180: 172 | W180: 78% | X180: 64% | Y180: 247
A181: 110 | B181: HAUT-RHIN | C181: 5169 | D181: MULHOUSE | E181: 4195 | F181: CERNAY | G181: 2.4 | H181: 51% | I181: 33% | J181: 172 | K181: 58% | L181: 55% | M181: 187 | N181: 73% | O181: 56% | P181: 217 | Q181: 50% | R181: 29% | S181: 28 | T181: 80% | U181: 72% | V181: 236 | W181: 57% | X181: 43% | Y181: 60
A182: 110 | B182: HAUT-RHIN | C182: 5130 | D182: COLMAR | E182: 4157 | F182: NEUF BRISACH | G182: 3.6 | H182: 51% | I182: 33% | J182: 173 | K182: 42% | L182: 40% | M182: 107 | N182: 74% | O182: 58% | P182: 225 | Q182: 71% | R182: 51% | S182: 182 | T182: 58% | U182: 51% | V182: 86 | W182: 70% | X182: 57% | Y182: 183
A183: 110 | B183: AUBE HAUTE MARNE | C183: 14 | D183: TROYES | E183: 510530 | F183: ARCIS SUR AUBE | G183: 3.9 | H183: 51% | I183: 33% | J183: 174 | K183: 28% | L183: 26% | M183: 33 | N183: 61% | O183: 44% | P183: 104 | Q183: 84% | R183: 64% | S183: 252 | T183: 71% | U183: 63% | V183: 176 | W183: 73% | X183: 60% | Y183: 213
A184: 110 | B184: BAS-RHIN | C184: 5060 | D184: HAGUENAU | E184: 4071 | F184: WISSEMBOURG | G184: 8.4 | H184: 51% | I184: 33% | J184: 175 | K184: 46% | L184: 44% | M184: 127 | N184: 68% | O184: 51% | P184: 177 | Q184: 59% | R184: 38% | S184: 75 | T184: 71% | U184: 63% | V184: 173 | W184: 74% | X184: 61% | Y184: 220
A185: 110 | B185: BAS-RHIN | C185: 5060 | D185: HAGUENAU | E185: 4031 | F185: TRUCHTERSHEIM | G185: 2.9 | H185: 51% | I185: 33% | J185: 176 | K185: 54% | L185: 51% | M185: 162 | N185: 57% | O185: 40% | P185: 72 | Q185: 46% | R185: 26% | S185: 17 | T185: 83% | U185: 76% | V185: 249 | W185: 77% | X185: 63% | Y185: 241
A186: 110 | B186: MEURTHE ET MOSELLE MEUSE | C186: 31 | D186: VERDUN | E186: 455566 | F186: REVIGNY SUR ORNAIN | G186: 3.4 | H186: 51% | I186: 33% | J186: 177 | K186: 41% | L186: 39% | M186: 100 | N186: 60% | O186: 44% | P186: 100 | Q186: 77% | R186: 57% | S186: 224 | T186: 69% | U186: 61% | V186: 162 | W186: 70% | X186: 57% | Y186: 179
A187: 110 | B187: MOSELLE | C187: 42 | D187: MOSELLE EST | E187: 457258 | F187: DIEUZE | G187: 3.2 | H187: 51% | I187: 33% | J187: 178 | K187: 45% | L187: 43% | M187: 118 | N187: 63% | O187: 46% | P187: 131 | Q187: 72% | R187: 51% | S187: 185 | T187: 63% | U187: 56% | V187: 121 | W187: 75% | X187: 61% | Y187: 222
A188: 110 | B188: MOSELLE | C188: 44 | D188: MOSELLE NORD | E188: 557622 | F188: SIERCK LES BAINS | G188: 1.3 | H188: 52% | I188: 33% | J188: 179 | K188: 56% | L188: 54% | M188: 181 | N188: 63% | O188: 46% | P188: 129 | Q188: 56% | R188: 36% | S188: 55 | T188: 83% | U188: 76% | V188: 248 | W188: 59% | X188: 46% | Y188: 77
A189: 110 | B189: AUBE HAUTE MARNE | C189: 14 | D189: TROYES | E189: 410512 | F189: TROYES ZOLA | G189: 4.5 | H189: 52% | I189: 34% | J189: 180 | K189: 58% | L189: 56% | M189: 189 | N189: 64% | O189: 47% | P189: 138 | Q189: 57% | R189: 37% | S189: 63 | T189: 73% | U189: 65% | V189: 188 | W189: 68% | X189: 54% | Y189: 163
A190: 110 | B190: VOSGES | C190: 55 | D190: SAINT DIE | E190: 588461 | F190: MOYENMOUTIER | G190: 2.5 | H190: 52% | I190: 34% | J190: 181 | K190: 69% | L190: 67% | M190: 231 | N190: 57% | O190: 40% | P190: 68 | Q190: 54% | R190: 34% | S190: 47 | T190: 74% | U190: 67% | V190: 204 | W190: 65% | X190: 52% | Y190: 137
A191: 110 | B191: MARNE-ARDENNES | C191: 6 | D191: CHALONS EN CHAMPAGNE | E191: 451166 | F191: VITRY LE FRANCOIS | G191: 6.8 | H191: 52% | I191: 34% | J191: 182 | K191: 45% | L191: 43% | M191: 122 | N191: 71% | O191: 54% | P191: 199 | Q191: 72% | R191: 52% | S191: 188 | T191: 69% | U191: 61% | V191: 164 | W191: 63% | X191: 50% | Y191: 109
A192: 160 | B192: MOSELLE | C192: 45 | D192: METZ | E192: 557445 | F192: METZ SAINT LIVIER | G192: 2.9 | H192: 52% | I192: 34% | J192: 183 | K192: 49% | L192: 47% | M192: 140 | N192: 64% | O192: 47% | P192: 136 | Q192: 63% | R192: 43% | S192: 109 | T192: 74% | U192: 66% | V192: 198 | W192: 70% | X192: 57% | Y192: 185
A193: 160 | B193: MEURTHE ET MOSELLE MEUSE | C193: 26 | D193: NANCY | E193: 454671 | F193: VANDOEUVRE LES NANCY | G193: 4.6 | H193: 52% | I193: 34% | J193: 184 | K193: 63% | L193: 61% | M193: 210 | N193: 58% | O193: 41% | P193: 82 | Q193: 79% | R193: 58% | S193: 235 | T193: 71% | U193: 63% | V193: 175 | W193: 49% | X193: 36% | Y193: 27
A194: 160 | B194: HAUT-RHIN | C194: 5169 | D194: MULHOUSE | E194: 4181 | F194: WITTELSHEIM | G194: 3.3 | H194: 52% | I194: 34% | J194: 185 | K194: 54% | L194: 52% | M194: 168 | N194: 74% | O194: 58% | P194: 226 | Q194: 78% | R194: 58% | S194: 230 | T194: 63% | U194: 55% | V194: 119 | W194: 52% | X194: 38% | Y194: 40
A195: 160 | B195: MEURTHE ET MOSELLE MEUSE | C195: 27 | D195: PONT A MOUSSON | E195: 554196 | F195: CHAMPIGNEULLES | G195: 3.6 | H195: 52% | I195: 34% | J195: 186 | K195: 61% | L195: 58% | M195: 199 | N195: 53% | O195: 36% | P195: 49 | Q195: 76% | R195: 55% | S195: 213 | T195: 62% | U195: 54% | V195: 106 | W195: 71% | X195: 57% | Y195: 192
A196: 160 | B196: AUBE HAUTE MARNE | C196: 21 | D196: CHAUMONT | E196: 410566 | F196: CHAUMONT HOTEL DE VILLE | G196: 7.7 | H196: 52% | I196: 34% | J196: 187 | K196: 53% | L196: 51% | M196: 161 | N196: 63% | O196: 47% | P196: 133 | Q196: 70% | R196: 50% | S196: 173 | T196: 72% | U196: 65% | V196: 183 | W196: 62% | X196: 49% | Y196: 105
A197: 160 | B197: BAS-RHIN | C197: 5101 | D197: SELESTAT | E197: 4015 | F197: LINGOLSHEIM | G197: 4.4 | H197: 52% | I197: 34% | J197: 188 | K197: 54% | L197: 52% | M197: 165 | N197: 73% | O197: 56% | P197: 218 | Q197: 60% | R197: 39% | S197: 84 | T197: 60% | U197: 52% | V197: 93 | W197: 77% | X197: 63% | Y197: 240
A198: 160 | B198: HAUT-RHIN | C198: 5130 | D198: COLMAR | E198: 4141 | F198: HORBOURG WIHR | G198: 5.8 | H198: 52% | I198: 34% | J198: 189 | K198: 55% | L198: 52% | M198: 172 | N198: 80% | O198: 63% | P198: 247 | Q198: 57% | R198: 37% | S198: 65 | T198: 68% | U198: 60% | V198: 154 | W198: 63% | X198: 50% | Y198: 114
A199: 160 | B199: MARNE-ARDENNES | C199: 11 | D199: REIMS | E199: 451308 | F199: REIMS SAINT THOMAS | G199: 7.3 | H199: 52% | I199: 34% | J199: 190 | K199: 64% | L199: 62% | M199: 213 | N199: 67% | O199: 50% | P199: 167 | Q199: 75% | R199: 54% | S199: 209 | T199: 68% | U199: 61% | V199: 156 | W199: 49% | X199: 36% | Y199: 24
A200: 160 | B200: MARNE-ARDENNES | C200: 2 | D200: CHARLEVILLE MEZIERES | E200: 508817 | F200: CHARLEVILLE MOHON | G200: 3.4 | H200: 53% | I200: 34% | J200: 191 | K200: 37% | L200: 35% | M200: 82 | N200: 67% | O200: 50% | P200: 170 | Q200: 76% | R200: 55% | S200: 214 | T200: 75% | U200: 68% | V200: 213 | W200: 68% | X200: 54% | Y200: 165
A201: 160 | B201: MARNE-ARDENNES | C201: 11 | D201: REIMS | E201: 551306 | F201: REIMS SAINT MARCEAUX | G201: 4.5 | H201: 53% | I201: 35% | J201: 192 | K201: 68% | L201: 66% | M201: 226 | N201: 60% | O201: 44% | P201: 99 | Q201: 87% | R201: 66% | S201: 257 | T201: 49% | U201: 42% | V201: 42 | W201: 60% | X201: 47% | Y201: 89
A202: 160 | B202: MOSELLE | C202: 45 | D202: METZ | E202: 457446 | F202: METZ SAINT LOUIS | G202: 6.5 | H202: 53% | I202: 35% | J202: 193 | K202: 55% | L202: 53% | M202: 174 | N202: 69% | O202: 52% | P202: 185 | Q202: 63% | R202: 43% | S202: 104 | T202: 74% | U202: 66% | V202: 201 | W202: 64% | X202: 51% | Y202: 123
A203: 160 | B203: VOSGES | C203: 55 | D203: SAINT DIE | E203: 588551 | F203: RAMBERVILLERS | G203: 3.5 | H203: 53% | I203: 35% | J203: 194 | K203: 32% | L203: 30% | M203: 58 | N203: 79% | O203: 62% | P203: 244 | Q203: 79% | R203: 59% | S203: 240 | T203: 72% | U203: 65% | V203: 182 | W203: 64% | X203: 50% | Y203: 116
... 71 more rows

Sheet AG_BANCA
B1: Accueil | H1: BAROMETRE BDD - AGENCES
H2: BANCARISATION
H3: =ACCUEIL!F7 -> 2021-08-22
H7: Ventes Nettes produits pondérés | L7: Ventes sur client non détenteur de l’univers | P7: Mobilité Macron | T7: Remises commerciales | X7: Total Bancarisation
H8: =DATEMAJ!C8 -> au 22/08 | J8: coef | K8: ='RECAP DIRCOM'!AA4 -> 10% | L8: =DATEMAJ!C9 -> au 22/08 | N8: coef | O8: ='RECAP DIRCOM'!AE4 -> 4% | P8: =DATEMAJ!C10 -> au 22/08 | R8: coef | S8: ='RECAP DIRCOM'!AI4 -> 3% | T8: =DATEMAJ!C11 -> au 30/06 | V8: coef | W8: ='RECAP DIRCOM'!AM4 -> 3% | Y8: coef | Z8: ='RECAP DIRCOM'!$AP$4 -> 20%
B9: Direction | C9: eds | D9: Territoire | E9: eds | F9: Agence | G9: ="ETP perf "&DATEMAJ!$C$28 -> ETP perf 30-juin | H9: VN | I9: VN / ETP | J9: % Ecart au 1er | K9: Rang | L9: VB | M9: VB / ETP | N9: % Ecart au 1er | O9: Rang | P9: Nb | Q9: Nb / ETP | R9: % Ecart au 1er | S9: Rang | T9: Montant | U9: Montant / ETP | V9: % Ecart au 1er | W9: Rang | X9: Moyenne ecart au 1er | Y9: % Ecart au 1er | Z9: Rang CEGEE
A10: 50 | B10: AUBE HAUTE MARNE | C10: 21 | D10: CHAUMONT | E10: 410560 | F10: BOURBONNE LES BAINS | G10: =VLOOKUP($E10,'RECAP AG'!$G$6:$DC$270,3,FALSE) -> 2.0 | H10: =VLOOKUP($E10,'RECAP AG'!$G$6:$DC$270,18,FALSE) -> 113.7 | I10: =VLOOKUP($E10,'RECAP AG'!$G$6:$DC$270,19,FALSE) -> 56.85 | J10: =VLOOKUP($E10,'RECAP AG'!$G$6:$DC$270,20,FALSE) -> 58% | K10: =VLOOKUP($E10,'RECAP AG'!$G$6:$DC$270,21,FALSE) -> 84 | L10: =VLOOKUP($E10,'RECAP AG'!$G$6:$DC$270,22,FALSE) -> 51 | M10: =VLOOKUP($E10,'RECAP AG'!$G$6:$DC$270,23,FALSE) -> 25.50 | N10: =VLOOKUP($E10,'RECAP AG'!$G$6:$DC$270,24,FALSE) -> 65% | O10: =VLOOKUP($E10,'RECAP AG'!$G$6:$DC$270,25,FALSE) -> 233 | P10: =VLOOKUP($E10,'RECAP AG'!$G$6:$DC$270,26,FALSE) -> 8 | Q10: =VLOOKUP($E10,'RECAP AG'!$G$6:$DC$270,27,FALSE) -> 4.00 | R10: =VLOOKUP($E10,'RECAP AG'!$G$6:$DC$270,28,FALSE) -> 89% | S10: =VLOOKUP($E10,'RECAP AG'!$G$6:$DC$270,29,FALSE) -> 193 | T10: =VLOOKUP($E10,'RECAP AG'!$G$6:$DC$270,30,FALSE) -> -3.59 | U10: =VLOOKUP($E10,'RECAP AG'!$G$6:$DC$270,31,FALSE) -> -1.80 | V10: =VLOOKUP($E10,'RECAP AG'!$G$6:$DC$270,32,FALSE) -> 52% | W10: =VLOOKUP($E10,'RECAP AG'!$G$6:$DC$270,33,FALSE) -> 119 | X10: =VLOOKUP($E10,'RECAP AG'!$G$6:$DC$270,34,FALSE) -> 63% | Y10: =VLOOKUP($E10,'RECAP AG'!$G$6:$DC$270,35,FALSE) -> 46% | Z10: =VLOOKUP($E10,'RECAP AG'!$G$6:$DC$270,36,FALSE) -> 128
A11: 50 | B11: AUBE HAUTE MARNE | C11: 21 | D11: CHAUMONT | E11: 410566 | F11: CHAUMONT HOTEL DE VILLE | G11: =VLOOKUP($E11,'RECAP AG'!$G$6:$DC$270,3,FALSE) -> 7.7 | H11: =VLOOKUP($E11,'RECAP AG'!$G$6:$DC$270,18,FALSE) -> 342.0 | I11: =VLOOKUP($E11,'RECAP AG'!$G$6:$DC$270,19,FALSE) -> 44.29 | J11: =VLOOKUP($E11,'RECAP AG'!$G$6:$DC$270,20,FALSE) -> 67% | K11: =VLOOKUP($E11,'RECAP AG'!$G$6:$DC$270,21,FALSE) -> 151 | L11: =VLOOKUP($E11,'RECAP AG'!$G$6:$DC$270,22,FALSE) -> 303 | M11: =VLOOKUP($E11,'RECAP AG'!$G$6:$DC$270,23,FALSE) -> 39.24 | N11: =VLOOKUP($E11,'RECAP AG'!$G$6:$DC$270,24,FALSE) -> 46% | O11: =VLOOKUP($E11,'RECAP AG'!$G$6:$DC$270,25,FALSE) -> 68 | P11: =VLOOKUP($E11,'RECAP AG'!$G$6:$DC$270,26,FALSE) -> 51 | Q11: =VLOOKUP($E11,'RECAP AG'!$G$6:$DC$270,27,FALSE) -> 6.61 | R11: =VLOOKUP($E11,'RECAP AG'!$G$6:$DC$270,28,FALSE) -> 82% | S11: =VLOOKUP($E11,'RECAP AG'!$G$6:$DC$270,29,FALSE) -> 107 | T11: =VLOOKUP($E11,'RECAP AG'!$G$6:$DC$270,30,FALSE) -> -14.82 | U11: =VLOOKUP($E11,'RECAP AG'!$G$6:$DC$270,31,FALSE) -> -1.92 | V11: =VLOOKUP($E11,'RECAP AG'!$G$6:$DC$270,32,FALSE) -> 57% | W11: =VLOOKUP($E11,'RECAP AG'!$G$6:$DC$270,33,FALSE) -> 136 | X11: =VLOOKUP($E11,'RECAP AG'!$G$6:$DC$270,34,FALSE) -> 63% | Y11: =VLOOKUP($E11,'RECAP AG'!$G$6:$DC$270,35,FALSE) -> 47% | Z11: =VLOOKUP($E11,'RECAP AG'!$G$6:$DC$270,36,FALSE) -> 133
A12: 50 | B12: AUBE HAUTE MARNE | C12: 21 | D12: CHAUMONT | E12: 510590 | F12: CHAUMONT REPUBLIQUE | G12: =VLOOKUP($E12,'RECAP AG'!$G$6:$DC$270,3,FALSE) -> 4.4 | H12: =VLOOKUP($E12,'RECAP AG'!$G$6:$DC$270,18,FALSE) -> 191.7 | I12: =VLOOKUP($E12,'RECAP AG'!$G$6:$DC$270,19,FALSE) -> 43.23 | J12: =VLOOKUP($E12,'RECAP AG'!$G$6:$DC$270,20,FALSE) -> 68% | K12: =VLOOKUP($E12,'RECAP AG'!$G$6:$DC$270,21,FALSE) -> 157 | L12: =VLOOKUP($E12,'RECAP AG'!$G$6:$DC$270,22,FALSE) -> 198 | M12: =VLOOKUP($E12,'RECAP AG'!$G$6:$DC$270,23,FALSE) -> 44.66 | N12: =VLOOKUP($E12,'RECAP AG'!$G$6:$DC$270,24,FALSE) -> 38% | O12: =VLOOKUP($E12,'RECAP AG'!$G$6:$DC$270,25,FALSE) -> 44 | P12: =VLOOKUP($E12,'RECAP AG'!$G$6:$DC$270,26,FALSE) -> 41 | Q12: =VLOOKUP($E12,'RECAP AG'!$G$6:$DC$270,27,FALSE) -> 9.25 | R12: =VLOOKUP($E12,'RECAP AG'!$G$6:$DC$270,28,FALSE) -> 74% | S12: =VLOOKUP($E12,'RECAP AG'!$G$6:$DC$270,29,FALSE) -> 64 | T12: =VLOOKUP($E12,'RECAP AG'!$G$6:$DC$270,30,FALSE) -> -6.19 | U12: =VLOOKUP($E12,'RECAP AG'!$G$6:$DC$270,31,FALSE) -> -1.40 | V12: =VLOOKUP($E12,'RECAP AG'!$G$6:$DC$270,32,FALSE) -> 36% | W12: =VLOOKUP($E12,'RECAP AG'!$G$6:$DC$270,33,FALSE) -> 47 | X12: =VLOOKUP($E12,'RECAP AG'!$G$6:$DC$270,34,FALSE) -> 58% | Y12: =VLOOKUP($E12,'RECAP AG'!$G$6:$DC$270,35,FALSE) -> 41% | Z12: =VLOOKUP($E12,'RECAP AG'!$G$6:$DC$270,36,FALSE) -> 87
A13: 50 | B13: AUBE HAUTE MARNE | C13: 21 | D13: CHAUMONT | E13: 451154 | F13: JOINVILLE | G13: =VLOOKUP($E13,'RECAP AG'!$G$6:$DC$270,3,FALSE) -> 1.9 | H13: =VLOOKUP($E13,'RECAP AG'!$G$6:$DC$270,18,FALSE) -> 45.0 | I13: =VLOOKUP($E13,'RECAP AG'!$G$6:$DC$270,19,FALSE) -> 23.96 | J13: =VLOOKUP($E13,'RECAP AG'!$G$6:$DC$270,20,FALSE) -> 82% | K13: =VLOOKUP($E13,'RECAP AG'!$G$6:$DC$270,21,FALSE) -> 231 | L13: =VLOOKUP($E13,'RECAP AG'!$G$6:$DC$270,22,FALSE) -> 70 | M13: =VLOOKUP($E13,'RECAP AG'!$G$6:$DC$270,23,FALSE) -> 37.27 | N13: =VLOOKUP($E13,'RECAP AG'!$G$6:$DC$270,24,FALSE) -> 48% | O13: =VLOOKUP($E13,'RECAP AG'!$G$6:$DC$270,25,FALSE) -> 96 | P13: =VLOOKUP($E13,'RECAP AG'!$G$6:$DC$270,26,FALSE) -> 8 | Q13: =VLOOKUP($E13,'RECAP AG'!$G$6:$DC$270,27,FALSE) -> 4.26 | R13: =VLOOKUP($E13,'RECAP AG'!$G$6:$DC$270,28,FALSE) -> 88% | S13: =VLOOKUP($E13,'RECAP AG'!$G$6:$DC$270,29,FALSE) -> 184 | T13: =VLOOKUP($E13,'RECAP AG'!$G$6:$DC$270,30,FALSE) -> -4.84 | U13: =VLOOKUP($E13,'RECAP AG'!$G$6:$DC$270,31,FALSE) -> -2.58 | V13: =VLOOKUP($E13,'RECAP AG'!$G$6:$DC$270,32,FALSE) -> 84% | W13: =VLOOKUP($E13,'RECAP AG'!$G$6:$DC$270,33,FALSE) -> 220 | X13: =VLOOKUP($E13,'RECAP AG'!$G$6:$DC$270,34,FALSE) -> 77% | Y13: =VLOOKUP($E13,'RECAP AG'!$G$6:$DC$270,35,FALSE) -> 60% | Z13: =VLOOKUP($E13,'RECAP AG'!$G$6:$DC$270,36,FALSE) -> 236
A14: 50 | B14: AUBE HAUTE MARNE | C14: 21 | D14: CHAUMONT | E14: 410541 | F14: LANGRES | G14: =VLOOKUP($E14,'RECAP AG'!$G$6:$DC$270,3,FALSE) -> 6.7 | H14: =VLOOKUP($E14,'RECAP AG'!$G$6:$DC$270,18,FALSE) -> 348.6 | I14: =VLOOKUP($E14,'RECAP AG'!$G$6:$DC$270,19,FALSE) -> 51.78 | J14: =VLOOKUP($E14,'RECAP AG'!$G$6:$DC$270,20,FALSE) -> 61% | K14: =VLOOKUP($E14,'RECAP AG'!$G$6:$DC$270,21,FALSE) -> 107 | L14: =VLOOKUP($E14,'RECAP AG'!$G$6:$DC$270,22,FALSE) -> 208 | M14: =VLOOKUP($E14,'RECAP AG'!$G$6:$DC$270,23,FALSE) -> 30.89 | N14: =VLOOKUP($E14,'RECAP AG'!$G$6:$DC$270,24,FALSE) -> 57% | O14: =VLOOKUP($E14,'RECAP AG'!$G$6:$DC$270,25,FALSE) -> 174 | P14: =VLOOKUP($E14,'RECAP AG'!$G$6:$DC$270,26,FALSE) -> 43 | Q14: =VLOOKUP($E14,'RECAP AG'!$G$6:$DC$270,27,FALSE) -> 6.39 | R14: =VLOOKUP($E14,'RECAP AG'!$G$6:$DC$270,28,FALSE) -> 82% | S14: =VLOOKUP($E14,'RECAP AG'!$G$6:$DC$270,29,FALSE) -> 113 | T14: =VLOOKUP($E14,'RECAP AG'!$G$6:$DC$270,30,FALSE) -> -14.76 | U14: =VLOOKUP($E14,'RECAP AG'!$G$6:$DC$270,31,FALSE) -> -2.19 | V14: =VLOOKUP($E14,'RECAP AG'!$G$6:$DC$270,32,FALSE) -> 69% | W14: =VLOOKUP($E14,'RECAP AG'!$G$6:$DC$270,33,FALSE) -> 171 | X14: =VLOOKUP($E14,'RECAP AG'!$G$6:$DC$270,34,FALSE) -> 65% | Y14: =VLOOKUP($E14,'RECAP AG'!$G$6:$DC$270,35,FALSE) -> 48% | Z14: =VLOOKUP($E14,'RECAP AG'!$G$6:$DC$270,36,FALSE) -> 146
A15: 50 | B15: AUBE HAUTE MARNE | C15: 21 | D15: CHAUMONT | E15: 451156 | F15: SAINT DIZIER CENTRE | G15: =VLOOKUP($E15,'RECAP AG'!$G$6:$DC$270,3,FALSE) -> 9.2 | H15: =VLOOKUP($E15,'RECAP AG'!$G$6:$DC$270,18,FALSE) -> 421.3 | I15: =VLOOKUP($E15,'RECAP AG'!$G$6:$DC$270,19,FALSE) -> 45.96 | J15: =VLOOKUP($E15,'RECAP AG'!$G$6:$DC$270,20,FALSE) -> 66% | K15: =VLOOKUP($E15,'RECAP AG'!$G$6:$DC$270,21,FALSE) -> 137 | L15: =VLOOKUP($E15,'RECAP AG'!$G$6:$DC$270,22,FALSE) -> 349 | M15: =VLOOKUP($E15,'RECAP AG'!$G$6:$DC$270,23,FALSE) -> 38.07 | N15: =VLOOKUP($E15,'RECAP AG'!$G$6:$DC$270,24,FALSE) -> 47% | O15: =VLOOKUP($E15,'RECAP AG'!$G$6:$DC$270,25,FALSE) -> 88 | P15: =VLOOKUP($E15,'RECAP AG'!$G$6:$DC$270,26,FALSE) -> 58 | Q15: =VLOOKUP($E15,'RECAP AG'!$G$6:$DC$270,27,FALSE) -> 6.33 | R15: =VLOOKUP($E15,'RECAP AG'!$G$6:$DC$270,28,FALSE) -> 82% | S15: =VLOOKUP($E15,'RECAP AG'!$G$6:$DC$270,29,FALSE) -> 117 | T15: =VLOOKUP($E15,'RECAP AG'!$G$6:$DC$270,30,FALSE) -> -21.28 | U15: =VLOOKUP($E15,'RECAP AG'!$G$6:$DC$270,31,FALSE) -> -2.32 | V15: =VLOOKUP($E15,'RECAP AG'!$G$6:$DC$270,32,FALSE) -> 74% | W15: =VLOOKUP($E15,'RECAP AG'!$G$6:$DC$270,33,FALSE) -> 189 | X15: =VLOOKUP($E15,'RECAP AG'!$G$6:$DC$270,34,FALSE) -> 66% | Y15: =VLOOKUP($E15,'RECAP AG'!$G$6:$DC$270,35,FALSE) -> 49% | Z15: =VLOOKUP($E15,'RECAP AG'!$G$6:$DC$270,36,FALSE) -> 155
A16: 50 | B16: AUBE HAUTE MARNE | C16: 21 | D16: CHAUMONT | E16: 451151 | F16: WASSY | G16: =VLOOKUP($E16,'RECAP AG'!$G$6:$DC$270,3,FALSE) -> 2.0 | H16: =VLOOKUP($E16,'RECAP AG'!$G$6:$DC$270,18,FALSE) -> 127.6 | I16: =VLOOKUP($E16,'RECAP AG'!$G$6:$DC$270,19,FALSE) -> 64.61 | J16: =VLOOKUP($E16,'RECAP AG'!$G$6:$DC$270,20,FALSE) -> 52% | K16: =VLOOKUP($E16,'RECAP AG'!$G$6:$DC$270,21,FALSE) -> 61 | L16: =VLOOKUP($E16,'RECAP AG'!$G$6:$DC$270,22,FALSE) -> 77 | M16: =VLOOKUP($E16,'RECAP AG'!$G$6:$DC$270,23,FALSE) -> 38.99 | N16: =VLOOKUP($E16,'RECAP AG'!$G$6:$DC$270,24,FALSE) -> 46% | O16: =VLOOKUP($E16,'RECAP AG'!$G$6:$DC$270,25,FALSE) -> 71 | P16: =VLOOKUP($E16,'RECAP AG'!$G$6:$DC$270,26,FALSE) -> 11 | Q16: =VLOOKUP($E16,'RECAP AG'!$G$6:$DC$270,27,FALSE) -> 5.57 | R16: =VLOOKUP($E16,'RECAP AG'!$G$6:$DC$270,28,FALSE) -> 85% | S16: =VLOOKUP($E16,'RECAP AG'!$G$6:$DC$270,29,FALSE) -> 147 | T16: =VLOOKUP($E16,'RECAP AG'!$G$6:$DC$270,30,FALSE) -> -3.27 | U16: =VLOOKUP($E16,'RECAP AG'!$G$6:$DC$270,31,FALSE) -> -1.66 | V16: =VLOOKUP($E16,'RECAP AG'!$G$6:$DC$270,32,FALSE) -> 46% | W16: =VLOOKUP($E16,'RECAP AG'!$G$6:$DC$270,33,FALSE) -> 86 | X16: =VLOOKUP($E16,'RECAP AG'!$G$6:$DC$270,34,FALSE) -> 55% | Y16: =VLOOKUP($E16,'RECAP AG'!$G$6:$DC$270,35,FALSE) -> 38% | Z16: =VLOOKUP($E16,'RECAP AG'!$G$6:$DC$270,36,FALSE) -> 58
A17: 50 | B17: AUBE HAUTE MARNE | C17: 14 | D17: TROYES | E17: 510530 | F17: ARCIS SUR AUBE | G17: =VLOOKUP($E17,'RECAP AG'!$G$6:$DC$270,3,FALSE) -> 3.9 | H17: =VLOOKUP($E17,'RECAP AG'!$G$6:$DC$270,18,FALSE) -> 203.5 | I17: =VLOOKUP($E17,'RECAP AG'!$G$6:$DC$270,19,FALSE) -> 51.66 | J17: =VLOOKUP($E17,'RECAP AG'!$G$6:$DC$270,20,FALSE) -> 61% | K17: =VLOOKUP($E17,'RECAP AG'!$G$6:$DC$270,21,FALSE) -> 110 | L17: =VLOOKUP($E17,'RECAP AG'!$G$6:$DC$270,22,FALSE) -> 103 | M17: =VLOOKUP($E17,'RECAP AG'!$G$6:$DC$270,23,FALSE) -> 26.15 | N17: =VLOOKUP($E17,'RECAP AG'!$G$6:$DC$270,24,FALSE) -> 64% | O17: =VLOOKUP($E17,'RECAP AG'!$G$6:$DC$270,25,FALSE) -> 228 | P17: =VLOOKUP($E17,'RECAP AG'!$G$6:$DC$270,26,FALSE) -> 24 | Q17: =VLOOKUP($E17,'RECAP AG'!$G$6:$DC$270,27,FALSE) -> 6.09 | R17: =VLOOKUP($E17,'RECAP AG'!$G$6:$DC$270,28,FALSE) -> 83% | S17: =VLOOKUP($E17,'RECAP AG'!$G$6:$DC$270,29,FALSE) -> 126 | T17: =VLOOKUP($E17,'RECAP AG'!$G$6:$DC$270,30,FALSE) -> -5.10 | U17: =VLOOKUP($E17,'RECAP AG'!$G$6:$DC$270,31,FALSE) -> -1.30 | V17: =VLOOKUP($E17,'RECAP AG'!$G$6:$DC$270,32,FALSE) -> 31% | W17: =VLOOKUP($E17,'RECAP AG'!$G$6:$DC$270,33,FALSE) -> 37 | X17: =VLOOKUP($E17,'RECAP AG'!$G$6:$DC$270,34,FALSE) -> 61% | Y17: =VLOOKUP($E17,'RECAP AG'!$G$6:$DC$270,35,FALSE) -> 44% | Z17: =VLOOKUP($E17,'RECAP AG'!$G$6:$DC$270,36,FALSE) -> 104
A18: 50 | B18: AUBE HAUTE MARNE | C18: 14 | D18: TROYES | E18: 410550 | F18: BAR SUR AUBE | G18: =VLOOKUP($E18,'RECAP AG'!$G$6:$DC$270,3,FALSE) -> 5.9 | H18: =VLOOKUP($E18,'RECAP AG'!$G$6:$DC$270,18,FALSE) -> 225.9 | I18: =VLOOKUP($E18,'RECAP AG'!$G$6:$DC$270,19,FALSE) -> 38.13 | J18: =VLOOKUP($E18,'RECAP AG'!$G$6:$DC$270,20,FALSE) -> 72% | K18: =VLOOKUP($E18,'RECAP AG'!$G$6:$DC$270,21,FALSE) -> 177 | L18: =VLOOKUP($E18,'RECAP AG'!$G$6:$DC$270,22,FALSE) -> 181 | M18: =VLOOKUP($E18,'RECAP AG'!$G$6:$DC$270,23,FALSE) -> 30.55 | N18: =VLOOKUP($E18,'RECAP AG'!$G$6:$DC$270,24,FALSE) -> 58% | O18: =VLOOKUP($E18,'RECAP AG'!$G$6:$DC$270,25,FALSE) -> 180 | P18: =VLOOKUP($E18,'RECAP AG'!$G$6:$DC$270,26,FALSE) -> 14 | Q18: =VLOOKUP($E18,'RECAP AG'!$G$6:$DC$270,27,FALSE) -> 2.36 | R18: =VLOOKUP($E18,'RECAP AG'!$G$6:$DC$270,28,FALSE) -> 93% | S18: =VLOOKUP($E18,'RECAP AG'!$G$6:$DC$270,29,FALSE) -> 232 | T18: =VLOOKUP($E18,'RECAP AG'!$G$6:$DC$270,30,FALSE) -> -9.39 | U18: =VLOOKUP($E18,'RECAP AG'!$G$6:$DC$270,31,FALSE) -> -1.58 | V18: =VLOOKUP($E18,'RECAP AG'!$G$6:$DC$270,32,FALSE) -> 43% | W18: =VLOOKUP($E18,'RECAP AG'!$G$6:$DC$270,33,FALSE) -> 72 | X18: =VLOOKUP($E18,'RECAP AG'!$G$6:$DC$270,34,FALSE) -> 68% | Y18: =VLOOKUP($E18,'RECAP AG'!$G$6:$DC$270,35,FALSE) -> 51% | Z18: =VLOOKUP($E18,'RECAP AG'!$G$6:$DC$270,36,FALSE) -> 176
A19: 50 | B19: AUBE HAUTE MARNE | C19: 14 | D19: TROYES | E19: 510556 | F19: BAR SUR SEINE | G19: =VLOOKUP($E19,'RECAP AG'!$G$6:$DC$270,3,FALSE) -> 3.5 | H19: =VLOOKUP($E19,'RECAP AG'!$G$6:$DC$270,18,FALSE) -> 143.6 | I19: =VLOOKUP($E19,'RECAP AG'!$G$6:$DC$270,19,FALSE) -> 41.12 | J19: =VLOOKUP($E19,'RECAP AG'!$G$6:$DC$270,20,FALSE) -> 69% | K19: =VLOOKUP($E19,'RECAP AG'!$G$6:$DC$270,21,FALSE) -> 167 | L19: =VLOOKUP($E19,'RECAP AG'!$G$6:$DC$270,22,FALSE) -> 126 | M19: =VLOOKUP($E19,'RECAP AG'!$G$6:$DC$270,23,FALSE) -> 36.08 | N19: =VLOOKUP($E19,'RECAP AG'!$G$6:$DC$270,24,FALSE) -> 50% | O19: =VLOOKUP($E19,'RECAP AG'!$G$6:$DC$270,25,FALSE) -> 114 | P19: =VLOOKUP($E19,'RECAP AG'!$G$6:$DC$270,26,FALSE) -> 29 | Q19: =VLOOKUP($E19,'RECAP AG'!$G$6:$DC$270,27,FALSE) -> 8.30 | R19: =VLOOKUP($E19,'RECAP AG'!$G$6:$DC$270,28,FALSE) -> 77% | S19: =VLOOKUP($E19,'RECAP AG'!$G$6:$DC$270,29,FALSE) -> 75 | T19: =VLOOKUP($E19,'RECAP AG'!$G$6:$DC$270,30,FALSE) -> -11.89 | U19: =VLOOKUP($E19,'RECAP AG'!$G$6:$DC$270,31,FALSE) -> -3.41 | V19: =VLOOKUP($E19,'RECAP AG'!$G$6:$DC$270,32,FALSE) -> 119% | W19: =VLOOKUP($E19,'RECAP AG'!$G$6:$DC$270,33,FALSE) -> 258 | X19: =VLOOKUP($E19,'RECAP AG'!$G$6:$DC$270,34,FALSE) -> 74% | Y19: =VLOOKUP($E19,'RECAP AG'!$G$6:$DC$270,35,FALSE) -> 57% | Z19: =VLOOKUP($E19,'RECAP AG'!$G$6:$DC$270,36,FALSE) -> 223
